Workbook

Sheet tabloürün
A1: Armut | C1: Acur | D1: Adaçayı | E1: Ahududu | F1: Anason | G1: Anemon(ManisaLalesi) | H1: AntepFıstığı | I1: Armut | J1: Arpa(Biralık) | K1: Arpa(Diğer) | L1: Arpa(YeşilOt) | M1: Aspir | N1: At | O1: Avokado | P1: Ayçiçeği(Çerezlik) | Q1: Ayçiçeği(Yağlık) | R1: Ayva | S1: Badem | T1: Bakla(HayvanYemi) | U1: Bakla(Taze) | V1: Bakla(Yemeklik) | W1: Bal | X1: Balkabağı | Y1: Bamya | Z1: Bamya(sera) | AA1: BarbunyaFasulye(Taze) | AB1: Bezelye | AC1: Bezelye(Taze) | AD1: Bezelye(Taze)(sera) | AE1: Bezelye(Yemlik)(YeşilOt) | AF1: Biber(Çarliston) | AG1: Biber(Çarliston)(sera) | AH1: Biber(Dolmalık) | AI1: Biber(Dolmalık)(sera) | AJ1: Biber(Salçalık,Kapya) | AK1: Biber(Sivri) | AL1: Biber(Sivri)(sera) | AM1: Böğürtlen | AN1: Börülce | AO1: Börülce(Taze) | AP1: Brokoli | AQ1: Buğday(Diğer) | AR1: Buğday(Durum) | AS1: Buğday(YeşilOt) | AT1: Burçak(Dane) | AU1: Burçak(YesilOt) | AV1: Ceviz | AW1: Çavdar | AX1: Çavdar(YeşilOt) | AY1: ÇayırOtu(Yeşilot) | AZ1: ÇiçekSoğanları | BA1: ÇiçekSoğanları(sera) | BB1: Çilek | BC1: Çilek(sera) | BD1: Çörekotu | BE1: Darı | BF1: Dereotu | BG1: Deve | BH1: DışMekanSüsBitkileri | BI1: DışMekanSüsBitkileri(sera) | BJ1: DiğerKesmeÇiçekler | BK1: DiğerKesmeÇiçekler(sera) | BL1: Domates(Salçalık) | BM1: Domates(sera) | BN1: Domates(Sofralık) | BO1: Domuz | BP1: Dut | BQ1: Elma(Amasya) | BR1: Elma(Diğer) | BS1: Elma(Golden) | BT1: Elma(Grannysmith) | BU1: Elma(Starking) | BV1: Enginar | BW1: Erik | BX1: Eşek | BY1: EtTavuğu | BZ1: Fasulye(Kuru) | CA1: Fasulye(Taze) | CB1: Fasulye(Taze)(sera) | CC1: Fındık | CD1: Fiğ(Adi)(Dane) | CE1: Fiğ(Adi)(YeşilOt) | CF1: Fiğ(Diğer)(Dane) | CG1: Fiğ(Diğer)(YeşilOt) | CH1: Fiğ(Macar)(Dane) | CI1: Fiğ(Macar)(YeşilOt) | CJ1: Fiğ(Yeşilot) | CK1: FiğTohumu | CL1: Fresia | CM1: Fresia(sera) | CN1: Gerbera | CO1: Gerbera(sera) | CP1: Greyfurt(Altıntop) | CQ1: Gül(Yağlık) | CR1: Haşhaş(Kapsül) | CS1: Haşhaş(Tohum) | CT1: Havuç | CU1: HayvanPancarı | CV1: Hıyar(sera) | CW1: Hıyar(Sofralık) | CX1: Hıyar(Turşuluk) | CY1: Hindi | CZ1: Hünnap | DA1: IsırganOtu | DB1: Ispanak | DC1: İçMekanSüsBitkileri | DD1: İçMekanSüsBitkileri(sera) | DE1: İğde | DF1: İncir | DG1: İtalyançimi | DH1: Kabak(Çerezlik) | DI1: Kabak(Sakız) | DJ1: Kabak(Sakız)(sera) | DK1: Kapari(GebereOtu) | DL1: Karanfil | DM1: Karanfil(sera) | DN1: Karnıbahar | DO1: Karpuz | DP1: Karpuz(sera) | DQ1: Kasımpatı(Krizantem) | DR1: Kasımpatı(Krizantem)(sera) | DS1: Katır | DT1: Kavun | DU1: Kavun(sera) | DV1: Kayısı | DW1: Kaz | DX1: Keçi(Kıl) | DY1: Keçi(Tiftik) | DZ1: KeçiBoynuzu | EA1: Kekik | EB1: Kereviz(Kök) | EC1: Kereviz(Sap) | ED1: Kestane | EE1: KırmızıBiber(Baharatlık-İşlenmemiş) | EF1: KırmızıPancar | EG1: Kızılcık | EH1: Kimyon | EI1: Kiraz | EJ1: Kivi | EK1: Kolza(Kanola) | EL1: Korunga(YeşilOt) | EM1: Koyun(Merinos) | EN1: Koyun(Yerli) | EO1: Kuşkonmaz | EP1: Lahana(Beyaz) | EQ1: Lahana(Brüksel) | ER1: Lahana(Karayaprak) | ES1: Lahana(Kırmızı) | ET1: Lavanta | EU1: Limon | EV1: Manda | EW1: Mandalina(Clementin) | EX1: Mandalina(Diğer) | EY1: Mandalina(King) | EZ1: Mandalina(Satsuma) | FA1: Mantar(Kültür) | FB1: Marul(Aysberg) | FC1: Marul(Aysberg)(sera) | FD1: Marul(Göbekli) | FE1: Marul(Göbekli)(sera) | FF1: Marul(Kıvırcık) | FG1: Marul(Kıvırcık)(sera) | FH1: Maydonoz | FI1: Maydonoz(sera) | FJ1: Mercimek(Kırmızı) | FK1: Mercimek(Yeşil) | FL1: Mısır(Dane) | FM1: Mısır(Hasıl) | FN1: Mısır(Silajlık) | FO1: Muşmula | FP1: Muz | FQ1: Muz(sera) | FR1: Mürdümük(Dane) | FS1: Mürdümük(YeşilOt) | FT1: Nane | FU1: Nar | FV1: Nohut | FW1: Oğulotu(Melissa) | FX1: Ördek | FY1: Pamuk(Kütlü) | FZ1: Pamuk(Lif) | GA1: PamukTohumu(Çiğit) | GB1: Patates(Diğer) | GC1: Patlıcan | GD1: Patlıcan(sera) | GE1: Pazı | GF1: Pepino | GG1: Pırasa | GH1: Portakal(Diğer) | GI1: Portakal(Washington) | GJ1: Portakal(Yafa) | GK1: Rezene | GL1: Roka | GM1: Sarımsak(Kuru) | GN1: Sarımsak(Taze) | GO1: Semizotu | GP1: SeraAlanı | GQ1: Sığır(Kültür) | GR1: Sığır(Melez) | GS1: Sığır(Yerli) | GT1: Soğan(Kuru) | GU1: Soğan(Taze) | GV1: Sorgum(Dane) | GW1: Sorgum(YeşilOt) | GX1: Soya | GY1: Susam | GZ1: Süt | HA1: Şalgam | HB1: Şeftali(Diğer) | HC1: Şeftali(Nektarin) | HD1: Şekerpancarı | HE1: TarımAlanı | HF1: Tere | HG1: TrabzonHurması | HH1: Tritikale(Dane) | HI1: Tritikale(YeşilOt) | HJ1: Turp(Bayır) | HK1: Turp(Beyaz) | HL1: Turp(Kırmızı) | HM1: Turunç | HN1: Tütün | HO1: Üçgül(YeşilOt) | HP1: Üzüm(Kurutmalık-Çekirdekli) | HQ1: Üzüm(Kurutmalık-Çekirdeksiz) | HR1: Üzüm(Sofralık-Çekirdekli) | HS1: Üzüm(Sofralık-Çekirdekli)(sera) | HT1: Üzüm(Sofralık-Çekirdeksiz) | HU1: Üzüm(Sofralık-Çekirdeksiz)(sera) | HV1: Üzüm(Şaraplık) | HW1: Vişne | HX1: Yaşkoza | HY1: YemŞalgamı | HZ1: Yenidünya | IA1: Yerfıstığı | IB1: Yonca(YeşilOt) | IC1: Yulaf(Dane) | ID1: Yulaf(YeşilOt) | IE1: YumurtaTavuğu | IF1: Zerdali | IG1: Zeytin(Sofralık) | IH1: Zeytin(Yağlık)
A3: İLÇE | B3: ="2010-2020 Ortalama Değer("&VLOOKUP($A$1,tabloilçe!A:B,2,FALSE)&")" -> 2010-2020 Ortalama Değer(ton)
A4: Çivril | B4: =IFERROR(SUMIFS('tarım veriler'!C:C,'tarım veriler'!A:A,A4,'tarım veriler'!B:B,A$1)/(11-C4),0) -> 1401.818182 | C4: 0
A5: Seydikemer | B5: =IFERROR(SUMIFS('tarım veriler'!C:C,'tarım veriler'!A:A,A5,'tarım veriler'!B:B,A$1)/(11-C5),0) -> 1104.875 | C5: 3
A6: Çine | B6: =IFERROR(SUMIFS('tarım veriler'!C:C,'tarım veriler'!A:A,A6,'tarım veriler'!B:B,A$1)/(11-C6),0) -> 1068.181818 | C6: 0
A7: Bozdoğan | B7: =IFERROR(SUMIFS('tarım veriler'!C:C,'tarım veriler'!A:A,A7,'tarım veriler'!B:B,A$1)/(11-C7),0) -> 981.8181818 | C7: 0
A8: Karacasu | B8: =IFERROR(SUMIFS('tarım veriler'!C:C,'tarım veriler'!A:A,A8,'tarım veriler'!B:B,A$1)/(11-C8),0) -> 923.75 | C8: 7
A9: Tavas | B9: =IFERROR(SUMIFS('tarım veriler'!C:C,'tarım veriler'!A:A,A9,'tarım veriler'!B:B,A$1)/(11-C9),0) -> 844.9090909 | C9: 0
A10: Yatağan | B10: =IFERROR(SUMIFS('tarım veriler'!C:C,'tarım veriler'!A:A,A10,'tarım veriler'!B:B,A$1)/(11-C10),0) -> 747.5454545 | C10: 0
A11: Fethiye | B11: =IFERROR(SUMIFS('tarım veriler'!C:C,'tarım veriler'!A:A,A11,'tarım veriler'!B:B,A$1)/(11-C11),0) -> 658.2727273 | C11: 0
A12: Milas | B12: =IFERROR(SUMIFS('tarım veriler'!C:C,'tarım veriler'!A:A,A12,'tarım veriler'!B:B,A$1)/(11-C12),0) -> 645.8181818 | C12: 0
A13: Nazilli | B13: =IFERROR(SUMIFS('tarım veriler'!C:C,'tarım veriler'!A:A,A13,'tarım veriler'!B:B,A$1)/(11-C13),0) -> 633.0909091 | C13: 0
A14: Koçarlı | B14: =IFERROR(SUMIFS('tarım veriler'!C:C,'tarım veriler'!A:A,A14,'tarım veriler'!B:B,A$1)/(11-C14),0) -> 622.1818182 | C14: 0
A15: Serinhisar | B15: =IFERROR(SUMIFS('tarım veriler'!C:C,'tarım veriler'!A:A,A15,'tarım veriler'!B:B,A$1)/(11-C15),0) -> 598.5454545 | C15: 0
A16: Acıpayam | B16: =IFERROR(SUMIFS('tarım veriler'!C:C,'tarım veriler'!A:A,A16,'tarım veriler'!B:B,A$1)/(11-C16),0) -> 565.3636364 | C16: 0
A17: Honaz | B17: =IFERROR(SUMIFS('tarım veriler'!C:C,'tarım veriler'!A:A,A17,'tarım veriler'!B:B,A$1)/(11-C17),0) -> 553.0909091 | C17: 0
A18: Menteşe | B18: =IFERROR(SUMIFS('tarım veriler'!C:C,'tarım veriler'!A:A,A18,'tarım veriler'!B:B,A$1)/(11-C18),0) -> 531.2727273 | C18: 0
A19: Pamukkale | B19: =IFERROR(SUMIFS('tarım veriler'!C:C,'tarım veriler'!A:A,A19,'tarım veriler'!B:B,A$1)/(11-C19),0) -> 479.7272727 | C19: 0
A20: Ula | B20: =IFERROR(SUMIFS('tarım veriler'!C:C,'tarım veriler'!A:A,A20,'tarım veriler'!B:B,A$1)/(11-C20),0) -> 401.4545455 | C20: 0
A21: Efeler | B21: =IFERROR(SUMIFS('tarım veriler'!C:C,'tarım veriler'!A:A,A21,'tarım veriler'!B:B,A$1)/(11-C21),0) -> 374.6363636 | C21: 0
A22: Merkez-Denizli | B22: =IFERROR(SUMIFS('tarım veriler'!C:C,'tarım veriler'!A:A,A22,'tarım veriler'!B:B,A$1)/(11-C22),0) -> 358.6666667 | C22: 8
A23: Buldan | B23: =IFERROR(SUMIFS('tarım veriler'!C:C,'tarım veriler'!A:A,A23,'tarım veriler'!B:B,A$1)/(11-C23),0) -> 270.7272727 | C23: 0
A24: Köyceğiz | B24: =IFERROR(SUMIFS('tarım veriler'!C:C,'tarım veriler'!A:A,A24,'tarım veriler'!B:B,A$1)/(11-C24),0) -> 270.7272727 | C24: 0
A25: Güney | B25: =IFERROR(SUMIFS('tarım veriler'!C:C,'tarım veriler'!A:A,A25,'tarım veriler'!B:B,A$1)/(11-C25),0) -> 261 | C25: 0
A26: Dalaman | B26: =IFERROR(SUMIFS('tarım veriler'!C:C,'tarım veriler'!A:A,A26,'tarım veriler'!B:B,A$1)/(11-C26),0) -> 243.1818182 | C26: 0
A27: Sarayköy | B27: =IFERROR(SUMIFS('tarım veriler'!C:C,'tarım veriler'!A:A,A27,'tarım veriler'!B:B,A$1)/(11-C27),0) -> 241.9090909 | C27: 0
A28: Karpuzlu | B28: =IFERROR(SUMIFS('tarım veriler'!C:C,'tarım veriler'!A:A,A28,'tarım veriler'!B:B,A$1)/(11-C28),0) -> 241.8181818 | C28: 0
A29: Bozkurt | B29: =IFERROR(SUMIFS('tarım veriler'!C:C,'tarım veriler'!A:A,A29,'tarım veriler'!B:B,A$1)/(11-C29),0) -> 216.1818182 | C29: 0
A30: Çal | B30: =IFERROR(SUMIFS('tarım veriler'!C:C,'tarım veriler'!A:A,A30,'tarım veriler'!B:B,A$1)/(11-C30),0) -> 206.7272727 | C30: 0
A31: Baklan | B31: =IFERROR(SUMIFS('tarım veriler'!C:C,'tarım veriler'!A:A,A31,'tarım veriler'!B:B,A$1)/(11-C31),0) -> 180.1818182 | C31: 0
A32: Kavaklıdere | B32: =IFERROR(SUMIFS('tarım veriler'!C:C,'tarım veriler'!A:A,A32,'tarım veriler'!B:B,A$1)/(11-C32),0) -> 177.9090909 | C32: 0
A33: Söke | B33: =IFERROR(SUMIFS('tarım veriler'!C:C,'tarım veriler'!A:A,A33,'tarım veriler'!B:B,A$1)/(11-C33),0) -> 160.1818182 | C33: 0
A34: İncirliova | B34: =IFERROR(SUMIFS('tarım veriler'!C:C,'tarım veriler'!A:A,A34,'tarım veriler'!B:B,A$1)/(11-C34),0) -> 137.2727273 | C34: 0
A35: Köşk | B35: =IFERROR(SUMIFS('tarım veriler'!C:C,'tarım veriler'!A:A,A35,'tarım veriler'!B:B,A$1)/(11-C35),0) -> 132.5454545 | C35: 0
A36: Germencik | B36: =IFERROR(SUMIFS('tarım veriler'!C:C,'tarım veriler'!A:A,A36,'tarım veriler'!B:B,A$1)/(11-C36),0) -> 119.4545455 | C36: 0
A37: Sultanhisar | B37: =IFERROR(SUMIFS('tarım veriler'!C:C,'tarım veriler'!A:A,A37,'tarım veriler'!B:B,A$1)/(11-C37),0) -> 106.0909091 | C37: 0
A38: Yenipazar | B38: =IFERROR(SUMIFS('tarım veriler'!C:C,'tarım veriler'!A:A,A38,'tarım veriler'!B:B,A$1)/(11-C38),0) -> 99.54545455 | C38: 0
A39: Çameli | B39: =IFERROR(SUMIFS('tarım veriler'!C:C,'tarım veriler'!A:A,A39,'tarım veriler'!B:B,A$1)/(11-C39),0) -> 89.54545455 | C39: 0
A40: Kuyucak | B40: =IFERROR(SUMIFS('tarım veriler'!C:C,'tarım veriler'!A:A,A40,'tarım veriler'!B:B,A$1)/(11-C40),0) -> 76.63636364 | C40: 0
A41: Kale | B41: =IFERROR(SUMIFS('tarım veriler'!C:C,'tarım veriler'!A:A,A41,'tarım veriler'!B:B,A$1)/(11-C41),0) -> 75.63636364 | C41: 0
A42: Didim | B42: =IFERROR(SUMIFS('tarım veriler'!C:C,'tarım veriler'!A:A,A42,'tarım veriler'!B:B,A$1)/(11-C42),0) -> 66.27272727 | C42: 0
A43: Bodrum | B43: =IFERROR(SUMIFS('tarım veriler'!C:C,'tarım veriler'!A:A,A43,'tarım veriler'!B:B,A$1)/(11-C43),0) -> 57.90909091 | C43: 0
A44: Buharkent | B44: =IFERROR(SUMIFS('tarım veriler'!C:C,'tarım veriler'!A:A,A44,'tarım veriler'!B:B,A$1)/(11-C44),0) -> 52.54545455 | C44: 0
A45: Çardak | B45: =IFERROR(SUMIFS('tarım veriler'!C:C,'tarım veriler'!A:A,A45,'tarım veriler'!B:B,A$1)/(11-C45),0) -> 52.36363636 | C45: 0
A46: Marmaris | B46: =IFERROR(SUMIFS('tarım veriler'!C:C,'tarım veriler'!A:A,A46,'tarım veriler'!B:B,A$1)/(11-C46),0) -> 31.90909091 | C46: 0
A47: Bekilli | B47: =IFERROR(SUMIFS('tarım veriler'!C:C,'tarım veriler'!A:A,A47,'tarım veriler'!B:B,A$1)/(11-C47),0) -> 25.63636364 | C47: 0
A48: Beyağaç | B48: =IFERROR(SUMIFS('tarım veriler'!C:C,'tarım veriler'!A:A,A48,'tarım veriler'!B:B,A$1)/(11-C48),0) -> 22.27272727 | C48: 0
A49: Datça | B49: =IFERROR(SUMIFS('tarım veriler'!C:C,'tarım veriler'!A:A,A49,'tarım veriler'!B:B,A$1)/(11-C49),0) -> 21.54545455 | C49: 0
A50: Babadağ | B50: =IFERROR(SUMIFS('tarım veriler'!C:C,'tarım veriler'!A:A,A50,'tarım veriler'!B:B,A$1)/(11-C50),0) -> 19.90909091 | C50: 0
A51: Merkezefendi | B51: =IFERROR(SUMIFS('tarım veriler'!C:C,'tarım veriler'!A:A,A51,'tarım veriler'!B:B,A$1)/(11-C51),0) -> 18.5 | C51: 7
A52: Ortaca | B52: =IFERROR(SUMIFS('tarım veriler'!C:C,'tarım veriler'!A:A,A52,'tarım veriler'!B:B,A$1)/(11-C52),0) -> 13.27272727 | C52: 0
A53: Kuşadası | B53: =IFERROR(SUMIFS('tarım veriler'!C:C,'tarım veriler'!A:A,A53,'tarım veriler'!B:B,A$1)/(11-C53),0) -> 0 | C53: 11

Sheet tabloilçe
A1: Karacasu
C2: 2020 | E2: 2019 | G2: 2018 | I2: 2017 | K2: 2016 | M2: 2015 | O2: 2014 | Q2: 2013 | S2: 2012 | U2: 2011 | W2: 2010 | AA2: 2020 | AB2: 2020 | AC2: 2020 | AD2: 2020 | AE2: 2020 | AF2: 2020 | AG2: 2020 | AH2: 2020 | AI2: 2020 | AJ2: 2020 | AK2: 2020 | AL2: 2020 | AM2: 2020 | AN2: 2020 | AO2: 2020 | AP2: 2020 | AQ2: 2020 | AR2: 2020 | AS2: 2020 | AT2: 2020 | AU2: 2020 | AV2: 2020 | AW2: 2020 | AX2: 2020 | AY2: 2020 | AZ2: 2020 | BA2: 2020 | BB2: 2020 | BC2: 2020 | BD2: 2020 | BE2: 2020 | BF2: 2020 | BG2: 2020 | BH2: 2020 | BI2: 2020 | BJ2: 2020 | BK2: 2020 | BL2: 2020 | BM2: 2020 | BN2: 2020 | BO2: 2020 | BP2: 2020 | BQ2: 2020 | BR2: 2020 | BS2: 2020 | BT2: 2020 | BU2: 2020 | BV2: 2020 | BW2: 2020 | BX2: 2020 | BY2: 2019 | BZ2: 2019 | CA2: 2019 | CB2: 2019 | CC2: 2019 | CD2: 2019 | CE2: 2019 | CF2: 2019 | CG2: 2019 | CH2: 2019 | CI2: 2019 | CJ2: 2019 | CK2: 2019 | CL2: 2019 | CM2: 2019 | CN2: 2019 | CO2: 2019 | CP2: 2019 | CQ2: 2019 | CR2: 2019 | CS2: 2019 | CT2: 2019 | CU2: 2019 | CV2: 2019 | CW2: 2019 | CX2: 2019 | CY2: 2019 | CZ2: 2019 | DA2: 2019 | DB2: 2019 | DC2: 2019 | DD2: 2019 | DE2: 2019 | DF2: 2019 | DG2: 2019 | DH2: 2019 | DI2: 2019 | DJ2: 2019 | DK2: 2019 | DL2: 2019 | DM2: 2019 | DN2: 2019 | DO2: 2019 | DP2: 2019 | DQ2: 2019 | DR2: 2019 | DS2: 2019 | DT2: 2019 | DU2: 2019 | DV2: 2019 | DW2: 2018 | DX2: 2018 | DY2: 2018 | DZ2: 2018 | EA2: 2018 | EB2: 2018 | EC2: 2018 | ED2: 2018 | EE2: 2018 | EF2: 2018 | EG2: 2018 | EH2: 2018 | EI2: 2018 | EJ2: 2018 | EK2: 2018 | EL2: 2018 | EM2: 2018 | EN2: 2018 | EO2: 2018 | EP2: 2018 | EQ2: 2018 | ER2: 2018 | ES2: 2018 | ET2: 2018 | EU2: 2018 | EV2: 2018 | EW2: 2018 | EX2: 2018 | EY2: 2018 | EZ2: 2018 | FA2: 2018 | FB2: 2018 | FC2: 2018 | FD2: 2018 | FE2: 2018 | FF2: 2018 | FG2: 2018 | FH2: 2018 | FI2: 2018 | FJ2: 2018 | FK2: 2018 | FL2: 2018 | FM2: 2018 | FN2: 2018 | FO2: 2018 | FP2: 2018 | FQ2: 2018 | FR2: 2018 | FS2: 2018 | FT2: 2018 | FU2: 2017 | FV2: 2017 | FW2: 2017 | FX2: 2017 | FY2: 2017 | FZ2: 2017 | GA2: 2017 | GB2: 2017 | GC2: 2017 | GD2: 2017 | GE2: 2017 | GF2: 2017 | GG2: 2017 | GH2: 2017 | GI2: 2017 | GJ2: 2017 | GK2: 2017 | GL2: 2017 | GM2: 2017 | GN2: 2017 | GO2: 2017 | GP2: 2017 | GQ2: 2017 | GR2: 2017 | GS2: 2017 | GT2: 2017 | GU2: 2017 | GV2: 2017 | GW2: 2017 | GX2: 2017 | GY2: 2017 | GZ2: 2017 | HA2: 2017 | HB2: 2017 | HC2: 2017 | HD2: 2017 | HE2: 2017 | HF2: 2017 | HG2: 2017 | HH2: 2017 | HI2: 2017 | HJ2: 2017 | HK2: 2017 | HL2: 2017 | HM2: 2017 | HN2: 2017 | HO2: 2017 | HP2: 2017 | HQ2: 2017 | HR2: 2017 | HS2: 2016 | HT2: 2016 | HU2: 2016 | HV2: 2016 | HW2: 2016 | HX2: 2016 | HY2: 2016 | HZ2: 2016 | IA2: 2016 | IB2: 2016 | IC2: 2016 | ID2: 2016 | IE2: 2016 | IF2: 2016 | IG2: 2016 | IH2: 2016 | II2: 2016 | IJ2: 2016 | IK2: 2016 | IL2: 2016 | IM2: 2016 | IN2: 2016 | IO2: 2016 | IP2: 2016 | IQ2: 2016 | IR2: 2016 | IS2: 2016 | IT2: 2016 | IU2: 2016 | IV2: 2016 | IW2: 2016 | IX2: 2016 | IY2: 2016 | IZ2: 2016 | JA2: 2016 | JB2: 2016 | JC2: 2016 | JD2: 2016 | JE2: 2016 | JF2: 2016 | JG2: 2016 | JH2: 2016 | JI2: 2016 | JJ2: 2016 | JK2: 2016 | JL2: 2016 | JM2: 2016 | JN2: 2016 | JO2: 2016 | JP2: 2016 | JQ2: 2015 | JR2: 2015 | JS2: 2015 | JT2: 2015 | JU2: 2015 | JV2: 2015 | JW2: 2015 | JX2: 2015 | JY2: 2015 | JZ2: 2015 | KA2: 2015 | KB2: 2015 | KC2: 2015 | KD2: 2015 | KE2: 2015 | KF2: 2015 | KG2: 2015 | KH2: 2015 | KI2: 2015 | KJ2: 2015 | KK2: 2015 | KL2: 2015 | KM2: 2015 | KN2: 2015 | KO2: 2015 | KP2: 2015 | KQ2: 2015 | KR2: 2015 | KS2: 2015 | KT2: 2015 | KU2: 2015 | KV2: 2015 | KW2: 2015 | KX2: 2015 | KY2: 2015 | KZ2: 2015 | LA2: 2015 | LB2: 2015 | LC2: 2015 | LD2: 2015 | LE2: 2015 | LF2: 2015 | LG2: 2015 | LH2: 2015 | LI2: 2015 | LJ2: 2015 | LK2: 2015 | LL2: 2015 | LM2: 2015 | LN2: 2015 | LO2: 2014 | LP2: 2014 | LQ2: 2014 | LR2: 2014 | LS2: 2014 | LT2: 2014 | LU2: 2014 | LV2: 2014 | LW2: 2014 | LX2: 2014 | LY2: 2014 | LZ2: 2014 | MA2: 2014 | MB2: 2014 | MC2: 2014 | MD2: 2014 | ME2: 2014 | MF2: 2014 | MG2: 2014 | MH2: 2014 | MI2: 2014 | MJ2: 2014 | MK2: 2014 | ML2: 2014 | MM2: 2014 | MN2: 2014 | MO2: 2014 | MP2: 2014 | MQ2: 2014 | MR2: 2014 | MS2: 2014 | MT2: 2014 | MU2: 2014 | MV2: 2014 | MW2: 2014 | MX2: 2014 | MY2: 2014 | MZ2: 2014 | NA2: 2014 | NB2: 2014 | NC2: 2014 | ND2: 2014 | NE2: 2014 | NF2: 2014 | NG2: 2014 | NH2: 2014 | NI2: 2014 | NJ2: 2014 | NK2: 2014 | NL2: 2014 | NM2: 2013 | NN2: 2013 | NO2: 2013 | NP2: 2013 | NQ2: 2013 | NR2: 2013 | NS2: 2013 | NT2: 2013 | NU2: 2013 | NV2: 2013 | NW2: 2013 | NX2: 2013 | NY2: 2013 | NZ2: 2013 | OA2: 2013 | OB2: 2013 | OC2: 2013 | OD2: 2013 | OE2: 2013 | OF2: 2013 | OG2: 2013 | OH2: 2013 | OI2: 2013 | OJ2: 2013 | OK2: 2013 | OL2: 2013 | OM2: 2013 | ON2: 2013 | OO2: 2013 | OP2: 2013 | OQ2: 2013 | OR2: 2013 | OS2: 2013 | OT2: 2013 | OU2: 2013 | OV2: 2013 | OW2: 2013 | OX2: 2013 | OY2: 2013 | OZ2: 2013 | PA2: 2013 | PB2: 2013 | PC2: 2013 | PD2: 2013 | PE2: 2013 | PF2: 2013 | PG2: 2013 | PH2: 2013 | PI2: 2013 | PJ2: 2013 | PK2: 2012 | PL2: 2012 | PM2: 2012 | PN2: 2012 | PO2: 2012 | PP2: 2012 | PQ2: 2012 | PR2: 2012 | PS2: 2012 | PT2: 2012 | PU2: 2012 | PV2: 2012 | PW2: 2012 | PX2: 2012 | PY2: 2012 | PZ2: 2012 | QA2: 2012 | QB2: 2012 | QC2: 2012 | QD2: 2012 | QE2: 2012 | QF2: 2012 | QG2: 2012 | QH2: 2012 | QI2: 2012 | QJ2: 2012 | QK2: 2012 | QL2: 2012 | QM2: 2012 | QN2: 2012 | QO2: 2012 | QP2: 2012 | QQ2: 2012 | QR2: 2012 | QS2: 2012 | QT2: 2012 | QU2: 2012 | QV2: 2012 | QW2: 2012 | QX2: 2012 | QY2: 2012 | QZ2: 2012 | RA2: 2012 | RB2: 2012 | RC2: 2012 | RD2: 2012 | RE2: 2012 | RF2: 2012 | RG2: 2012 | RH2: 2012 | RI2: 2011 | RJ2: 2011 | RK2: 2011 | RL2: 2011 | RM2: 2011 | RN2: 2011 | RO2: 2011 | RP2: 2011 | RQ2: 2011 | RR2: 2011 | RS2: 2011 | RT2: 2011 | RU2: 2011 | RV2: 2011 | RW2: 2011 | RX2: 2011 | RY2: 2011 | RZ2: 2011 | SA2: 2011 | SB2: 2011 | SC2: 2011 | SD2: 2011 | SE2: 2011 | SF2: 2011 | SG2: 2011 | SH2: 2011 | SI2: 2011 | SJ2: 2011 | SK2: 2011 | SL2: 2011 | SM2: 2011 | SN2: 2011 | SO2: 2011 | SP2: 2011 | SQ2: 2011 | SR2: 2011 | SS2: 2011 | ST2: 2011 | SU2: 2011 | SV2: 2011 | SW2: 2011 | SX2: 2011 | SY2: 2011 | SZ2: 2011 | TA2: 2011 | TB2: 2011 | TC2: 2011 | TD2: 2011 | TE2: 2011 | TF2: 2011 | TG2: 2010 | TH2: 2010 | TI2: 2010 | TJ2: 2010 | TK2: 2010 | TL2: 2010 | TM2: 2010 | TN2: 2010 | TO2: 2010 | TP2: 2010 | TQ2: 2010 | TR2: 2010 | TS2: 2010 | TT2: 2010 | TU2: 2010 | TV2: 2010 | TW2: 2010 | TX2: 2010 | TY2: 2010 | TZ2: 2010 | UA2: 2010 | UB2: 2010 | UC2: 2010 | UD2: 2010 | UE2: 2010 | UF2: 2010 | UG2: 2010 | UH2: 2010 | UI2: 2010 | UJ2: 2010 | UK2: 2010 | UL2: 2010 | UM2: 2010 | UN2: 2010 | UO2: 2010 | UP2: 2010 | UQ2: 2010 | UR2: 2010 | US2: 2010 | UT2: 2010 | UU2: 2010 | UV2: 2010 | UW2: 2010 | UX2: 2010 | UY2: 2010 | UZ2: 2010 | VA2: 2010 | VB2: 2010 | VC2: 2010 | VD2: 2010
A3: Tarımsal Veri Adı | B3: birim | C3: Değer | D3: TR32 Sıralaması | E3: Değer (Geçici Verilerdir.) | F3: TR32 Sıralaması | G3: Değer | H3: TR32 Sıralaması | I3: Değer | J3: TR32 Sıralaması | K3: Değer | L3: TR32 Sıralaması | M3: Değer | N3: TR32 Sıralaması | O3: Değer | P3: TR32 Sıralaması | Q3: Değer | R3: TR32 Sıralaması | S3: Değer | T3: TR32 Sıralaması | U3: Değer | V3: TR32 Sıralaması | W3: Değer | X3: TR32 Sıralaması | Y3: 2019 Yılı 1. Olan İlçenin Adı | Z3: 2019 Yılı 1. İlçeye Ait Değer | AA3: Acıpayam | AB3: Babadağ | AC3: Baklan | AD3: Bekilli | AE3: Beyağaç | AF3: Bodrum | AG3: Bozdoğan | AH3: Bozkurt | AI3: Buharkent | AJ3: Buldan | AK3: Çal | AL3: Çameli | AM3: Çardak | AN3: Çine | AO3: Çivril | AP3: Dalaman | AQ3: Datça | AR3: Didim | AS3: Efeler | AT3: Fethiye | AU3: Germencik | AV3: Güney | AW3: Honaz | AX3: İncirliova | AY3: Kale | AZ3: Karacasu | BA3: Karpuzlu | BB3: Kavaklıdere | BC3: Koçarlı | BD3: Köşk | BE3: Köyceğiz | BF3: Kuşadası | BG3: Kuyucak | BH3: Marmaris | BI3: Menteşe | BJ3: Merkez-Denizli | BK3: Merkezefendi | BL3: Milas | BM3: Nazilli | BN3: Ortaca | BO3: Pamukkale | BP3: Sarayköy | BQ3: Serinhisar | BR3: Seydikemer | BS3: Söke | BT3: Sultanhisar | BU3: Tavas | BV3: Ula | BW3: Yatağan | BX3: Yenipazar | BY3: Acıpayam | BZ3: Babadağ | CA3: Baklan | CB3: Bekilli | CC3: Beyağaç | CD3: Bodrum | CE3: Bozdoğan | CF3: Bozkurt | CG3: Buharkent | CH3: Buldan | CI3: Çal | CJ3: Çameli | CK3: Çardak | CL3: Çine | CM3: Çivril | CN3: Dalaman | CO3: Datça | CP3: Didim | CQ3: Efeler | CR3: Fethiye | CS3: Germencik | CT3: Güney | CU3: Honaz | CV3: İncirliova | CW3: Kale | CX3: Karacasu | CY3: Karpuzlu | CZ3: Kavaklıdere | DA3: Koçarlı | DB3: Köşk | DC3: Köyceğiz | DD3: Kuşadası | DE3: Kuyucak | DF3: Marmaris | DG3: Menteşe | DH3: Merkez-Denizli | DI3: Merkezefendi | DJ3: Milas | DK3: Nazilli | DL3: Ortaca | DM3: Pamukkale | DN3: Sarayköy | DO3: Serinhisar | DP3: Seydikemer | DQ3: Söke | DR3: Sultanhisar | DS3: Tavas | DT3: Ula | DU3: Yatağan | DV3: Yenipazar | DW3: Acıpayam | DX3: Babadağ | DY3: Baklan | DZ3: Bekilli | EA3: Beyağaç | EB3: Bodrum | EC3: Bozdoğan | ED3: Bozkurt | EE3: Buharkent | EF3: Buldan | EG3: Çal | EH3: Çameli | EI3: Çardak | EJ3: Çine | EK3: Çivril | EL3: Dalaman | EM3: Datça | EN3: Didim | EO3: Efeler | EP3: Fethiye | EQ3: Germencik | ER3: Güney | ES3: Honaz | ET3: İncirliova | EU3: Kale | EV3: Karacasu | EW3: Karpuzlu | EX3: Kavaklıdere | EY3: Koçarlı | EZ3: Köşk | FA3: Köyceğiz | FB3: Kuşadası | FC3: Kuyucak | FD3: Marmaris | FE3: Menteşe | FF3: Merkez-Denizli | FG3: Merkezefendi | FH3: Milas | FI3: Nazilli | FJ3: Ortaca | FK3: Pamukkale | FL3: Sarayköy | FM3: Serinhisar | FN3: Seydikemer | FO3: Söke | FP3: Sultanhisar | FQ3: Tavas | FR3: Ula | FS3: Yatağan | FT3: Yenipazar | FU3: Acıpayam | FV3: Babadağ | FW3: Baklan | FX3: Bekilli | FY3: Beyağaç | FZ3: Bodrum | GA3: Bozdoğan | GB3: Bozkurt | GC3: Buharkent | GD3: Buldan | GE3: Çal | GF3: Çameli | GG3: Çardak | GH3: Çine | GI3: Çivril | GJ3: Dalaman | GK3: Datça | GL3: Didim | GM3: Efeler | GN3: Fethiye | GO3: Germencik | GP3: Güney | GQ3: Honaz | GR3: İncirliova | GS3: Kale | GT3: Karacasu | GU3: Karpuzlu | GV3: Kavaklıdere | GW3: Koçarlı | GX3: Köşk | GY3: Köyceğiz | GZ3: Kuşadası | HA3: Kuyucak | HB3: Marmaris | HC3: Menteşe | HD3: Merkez-Denizli | HE3: Merkezefendi | HF3: Milas | HG3: Nazilli | HH3: Ortaca | HI3: Pamukkale | HJ3: Sarayköy | HK3: Serinhisar | HL3: Seydikemer | HM3: Söke | HN3: Sultanhisar | HO3: Tavas | HP3: Ula | HQ3: Yatağan | HR3: Yenipazar | HS3: Acıpayam | HT3: Babadağ | HU3: Baklan | HV3: Bekilli | HW3: Beyağaç | HX3: Bodrum | HY3: Bozdoğan | HZ3: Bozkurt | IA3: Buharkent | IB3: Buldan | IC3: Çal | ID3: Çameli | IE3: Çardak | IF3: Çine | IG3: Çivril | IH3: Dalaman | II3: Datça | IJ3: Didim | IK3: Efeler | IL3: Fethiye | IM3: Germencik | IN3: Güney | IO3: Honaz | IP3: İncirliova | IQ3: Kale | IR3: Karacasu | IS3: Karpuzlu | IT3: Kavaklıdere | IU3: Koçarlı | IV3: Köşk | IW3: Köyceğiz | IX3: Kuşadası | IY3: Kuyucak | IZ3: Marmaris | JA3: Menteşe | JB3: Merkez-Denizli | JC3: Merkezefendi | JD3: Milas | JE3: Nazilli | JF3: Ortaca | JG3: Pamukkale | JH3: Sarayköy | JI3: Serinhisar | JJ3: Seydikemer | JK3: Söke | JL3: Sultanhisar | JM3: Tavas | JN3: Ula | JO3: Yatağan | JP3: Yenipazar | JQ3: Acıpayam | JR3: Babadağ | JS3: Baklan | JT3: Bekilli | JU3: Beyağaç | JV3: Bodrum | JW3: Bozdoğan | JX3: Bozkurt | JY3: Buharkent | JZ3: Buldan | KA3: Çal | KB3: Çameli | KC3: Çardak | KD3: Çine | KE3: Çivril | KF3: Dalaman | KG3: Datça | KH3: Didim | KI3: Efeler | KJ3: Fethiye | KK3: Germencik | KL3: Güney | KM3: Honaz | KN3: İncirliova | KO3: Kale | KP3: Karacasu | KQ3: Karpuzlu | KR3: Kavaklıdere | KS3: Koçarlı | KT3: Köşk | KU3: Köyceğiz | KV3: Kuşadası | KW3: Kuyucak | KX3: Marmaris | KY3: Menteşe | KZ3: Merkez-Denizli | LA3: Merkezefendi | LB3: Milas | LC3: Nazilli | LD3: Ortaca | LE3: Pamukkale | LF3: Sarayköy | LG3: Serinhisar | LH3: Seydikemer | LI3: Söke | LJ3: Sultanhisar | LK3: Tavas | LL3: Ula | LM3: Yatağan | LN3: Yenipazar | LO3: Acıpayam | LP3: Babadağ | LQ3: Baklan | LR3: Bekilli | LS3: Beyağaç | LT3: Bodrum | LU3: Bozdoğan | LV3: Bozkurt | LW3: Buharkent | LX3: Buldan | LY3: Çal | LZ3: Çameli | MA3: Çardak | MB3: Çine | MC3: Çivril | MD3: Dalaman | ME3: Datça | MF3: Didim | MG3: Efeler | MH3: Fethiye | MI3: Germencik | MJ3: Güney | MK3: Honaz | ML3: İncirliova | MM3: Kale | MN3: Karacasu | MO3: Karpuzlu | MP3: Kavaklıdere | MQ3: Koçarlı | MR3: Köşk | MS3: Köyceğiz | MT3: Kuşadası | MU3: Kuyucak | MV3: Marmaris | MW3: Menteşe | MX3: Merkez-Denizli | MY3: Merkezefendi | MZ3: Milas | NA3: Nazilli | NB3: Ortaca | NC3: Pamukkale | ND3: Sarayköy | NE3: Serinhisar | NF3: Seydikemer | NG3: Söke | NH3: Sultanhisar | NI3: Tavas | NJ3: Ula | NK3: Yatağan | NL3: Yenipazar | NM3: Acıpayam | NN3: Babadağ | NO3: Baklan | NP3: Bekilli | NQ3: Beyağaç | NR3: Bodrum | NS3: Bozdoğan | NT3: Bozkurt | NU3: Buharkent | NV3: Buldan | NW3: Çal | NX3: Çameli | NY3: Çardak | NZ3: Çine | OA3: Çivril | OB3: Dalaman | OC3: Datça | OD3: Didim | OE3: Efeler | OF3: Fethiye | OG3: Germencik | OH3: Güney | OI3: Honaz | OJ3: İncirliova | OK3: Kale | OL3: Karacasu | OM3: Karpuzlu | ON3: Kavaklıdere | OO3: Koçarlı | OP3: Köşk | OQ3: Köyceğiz | OR3: Kuşadası | OS3: Kuyucak | OT3: Marmaris | OU3: Menteşe | OV3: Merkez-Denizli | OW3: Merkezefendi | OX3: Milas | OY3: Nazilli | OZ3: Ortaca | PA3: Pamukkale | PB3: Sarayköy | PC3: Serinhisar | PD3: Seydikemer | PE3: Söke | PF3: Sultanhisar | PG3: Tavas | PH3: Ula | PI3: Yatağan | PJ3: Yenipazar | PK3: Acıpayam | PL3: Babadağ | PM3: Baklan | PN3: Bekilli | PO3: Beyağaç | PP3: Bodrum | PQ3: Bozdoğan | PR3: Bozkurt | PS3: Buharkent | PT3: Buldan | PU3: Çal | PV3: Çameli | PW3: Çardak | PX3: Çine | PY3: Çivril | PZ3: Dalaman | QA3: Datça | QB3: Didim | QC3: Efeler | QD3: Fethiye | QE3: Germencik | QF3: Güney | QG3: Honaz | QH3: İncirliova | QI3: Kale | QJ3: Karacasu | QK3: Karpuzlu | QL3: Kavaklıdere | QM3: Koçarlı | QN3: Köşk | QO3: Köyceğiz | QP3: Kuşadası | QQ3: Kuyucak | QR3: Marmaris | QS3: Menteşe | QT3: Merkez-Denizli | QU3: Merkezefendi | QV3: Milas | QW3: Nazilli | QX3: Ortaca | QY3: Pamukkale | QZ3: Sarayköy | RA3: Serinhisar | RB3: Seydikemer | RC3: Söke | RD3: Sultanhisar | RE3: Tavas | RF3: Ula | RG3: Yatağan | RH3: Yenipazar | RI3: Acıpayam | RJ3: Babadağ | RK3: Baklan | RL3: Bekilli | RM3: Beyağaç | RN3: Bodrum | RO3: Bozdoğan | RP3: Bozkurt | RQ3: Buharkent | RR3: Buldan | RS3: Çal | RT3: Çameli | RU3: Çardak | RV3: Çine | RW3: Çivril | RX3: Dalaman | RY3: Datça | RZ3: Didim | SA3: Efeler | SB3: Fethiye | SC3: Germencik | SD3: Güney | SE3: Honaz | SF3: İncirliova | SG3: Kale | SH3: Karacasu | SI3: Karpuzlu | SJ3: Kavaklıdere | SK3: Koçarlı | SL3: Köşk | SM3: Köyceğiz | SN3: Kuşadası | SO3: Kuyucak | SP3: Marmaris | SQ3: Menteşe | SR3: Merkez-Denizli | SS3: Merkezefendi | ST3: Milas | SU3: Nazilli | SV3: Ortaca | SW3: Pamukkale | SX3: Sarayköy | SY3: Serinhisar | SZ3: Seydikemer | TA3: Söke | TB3: Sultanhisar | TC3: Tavas | TD3: Ula | TE3: Yatağan | TF3: Yenipazar | TG3: Acıpayam | TH3: Babadağ | TI3: Baklan | TJ3: Bekilli | TK3: Beyağaç | TL3: Bodrum | TM3: Bozdoğan | TN3: Bozkurt | TO3: Buharkent | TP3: Buldan | TQ3: Çal | TR3: Çameli | TS3: Çardak | TT3: Çine | TU3: Çivril | TV3: Dalaman | TW3: Datça | TX3: Didim | TY3: Efeler | TZ3: Fethiye | UA3: Germencik | UB3: Güney | UC3: Honaz | UD3: İncirliova | UE3: Kale | UF3: Karacasu | UG3: Karpuzlu | UH3: Kavaklıdere | UI3: Koçarlı | UJ3: Köşk | UK3: Köyceğiz | UL3: Kuşadası | UM3: Kuyucak | UN3: Marmaris | UO3: Menteşe | UP3: Merkez-Denizli | UQ3: Merkezefendi | UR3: Milas | US3: Nazilli | UT3: Ortaca | UU3: Pamukkale | UV3: Sarayköy | UW3: Serinhisar | UX3: Seydikemer | UY3: Söke | UZ3: Sultanhisar | VA3: Tavas | VB3: Ula | VC3: Yatağan | VD3: Yenipazar
A4: Bezelye | B4: ton | C4: =HLOOKUP($A$1,$AA$3:$BX$243,ROW()-2,FALSE) -> 0 | D4: - | E4: =HLOOKUP($A$1,$BY$3:$DV$243,ROW()-2,FALSE) -> 8 | F4: 1 | G4: =HLOOKUP($A$1,$DW$3:$FT$243,ROW()-2,FALSE) -> 8 | H4: 1 | I4: =HLOOKUP($A$1,$FU$3:$HR$243,ROW()-2,FALSE) -> 8 | J4: 1 | K4: =HLOOKUP($A$1,$HS$3:$JP$243,ROW()-2,FALSE) -> 8 | L4: 1 | M4: =HLOOKUP($A$1,$JQ$3:$LN$243,ROW()-2,FALSE) -> 8 | N4: 1 | O4: =HLOOKUP($A$1,$LO$3:$NL$243,ROW()-2,FALSE) -> 8 | P4: 1 | Q4: =HLOOKUP($A$1,$NM$3:$PJ$243,ROW()-2,FALSE) -> 8 | R4: 1 | S4: =HLOOKUP($A$1,$PK$3:$RH$243,ROW()-2,FALSE) -> 8 | T4: 1 | U4: =HLOOKUP($A$1,$RI$3:$TF$243,ROW()-2,FALSE) -> 15 | V4: 1 | W4: =HLOOKUP($A$1,$TG$3:$VD$243,ROW()-2,FALSE) -> 9 | X4: 2 | Y4: Karacasu | Z4: 8 | AA4: 0 | AB4: 0 | AC4: 0 | AD4: 0 | AE4: 0 | AF4: 0 | AG4: 0 | AH4: 0 | AI4: 0 | AJ4: 0 | AK4: 0 | AL4: 0 | AM4: 0 | AN4: 0 | AO4: 0 | AP4: 0 | AQ4: 0 | AR4: 0 | AS4: 0 | AT4: 0 | AU4: 0 | AV4: 0 | AW4: 0 | AX4: 0 | AY4: 0 | AZ4: 0 | BA4: 0 | BB4: 0 | BC4: 0 | BD4: 0 | BE4: 0 | BF4: 0 | BG4: 0 | BH4: 0 | BI4: 0 | BJ4: 0 | BK4: 0 | BL4: 0 | BM4: 0 | BN4: 0 | BO4: 0 | BP4: 0 | BQ4: 0 | BR4: 0 | BS4: 0 | BT4: 0 | BU4: 0 | BV4: 0 | BW4: 0 | BX4: 0 | BY4: 0 | BZ4: 0 | CA4: 0 | CB4: 0 | CC4: 0 | CD4: 0 | CE4: 0 | CF4: 0 | CG4: 0 | CH4: 0 | CI4: 0 | CJ4: 0 | CK4: 0 | CL4: 0 | CM4: 0 | CN4: 0 | CO4: 0 | CP4: 0 | CQ4: 0 | CR4: 0 | CS4: 0 | CT4: 0 | CU4: 0 | CV4: 0 | CW4: 0 | CX4: 8 | CY4: 0 | CZ4: 0 | DA4: 0 | DB4: 0 | DC4: 0 | DD4: 0 | DE4: 0 | DF4: 0 | DG4: 0 | DH4: 0 | DI4: 0 | DJ4: 0 | DK4: 0 | DL4: 0 | DM4: 0 | DN4: 0 | DO4: 0 | DP4: 0 | DQ4: 0 | DR4: 0 | DS4: 0 | DT4: 0 | DU4: 0 | DV4: 0 | DW4: 0 | DX4: 0 | DY4: 0 | DZ4: 0 | EA4: 0 | EB4: 0 | EC4: 0 | ED4: 0 | EE4: 0 | EF4: 0 | EG4: 0 | EH4: 0 | EI4: 0 | EJ4: 0 | EK4: 0 | EL4: 0 | EM4: 0 | EN4: 0 | EO4: 0 | EP4: 0 | EQ4: 0 | ER4: 0 | ES4: 0 | ET4: 0 | EU4: 0 | EV4: 8 | EW4: 0 | EX4: 0 | EY4: 0 | EZ4: 0 | FA4: 0 | FB4: 0 | FC4: 0 | FD4: 0 | FE4: 0 | FF4: 0 | FG4: 0 | FH4: 0 | FI4: 0 | FJ4: 0 | FK4: 0 | FL4: 0 | FM4: 0 | FN4: 0 | FO4: 0 | FP4: 0 | FQ4: 0 | FR4: 0 | FS4: 0 | FT4: 0 | FU4: 0 | FV4: 0 | FW4: 0 | FX4: 0 | FY4: 0 | FZ4: 0 | GA4: 0 | GB4: 0 | GC4: 0 | GD4: 0 | GE4: 0 | GF4: 0 | GG4: 0 | GH4: 0 | GI4: 0 | GJ4: 0 | GK4: 0 | GL4: 0 | GM4: 0 | GN4: 0 | GO4: 0 | GP4: 0 | GQ4: 0 | GR4: 0 | GS4: 0 | GT4: 8 | GU4: 0 | GV4: 0 | GW4: 0 | GX4: 0 | GY4: 0 | GZ4: 0 | HA4: 0 | HB4: 0 | HC4: 0 | HD4: 0 | HE4: 0 | HF4: 0 | HG4: 0 | HH4: 0 | HI4: 0 | HJ4: 0 | HK4: 0 | HL4: 0 | HM4: 0 | HN4: 0 | HO4: 0 | HP4: 0 | HQ4: 0 | HR4: 0 | HS4: 0 | HT4: 0 | HU4: 0 | HV4: 0 | HW4: 0 | HX4: 0 | HY4: 0 | HZ4: 0 | IA4: 0 | IB4: 0 | IC4: 0 | ID4: 0 | IE4: 0 | IF4: 0 | IG4: 0 | IH4: 0 | II4: 0 | IJ4: 0 | IK4: 0 | IL4: 0 | IM4: 0 | IN4: 0 | IO4: 0 | IP4: 0 | IQ4: 0 | IR4: 8 | IS4: 0 | IT4: 0 | IU4: 0 | IV4: 0 | IW4: 0 | IX4: 0 | IY4: 0 | IZ4: 0 | JA4: 0 | JB4: 0 | JC4: 0 | JD4: 0 | JE4: 0 | JF4: 0 | JG4: 0 | JH4: 0 | JI4: 0 | JJ4: 0 | JK4: 0 | JL4: 0 | JM4: 0 | JN4: 0 | JO4: 0 | JP4: 0 | JQ4: 0 | JR4: 0 | JS4: 0 | JT4: 0 | JU4: 0 | JV4: 0 | JW4: 0 | JX4: 0 | JY4: 0 | JZ4: 0 | KA4: 0 | KB4: 0 | KC4: 0 | KD4: 0 | KE4: 0 | KF4: 0 | KG4: 0 | KH4: 0 | KI4: 0 | KJ4: 0 | KK4: 0 | KL4: 0 | KM4: 0 | KN4: 0 | KO4: 0 | KP4: 8 | KQ4: 0 | KR4: 0 | KS4: 0 | KT4: 0 | KU4: 0 | KV4: 0 | KW4: 0 | KX4: 0 | KY4: 0 | KZ4: 0 | LA4: 0 | LB4: 0 | LC4: 0 | LD4: 0 | LE4: 0 | LF4: 0 | LG4: 0 | LH4: 0 | LI4: 0 | LJ4: 0 | LK4: 0 | LL4: 0 | LM4: 0 | LN4: 0 | LO4: 0 | LP4: 0 | LQ4: 0 | LR4: 0 | LS4: 0 | LT4: 0 | LU4: 0 | LV4: 0 | LW4: 0 | LX4: 0 | LY4: 0 | LZ4: 0 | MA4: 0 | MB4: 0 | MC4: 0 | MD4: 0 | ME4: 0 | MF4: 0 | MG4: 0 | MH4: 0 | MI4: 0 | MJ4: 0 | MK4: 0 | ML4: 0 | MM4: 0 | MN4: 8 | MO4: 0 | MP4: 0 | MQ4: 0 | MR4: 0 | MS4: 0 | MT4: 0 | MU4: 0 | MV4: 0 | MW4: 0 | MX4: 0 | MY4: 0 | MZ4: 0 | NA4: 0 | NB4: 0 | NC4: 0 | ND4: 0 | NE4: 0 | NF4: 0 | NG4: 0 | NH4: 0 | NI4: 0 | NJ4: 0 | NK4: 0 | NL4: 0 | NM4: 0 | NN4: 0 | NO4: 0 | NP4: 0 | NQ4: 0 | NR4: 0 | NS4: 0 | NT4: 0 | NU4: 0 | NV4: 0 | NW4: 0 | NX4: 0 | NY4: 0 | NZ4: 0 | OA4: 0 | OB4: 0 | OC4: 0 | OD4: 0 | OE4: 0 | OF4: 0 | OG4: 0 | OH4: 0 | OI4: 0 | OJ4: 0 | OK4: 0 | OL4: 8 | OM4: 0 | ON4: 0 | OO4: 0 | OP4: 0 | OQ4: 0 | OR4: 0 | OS4: 0 | OT4: 0 | OU4: 0 | OV4: 0 | OW4: 0 | OX4: 0 | OY4: 0 | OZ4: 0 | PA4: 0 | PB4: 0 | PC4: 0 | PD4: 0 | PE4: 0 | PF4: 0 | PG4: 0 | PH4: 0 | PI4: 0 | PJ4: 0 | PK4: 0 | PL4: 0 | PM4: 0 | PN4: 0 | PO4: 0 | PP4: 0 | PQ4: 0 | PR4: 0 | PS4: 0 | PT4: 0 | PU4: 0 | PV4: 0 | PW4: 0 | PX4: 0 | PY4: 0 | PZ4: 0 | QA4: 0 | QB4: 0 | QC4: 0 | QD4: 0 | QE4: 0 | QF4: 0 | QG4: 0 | QH4: 0 | QI4: 0 | QJ4: 8 | QK4: 0 | QL4: 0 | QM4: 0 | QN4: 0 | QO4: 0 | QP4: 0 | QQ4: 0 | QR4: 0 | QS4: 0 | QT4: 0 | QU4: 0 | QV4: 0 | QW4: 0 | QX4: 0 | QY4: 0 | QZ4: 0 | RA4: 0 | RB4: 0 | RC4: 0 | RD4: 0 | RE4: 0 | RF4: 0 | RG4: 0 | RH4: 0 | RI4: 0 | RJ4: 0 | RK4: 0 | RL4: 0 | RM4: 0 | RN4: 0 | RO4: 0 | RP4: 0 | RQ4: 0 | RR4: 0 | RS4: 0 | RT4: 0 | RU4: 0 | RV4: 0 | RW4: 0 | RX4: 0 | RY4: 0 | RZ4: 0 | SA4: 0 | SB4: 0 | SC4: 0 | SD4: 0 | SE4: 0 | SF4: 0 | SG4: 0 | SH4: 15 | SI4: 0 | SJ4: 0 | SK4: 0 | SL4: 0 | SM4: 0 | SN4: 0 | SO4: 0 | SP4: 0 | SQ4: 0 | SR4: 0 | SS4: 0 | ST4: 0 | SU4: 0 | SV4: 0 | SW4: 0 | SX4: 0 | SY4: 0 | SZ4: 0 | TA4: 0 | TB4: 0 | TC4: 0 | TD4: 0 | TE4: 0 | TF4: 0 | TG4: 0 | TH4: 0 | TI4: 0 | TJ4: 0 | TK4: 0 | TL4: 0 | TM4: 0 | TN4: 0 | TO4: 0 | TP4: 0 | TQ4: 0 | TR4: 0 | TS4: 0 | TT4: 0 | TU4: 0 | TV4: 0 | TW4: 0 | TX4: 0 | TY4: 0 | TZ4: 0 | UA4: 0 | UB4: 0 | UC4: 0 | UD4: 0 | UE4: 0 | UF4: 9 | UG4: 0 | UH4: 0 | UI4: 22 | UJ4: 0 | UK4: 0 | UL4: 0 | UM4: 0 | UN4: 0 | UO4: 0 | UP4: 0 | UQ4: 0 | UR4: 0 | US4: 0 | UT4: 0 | UU4: 0 | UV4: 0 | UW4: 0 | UX4: 0 | UY4: 0 | UZ4: 0 | VA4: 0 | VB4: 0 | VC4: 0 | VD4: 0
A5: Elma(Starking) | B5: ton | C5: =HLOOKUP($A$1,$AA$3:$BX$243,ROW()-2,FALSE) -> 3915 | D5: 3 | E5: =HLOOKUP($A$1,$BY$3:$DV$243,ROW()-2,FALSE) -> 3828 | F5: 3 | G5: =HLOOKUP($A$1,$DW$3:$FT$243,ROW()-2,FALSE) -> 3828 | H5: 3 | I5: =HLOOKUP($A$1,$FU$3:$HR$243,ROW()-2,FALSE) -> 3825 | J5: 3 | K5: =HLOOKUP($A$1,$HS$3:$JP$243,ROW()-2,FALSE) -> 3758 | L5: 3 | M5: =HLOOKUP($A$1,$JQ$3:$LN$243,ROW()-2,FALSE) -> 3480 | N5: 3 | O5: =HLOOKUP($A$1,$LO$3:$NL$243,ROW()-2,FALSE) -> 3480 | P5: 3 | Q5: =HLOOKUP($A$1,$NM$3:$PJ$243,ROW()-2,FALSE) -> 3480 | R5: 3 | S5: =HLOOKUP($A$1,$PK$3:$RH$243,ROW()-2,FALSE) -> 3045 | T5: 3 | U5: =HLOOKUP($A$1,$RI$3:$TF$243,ROW()-2,FALSE) -> 3045 | V5: 5 | W5: =HLOOKUP($A$1,$TG$3:$VD$243,ROW()-2,FALSE) -> 2580 | X5: 6 | Y5: Çivril | Z5: 27525 | AA5: 142 | AB5: 0 | AC5: 296 | AD5: 12 | AE5: 21 | AF5: 0 | AG5: 540 | AH5: 35 | AI5: 1071 | AJ5: 1878 | AK5: 470 | AL5: 1850 | AM5: 86 | AN5: 632 | AO5: 41845 | AP5: 228 | AQ5: 0 | AR5: 0 | AS5: 126 | AT5: 106 | AU5: 6 | AV5: 271 | AW5: 167 | AX5: 8 | AY5: 134 | AZ5: 3915 | BA5: 18 | BB5: 109 | BC5: 75 | BD5: 120 | BE5: 324 | BF5: 0 | BG5: 2507 | BH5: 0 | BI5: 0 | BJ5: 0 | BK5: 5 | BL5: 0 | BM5: 672 | BN5: 0 | BO5: 1043 | BP5: 28 | BQ5: 180 | BR5: 7320 | BS5: 0 | BT5: 950 | BU5: 1782 | BV5: 13 | BW5: 0 | BX5: 15 | BY5: 104 | BZ5: 0 | CA5: 376 | CB5: 12 | CC5: 20 | CD5: 0 | CE5: 507 | CF5: 52 | CG5: 1066 | CH5: 1892 | CI5: 450 | CJ5: 1849 | CK5: 82 | CL5: 631 | CM5: 27525 | CN5: 35 | CO5: 0 | CP5: 0 | CQ5: 140 | CR5: 100 | CS5: 6 | CT5: 238 | CU5: 167 | CV5: 8 | CW5: 151 | CX5: 3828 | CY5: 21 | CZ5: 107 | DA5: 84 | DB5: 125 | DC5: 372 | DD5: 0 | DE5: 1812 | DF5: 0 | DG5: 0 | DH5: 0 | DI5: 4 | DJ5: 0 | DK5: 582 | DL5: 0 | DM5: 971 | DN5: 25 | DO5: 182 | DP5: 5894 | DQ5: 0 | DR5: 950 | DS5: 1800 | DT5: 12 | DU5: 0 | DV5: 15 | DW5: 103 | DX5: 0 | DY5: 376 | DZ5: 12 | EA5: 19 | EB5: 0 | EC5: 492 | ED5: 53 | EE5: 1066 | EF5: 2237 | EG5: 430 | EH5: 1522 | EI5: 69 | EJ5: 633 | EK5: 49794 | EL5: 38 | EM5: 0 | EN5: 0 | EO5: 140 | EP5: 39 | EQ5: 7 | ER5: 14 | ES5: 167 | ET5: 8 | EU5: 154 | EV5: 3828 | EW5: 21 | EX5: 107 | EY5: 84 | EZ5: 125 | FA5: 372 | FB5: 0 | FC5: 1587 | FD5: 0 | FE5: 0 | FF5: 0 | FG5: 2 | FH5: 0 | FI5: 416 | FJ5: 0 | FK5: 971 | FL5: 23 | FM5: 200 | FN5: 6452 | FO5: 0 | FP5: 950 | FQ5: 1800 | FR5: 61 | FS5: 0 | FT5: 15 | FU5: 99 | FV5: 0 | FW5: 376 | FX5: 12 | FY5: 19 | FZ5: 0 | GA5: 383 | GB5: 44 | GC5: 1062 | GD5: 1858 | GE5: 421 | GF5: 1448 | GG5: 69 | GH5: 607 | GI5: 26731 | GJ5: 61 | GK5: 0 | GL5: 0 | GM5: 145 | GN5: 56 | GO5: 7 | GP5: 109 | GQ5: 167 | GR5: 8 | GS5: 158 | GT5: 3825 | GU5: 51 | GV5: 107 | GW5: 84 | GX5: 125 | GY5: 320 | GZ5: 0 | HA5: 1616 | HB5: 0 | HC5: 0 | HD5: 0 | HE5: 1 | HF5: 0 | HG5: 862 | HH5: 0 | HI5: 998 | HJ5: 17 | HK5: 212 | HL5: 6834 | HM5: 0 | HN5: 949 | HO5: 2308 | HP5: 62 | HQ5: 0 | HR5: 15 | HS5: 89 | HT5: 0 | HU5: 338 | HV5: 10 | HW5: 19 | HX5: 0 | HY5: 324 | HZ5: 60 | IA5: 957 | IB5: 1669 | IC5: 418 | ID5: 815 | IE5: 59 | IF5: 575 | IG5: 44920 | IH5: 50 | II5: 0 | IJ5: 0 | IK5: 145 | IL5: 54 | IM5: 6 | IN5: 100 | IO5: 167 | IP5: 7 | IQ5: 139 | IR5: 3758 | IS5: 52 | IT5: 110 | IU5: 83 | IV5: 135 | IW5: 387 | IX5: 0 | IY5: 1728 | IZ5: 0 | JA5: 0 | JB5: 0 | JC5: 0 | JD5: 0 | JE5: 808 | JF5: 0 | JG5: 999 | JH5: 18 | JI5: 229 | JJ5: 6588 | JK5: 0 | JL5: 855 | JM5: 2376 | JN5: 57 | JO5: 0 | JP5: 27 | JQ5: 64 | JR5: 0 | JS5: 49 | JT5: 11 | JU5: 21 | JV5: 0 | JW5: 322 | JX5: 72 | JY5: 1295 | JZ5: 1846 | KA5: 516 | KB5: 597 | KC5: 65 | KD5: 646 | KE5: 16067 | KF5: 61 | KG5: 0 | KH5: 0 | KI5: 161 | KJ5: 34 | KK5: 7 | KL5: 74 | KM5: 204 | KN5: 8 | KO5: 176 | KP5: 3480 | KQ5: 54 | KR5: 118 | KS5: 92 | KT5: 150 | KU5: 430 | KV5: 0 | KW5: 2129 | KX5: 0 | KY5: 0 | KZ5: 0 | LA5: 0 | LB5: 0 | LC5: 1864 | LD5: 0 | LE5: 1110 | LF5: 18 | LG5: 35 | LH5: 7171 | LI5: 0 | LJ5: 1237 | LK5: 2640 | LL5: 73 | LM5: 0 | LN5: 60 | LO5: 127 | LP5: 0 | LQ5: 490 | LR5: 11 | LS5: 21 | LT5: 0 | LU5: 309 | LV5: 72 | LW5: 1273 | LX5: 1840 | LY5: 541 | LZ5: 597 | MA5: 65 | MB5: 680 | MC5: 75114 | MD5: 63 | ME5: 0 | MF5: 0 | MG5: 161 | MH5: 108 | MI5: 8 | MJ5: 104 | MK5: 168 | ML5: 8 | MM5: 198 | MN5: 3480 | MO5: 54 | MP5: 118 | MQ5: 92 | MR5: 150 | MS5: 426 | MT5: 0 | MU5: 2127 | MV5: 0 | MW5: 0 | MX5: 0 | MY5: 0 | MZ5: 0 | NA5: 1938 | NB5: 0 | NC5: 1110 | ND5: 18 | NE5: 308 | NF5: 4379 | NG5: 0 | NH5: 1237 | NI5: 2640 | NJ5: 146 | NK5: 0 | NL5: 60 | NM5: 480 | NN5: 0 | NO5: 456 | NP5: 11 | NQ5: 21 | NR5: 0 | NS5: 309 | NT5: 72 | NU5: 1273 | NV5: 1902 | NW5: 765 | NX5: 588 | NY5: 61 | NZ5: 677 | OA5: 104707 | OB5: 63 | OC5: 0 | OD5: 0 | OE5: 161 | OF5: 4434 | OG5: 7 | OH5: 107 | OI5: 166 | OJ5: 7 | OK5: 218 | OL5: 3480 | OM5: 106 | ON5: 98 | OO5: 92 | OP5: 270 | OQ5: 414 | OR5: 0 | OS5: 2127 | OT5: 0 | OU5: 0 | OV5: 0 | OW5: 0 | OX5: 0 | OY5: 1912 | OZ5: 0 | PA5: 1171 | PB5: 17 | PC5: 305 | PD5: 0 | PE5: 0 | PF5: 1237 | PG5: 2640 | PH5: 146 | PI5: 0 | PJ5: 60 | PK5: 480 | PL5: 0 | PM5: 1332 | PN5: 10 | PO5: 21 | PP5: 0 | PQ5: 311 | PR5: 72 | PS5: 1265 | PT5: 1508 | PU5: 604 | PV5: 847 | PW5: 56 | PX5: 681 | PY5: 138873 | PZ5: 65 | QA5: 0 | QB5: 0 | QC5: 161 | QD5: 4396 | QE5: 7 | QF5: 105 | QG5: 166 | QH5: 8 | QI5: 239 | QJ5: 3045 | QK5: 106 | QL5: 98 | QM5: 92 | QN5: 270 | QO5: 330 | QP5: 0 | QQ5: 2127 | QR5: 0 | QS5: 0 | QT5: 1095 | QU5: 0 | QV5: 0 | QW5: 1912 | QX5: 0 | QY5: 40 | QZ5: 18 | RA5: 260 | RB5: 0 | RC5: 0 | RD5: 1232 | RE5: 2640 | RF5: 146 | RG5: 0 | RH5: 75 | RI5: 414 | RJ5: 0 | RK5: 1860 | RL5: 8 | RM5: 36 | RN5: 0 | RO5: 192 | RP5: 64 | RQ5: 1265 | RR5: 5915 | RS5: 604 | RT5: 1538 | RU5: 43 | RV5: 674 | RW5: 166104 | RX5: 68 | RY5: 0 | RZ5: 0 | SA5: 161 | SB5: 5323 | SC5: 8 | SD5: 105 | SE5: 150 | SF5: 8 | SG5: 226 | SH5: 3045 | SI5: 106 | SJ5: 98 | SK5: 88 | SL5: 162 | SM5: 310 | SN5: 0 | SO5: 1992 | SP5: 0 | SQ5: 0 | SR5: 1079 | SS5: 0 | ST5: 0 | SU5: 1912 | SV5: 0 | SW5: 39 | SX5: 20 | SY5: 250 | SZ5: 0 | TA5: 0 | TB5: 1232 | TC5: 4600 | TD5: 151 | TE5: 0 | TF5: 75 | TG5: 414 | TH5: 0 | TI5: 1500 | TJ5: 9 | TK5: 36 | TL5: 0 | TM5: 435 | TN5: 60 | TO5: 1265 | TP5: 5176 | TQ5: 274 | TR5: 1133 | TS5: 55 | TT5: 662 | TU5: 189985 | TV5: 68 | TW5: 0 | TX5: 0 | TY5: 202 | TZ5: 5477 | UA5: 8 | UB5: 105 | UC5: 113 | UD5: 8 | UE5: 276 | UF5: 2580 | UG5: 106 | UH5: 74 | UI5: 88 | UJ5: 155 | UK5: 282 | UL5: 0 | UM5: 1992 | UN5: 0 | UO5: 0 | UP5: 698 | UQ5: 0 | UR5: 0 | US5: 3782 | UT5: 0 | UU5: 39 | UV5: 20 | UW5: 375 | UX5: 0 | UY5: 0 | UZ5: 1232 | VA5: 4152 | VB5: 157 | VC5: 0 | VD5: 49
A6: Tütün | B6: ton | C6: =HLOOKUP($A$1,$AA$3:$BX$243,ROW()-2,FALSE) -> 2234 | D6: 3 | E6: =HLOOKUP($A$1,$BY$3:$DV$243,ROW()-2,FALSE) -> 2760 | F6: 3 | G6: =HLOOKUP($A$1,$DW$3:$FT$243,ROW()-2,FALSE) -> 2065 | H6: 3 | I6: =HLOOKUP($A$1,$FU$3:$HR$243,ROW()-2,FALSE) -> 2950 | J6: 3 | K6: =HLOOKUP($A$1,$HS$3:$JP$243,ROW()-2,FALSE) -> 1907 | L6: 4 | M6: =HLOOKUP($A$1,$JQ$3:$LN$243,ROW()-2,FALSE) -> 1742 | N6: 3 | O6: =HLOOKUP($A$1,$LO$3:$NL$243,ROW()-2,FALSE) -> 1848 | P6: 4 | Q6: =HLOOKUP($A$1,$NM$3:$PJ$243,ROW()-2,FALSE) -> 2215 | R6: 4 | S6: =HLOOKUP($A$1,$PK$3:$RH$243,ROW()-2,FALSE) -> 1632 | T6: 4 | U6: =HLOOKUP($A$1,$RI$3:$TF$243,ROW()-2,FALSE) -> 1255 | V6: 3 | W6: =HLOOKUP($A$1,$TG$3:$VD$243,ROW()-2,FALSE) -> 1584 | X6: 3 | Y6: Kale | Z6: 7210 | AA6: 1126 | AB6: 0 | AC6: 0 | AD6: 176 | AE6: 937 | AF6: 0 | AG6: 621 | AH6: 49 | AI6: 0 | AJ6: 600 | AK6: 0 | AL6: 188 | AM6: 0 | AN6: 0 | AO6: 478 | AP6: 0 | AQ6: 0 | AR6: 0 | AS6: 0 | AT6: 0 | AU6: 0 | AV6: 789 | AW6: 0 | AX6: 0 | AY6: 5456 | AZ6: 2234 | BA6: 0 | BB6: 0 | BC6: 0 | BD6: 0 | BE6: 0 | BF6: 0 | BG6: 3 | BH6: 0 | BI6: 862 | BJ6: 0 | BK6: 0 | BL6: 57 | BM6: 0 | BN6: 0 | BO6: 37 | BP6: 0 | BQ6: 18 | BR6: 17 | BS6: 0 | BT6: 0 | BU6: 3761 | BV6: 0 | BW6: 26 | BX6: 0 | BY6: 1576 | BZ6: 0 | CA6: 0 | CB6: 179 | CC6: 1176 | CD6: 0 | CE6: 681 | CF6: 35 | CG6: 0 | CH6: 708 | CI6: 0 | CJ6: 250 | CK6: 0 | CL6: 0 | CM6: 460 | CN6: 0 | CO6: 0 | CP6: 0 | CQ6: 0 | CR6: 0 | CS6: 0 | CT6: 817 | CU6: 0 | CV6: 0 | CW6: 7210 | CX6: 2760 | CY6: 0 | CZ6: 0 | DA6: 0 | DB6: 0 | DC6: 0 | DD6: 0 | DE6: 0 | DF6: 0 | DG6: 1083 | DH6: 0 | DI6: 0 | DJ6: 77 | DK6: 0 | DL6: 0 | DM6: 30 | DN6: 0 | DO6: 52 | DP6: 22 | DQ6: 0 | DR6: 0 | DS6: 4619 | DT6: 0 | DU6: 33 | DV6: 0 | DW6: 1251 | DX6: 0 | DY6: 0 | DZ6: 251 | EA6: 856 | EB6: 0 | EC6: 583 | ED6: 56 | EE6: 0 | EF6: 648 | EG6: 0 | EH6: 196 | EI6: 0 | EJ6: 0 | EK6: 660 | EL6: 0 | EM6: 0 | EN6: 0 | EO6: 0 | EP6: 0 | EQ6: 0 | ER6: 1048 | ES6: 0 | ET6: 0 | EU6: 6025 | EV6: 2065 | EW6: 0 | EX6: 1 | EY6: 0 | EZ6: 0 | FA6: 0 | FB6: 0 | FC6: 4 | FD6: 0 | FE6: 781 | FF6: 0 | FG6: 0 | FH6: 73 | FI6: 0 | FJ6: 0 | FK6: 37 | FL6: 0 | FM6: 39 | FN6: 39 | FO6: 0 | FP6: 0 | FQ6: 3475 | FR6: 0 | FS6: 45 | FT6: 0 | FU6: 2741 | FV6: 0 | FW6: 0 | FX6: 311 | FY6: 1462 | FZ6: 0 | GA6: 776 | GB6: 128 | GC6: 0 | GD6: 866 | GE6: 0 | GF6: 246 | GG6: 0 | GH6: 0 | GI6: 865 | GJ6: 0 | GK6: 0 | GL6: 0 | GM6: 0 | GN6: 0 | GO6: 0 | GP6: 1347 | GQ6: 0 | GR6: 0 | GS6: 8531 | GT6: 2950 | GU6: 0 | GV6: 2 | GW6: 0 | GX6: 0 | GY6: 0 | GZ6: 0 | HA6: 35 | HB6: 0 | HC6: 1268 | HD6: 0 | HE6: 0 | HF6: 165 | HG6: 0 | HH6: 0 | HI6: 97 | HJ6: 0 | HK6: 114 | HL6: 54 | HM6: 0 | HN6: 0 | HO6: 6193 | HP6: 0 | HQ6: 72 | HR6: 0 | HS6: 2210 | HT6: 0 | HU6: 0 | HV6: 249 | HW6: 1231 | HX6: 0 | HY6: 545 | HZ6: 112 | IA6: 0 | IB6: 544 | IC6: 0 | ID6: 212 | IE6: 0 | IF6: 0 | IG6: 685 | IH6: 0 | II6: 0 | IJ6: 0 | IK6: 0 | IL6: 0 | IM6: 0 | IN6: 974 | IO6: 0 | IP6: 0 | IQ6: 5981 | IR6: 1907 | IS6: 0 | IT6: 2 | IU6: 0 | IV6: 0 | IW6: 0 | IX6: 0 | IY6: 22 | IZ6: 0 | JA6: 973 | JB6: 0 | JC6: 0 | JD6: 132 | JE6: 0 | JF6: 0 | JG6: 29 | JH6: 0 | JI6: 73 | JJ6: 47 | JK6: 0 | JL6: 0 | JM6: 4363 | JN6: 0 | JO6: 75 | JP6: 0 | JQ6: 1659 | JR6: 0 | JS6: 0 | JT6: 173 | JU6: 918 | JV6: 0 | JW6: 550 | JX6: 75 | JY6: 0 | JZ6: 632 | KA6: 0 | KB6: 130 | KC6: 0 | KD6: 0 | KE6: 418 | KF6: 0 | KG6: 0 | KH6: 0 | KI6: 0 | KJ6: 0 | KK6: 0 | KL6: 838 | KM6: 0 | KN6: 0 | KO6: 5544 | KP6: 1742 | KQ6: 0 | KR6: 1 | KS6: 0 | KT6: 0 | KU6: 0 | KV6: 0 | KW6: 13 | KX6: 0 | KY6: 936 | KZ6: 0 | LA6: 0 | LB6: 110 | LC6: 0 | LD6: 0 | LE6: 31 | LF6: 0 | LG6: 81 | LH6: 45 | LI6: 0 | LJ6: 0 | LK6: 4472 | LL6: 0 | LM6: 77 | LN6: 0 | LO6: 2029 | LP6: 0 | LQ6: 0 | LR6: 289 | LS6: 993 | LT6: 0 | LU6: 562 | LV6: 90 | LW6: 0 | LX6: 694 | LY6: 3 | LZ6: 131 | MA6: 0 | MB6: 0 | MC6: 536 | MD6: 0 | ME6: 0 | MF6: 0 | MG6: 0 | MH6: 0 | MI6: 0 | MJ6: 1042 | MK6: 0 | ML6: 0 | MM6: 5971 | MN6: 1848 | MO6: 0 | MP6: 0 | MQ6: 0 | MR6: 0 | MS6: 0 | MT6: 0 | MU6: 34 | MV6: 0 | MW6: 1020 | MX6: 0 | MY6: 0 | MZ6: 102 | NA6: 0 | NB6: 0 | NC6: 91 | ND6: 0 | NE6: 145 | NF6: 83 | NG6: 0 | NH6: 0 | NI6: 5568 | NJ6: 1 | NK6: 100 | NL6: 0 | NM6: 3251 | NN6: 0 | NO6: 0 | NP6: 356 | NQ6: 1300 | NR6: 0 | NS6: 711 | NT6: 274 | NU6: 10 | NV6: 843 | NW6: 7 | NX6: 174 | NY6: 0 | NZ6: 0 | OA6: 877 | OB6: 0 | OC6: 0 | OD6: 0 | OE6: 0 | OF6: 0 | OG6: 0 | OH6: 1176 | OI6: 0 | OJ6: 0 | OK6: 6510 | OL6: 2215 | OM6: 0 | ON6: 21 | OO6: 0 | OP6: 0 | OQ6: 0 | OR6: 0 | OS6: 105 | OT6: 0 | OU6: 1230 | OV6: 0 | OW6: 391 | OX6: 227 | OY6: 0 | OZ6: 0 | PA6: 17 | PB6: 0 | PC6: 260 | PD6: 481 | PE6: 0 | PF6: 0 | PG6: 6684 | PH6: 3 | PI6: 194 | PJ6: 0 | PK6: 2245 | PL6: 0 | PM6: 0 | PN6: 278 | PO6: 1355 | PP6: 0 | PQ6: 491 | PR6: 137 | PS6: 3 | PT6: 738 | PU6: 5 | PV6: 137 | PW6: 0 | PX6: 0 | PY6: 845 | PZ6: 0 | QA6: 0 | QB6: 0 | QC6: 0 | QD6: 44 | QE6: 0 | QF6: 1034 | QG6: 0 | QH6: 0 | QI6: 5988 | QJ6: 1632 | QK6: 0 | QL6: 13 | QM6: 0 | QN6: 0 | QO6: 0 | QP6: 0 | QQ6: 47 | QR6: 0 | QS6: 1232 | QT6: 248 | QU6: 0 | QV6: 152 | QW6: 0 | QX6: 0 | QY6: 15 | QZ6: 0 | RA6: 115 | RB6: 0 | RC6: 0 | RD6: 0 | RE6: 5945 | RF6: 3 | RG6: 85 | RH6: 0 | RI6: 931 | RJ6: 0 | RK6: 0 | RL6: 193 | RM6: 800 | RN6: 0 | RO6: 244 | RP6: 38 | RQ6: 0 | RR6: 530 | RS6: 3 | RT6: 36 | RU6: 0 | RV6: 0 | RW6: 323 | RX6: 0 | RY6: 0 | RZ6: 0 | SA6: 0 | SB6: 47 | SC6: 0 | SD6: 704 | SE6: 0 | SF6: 0 | SG6: 4162 | SH6: 1255 | SI6: 0 | SJ6: 2 | SK6: 0 | SL6: 0 | SM6: 0 | SN6: 0 | SO6: 4 | SP6: 0 | SQ6: 718 | SR6: 32 | SS6: 0 | ST6: 70 | SU6: 0 | SV6: 0 | SW6: 1 | SX6: 0 | SY6: 41 | SZ6: 0 | TA6: 0 | TB6: 0 | TC6: 3764 | TD6: 2 | TE6: 35 | TF6: 0 | TG6: 1039 | TH6: 0 | TI6: 0 | TJ6: 214 | TK6: 794 | TL6: 0 | TM6: 264 | TN6: 38 | TO6: 0 | TP6: 578 | TQ6: 5 | TR6: 48 | TS6: 0 | TT6: 0 | TU6: 309 | TV6: 0 | TW6: 0 | TX6: 0 | TY6: 0 | TZ6: 81 | UA6: 0 | UB6: 788 | UC6: 0 | UD6: 0 | UE6: 3536 | UF6: 1584 | UG6: 0 | UH6: 0 | UI6: 0 | UJ6: 0 | UK6: 0 | UL6: 0 | UM6: 0 | UN6: 0 | UO6: 901 | UP6: 106 | UQ6: 0 | UR6: 106 | US6: 0 | UT6: 0 | UU6: 1 | UV6: 0 | UW6: 71 | UX6: 0 | UY6: 0 | UZ6: 0 | VA6: 3312 | VB6: 6 | VC6: 66 | VD6: 0
A7: Zeytin(Sofralık) | B7: ton | C7: =HLOOKUP($A$1,$AA$3:$BX$243,ROW()-2,FALSE) -> 9378 | D7: 1 | E7: =HLOOKUP($A$1,$BY$3:$DV$243,ROW()-2,FALSE) -> 6099 | F7: 4 | G7: =HLOOKUP($A$1,$DW$3:$FT$243,ROW()-2,FALSE) -> 5375 | H7: 2 | I7: =HLOOKUP($A$1,$FU$3:$HR$243,ROW()-2,FALSE) -> 10596 | J7: 1 | K7: =HLOOKUP($A$1,$HS$3:$JP$243,ROW()-2,FALSE) -> 2334 | L7: 11 | M7: =HLOOKUP($A$1,$JQ$3:$LN$243,ROW()-2,FALSE) -> 3447 | N7: 7 | O7: =HLOOKUP($A$1,$LO$3:$NL$243,ROW()-2,FALSE) -> 4679 | P7: 5 | Q7: =HLOOKUP($A$1,$NM$3:$PJ$243,ROW()-2,FALSE) -> 10915 | R7: 1 | S7: =HLOOKUP($A$1,$PK$3:$RH$243,ROW()-2,FALSE) -> 11345 | T7: 2 | U7: =HLOOKUP($A$1,$RI$3:$TF$243,ROW()-2,FALSE) -> 11625 | V7: 3 | W7: =HLOOKUP($A$1,$TG$3:$VD$243,ROW()-2,FALSE) -> 4400 | X7: 6 | Y7: Kuyucak | Z7: 22500 | AA7: 96 | AB7: 279 | AC7: 0 | AD7: 15 | AE7: 282 | AF7: 243 | AG7: 6119 | AH7: 0 | AI7: 1607 | AJ7: 1822 | AK7: 119 | AL7: 161 | AM7: 0 | AN7: 2678 | AO7: 0 | AP7: 728 | AQ7: 0 | AR7: 2119 | AS7: 6528 | AT7: 751 | AU7: 835 | AV7: 1051 | AW7: 95 | AX7: 1376 | AY7: 675 | AZ7: 9378 | BA7: 341 | BB7: 1 | BC7: 11 | BD7: 627 | BE7: 165 | BF7: 425 | BG7: 7015 | BH7: 67 | BI7: 118 | BJ7: 0 | BK7: 112 | BL7: 109 | BM7: 1283 | BN7: 142 | BO7: 1395 | BP7: 2454 | BQ7: 0 | BR7: 370 | BS7: 2006 | BT7: 2735 | BU7: 577 | BV7: 77 | BW7: 498 | BX7: 96 | BY7: 39 | BZ7: 210 | CA7: 0 | CB7: 16 | CC7: 238 | CD7: 555 | CE7: 5000 | CF7: 0 | CG7: 450 | CH7: 799 | CI7: 106 | CJ7: 85 | CK7: 0 | CL7: 4166 | CM7: 0 | CN7: 1222 | CO7: 0 | CP7: 12000 | CQ7: 4444 | CR7: 1250 | CS7: 2222 | CT7: 902 | CU7: 58 | CV7: 1111 | CW7: 1351 | CX7: 6099 | CY7: 789 | CZ7: 4 | DA7: 37 | DB7: 3889 | DC7: 857 | DD7: 1271 | DE7: 22500 | DF7: 137 | DG7: 642 | DH7: 0 | DI7: 88 | DJ7: 160 | DK7: 1389 | DL7: 111 | DM7: 1216 | DN7: 1406 | DO7: 0 | DP7: 2000 | DQ7: 6176 | DR7: 1389 | DS7: 799 | DT7: 28 | DU7: 460 | DV7: 263 | DW7: 98 | DX7: 165 | DY7: 0 | DZ7: 24 | EA7: 256 | EB7: 75 | EC7: 5355 | ED7: 0 | EE7: 663 | EF7: 1516 | EG7: 136 | EH7: 195 | EI7: 0 | EJ7: 364 | EK7: 0 | EL7: 65 | EM7: 56 | EN7: 2635 | EO7: 547 | EP7: 900 | EQ7: 613 | ER7: 1050 | ES7: 94 | ET7: 348 | EU7: 2192 | EV7: 5375 | EW7: 98 | EX7: 5 | EY7: 165 | EZ7: 122 | FA7: 95 | FB7: 1 | FC7: 14844 | FD7: 12 | FE7: 21 | FF7: 0 | FG7: 109 | FH7: 455 | FI7: 18 | FJ7: 21 | FK7: 1151 | FL7: 2531 | FM7: 0 | FN7: 1100 | FO7: 471 | FP7: 199 | FQ7: 525 | FR7: 11 | FS7: 182 | FT7: 167 | FU7: 74 | FV7: 155 | FW7: 0 | FX7: 15 | FY7: 237 | FZ7: 806 | GA7: 9683 | GB7: 0 | GC7: 1300 | GD7: 1085 | GE7: 125 | GF7: 168 | GG7: 0 | GH7: 3996 | GI7: 0 | GJ7: 2864 | GK7: 0 | GL7: 2977 | GM7: 5796 | GN7: 5372 | GO7: 2571 | GP7: 849 | GQ7: 96 | GR7: 4619 | GS7: 1871 | GT7: 10596 | GU7: 498 | GV7: 7 | GW7: 40 | GX7: 1098 | GY7: 1873 | GZ7: 436 | HA7: 9652 | HB7: 233 | HC7: 299 | HD7: 0 | HE7: 105 | HF7: 201 | HG7: 2566 | HH7: 458 | HI7: 1122 | HJ7: 2246 | HK7: 0 | HL7: 599 | HM7: 3502 | HN7: 3827 | HO7: 826 | HP7: 49 | HQ7: 3168 | HR7: 25 | HS7: 77 | HT7: 91 | HU7: 0 | HV7: 10 | HW7: 102 | HX7: 503 | HY7: 7800 | HZ7: 0 | IA7: 1613 | IB7: 661 | IC7: 115 | ID7: 88 | IE7: 0 | IF7: 3295 | IG7: 0 | IH7: 2337 | II7: 0 | IJ7: 1945 | IK7: 8836 | IL7: 2522 | IM7: 2351 | IN7: 399 | IO7: 39 | IP7: 2151 | IQ7: 1154 | IR7: 2334 | IS7: 773 | IT7: 8 | IU7: 13 | IV7: 1005 | IW7: 585 | IX7: 200 | IY7: 8193 | IZ7: 148 | JA7: 220 | JB7: 0 | JC7: 63 | JD7: 210 | JE7: 2347 | JF7: 275 | JG7: 1140 | JH7: 954 | JI7: 0 | JJ7: 397 | JK7: 3202 | JL7: 3500 | JM7: 599 | JN7: 32 | JO7: 1485 | JP7: 23 | JQ7: 21 | JR7: 159 | JS7: 0 | JT7: 5 | JU7: 120 | JV7: 632 | JW7: 9569 | JX7: 0 | JY7: 2425 | JZ7: 1061 | KA7: 135 | KB7: 86 | KC7: 0 | KD7: 3410 | KE7: 0 | KF7: 199 | KG7: 0 | KH7: 754 | KI7: 10386 | KJ7: 1246 | KK7: 3455 | KL7: 492 | KM7: 5 | KN7: 2529 | KO7: 543 | KP7: 3447 | KQ7: 1337 | KR7: 13 | KS7: 23 | KT7: 472 | KU7: 689 | KV7: 515 | KW7: 5149 | KX7: 36 | KY7: 804 | KZ7: 0 | LA7: 96 | LB7: 64 | LC7: 2207 | LD7: 80 | LE7: 1340 | LF7: 829 | LG7: 0 | LH7: 628 | LI7: 3643 | LJ7: 4114 | LK7: 536 | LL7: 36 | LM7: 2561 | LN7: 27 | LO7: 129 | LP7: 95 | LQ7: 0 | LR7: 8 | LS7: 179 | LT7: 801 | LU7: 5601 | LV7: 0 | LW7: 1230 | LX7: 1540 | LY7: 169 | LZ7: 128 | MA7: 0 | MB7: 4876 | MC7: 0 | MD7: 279 | ME7: 0 | MF7: 1125 | MG7: 4647 | MH7: 2302 | MI7: 4373 | MJ7: 724 | MK7: 106 | ML7: 3940 | MM7: 1608 | MN7: 4679 | MO7: 1197 | MP7: 19 | MQ7: 35 | MR7: 1763 | MS7: 923 | MT7: 960 | MU7: 5782 | MV7: 54 | MW7: 1200 | MX7: 0 | MY7: 144 | MZ7: 95 | NA7: 2366 | NB7: 238 | NC7: 1980 | ND7: 1794 | NE7: 0 | NF7: 688 | NG7: 4613 | NH7: 5362 | NI7: 1000 | NJ7: 53 | NK7: 3019 | NL7: 40 | NM7: 93 | NN7: 49 | NO7: 0 | NP7: 8 | NQ7: 107 | NR7: 390 | NS7: 6942 | NT7: 0 | NU7: 1066 | NV7: 1377 | NW7: 88 | NX7: 38 | NY7: 0 | NZ7: 2607 | OA7: 0 | OB7: 77 | OC7: 0 | OD7: 819 | OE7: 7252 | OF7: 172 | OG7: 2677 | OH7: 371 | OI7: 73 | OJ7: 2452 | OK7: 1163 | OL7: 10915 | OM7: 1490 | ON7: 5 | OO7: 8391 | OP7: 550 | OQ7: 853 | OR7: 819 | OS7: 7426 | OT7: 20 | OU7: 1000 | OV7: 0 | OW7: 144 | OX7: 40 | OY7: 2036 | OZ7: 124 | PA7: 699 | PB7: 900 | PC7: 0 | PD7: 696 | PE7: 2802 | PF7: 2872 | PG7: 492 | PH7: 28 | PI7: 1836 | PJ7: 15 | PK7: 179 | PL7: 81 | PM7: 0 | PN7: 4 | PO7: 205 | PP7: 463 | PQ7: 5735 | PR7: 0 | PS7: 2037 | PT7: 1588 | PU7: 101 | PV7: 39 | PW7: 0 | PX7: 2245 | PY7: 0 | PZ7: 237 | QA7: 0 | QB7: 0 | QC7: 10796 | QD7: 582 | QE7: 4718 | QF7: 589 | QG7: 114 | QH7: 4369 | QI7: 1773 | QJ7: 11345 | QK7: 2692 | QL7: 9 | QM7: 7265 | QN7: 1281 | QO7: 1423 | QP7: 875 | QQ7: 14266 | QR7: 39 | QS7: 1535 | QT7: 1273 | QU7: 0 | QV7: 72 | QW7: 2458 | QX7: 214 | QY7: 477 | QZ7: 1418 | RA7: 0 | RB7: 0 | RC7: 1410 | RD7: 5526 | RE7: 600 | RF7: 53 | RG7: 2896 | RH7: 28 | RI7: 160 | RJ7: 94 | RK7: 0 | RL7: 5 | RM7: 213 | RN7: 500 | RO7: 6380 | RP7: 0 | RQ7: 2200 | RR7: 1726 | RS7: 112 | RT7: 27 | RU7: 0 | RV7: 2420 | RW7: 0 | RX7: 261 | RY7: 0 | RZ7: 0 | SA7: 11812 | SB7: 481 | SC7: 5151 | SD7: 660 | SE7: 126 | SF7: 6605 | SG7: 1846 | SH7: 11625 | SI7: 2935 | SJ7: 10 | SK7: 7784 | SL7: 1410 | SM7: 1337 | SN7: 945 | SO7: 15593 | SP7: 40 | SQ7: 1243 | SR7: 1390 | SS7: 0 | ST7: 88 | SU7: 2664 | SV7: 238 | SW7: 458 | SX7: 1576 | SY7: 0 | SZ7: 0 | TA7: 1504 | TB7: 5967 | TC7: 616 | TD7: 52 | TE7: 3533 | TF7: 40 | TG7: 32 | TH7: 94 | TI7: 0 | TJ7: 11 | TK7: 194 | TL7: 500 | TM7: 2190 | TN7: 0 | TO7: 1056 | TP7: 1001 | TQ7: 40 | TR7: 17 | TS7: 0 | TT7: 2226 | TU7: 0 | TV7: 384 | TW7: 0 | TX7: 0 | TY7: 3148 | TZ7: 390 | UA7: 5868 | UB7: 633 | UC7: 57 | UD7: 7492 | UE7: 1467 | UF7: 4400 | UG7: 2055 | UH7: 8 | UI7: 7339 | UJ7: 1360 | UK7: 963 | UL7: 1175 | UM7: 14389 | UN7: 40 | UO7: 1575 | UP7: 1143 | UQ7: 0 | UR7: 176 | US7: 1408 | UT7: 238 | UU7: 458 | UV7: 1540 | UW7: 0 | UX7: 0 | UY7: 2367 | UZ7: 4967 | VA7: 294 | VB7: 14 | VC7: 1833 | VD7: 148
A8: Fiğ(Adi)(Dane) | B8: ton | C8: =HLOOKUP($A$1,$AA$3:$BX$243,ROW()-2,FALSE) -> 23 | D8: 6 | E8: =HLOOKUP($A$1,$BY$3:$DV$243,ROW()-2,FALSE) -> 25 | F8: 4 | G8: =HLOOKUP($A$1,$DW$3:$FT$243,ROW()-2,FALSE) -> 25 | H8: 3 | I8: =HLOOKUP($A$1,$FU$3:$HR$243,ROW()-2,FALSE) -> 25 | J8: 3 | K8: =HLOOKUP($A$1,$HS$3:$JP$243,ROW()-2,FALSE) -> 25 | L8: 5 | M8: =HLOOKUP($A$1,$JQ$3:$LN$243,ROW()-2,FALSE) -> 25 | N8: 5 | O8: =HLOOKUP($A$1,$LO$3:$NL$243,ROW()-2,FALSE) -> 25 | P8: 5 | Q8: =HLOOKUP($A$1,$NM$3:$PJ$243,ROW()-2,FALSE) -> 0 | R8: - | S8: =HLOOKUP($A$1,$PK$3:$RH$243,ROW()-2,FALSE) -> 0 | T8: - | U8: =HLOOKUP($A$1,$RI$3:$TF$243,ROW()-2,FALSE) -> 0 | V8: - | W8: =HLOOKUP($A$1,$TG$3:$VD$243,ROW()-2,FALSE) -> 0 | X8: - | Y8: Seydikemer | Z8: 391 | AA8: 0 | AB8: 0 | AC8: 3 | AD8: 0 | AE8: 0 | AF8: 0 | AG8: 0 | AH8: 26 | AI8: 0 | AJ8: 0 | AK8: 0 | AL8: 8 | AM8: 0 | AN8: 0 | AO8: 0 | AP8: 0 | AQ8: 0 | AR8: 0 | AS8: 0 | AT8: 11 | AU8: 0 | AV8: 0 | AW8: 0 | AX8: 0 | AY8: 56 | AZ8: 23 | BA8: 0 | BB8: 8 | BC8: 0 | BD8: 0 | BE8: 27 | BF8: 0 | BG8: 0 | BH8: 0 | BI8: 24 | BJ8: 0 | BK8: 0 | BL8: 0 | BM8: 0 | BN8: 0 | BO8: 0 | BP8: 0 | BQ8: 0 | BR8: 625 | BS8: 0 | BT8: 0 | BU8: 0 | BV8: 0 | BW8: 0 | BX8: 0 | BY8: 0 | BZ8: 0 | CA8: 3 | CB8: 0 | CC8: 0 | CD8: 0 | CE8: 0 | CF8: 18 | CG8: 0 | CH8: 0 | CI8: 0 | CJ8: 10 | CK8: 0 | CL8: 0 | CM8: 0 | CN8: 0 | CO8: 0 | CP8: 0 | CQ8: 0 | CR8: 11 | CS8: 0 | CT8: 0 | CU8: 0 | CV8: 0 | CW8: 38 | CX8: 25 | CY8: 0 | CZ8: 9 | DA8: 0 | DB8: 0 | DC8: 27 | DD8: 0 | DE8: 0 | DF8: 0 | DG8: 24 | DH8: 0 | DI8: 0 | DJ8: 0 | DK8: 0 | DL8: 0 | DM8: 0 | DN8: 0 | DO8: 0 | DP8: 391 | DQ8: 0 | DR8: 0 | DS8: 0 | DT8: 0 | DU8: 0 | DV8: 0 | DW8: 0 | DX8: 0 | DY8: 4 | DZ8: 0 | EA8: 0 | EB8: 0 | EC8: 0 | ED8: 13 | EE8: 0 | EF8: 0 | EG8: 0 | EH8: 11 | EI8: 0 | EJ8: 0 | EK8: 0 | EL8: 0 | EM8: 0 | EN8: 0 | EO8: 0 | EP8: 10 | EQ8: 0 | ER8: 0 | ES8: 0 | ET8: 0 | EU8: 38 | EV8: 25 | EW8: 0 | EX8: 8 | EY8: 0 | EZ8: 0 | FA8: 25 | FB8: 0 | FC8: 0 | FD8: 0 | FE8: 19 | FF8: 0 | FG8: 0 | FH8: 0 | FI8: 0 | FJ8: 0 | FK8: 0 | FL8: 0 | FM8: 0 | FN8: 425 | FO8: 0 | FP8: 0 | FQ8: 0 | FR8: 0 | FS8: 0 | FT8: 0 | FU8: 0 | FV8: 0 | FW8: 4 | FX8: 0 | FY8: 0 | FZ8: 0 | GA8: 0 | GB8: 11 | GC8: 0 | GD8: 0 | GE8: 0 | GF8: 12 | GG8: 0 | GH8: 0 | GI8: 0 | GJ8: 0 | GK8: 0 | GL8: 0 | GM8: 0 | GN8: 9 | GO8: 0 | GP8: 0 | GQ8: 0 | GR8: 0 | GS8: 40 | GT8: 25 | GU8: 0 | GV8: 20 | GW8: 0 | GX8: 0 | GY8: 25 | GZ8: 0 | HA8: 0 | HB8: 0 | HC8: 19 | HD8: 0 | HE8: 0 | HF8: 0 | HG8: 0 | HH8: 0 | HI8: 0 | HJ8: 0 | HK8: 0 | HL8: 442 | HM8: 0 | HN8: 0 | HO8: 0 | HP8: 0 | HQ8: 0 | HR8: 0 | HS8: 0 | HT8: 0 | HU8: 4 | HV8: 0 | HW8: 0 | HX8: 0 | HY8: 0 | HZ8: 11 | IA8: 0 | IB8: 0 | IC8: 0 | ID8: 14 | IE8: 0 | IF8: 0 | IG8: 0 | IH8: 0 | II8: 0 | IJ8: 0 | IK8: 0 | IL8: 8 | IM8: 0 | IN8: 0 | IO8: 0 | IP8: 0 | IQ8: 40 | IR8: 25 | IS8: 0 | IT8: 26 | IU8: 0 | IV8: 0 | IW8: 25 | IX8: 0 | IY8: 0 | IZ8: 0 | JA8: 13 | JB8: 0 | JC8: 0 | JD8: 0 | JE8: 0 | JF8: 0 | JG8: 0 | JH8: 0 | JI8: 0 | JJ8: 375 | JK8: 0 | JL8: 0 | JM8: 0 | JN8: 0 | JO8: 40 | JP8: 0 | JQ8: 0 | JR8: 0 | JS8: 4 | JT8: 0 | JU8: 0 | JV8: 0 | JW8: 0 | JX8: 11 | JY8: 0 | JZ8: 0 | KA8: 0 | KB8: 15 | KC8: 0 | KD8: 0 | KE8: 0 | KF8: 0 | KG8: 0 | KH8: 0 | KI8: 0 | KJ8: 8 | KK8: 0 | KL8: 0 | KM8: 0 | KN8: 0 | KO8: 50 | KP8: 25 | KQ8: 0 | KR8: 25 | KS8: 432 | KT8: 0 | KU8: 25 | KV8: 0 | KW8: 0 | KX8: 0 | KY8: 13 | KZ8: 0 | LA8: 0 | LB8: 0 | LC8: 0 | LD8: 0 | LE8: 0 | LF8: 0 | LG8: 0 | LH8: 375 | LI8: 0 | LJ8: 0 | LK8: 0 | LL8: 0 | LM8: 35 | LN8: 0 | LO8: 0 | LP8: 0 | LQ8: 4 | LR8: 0 | LS8: 0 | LT8: 0 | LU8: 0 | LV8: 11 | LW8: 0 | LX8: 0 | LY8: 0 | LZ8: 15 | MA8: 0 | MB8: 0 | MC8: 0 | MD8: 0 | ME8: 0 | MF8: 0 | MG8: 0 | MH8: 8 | MI8: 0 | MJ8: 0 | MK8: 0 | ML8: 0 | MM8: 44 | MN8: 25 | MO8: 0 | MP8: 25 | MQ8: 432 | MR8: 0 | MS8: 25 | MT8: 0 | MU8: 0 | MV8: 0 | MW8: 13 | MX8: 0 | MY8: 0 | MZ8: 0 | NA8: 0 | NB8: 0 | NC8: 0 | ND8: 0 | NE8: 0 | NF8: 375 | NG8: 0 | NH8: 0 | NI8: 0 | NJ8: 0 | NK8: 31 | NL8: 0 | NM8: 0 | NN8: 0 | NO8: 0 | NP8: 0 | NQ8: 0 | NR8: 0 | NS8: 0 | NT8: 0 | NU8: 0 | NV8: 0 | NW8: 0 | NX8: 0 | NY8: 0 | NZ8: 0 | OA8: 0 | OB8: 0 | OC8: 0 | OD8: 0 | OE8: 0 | OF8: 0 | OG8: 0 | OH8: 0 | OI8: 0 | OJ8: 0 | OK8: 0 | OL8: 0 | OM8: 0 | ON8: 0 | OO8: 0 | OP8: 0 | OQ8: 0 | OR8: 0 | OS8: 0 | OT8: 0 | OU8: 0 | OV8: 0 | OW8: 0 | OX8: 0 | OY8: 0 | OZ8: 0 | PA8: 0 | PB8: 0 | PC8: 0 | PD8: 0 | PE8: 0 | PF8: 0 | PG8: 0 | PH8: 0 | PI8: 0 | PJ8: 0 | PK8: 0 | PL8: 0 | PM8: 0 | PN8: 0 | PO8: 0 | PP8: 0 | PQ8: 0 | PR8: 0 | PS8: 0 | PT8: 0 | PU8: 0 | PV8: 0 | PW8: 0 | PX8: 0 | PY8: 0 | PZ8: 0 | QA8: 0 | QB8: 0 | QC8: 0 | QD8: 0 | QE8: 0 | QF8: 0 | QG8: 0 | QH8: 0 | QI8: 0 | QJ8: 0 | QK8: 0 | QL8: 0 | QM8: 0 | QN8: 0 | QO8: 0 | QP8: 0 | QQ8: 0 | QR8: 0 | QS8: 0 | QT8: 0 | QU8: 0 | QV8: 0 | QW8: 0 | QX8: 0 | QY8: 0 | QZ8: 0 | RA8: 0 | RB8: 0 | RC8: 0 | RD8: 0 | RE8: 0 | RF8: 0 | RG8: 0 | RH8: 0 | RI8: 0 | RJ8: 0 | RK8: 0 | RL8: 0 | RM8: 0 | RN8: 0 | RO8: 0 | RP8: 0 | RQ8: 0 | RR8: 0 | RS8: 0 | RT8: 0 | RU8: 0 | RV8: 0 | RW8: 0 | RX8: 0 | RY8: 0 | RZ8: 0 | SA8: 0 | SB8: 0 | SC8: 0 | SD8: 0 | SE8: 0 | SF8: 0 | SG8: 0 | SH8: 0 | SI8: 0 | SJ8: 0 | SK8: 0 | SL8: 0 | SM8: 0 | SN8: 0 | SO8: 0 | SP8: 0 | SQ8: 0 | SR8: 0 | SS8: 0 | ST8: 0 | SU8: 0 | SV8: 0 | SW8: 0 | SX8: 0 | SY8: 0 | SZ8: 0 | TA8: 0 | TB8: 0 | TC8: 0 | TD8: 0 | TE8: 0 | TF8: 0 | TG8: 0 | TH8: 0 | TI8: 0 | TJ8: 0 | TK8: 0 | TL8: 0 | TM8: 0 | TN8: 0 | TO8: 0 | TP8: 0 | TQ8: 0 | TR8: 0 | TS8: 0 | TT8: 0 | TU8: 0 | TV8: 0 | TW8: 0 | TX8: 0 | TY8: 0 | TZ8: 0 | UA8: 0 | UB8: 0 | UC8: 0 | UD8: 0 | UE8: 0 | UF8: 0 | UG8: 0 | UH8: 0 | UI8: 0 | UJ8: 0 | UK8: 0 | UL8: 0 | UM8: 0 | UN8: 0 | UO8: 0 | UP8: 0 | UQ8: 0 | UR8: 0 | US8: 0 | UT8: 0 | UU8: 0 | UV8: 0 | UW8: 0 | UX8: 0 | UY8: 0 | UZ8: 0 | VA8: 0 | VB8: 0 | VC8: 0 | VD8: 0
A9: Keçi(Kıl) | B9: baş | C9: =HLOOKUP($A$1,$AA$3:$BX$243,ROW()-2,FALSE) -> 25710 | D9: 9 | E9: =HLOOKUP($A$1,$BY$3:$DV$243,ROW()-2,FALSE) -> 31627 | F9: 5 | G9: =HLOOKUP($A$1,$DW$3:$FT$243,ROW()-2,FALSE) -> 28299 | H9: 5 | I9: =HLOOKUP($A$1,$FU$3:$HR$243,ROW()-2,FALSE) -> 28906 | J9: 5 | K9: =HLOOKUP($A$1,$HS$3:$JP$243,ROW()-2,FALSE) -> 36011 | L9: 4 | M9: =HLOOKUP($A$1,$JQ$3:$LN$243,ROW()-2,FALSE) -> 36015 | N9: 5 | O9: =HLOOKUP($A$1,$LO$3:$NL$243,ROW()-2,FALSE) -> 32755 | P9: 5 | Q9: =HLOOKUP($A$1,$NM$3:$PJ$243,ROW()-2,FALSE) -> 32385 | R9: 2 | S9: =HLOOKUP($A$1,$PK$3:$RH$243,ROW()-2,FALSE) -> 33000 | T9: 4 | U9: =HLOOKUP($A$1,$RI$3:$TF$243,ROW()-2,FALSE) -> 13073 | V9: 12 | W9: =HLOOKUP($A$1,$TG$3:$VD$243,ROW()-2,FALSE) -> 11990 | X9: 11 | Y9: Seydikemer | Z9: 48615 | AA9: 43318 | AB9: 7750 | AC9: 750 | AD9: 4245 | AE9: 3310 | AF9: 5019 | AG9: 18100 | AH9: 1376 | AI9: 1937 | AJ9: 11279 | AK9: 23616 | AL9: 3769 | AM9: 4924 | AN9: 8140 | AO9: 26952 | AP9: 6100 | AQ9: 2150 | AR9: 6926 | AS9: 4652 | AT9: 46450 | AU9: 2440 | AV9: 5500 | AW9: 7689 | AX9: 814 | AY9: 6779 | AZ9: 25710 | BA9: 757 | BB9: 3715 | BC9: 447 | BD9: 1240 | BE9: 19688 | BF9: 1437 | BG9: 7300 | BH9: 18776 | BI9: 31075 | BJ9: 0 | BK9: 5600 | BL9: 31691 | BM9: 2335 | BN9: 2710 | BO9: 6181 | BP9: 2300 | BQ9: 5020 | BR9: 47001 | BS9: 6900 | BT9: 291 | BU9: 31000 | BV9: 13800 | BW9: 25891 | BX9: 1855 | BY9: 41598 | BZ9: 7850 | CA9: 1280 | CB9: 2956 | CC9: 3076 | CD9: 3600 | CE9: 21500 | CF9: 1823 | CG9: 1797 | CH9: 9903 | CI9: 19850 | CJ9: 6000 | CK9: 3910 | CL9: 8250 | CM9: 24554 | CN9: 6011 | CO9: 2778 | CP9: 11027 | CQ9: 4941 | CR9: 47350 | CS9: 2015 | CT9: 6500 | CU9: 5369 | CV9: 820 | CW9: 8972 | CX9: 31627 | CY9: 655 | CZ9: 3348 | DA9: 560 | DB9: 798 | DC9: 16367 | DD9: 1381 | DE9: 7229 | DF9: 18476 | DG9: 28770 | DH9: 0 | DI9: 5600 | DJ9: 32493 | DK9: 2345 | DL9: 2676 | DM9: 5723 | DN9: 2356 | DO9: 5300 | DP9: 48615 | DQ9: 6900 | DR9: 351 | DS9: 30000 | DT9: 12883 | DU9: 22822 | DV9: 1750 | DW9: 42046 | DX9: 9104 | DY9: 1024 | DZ9: 3042 | EA9: 2916 | EB9: 4248 | EC9: 21475 | ED9: 2214 | EE9: 1819 | EF9: 9845 | EG9: 19800 | EH9: 6020 | EI9: 5800 | EJ9: 8201 | EK9: 23950 | EL9: 6011 | EM9: 2631 | EN9: 10932 | EO9: 5065 | EP9: 46850 | EQ9: 953 | ER9: 5900 | ES9: 5400 | ET9: 800 | EU9: 7525 | EV9: 28299 | EW9: 501 | EX9: 3356 | EY9: 700 | EZ9: 825 | FA9: 18062 | FB9: 1335 | FC9: 6735 | FD9: 11011 | FE9: 26574 | FF9: 0 | FG9: 5000 | FH9: 24281 | FI9: 2603 | FJ9: 3131 | FK9: 5750 | FL9: 2850 | FM9: 8000 | FN9: 42588 | FO9: 6685 | FP9: 349 | FQ9: 34000 | FR9: 12628 | FS9: 24471 | FT9: 1525 | FU9: 41807 | FV9: 7915 | FW9: 1007 | FX9: 2500 | FY9: 2844 | FZ9: 3433 | GA9: 18698 | GB9: 2371 | GC9: 1811 | GD9: 9000 | GE9: 19100 | GF9: 6000 | GG9: 5702 | GH9: 8111 | GI9: 22360 | GJ9: 5312 | GK9: 1681 | GL9: 10316 | GM9: 4776 | GN9: 48250 | GO9: 866 | GP9: 5123 | GQ9: 7022 | GR9: 738 | GS9: 7016 | GT9: 28906 | GU9: 541 | GV9: 3495 | GW9: 950 | GX9: 638 | GY9: 16788 | GZ9: 1102 | HA9: 6440 | HB9: 13380 | HC9: 26152 | HD9: 0 | HE9: 4850 | HF9: 19654 | HG9: 2663 | HH9: 2060 | HI9: 6100 | HJ9: 2491 | HK9: 7000 | HL9: 44912 | HM9: 6855 | HN9: 207 | HO9: 32600 | HP9: 10772 | HQ9: 24942 | HR9: 1318 | HS9: 24540 | HT9: 8860 | HU9: 1025 | HV9: 3730 | HW9: 5416 | HX9: 6158 | HY9: 23000 | HZ9: 2690 | IA9: 2500 | IB9: 10000 | IC9: 19150 | ID9: 7700 | IE9: 3500 | IF9: 7900 | IG9: 16582 | IH9: 4585 | II9: 3025 | IJ9: 3860 | IK9: 4410 | IL9: 50000 | IM9: 2830 | IN9: 3630 | IO9: 7445 | IP9: 576 | IQ9: 6466 | IR9: 36011 | IS9: 435 | IT9: 4370 | IU9: 1350 | IV9: 770 | IW9: 16920 | IX9: 1817 | IY9: 3859 | IZ9: 9500 | JA9: 38300 | JB9: 0 | JC9: 7025 | JD9: 14090 | JE9: 3178 | JF9: 1692 | JG9: 7200 | JH9: 2223 | JI9: 6600 | JJ9: 50530 | JK9: 5161 | JL9: 520 | JM9: 36000 | JN9: 22718 | JO9: 24880 | JP9: 2140 | JQ9: 31240 | JR9: 8650 | JS9: 1025 | JT9: 3562 | JU9: 5654 | JV9: 6151 | JW9: 26000 | JX9: 2636 | JY9: 3198 | JZ9: 8132 | KA9: 19140 | KB9: 8000 | KC9: 2510 | KD9: 7523 | KE9: 15730 | KF9: 4490 | KG9: 3017 | KH9: 4005 | KI9: 4860 | KJ9: 53250 | KK9: 2830 | KL9: 5194 | KM9: 7481 | KN9: 550 | KO9: 9849 | KP9: 36015 | KQ9: 593 | KR9: 4800 | KS9: 1995 | KT9: 670 | KU9: 16479 | KV9: 1876 | KW9: 4849 | KX9: 8900 | KY9: 37400 | KZ9: 0 | LA9: 6719 | LB9: 13580 | LC9: 3200 | LD9: 2204 | LE9: 7200 | LF9: 2300 | LG9: 6800 | LH9: 42730 | LI9: 5250 | LJ9: 548 | LK9: 41000 | LL9: 16389 | LM9: 24950 | LN9: 2362 | LO9: 30026 | LP9: 11500 | LQ9: 930 | LR9: 3574 | LS9: 6455 | LT9: 6128 | LU9: 25990 | LV9: 2816 | LW9: 4410 | LX9: 12500 | LY9: 19140 | LZ9: 8000 | MA9: 1845 | MB9: 6543 | MC9: 18985 | MD9: 4400 | ME9: 2670 | MF9: 4005 | MG9: 4807 | MH9: 48800 | MI9: 2800 | MJ9: 4000 | MK9: 7474 | ML9: 500 | MM9: 9418 | MN9: 32755 | MO9: 691 | MP9: 6500 | MQ9: 1995 | MR9: 595 | MS9: 17700 | MT9: 2163 | MU9: 4600 | MV9: 7850 | MW9: 50170 | MX9: 0 | MY9: 6584 | MZ9: 14200 | NA9: 3700 | NB9: 2118 | NC9: 7225 | ND9: 1936 | NE9: 6800 | NF9: 68574 | NG9: 4275 | NH9: 520 | NI9: 41000 | NJ9: 21993 | NK9: 26473 | NL9: 2446 | NM9: 29346 | NN9: 12513 | NO9: 900 | NP9: 3118 | NQ9: 4850 | NR9: 6000 | NS9: 26100 | NT9: 2729 | NU9: 4082 | NV9: 13955 | NW9: 19807 | NX9: 8100 | NY9: 2085 | NZ9: 6050 | OA9: 16999 | OB9: 2905 | OC9: 2575 | OD9: 3870 | OE9: 4860 | OF9: 23032 | OG9: 2832 | OH9: 6500 | OI9: 8481 | OJ9: 525 | OK9: 8980 | OL9: 32385 | OM9: 1190 | ON9: 6647 | OO9: 1727 | OP9: 300 | OQ9: 16845 | OR9: 1961 | OS9: 4900 | OT9: 7550 | OU9: 32100 | OV9: 0 | OW9: 2387 | OX9: 13955 | OY9: 3300 | OZ9: 2051 | PA9: 6545 | PB9: 1600 | PC9: 7540 | PD9: 31518 | PE9: 4390 | PF9: 176 | PG9: 40000 | PH9: 14732 | PI9: 27300 | PJ9: 2215 | PK9: 26815 | PL9: 12505 | PM9: 698 | PN9: 2610 | PO9: 5033 | PP9: 3840 | PQ9: 22720 | PR9: 2571 | PS9: 3659 | PT9: 9608 | PU9: 24985 | PV9: 8614 | PW9: 1859 | PX9: 5319 | PY9: 16095 | PZ9: 2815 | QA9: 2250 | QB9: 3756 | QC9: 4360 | QD9: 51050 | QE9: 2800 | QF9: 4444 | QG9: 6615 | QH9: 605 | QI9: 10263 | QJ9: 33000 | QK9: 1265 | QL9: 6229 | QM9: 1700 | QN9: 275 | QO9: 14400 | QP9: 2131 | QQ9: 5300 | QR9: 7500 | QS9: 36841 | QT9: 9205 | QU9: 0 | QV9: 13930 | QW9: 3000 | QX9: 2003 | QY9: 1560 | QZ9: 1555 | RA9: 6858 | RB9: 0 | RC9: 4400 | RD9: 167 | RE9: 44890 | RF9: 15000 | RG9: 26457 | RH9: 2500 | RI9: 21270 | RJ9: 8500 | RK9: 450 | RL9: 2253 | RM9: 4126 | RN9: 1722 | RO9: 18000 | RP9: 2100 | RQ9: 2584 | RR9: 9500 | RS9: 14250 | RT9: 5750 | RU9: 1200 | RV9: 5200 | RW9: 11200 | RX9: 2840 | RY9: 1420 | RZ9: 3768 | SA9: 3500 | SB9: 31195 | SC9: 2487 | SD9: 3500 | SE9: 6600 | SF9: 348 | SG9: 7200 | SH9: 13073 | SI9: 1614 | SJ9: 3410 | SK9: 750 | SL9: 225 | SM9: 13580 | SN9: 2446 | SO9: 5656 | SP9: 15430 | SQ9: 31815 | SR9: 7980 | SS9: 0 | ST9: 13770 | SU9: 2250 | SV9: 1917 | SW9: 1210 | SX9: 1000 | SY9: 6000 | SZ9: 0 | TA9: 4000 | TB9: 149 | TC9: 31991 | TD9: 14811 | TE9: 24333 | TF9: 1500 | TG9: 15000 | TH9: 7200 | TI9: 380 | TJ9: 1400 | TK9: 2500 | TL9: 1691 | TM9: 17100 | TN9: 1721 | TO9: 2395 | TP9: 6500 | TQ9: 16000 | TR9: 4900 | TS9: 1450 | TT9: 3980 | TU9: 8000 | TV9: 2400 | TW9: 1700 | TX9: 3762 | TY9: 2818 | TZ9: 33000 | UA9: 2460 | UB9: 2500 | UC9: 5950 | UD9: 368 | UE9: 4600 | UF9: 11990 | UG9: 278 | UH9: 3380 | UI9: 500 | UJ9: 111 | UK9: 13160 | UL9: 2434 | UM9: 3270 | UN9: 12930 | UO9: 30625 | UP9: 6370 | UQ9: 0 | UR9: 17720 | US9: 2575 | UT9: 1739 | UU9: 800 | UV9: 1140 | UW9: 6150 | UX9: 0 | UY9: 4410 | UZ9: 141 | VA9: 26050 | VB9: 11105 | VC9: 21464 | VD9: 1500
A10: YemŞalgamı | B10: ton | C10: =HLOOKUP($A$1,$AA$3:$BX$243,ROW()-2,FALSE) -> 1020 | D10: 6 | E10: =HLOOKUP($A$1,$BY$3:$DV$243,ROW()-2,FALSE) -> 2800 | F10: 5 | G10: =HLOOKUP($A$1,$DW$3:$FT$243,ROW()-2,FALSE) -> 2800 | H10: 7 | I10: =HLOOKUP($A$1,$FU$3:$HR$243,ROW()-2,FALSE) -> 3150 | J10: 6 | K10: =HLOOKUP($A$1,$HS$3:$JP$243,ROW()-2,FALSE) -> 4200 | L10: 6 | M10: =HLOOKUP($A$1,$JQ$3:$LN$243,ROW()-2,FALSE) -> 4200 | N10: 4 | O10: =HLOOKUP($A$1,$LO$3:$NL$243,ROW()-2,FALSE) -> 4500 | P10: 4 | Q10: =HLOOKUP($A$1,$NM$3:$PJ$243,ROW()-2,FALSE) -> 3000 | R10: 6 | S10: =HLOOKUP($A$1,$PK$3:$RH$243,ROW()-2,FALSE) -> 3001 | T10: 5 | U10: =HLOOKUP($A$1,$RI$3:$TF$243,ROW()-2,FALSE) -> 0 | V10: - | W10: =HLOOKUP($A$1,$TG$3:$VD$243,ROW()-2,FALSE) -> 0 | X10: - | Y10: Çine | Z10: 11050 | AA10: 0 | AB10: 0 | AC10: 0 | AD10: 0 | AE10: 51 | AF10: 0 | AG10: 2600 | AH10: 0 | AI10: 0 | AJ10: 0 | AK10: 0 | AL10: 0 | AM10: 0 | AN10: 11000 | AO10: 0 | AP10: 120 | AQ10: 0 | AR10: 0 | AS10: 1000 | AT10: 0 | AU10: 160 | AV10: 240 | AW10: 0 | AX10: 225 | AY10: 312 | AZ10: 1020 | BA10: 600 | BB10: 1308 | BC10: 0 | BD10: 200 | BE10: 0 | BF10: 0 | BG10: 1575 | BH10: 0 | BI10: 7441 | BJ10: 0 | BK10: 0 | BL10: 0 | BM10: 960 | BN10: 0 | BO10: 0 | BP10: 56 | BQ10: 0 | BR10: 0 | BS10: 325 | BT10: 42 | BU10: 400 | BV10: 57 | BW10: 405 | BX10: 400 | BY10: 0 | BZ10: 0 | CA10: 0 | CB10: 0 | CC10: 50 | CD10: 0 | CE10: 2730 | CF10: 0 | CG10: 0 | CH10: 0 | CI10: 0 | CJ10: 0 | CK10: 0 | CL10: 11050 | CM10: 0 | CN10: 120 | CO10: 0 | CP10: 0 | CQ10: 1600 | CR10: 0 | CS10: 200 | CT10: 459 | CU10: 0 | CV10: 207 | CW10: 240 | CX10: 2800 | CY10: 500 | CZ10: 1500 | DA10: 150 | DB10: 300 | DC10: 0 | DD10: 0 | DE10: 10750 | DF10: 0 | DG10: 7256 | DH10: 0 | DI10: 0 | DJ10: 0 | DK10: 6815 | DL10: 0 | DM10: 0 | DN10: 0 | DO10: 0 | DP10: 0 | DQ10: 250 | DR10: 42 | DS10: 0 | DT10: 1590 | DU10: 360 | DV10: 1000 | DW10: 0 | DX10: 0 | DY10: 0 | DZ10: 0 | EA10: 60 | EB10: 0 | EC10: 2805 | ED10: 0 | EE10: 0 | EF10: 0 | EG10: 0 | EH10: 0 | EI10: 0 | EJ10: 15250 | EK10: 0 | EL10: 120 | EM10: 0 | EN10: 0 | EO10: 9000 | EP10: 0 | EQ10: 320 | ER10: 867 | ES10: 0 | ET10: 450 | EU10: 30 | EV10: 2800 | EW10: 500 | EX10: 1452 | EY10: 275 | EZ10: 400 | FA10: 0 | FB10: 0 | FC10: 12500 | FD10: 0 | FE10: 6600 | FF10: 0 | FG10: 0 | FH10: 0 | FI10: 6815 | FJ10: 0 | FK10: 0 | FL10: 0 | FM10: 0 | FN10: 0 | FO10: 250 | FP10: 350 | FQ10: 0 | FR10: 1080 | FS10: 140 | FT10: 1000 | FU10: 0 | FV10: 0 | FW10: 4 | FX10: 0 | FY10: 60 | FZ10: 0 | GA10: 2963 | GB10: 0 | GC10: 0 | GD10: 0 | GE10: 0 | GF10: 0 | GG10: 0 | GH10: 17750 | GI10: 0 | GJ10: 180 | GK10: 0 | GL10: 0 | GM10: 7200 | GN10: 0 | GO10: 360 | GP10: 3000 | GQ10: 0 | GR10: 450 | GS10: 30 | GT10: 3150 | GU10: 2500 | GV10: 2880 | GW10: 0 | GX10: 280 | GY10: 0 | GZ10: 0 | HA10: 13500 | HB10: 0 | HC10: 6000 | HD10: 0 | HE10: 0 | HF10: 0 | HG10: 6110 | HH10: 0 | HI10: 0 | HJ10: 0 | HK10: 0 | HL10: 0 | HM10: 250 | HN10: 350 | HO10: 0 | HP10: 1080 | HQ10: 240 | HR10: 1000 | HS10: 0 | HT10: 0 | HU10: 4 | HV10: 0 | HW10: 0 | HX10: 0 | HY10: 2945 | HZ10: 0 | IA10: 0 | IB10: 0 | IC10: 0 | ID10: 0 | IE10: 0 | IF10: 32250 | IG10: 0 | IH10: 180 | II10: 0 | IJ10: 0 | IK10: 7200 | IL10: 0 | IM10: 400 | IN10: 3000 | IO10: 0 | IP10: 1350 | IQ10: 33 | IR10: 4200 | IS10: 2500 | IT10: 2010 | IU10: 2509 | IV10: 400 | IW10: 0 | IX10: 0 | IY10: 14200 | IZ10: 0 | JA10: 4500 | JB10: 0 | JC10: 0 | JD10: 0 | JE10: 4625 | JF10: 0 | JG10: 0 | JH10: 0 | JI10: 0 | JJ10: 0 | JK10: 150 | JL10: 350 | JM10: 0 | JN10: 1020 | JO10: 0 | JP10: 1200 | JQ10: 0 | JR10: 0 | JS10: 175 | JT10: 0 | JU10: 0 | JV10: 0 | JW10: 1300 | JX10: 0 | JY10: 0 | JZ10: 0 | KA10: 0 | KB10: 0 | KC10: 0 | KD10: 32175 | KE10: 0 | KF10: 0 | KG10: 0 | KH10: 0 | KI10: 6400 | KJ10: 0 | KK10: 200 | KL10: 2480 | KM10: 0 | KN10: 1350 | KO10: 40 | KP10: 4200 | KQ10: 2500 | KR10: 540 | KS10: 3346 | KT10: 600 | KU10: 0 | KV10: 0 | KW10: 16000 | KX10: 0 | KY10: 3000 | KZ10: 0 | LA10: 0 | LB10: 0 | LC10: 4070 | LD10: 0 | LE10: 0 | LF10: 0 | LG10: 0 | LH10: 0 | LI10: 150 | LJ10: 350 | LK10: 0 | LL10: 870 | LM10: 0 | LN10: 800 | LO10: 0 | LP10: 0 | LQ10: 175 | LR10: 0 | LS10: 0 | LT10: 0 | LU10: 1336 | LV10: 0 | LW10: 0 | LX10: 50 | LY10: 0 | LZ10: 0 | MA10: 0 | MB10: 38500 | MC10: 0 | MD10: 0 | ME10: 0 | MF10: 0 | MG10: 7200 | MH10: 0 | MI10: 180 | MJ10: 2400 | MK10: 0 | ML10: 1350 | MM10: 120 | MN10: 4500 | MO10: 2500 | MP10: 540 | MQ10: 3262 | MR10: 600 | MS10: 0 | MT10: 0 | MU10: 17500 | MV10: 0 | MW10: 3000 | MX10: 0 | MY10: 0 | MZ10: 0 | NA10: 1700 | NB10: 0 | NC10: 0 | ND10: 0 | NE10: 0 | NF10: 0 | NG10: 175 | NH10: 0 | NI10: 0 | NJ10: 750 | NK10: 0 | NL10: 800 | NM10: 0 | NN10: 0 | NO10: 175 | NP10: 0 | NQ10: 0 | NR10: 0 | NS10: 1314 | NT10: 0 | NU10: 0 | NV10: 75 | NW10: 0 | NX10: 0 | NY10: 0 | NZ10: 39000 | OA10: 0 | OB10: 0 | OC10: 0 | OD10: 0 | OE10: 9000 | OF10: 0 | OG10: 160 | OH10: 108 | OI10: 0 | OJ10: 1350 | OK10: 200 | OL10: 3000 | OM10: 2500 | ON10: 30 | OO10: 3262 | OP10: 600 | OQ10: 0 | OR10: 0 | OS10: 17225 | OT10: 0 | OU10: 9800 | OV10: 0 | OW10: 0 | OX10: 0 | OY10: 1700 | OZ10: 0 | PA10: 0 | PB10: 0 | PC10: 0 | PD10: 0 | PE10: 250 | PF10: 0 | PG10: 0 | PH10: 0 | PI10: 0 | PJ10: 800 | PK10: 0 | PL10: 0 | PM10: 0 | PN10: 0 | PO10: 0 | PP10: 0 | PQ10: 1211 | PR10: 0 | PS10: 0 | PT10: 0 | PU10: 0 | PV10: 0 | PW10: 0 | PX10: 41005 | PY10: 0 | PZ10: 0 | QA10: 0 | QB10: 0 | QC10: 7503 | QD10: 0 | QE10: 201 | QF10: 0 | QG10: 0 | QH10: 1250 | QI10: 0 | QJ10: 3001 | QK10: 2501 | QL10: 30 | QM10: 2752 | QN10: 599 | QO10: 0 | QP10: 0 | QQ10: 16000 | QR10: 0 | QS10: 8797 | QT10: 0 | QU10: 0 | QV10: 0 | QW10: 1400 | QX10: 0 | QY10: 0 | QZ10: 0 | RA10: 0 | RB10: 0 | RC10: 326 | RD10: 0 | RE10: 0 | RF10: 0 | RG10: 0 | RH10: 799 | RI10: 0 | RJ10: 0 | RK10: 0 | RL10: 0 | RM10: 0 | RN10: 0 | RO10: 0 | RP10: 0 | RQ10: 0 | RR10: 0 | RS10: 0 | RT10: 0 | RU10: 0 | RV10: 0 | RW10: 0 | RX10: 0 | RY10: 0 | RZ10: 0 | SA10: 0 | SB10: 0 | SC10: 0 | SD10: 0 | SE10: 0 | SF10: 0 | SG10: 0 | SH10: 0 | SI10: 0 | SJ10: 0 | SK10: 0 | SL10: 0 | SM10: 0 | SN10: 0 | SO10: 0 | SP10: 0 | SQ10: 0 | SR10: 0 | SS10: 0 | ST10: 0 | SU10: 0 | SV10: 0 | SW10: 0 | SX10: 0 | SY10: 0 | SZ10: 0 | TA10: 0 | TB10: 0 | TC10: 0 | TD10: 0 | TE10: 0 | TF10: 0 | TG10: 0 | TH10: 0 | TI10: 0 | TJ10: 0 | TK10: 0 | TL10: 0 | TM10: 0 | TN10: 0 | TO10: 0 | TP10: 0 | TQ10: 0 | TR10: 0 | TS10: 0 | TT10: 0 | TU10: 0 | TV10: 0 | TW10: 0 | TX10: 0 | TY10: 0 | TZ10: 0 | UA10: 0 | UB10: 0 | UC10: 0 | UD10: 0 | UE10: 0 | UF10: 0 | UG10: 0 | UH10: 0 | UI10: 0 | UJ10: 0 | UK10: 0 | UL10: 0 | UM10: 0 | UN10: 0 | UO10: 0 | UP10: 0 | UQ10: 0 | UR10: 0 | US10: 0 | UT10: 0 | UU10: 0 | UV10: 0 | UW10: 0 | UX10: 0 | UY10: 0 | UZ10: 0 | VA10: 0 | VB10: 0 | VC10: 0 | VD10: 0
A11: Kereviz(Kök) | B11: ton | C11: =HLOOKUP($A$1,$AA$3:$BX$243,ROW()-2,FALSE) -> 53 | D11: 5 | E11: =HLOOKUP($A$1,$BY$3:$DV$243,ROW()-2,FALSE) -> 60 | F11: 5 | G11: =HLOOKUP($A$1,$DW$3:$FT$243,ROW()-2,FALSE) -> 60 | H11: 4 | I11: =HLOOKUP($A$1,$FU$3:$HR$243,ROW()-2,FALSE) -> 70 | J11: 4 | K11: =HLOOKUP($A$1,$HS$3:$JP$243,ROW()-2,FALSE) -> 70 | L11: 4 | M11: =HLOOKUP($A$1,$JQ$3:$LN$243,ROW()-2,FALSE) -> 75 | N11: 4 | O11: =HLOOKUP($A$1,$LO$3:$NL$243,ROW()-2,FALSE) -> 75 | P11: 4 | Q11: =HLOOKUP($A$1,$NM$3:$PJ$243,ROW()-2,FALSE) -> 75 | R11: 4 | S11: =HLOOKUP($A$1,$PK$3:$RH$243,ROW()-2,FALSE) -> 75 | T11: 3 | U11: =HLOOKUP($A$1,$RI$3:$TF$243,ROW()-2,FALSE) -> 75 | V11: 3 | W11: =HLOOKUP($A$1,$TG$3:$VD$243,ROW()-2,FALSE) -> 0 | X11: - | Y11: Sarayköy | Z11: 330 | AA11: 0 | AB11: 0 | AC11: 0 | AD11: 0 | AE11: 0 | AF11: 0 | AG11: 0 | AH11: 0 | AI11: 0 | AJ11: 0 | AK11: 0 | AL11: 0 | AM11: 0 | AN11: 0 | AO11: 0 | AP11: 0 | AQ11: 0 | AR11: 0 | AS11: 224 | AT11: 5 | AU11: 5 | AV11: 0 | AW11: 0 | AX11: 125 | AY11: 0 | AZ11: 53 | BA11: 12 | BB11: 0 | BC11: 8 | BD11: 12 | BE11: 0 | BF11: 0 | BG11: 0 | BH11: 0 | BI11: 14 | BJ11: 0 | BK11: 0 | BL11: 25 | BM11: 0 | BN11: 0 | BO11: 0 | BP11: 300 | BQ11: 0 | BR11: 14 | BS11: 44 | BT11: 0 | BU11: 450 | BV11: 3 | BW11: 28 | BX11: 8 | BY11: 0 | BZ11: 0 | CA11: 0 | CB11: 0 | CC11: 0 | CD11: 0 | CE11: 0 | CF11: 0 | CG11: 0 | CH11: 0 | CI11: 0 | CJ11: 0 | CK11: 0 | CL11: 0 | CM11: 0 | CN11: 0 | CO11: 0 | CP11: 0 | CQ11: 224 | CR11: 5 | CS11: 5 | CT11: 0 | CU11: 0 | CV11: 150 | CW11: 0 | CX11: 60 | CY11: 12 | CZ11: 0 | DA11: 16 | DB11: 10 | DC11: 0 | DD11: 0 | DE11: 0 | DF11: 0 | DG11: 12 | DH11: 0 | DI11: 0 | DJ11: 77 | DK11: 0 | DL11: 0 | DM11: 0 | DN11: 330 | DO11: 0 | DP11: 0 | DQ11: 42 | DR11: 0 | DS11: 0 | DT11: 3 | DU11: 25 | DV11: 10 | DW11: 0 | DX11: 0 | DY11: 0 | DZ11: 0 | EA11: 0 | EB11: 0 | EC11: 0 | ED11: 0 | EE11: 0 | EF11: 0 | EG11: 0 | EH11: 0 | EI11: 0 | EJ11: 0 | EK11: 0 | EL11: 0 | EM11: 0 | EN11: 0 | EO11: 224 | EP11: 5 | EQ11: 5 | ER11: 0 | ES11: 0 | ET11: 162 | EU11: 0 | EV11: 60 | EW11: 12 | EX11: 0 | EY11: 19 | EZ11: 10 | FA11: 0 | FB11: 0 | FC11: 0 | FD11: 0 | FE11: 10 | FF11: 0 | FG11: 0 | FH11: 23 | FI11: 0 | FJ11: 0 | FK11: 0 | FL11: 300 | FM11: 0 | FN11: 0 | FO11: 42 | FP11: 0 | FQ11: 0 | FR11: 2 | FS11: 5 | FT11: 10 | FU11: 0 | FV11: 0 | FW11: 0 | FX11: 0 | FY11: 0 | FZ11: 0 | GA11: 0 | GB11: 0 | GC11: 0 | GD11: 0 | GE11: 0 | GF11: 0 | GG11: 0 | GH11: 0 | GI11: 0 | GJ11: 0 | GK11: 0 | GL11: 0 | GM11: 210 | GN11: 0 | GO11: 8 | GP11: 0 | GQ11: 0 | GR11: 170 | GS11: 0 | GT11: 70 | GU11: 7 | GV11: 0 | GW11: 19 | GX11: 10 | GY11: 0 | GZ11: 0 | HA11: 0 | HB11: 0 | HC11: 10 | HD11: 0 | HE11: 0 | HF11: 20 | HG11: 0 | HH11: 0 | HI11: 0 | HJ11: 225 | HK11: 0 | HL11: 0 | HM11: 44 | HN11: 0 | HO11: 0 | HP11: 2 | HQ11: 5 | HR11: 10 | HS11: 0 | HT11: 0 | HU11: 0 | HV11: 0 | HW11: 0 | HX11: 0 | HY11: 0 | HZ11: 0 | IA11: 0 | IB11: 0 | IC11: 0 | ID11: 0 | IE11: 0 | IF11: 0 | IG11: 0 | IH11: 0 | II11: 0 | IJ11: 0 | IK11: 220 | IL11: 0 | IM11: 8 | IN11: 0 | IO11: 0 | IP11: 170 | IQ11: 0 | IR11: 70 | IS11: 7 | IT11: 0 | IU11: 8 | IV11: 10 | IW11: 0 | IX11: 0 | IY11: 0 | IZ11: 0 | JA11: 10 | JB11: 0 | JC11: 0 | JD11: 20 | JE11: 0 | JF11: 0 | JG11: 0 | JH11: 160 | JI11: 0 | JJ11: 0 | JK11: 44 | JL11: 0 | JM11: 0 | JN11: 1 | JO11: 9 | JP11: 10 | JQ11: 0 | JR11: 0 | JS11: 0 | JT11: 0 | JU11: 0 | JV11: 0 | JW11: 0 | JX11: 0 | JY11: 0 | JZ11: 0 | KA11: 0 | KB11: 0 | KC11: 0 | KD11: 0 | KE11: 0 | KF11: 0 | KG11: 0 | KH11: 0 | KI11: 220 | KJ11: 0 | KK11: 13 | KL11: 0 | KM11: 0 | KN11: 170 | KO11: 0 | KP11: 75 | KQ11: 7 | KR11: 0 | KS11: 8 | KT11: 10 | KU11: 0 | KV11: 0 | KW11: 0 | KX11: 0 | KY11: 10 | KZ11: 0 | LA11: 0 | LB11: 16 | LC11: 0 | LD11: 0 | LE11: 0 | LF11: 125 | LG11: 0 | LH11: 0 | LI11: 44 | LJ11: 0 | LK11: 0 | LL11: 1 | LM11: 9 | LN11: 20 | LO11: 0 | LP11: 0 | LQ11: 0 | LR11: 0 | LS11: 0 | LT11: 0 | LU11: 0 | LV11: 0 | LW11: 0 | LX11: 0 | LY11: 0 | LZ11: 0 | MA11: 0 | MB11: 0 | MC11: 0 | MD11: 0 | ME11: 0 | MF11: 0 | MG11: 100 | MH11: 0 | MI11: 13 | MJ11: 0 | MK11: 0 | ML11: 170 | MM11: 0 | MN11: 75 | MO11: 7 | MP11: 0 | MQ11: 8 | MR11: 10 | MS11: 0 | MT11: 0 | MU11: 0 | MV11: 0 | MW11: 10 | MX11: 0 | MY11: 0 | MZ11: 16 | NA11: 0 | NB11: 0 | NC11: 0 | ND11: 140 | NE11: 0 | NF11: 0 | NG11: 44 | NH11: 0 | NI11: 0 | NJ11: 1 | NK11: 9 | NL11: 0 | NM11: 0 | NN11: 0 | NO11: 0 | NP11: 0 | NQ11: 0 | NR11: 0 | NS11: 0 | NT11: 0 | NU11: 0 | NV11: 0 | NW11: 0 | NX11: 0 | NY11: 0 | NZ11: 0 | OA11: 0 | OB11: 0 | OC11: 0 | OD11: 0 | OE11: 110 | OF11: 0 | OG11: 25 | OH11: 0 | OI11: 0 | OJ11: 170 | OK11: 0 | OL11: 75 | OM11: 7 | ON11: 0 | OO11: 27 | OP11: 10 | OQ11: 0 | OR11: 0 | OS11: 0 | OT11: 0 | OU11: 0 | OV11: 0 | OW11: 0 | OX11: 16 | OY11: 0 | OZ11: 0 | PA11: 0 | PB11: 150 | PC11: 0 | PD11: 0 | PE11: 46 | PF11: 0 | PG11: 0 | PH11: 0 | PI11: 9 | PJ11: 0 | PK11: 0 | PL11: 0 | PM11: 0 | PN11: 0 | PO11: 0 | PP11: 0 | PQ11: 0 | PR11: 0 | PS11: 0 | PT11: 0 | PU11: 0 | PV11: 0 | PW11: 0 | PX11: 0 | PY11: 0 | PZ11: 0 | QA11: 0 | QB11: 0 | QC11: 110 | QD11: 0 | QE11: 0 | QF11: 0 | QG11: 0 | QH11: 75 | QI11: 0 | QJ11: 75 | QK11: 7 | QL11: 0 | QM11: 27 | QN11: 10 | QO11: 0 | QP11: 0 | QQ11: 0 | QR11: 0 | QS11: 0 | QT11: 0 | QU11: 0 | QV11: 16 | QW11: 0 | QX11: 0 | QY11: 0 | QZ11: 160 | RA11: 0 | RB11: 0 | RC11: 46 | RD11: 0 | RE11: 0 | RF11: 0 | RG11: 9 | RH11: 0 | RI11: 0 | RJ11: 0 | RK11: 0 | RL11: 0 | RM11: 0 | RN11: 0 | RO11: 0 | RP11: 0 | RQ11: 0 | RR11: 0 | RS11: 0 | RT11: 0 | RU11: 0 | RV11: 0 | RW11: 0 | RX11: 0 | RY11: 0 | RZ11: 0 | SA11: 120 | SB11: 0 | SC11: 0 | SD11: 0 | SE11: 0 | SF11: 50 | SG11: 0 | SH11: 75 | SI11: 7 | SJ11: 0 | SK11: 27 | SL11: 5 | SM11: 0 | SN11: 0 | SO11: 0 | SP11: 0 | SQ11: 0 | SR11: 0 | SS11: 0 | ST11: 16 | SU11: 0 | SV11: 0 | SW11: 0 | SX11: 140 | SY11: 0 | SZ11: 0 | TA11: 44 | TB11: 0 | TC11: 0 | TD11: 0 | TE11: 9 | TF11: 0 | TG11: 0 | TH11: 0 | TI11: 0 | TJ11: 0 | TK11: 0 | TL11: 0 | TM11: 0 | TN11: 0 | TO11: 0 | TP11: 0 | TQ11: 0 | TR11: 0 | TS11: 0 | TT11: 0 | TU11: 0 | TV11: 0 | TW11: 0 | TX11: 0 | TY11: 110 | TZ11: 0 | UA11: 0 | UB11: 0 | UC11: 0 | UD11: 50 | UE11: 0 | UF11: 0 | UG11: 6 | UH11: 0 | UI11: 27 | UJ11: 2 | UK11: 0 | UL11: 0 | UM11: 0 | UN11: 0 | UO11: 0 | UP11: 0 | UQ11: 0 | UR11: 16 | US11: 0 | UT11: 0 | UU11: 0 | UV11: 120 | UW11: 0 | UX11: 0 | UY11: 44 | UZ11: 0 | VA11: 0 | VB11: 0 | VC11: 9 | VD11: 0
A12: Kekik | B12: ton | C12: =HLOOKUP($A$1,$AA$3:$BX$243,ROW()-2,FALSE) -> 238 | D12: 7 | E12: =HLOOKUP($A$1,$BY$3:$DV$243,ROW()-2,FALSE) -> 188 | F12: 7 | G12: =HLOOKUP($A$1,$DW$3:$FT$243,ROW()-2,FALSE) -> 175 | H12: 7 | I12: =HLOOKUP($A$1,$FU$3:$HR$243,ROW()-2,FALSE) -> 180 | J12: 7 | K12: =HLOOKUP($A$1,$HS$3:$JP$243,ROW()-2,FALSE) -> 165 | L12: 7 | M12: =HLOOKUP($A$1,$JQ$3:$LN$243,ROW()-2,FALSE) -> 75 | N12: 7 | O12: =HLOOKUP($A$1,$LO$3:$NL$243,ROW()-2,FALSE) -> 63 | P12: 7 | Q12: =HLOOKUP($A$1,$NM$3:$PJ$243,ROW()-2,FALSE) -> 31 | R12: 10 | S12: =HLOOKUP($A$1,$PK$3:$RH$243,ROW()-2,FALSE) -> 100 | T12: 9 | U12: =HLOOKUP($A$1,$RI$3:$TF$243,ROW()-2,FALSE) -> 125 | V12: 9 | W12: =HLOOKUP($A$1,$TG$3:$VD$243,ROW()-2,FALSE) -> 100 | X12: 9 | Y12: Pamukkale | Z12: 5000 | AA12: 132 | AB12: 0 | AC12: 72 | AD12: 1200 | AE12: 0 | AF12: 0 | AG12: 8 | AH12: 20 | AI12: 0 | AJ12: 2605 | AK12: 4050 | AL12: 24 | AM12: 24 | AN12: 0 | AO12: 18 | AP12: 0 | AQ12: 48 | AR12: 0 | AS12: 0 | AT12: 6 | AU12: 0 | AV12: 8457 | AW12: 25 | AX12: 0 | AY12: 18 | AZ12: 238 | BA12: 0 | BB12: 2 | BC12: 0 | BD12: 0 | BE12: 0 | BF12: 0 | BG12: 0 | BH12: 4 | BI12: 2 | BJ12: 0 | BK12: 0 | BL12: 2 | BM12: 0 | BN12: 1 | BO12: 4284 | BP12: 11 | BQ12: 0 | BR12: 1 | BS12: 0 | BT12: 0 | BU12: 384 | BV12: 1 | BW12: 3 | BX12: 0 | BY12: 62 | BZ12: 0 | CA12: 72 | CB12: 1200 | CC12: 0 | CD12: 0 | CE12: 0 | CF12: 22 | CG12: 0 | CH12: 1378 | CI12: 2904 | CJ12: 14 | CK12: 18 | CL12: 0 | CM12: 0 | CN12: 0 | CO12: 36 | CP12: 0 | CQ12: 0 | CR12: 6 | CS12: 0 | CT12: 4645 | CU12: 14 | CV12: 0 | CW12: 14 | CX12: 188 | CY12: 0 | CZ12: 2 | DA12: 0 | DB12: 0 | DC12: 0 | DD12: 0 | DE12: 0 | DF12: 5 | DG12: 1 | DH12: 0 | DI12: 0 | DJ12: 0 | DK12: 0 | DL12: 0 | DM12: 5000 | DN12: 2 | DO12: 0 | DP12: 0 | DQ12: 0 | DR12: 0 | DS12: 384 | DT12: 1 | DU12: 2 | DV12: 0 | DW12: 62 | DX12: 0 | DY12: 72 | DZ12: 900 | EA12: 0 | EB12: 0 | EC12: 0 | ED12: 20 | EE12: 0 | EF12: 858 | EG12: 2641 | EH12: 12 | EI12: 12 | EJ12: 0 | EK12: 0 | EL12: 0 | EM12: 36 | EN12: 0 | EO12: 0 | EP12: 3 | EQ12: 0 | ER12: 4226 | ES12: 14 | ET12: 0 | EU12: 10 | EV12: 175 | EW12: 0 | EX12: 2 | EY12: 0 | EZ12: 0 | FA12: 0 | FB12: 0 | FC12: 0 | FD12: 5 | FE12: 1 | FF12: 0 | FG12: 0 | FH12: 0 | FI12: 0 | FJ12: 0 | FK12: 4798 | FL12: 0 | FM12: 0 | FN12: 0 | FO12: 0 | FP12: 0 | FQ12: 384 | FR12: 0 | FS12: 1 | FT12: 0 | FU12: 48 | FV12: 0 | FW12: 39 | FX12: 900 | FY12: 0 | FZ12: 0 | GA12: 0 | GB12: 19 | GC12: 0 | GD12: 858 | GE12: 1500 | GF12: 15 | GG12: 12 | GH12: 0 | GI12: 0 | GJ12: 0 | GK12: 38 | GL12: 0 | GM12: 0 | GN12: 2 | GO12: 0 | GP12: 4056 | GQ12: 14 | GR12: 0 | GS12: 9 | GT12: 180 | GU12: 0 | GV12: 2 | GW12: 0 | GX12: 0 | GY12: 0 | GZ12: 0 | HA12: 0 | HB12: 6 | HC12: 1 | HD12: 0 | HE12: 0 | HF12: 0 | HG12: 0 | HH12: 0 | HI12: 4633 | HJ12: 0 | HK12: 0 | HL12: 0 | HM12: 0 | HN12: 0 | HO12: 384 | HP12: 0 | HQ12: 0 | HR12: 0 | HS12: 37 | HT12: 0 | HU12: 39 | HV12: 810 | HW12: 1 | HX12: 0 | HY12: 0 | HZ12: 10 | IA12: 0 | IB12: 858 | IC12: 1632 | ID12: 30 | IE12: 12 | IF12: 0 | IG12: 0 | IH12: 0 | II12: 38 | IJ12: 0 | IK12: 0 | IL12: 1 | IM12: 0 | IN12: 3947 | IO12: 3 | IP12: 0 | IQ12: 9 | IR12: 165 | IS12: 0 | IT12: 0 | IU12: 0 | IV12: 0 | IW12: 0 | IX12: 0 | IY12: 0 | IZ12: 5 | JA12: 4 | JB12: 0 | JC12: 0 | JD12: 0 | JE12: 0 | JF12: 0 | JG12: 4872 | JH12: 4 | JI12: 0 | JJ12: 0 | JK12: 0 | JL12: 0 | JM12: 360 | JN12: 0 | JO12: 0 | JP12: 0 | JQ12: 37 | JR12: 0 | JS12: 4 | JT12: 675 | JU12: 1 | JV12: 0 | JW12: 0 | JX12: 6 | JY12: 0 | JZ12: 1072 | KA12: 1380 | KB12: 30 | KC12: 12 | KD12: 0 | KE12: 0 | KF12: 0 | KG12: 25 | KH12: 0 | KI12: 0 | KJ12: 0 | KK12: 0 | KL12: 2736 | KM12: 0 | KN12: 0 | KO12: 7 | KP12: 75 | KQ12: 0 | KR12: 0 | KS12: 0 | KT12: 0 | KU12: 0 | KV12: 0 | KW12: 0 | KX12: 0 | KY12: 0 | KZ12: 0 | LA12: 0 | LB12: 0 | LC12: 0 | LD12: 0 | LE12: 4568 | LF12: 4 | LG12: 0 | LH12: 0 | LI12: 0 | LJ12: 0 | LK12: 240 | LL12: 0 | LM12: 0 | LN12: 0 | LO12: 37 | LP12: 0 | LQ12: 10 | LR12: 529 | LS12: 1 | LT12: 0 | LU12: 0 | LV12: 5 | LW12: 0 | LX12: 1288 | LY12: 1200 | LZ12: 30 | MA12: 12 | MB12: 0 | MC12: 0 | MD12: 0 | ME12: 25 | MF12: 0 | MG12: 0 | MH12: 0 | MI12: 0 | MJ12: 2376 | MK12: 0 | ML12: 0 | MM12: 3 | MN12: 63 | MO12: 0 | MP12: 0 | MQ12: 0 | MR12: 0 | MS12: 0 | MT12: 0 | MU12: 0 | MV12: 0 | MW12: 2 | MX12: 0 | MY12: 0 | MZ12: 0 | NA12: 0 | NB12: 0 | NC12: 4784 | ND12: 4 | NE12: 0 | NF12: 0 | NG12: 0 | NH12: 0 | NI12: 222 | NJ12: 0 | NK12: 0 | NL12: 0 | NM12: 37 | NN12: 0 | NO12: 4 | NP12: 625 | NQ12: 1 | NR12: 0 | NS12: 0 | NT12: 2 | NU12: 0 | NV12: 1038 | NW12: 1024 | NX12: 30 | NY12: 4 | NZ12: 0 | OA12: 0 | OB12: 0 | OC12: 0 | OD12: 0 | OE12: 0 | OF12: 0 | OG12: 0 | OH12: 2268 | OI12: 0 | OJ12: 0 | OK12: 5 | OL12: 31 | OM12: 0 | ON12: 0 | OO12: 0 | OP12: 0 | OQ12: 350 | OR12: 0 | OS12: 0 | OT12: 0 | OU12: 0 | OV12: 0 | OW12: 6400 | OX12: 0 | OY12: 0 | OZ12: 0 | PA12: 519 | PB12: 4 | PC12: 0 | PD12: 2 | PE12: 0 | PF12: 0 | PG12: 222 | PH12: 0 | PI12: 0 | PJ12: 0 | PK12: 38 | PL12: 0 | PM12: 12 | PN12: 482 | PO12: 6 | PP12: 0 | PQ12: 0 | PR12: 2 | PS12: 0 | PT12: 581 | PU12: 560 | PV12: 50 | PW12: 2 | PX12: 0 | PY12: 0 | PZ12: 0 | QA12: 0 | QB12: 0 | QC12: 0 | QD12: 1 | QE12: 0 | QF12: 2164 | QG12: 7 | QH12: 0 | QI12: 5 | QJ12: 100 | QK12: 0 | QL12: 0 | QM12: 0 | QN12: 0 | QO12: 359 | QP12: 0 | QQ12: 0 | QR12: 0 | QS12: 0 | QT12: 5368 | QU12: 0 | QV12: 0 | QW12: 0 | QX12: 0 | QY12: 512 | QZ12: 4 | RA12: 0 | RB12: 0 | RC12: 0 | RD12: 0 | RE12: 221 | RF12: 0 | RG12: 0 | RH12: 0 | RI12: 39 | RJ12: 0 | RK12: 18 | RL12: 483 | RM12: 14 | RN12: 0 | RO12: 0 | RP12: 2 | RQ12: 0 | RR12: 830 | RS12: 360 | RT12: 66 | RU12: 2 | RV12: 0 | RW12: 5 | RX12: 0 | RY12: 0 | RZ12: 0 | SA12: 0 | SB12: 1 | SC12: 0 | SD12: 2160 | SE12: 7 | SF12: 0 | SG12: 4 | SH12: 125 | SI12: 0 | SJ12: 0 | SK12: 0 | SL12: 0 | SM12: 360 | SN12: 0 | SO12: 0 | SP12: 0 | SQ12: 0 | SR12: 4645 | SS12: 0 | ST12: 0 | SU12: 0 | SV12: 0 | SW12: 459 | SX12: 4 | SY12: 0 | SZ12: 0 | TA12: 0 | TB12: 0 | TC12: 222 | TD12: 0 | TE12: 0 | TF12: 0 | TG12: 39 | TH12: 0 | TI12: 18 | TJ12: 360 | TK12: 14 | TL12: 0 | TM12: 0 | TN12: 2 | TO12: 0 | TP12: 840 | TQ12: 630 | TR12: 66 | TS12: 2 | TT12: 0 | TU12: 15 | TV12: 0 | TW12: 0 | TX12: 0 | TY12: 0 | TZ12: 1 | UA12: 0 | UB12: 1800 | UC12: 7 | UD12: 0 | UE12: 4 | UF12: 100 | UG12: 0 | UH12: 0 | UI12: 0 | UJ12: 0 | UK12: 360 | UL12: 0 | UM12: 0 | UN12: 0 | UO12: 0 | UP12: 4645 | UQ12: 0 | UR12: 0 | US12: 0 | UT12: 0 | UU12: 645 | UV12: 0 | UW12: 0 | UX12: 0 | UY12: 0 | UZ12: 0 | VA12: 222 | VB12: 0 | VC12: 0 | VD12: 0
A13: Üzüm(Kurutmalık-Çekirdeksiz) | B13: ton | C13: =HLOOKUP($A$1,$AA$3:$BX$243,ROW()-2,FALSE) -> 44 | D13: 8 | E13: =HLOOKUP($A$1,$BY$3:$DV$243,ROW()-2,FALSE) -> 51 | F13: 7 | G13: =HLOOKUP($A$1,$DW$3:$FT$243,ROW()-2,FALSE) -> 56 | H13: 7 | I13: =HLOOKUP($A$1,$FU$3:$HR$243,ROW()-2,FALSE) -> 67 | J13: 7 | K13: =HLOOKUP($A$1,$HS$3:$JP$243,ROW()-2,FALSE) -> 581 | L13: 5 | M13: =HLOOKUP($A$1,$JQ$3:$LN$243,ROW()-2,FALSE) -> 663 | N13: 4 | O13: =HLOOKUP($A$1,$LO$3:$NL$243,ROW()-2,FALSE) -> 1137 | P13: 5 | Q13: =HLOOKUP($A$1,$NM$3:$PJ$243,ROW()-2,FALSE) -> 1137 | R13: 5 | S13: =HLOOKUP($A$1,$PK$3:$RH$243,ROW()-2,FALSE) -> 1020 | T13: 6 | U13: =HLOOKUP($A$1,$RI$3:$TF$243,ROW()-2,FALSE) -> 1020 | V13: 6 | W13: =HLOOKUP($A$1,$TG$3:$VD$243,ROW()-2,FALSE) -> 1200 | X13: 6 | Y13: Çal | Z13: 52303 | AA13: 288 | AB13: 0 | AC13: 7 | AD13: 4745 | AE13: 0 | AF13: 0 | AG13: 0 | AH13: 90 | AI13: 20 | AJ13: 4933 | AK13: 38308 | AL13: 0 | AM13: 0 | AN13: 0 | AO13: 821 | AP13: 0 | AQ13: 0 | AR13: 0 | AS13: 0 | AT13: 0 | AU13: 0 | AV13: 0 | AW13: 175 | AX13: 0 | AY13: 0 | AZ13: 44 | BA13: 0 | BB13: 0 | BC13: 0 | BD13: 0 | BE13: 0 | BF13: 0 | BG13: 3 | BH13: 0 | BI13: 0 | BJ13: 0 | BK13: 0 | BL13: 0 | BM13: 0 | BN13: 0 | BO13: 22 | BP13: 0 | BQ13: 0 | BR13: 0 | BS13: 0 | BT13: 0 | BU13: 0 | BV13: 0 | BW13: 0 | BX13: 0 | BY13: 264 | BZ13: 0 | CA13: 6 | CB13: 4775 | CC13: 0 | CD13: 0 | CE13: 0 | CF13: 82 | CG13: 20 | CH13: 5523 | CI13: 52303 | CJ13: 0 | CK13: 0 | CL13: 0 | CM13: 1019 | CN13: 0 | CO13: 0 | CP13: 0 | CQ13: 0 | CR13: 0 | CS13: 0 | CT13: 0 | CU13: 0 | CV13: 0 | CW13: 0 | CX13: 51 | CY13: 0 | CZ13: 0 | DA13: 0 | DB13: 0 | DC13: 0 | DD13: 0 | DE13: 3 | DF13: 0 | DG13: 0 | DH13: 0 | DI13: 0 | DJ13: 0 | DK13: 0 | DL13: 0 | DM13: 20 | DN13: 0 | DO13: 0 | DP13: 0 | DQ13: 0 | DR13: 0 | DS13: 0 | DT13: 0 | DU13: 0 | DV13: 0 | DW13: 252 | DX13: 0 | DY13: 6 | DZ13: 2747 | EA13: 0 | EB13: 0 | EC13: 0 | ED13: 89 | EE13: 21 | EF13: 7219 | EG13: 26336 | EH13: 0 | EI13: 0 | EJ13: 0 | EK13: 985 | EL13: 0 | EM13: 0 | EN13: 0 | EO13: 0 | EP13: 0 | EQ13: 0 | ER13: 0 | ES13: 0 | ET13: 0 | EU13: 0 | EV13: 56 | EW13: 0 | EX13: 0 | EY13: 0 | EZ13: 0 | FA13: 0 | FB13: 0 | FC13: 3 | FD13: 0 | FE13: 0 | FF13: 0 | FG13: 0 | FH13: 0 | FI13: 0 | FJ13: 0 | FK13: 22 | FL13: 0 | FM13: 0 | FN13: 0 | FO13: 0 | FP13: 0 | FQ13: 0 | FR13: 0 | FS13: 0 | FT13: 0 | FU13: 162 | FV13: 0 | FW13: 8 | FX13: 5245 | FY13: 0 | FZ13: 0 | GA13: 0 | GB13: 130 | GC13: 22 | GD13: 14073 | GE13: 56257 | GF13: 0 | GG13: 0 | GH13: 0 | GI13: 1188 | GJ13: 0 | GK13: 0 | GL13: 0 | GM13: 0 | GN13: 0 | GO13: 0 | GP13: 0 | GQ13: 0 | GR13: 0 | GS13: 0 | GT13: 67 | GU13: 0 | GV13: 0 | GW13: 0 | GX13: 0 | GY13: 0 | GZ13: 0 | HA13: 3 | HB13: 0 | HC13: 0 | HD13: 0 | HE13: 0 | HF13: 0 | HG13: 0 | HH13: 0 | HI13: 29 | HJ13: 0 | HK13: 0 | HL13: 0 | HM13: 0 | HN13: 0 | HO13: 0 | HP13: 0 | HQ13: 0 | HR13: 0 | HS13: 186 | HT13: 0 | HU13: 7 | HV13: 4232 | HW13: 0 | HX13: 0 | HY13: 0 | HZ13: 113 | IA13: 22 | IB13: 11355 | IC13: 49216 | ID13: 0 | IE13: 0 | IF13: 0 | IG13: 1450 | IH13: 0 | II13: 0 | IJ13: 0 | IK13: 0 | IL13: 0 | IM13: 0 | IN13: 14 | IO13: 0 | IP13: 0 | IQ13: 0 | IR13: 581 | IS13: 0 | IT13: 0 | IU13: 0 | IV13: 0 | IW13: 0 | IX13: 0 | IY13: 3 | IZ13: 0 | JA13: 0 | JB13: 0 | JC13: 0 | JD13: 0 | JE13: 0 | JF13: 0 | JG13: 25 | JH13: 0 | JI13: 0 | JJ13: 0 | JK13: 0 | JL13: 0 | JM13: 0 | JN13: 0 | JO13: 0 | JP13: 0 | JQ13: 100 | JR13: 0 | JS13: 130 | JT13: 2600 | JU13: 0 | JV13: 0 | JW13: 0 | JX13: 121 | JY13: 30 | JZ13: 12210 | KA13: 48250 | KB13: 0 | KC13: 0 | KD13: 0 | KE13: 520 | KF13: 0 | KG13: 0 | KH13: 0 | KI13: 0 | KJ13: 0 | KK13: 0 | KL13: 12 | KM13: 0 | KN13: 0 | KO13: 8 | KP13: 663 | KQ13: 0 | KR13: 0 | KS13: 0 | KT13: 0 | KU13: 0 | KV13: 0 | KW13: 0 | KX13: 0 | KY13: 0 | KZ13: 0 | LA13: 0 | LB13: 0 | LC13: 0 | LD13: 0 | LE13: 27 | LF13: 0 | LG13: 0 | LH13: 0 | LI13: 0 | LJ13: 0 | LK13: 0 | LL13: 0 | LM13: 0 | LN13: 0 | LO13: 200 | LP13: 0 | LQ13: 455 | LR13: 4563 | LS13: 0 | LT13: 0 | LU13: 0 | LV13: 121 | LW13: 0 | LX13: 12183 | LY13: 59546 | LZ13: 0 | MA13: 0 | MB13: 0 | MC13: 1559 | MD13: 0 | ME13: 0 | MF13: 0 | MG13: 0 | MH13: 0 | MI13: 0 | MJ13: 15 | MK13: 0 | ML13: 0 | MM13: 8 | MN13: 1137 | MO13: 0 | MP13: 0 | MQ13: 0 | MR13: 0 | MS13: 0 | MT13: 0 | MU13: 0 | MV13: 0 | MW13: 0 | MX13: 0 | MY13: 0 | MZ13: 0 | NA13: 0 | NB13: 0 | NC13: 27 | ND13: 0 | NE13: 0 | NF13: 0 | NG13: 0 | NH13: 0 | NI13: 0 | NJ13: 0 | NK13: 0 | NL13: 0 | NM13: 567 | NN13: 0 | NO13: 431 | NP13: 4563 | NQ13: 0 | NR13: 0 | NS13: 0 | NT13: 125 | NU13: 0 | NV13: 15637 | NW13: 43273 | NX13: 0 | NY13: 0 | NZ13: 0 | OA13: 1904 | OB13: 0 | OC13: 0 | OD13: 0 | OE13: 0 | OF13: 13 | OG13: 0 | OH13: 11 | OI13: 0 | OJ13: 0 | OK13: 8 | OL13: 1137 | OM13: 0 | ON13: 0 | OO13: 0 | OP13: 0 | OQ13: 0 | OR13: 0 | OS13: 0 | OT13: 0 | OU13: 0 | OV13: 0 | OW13: 0 | OX13: 0 | OY13: 0 | OZ13: 0 | PA13: 43 | PB13: 0 | PC13: 0 | PD13: 0 | PE13: 0 | PF13: 0 | PG13: 0 | PH13: 0 | PI13: 0 | PJ13: 0 | PK13: 1049 | PL13: 0 | PM13: 455 | PN13: 4494 | PO13: 0 | PP13: 0 | PQ13: 0 | PR13: 132 | PS13: 0 | PT13: 16500 | PU13: 46388 | PV13: 0 | PW13: 0 | PX13: 0 | PY13: 1786 | PZ13: 0 | QA13: 0 | QB13: 0 | QC13: 0 | QD13: 14 | QE13: 0 | QF13: 15 | QG13: 150 | QH13: 0 | QI13: 7 | QJ13: 1020 | QK13: 0 | QL13: 0 | QM13: 0 | QN13: 0 | QO13: 0 | QP13: 0 | QQ13: 0 | QR13: 0 | QS13: 0 | QT13: 0 | QU13: 0 | QV13: 0 | QW13: 0 | QX13: 0 | QY13: 45 | QZ13: 0 | RA13: 0 | RB13: 0 | RC13: 0 | RD13: 0 | RE13: 0 | RF13: 0 | RG13: 0 | RH13: 0 | RI13: 1631 | RJ13: 0 | RK13: 488 | RL13: 4550 | RM13: 0 | RN13: 0 | RO13: 0 | RP13: 88 | RQ13: 0 | RR13: 16500 | RS13: 45440 | RT13: 0 | RU13: 0 | RV13: 0 | RW13: 2234 | RX13: 0 | RY13: 0 | RZ13: 0 | SA13: 0 | SB13: 8 | SC13: 0 | SD13: 15 | SE13: 127 | SF13: 0 | SG13: 9 | SH13: 1020 | SI13: 0 | SJ13: 0 | SK13: 0 | SL13: 0 | SM13: 0 | SN13: 0 | SO13: 0 | SP13: 0 | SQ13: 0 | SR13: 0 | SS13: 0 | ST13: 0 | SU13: 0 | SV13: 0 | SW13: 45 | SX13: 0 | SY13: 0 | SZ13: 0 | TA13: 0 | TB13: 0 | TC13: 0 | TD13: 0 | TE13: 0 | TF13: 0 | TG13: 1631 | TH13: 0 | TI13: 488 | TJ13: 4225 | TK13: 0 | TL13: 0 | TM13: 0 | TN13: 88 | TO13: 0 | TP13: 16375 | TQ13: 38400 | TR13: 0 | TS13: 0 | TT13: 0 | TU13: 2369 | TV13: 0 | TW13: 0 | TX13: 0 | TY13: 0 | TZ13: 10 | UA13: 0 | UB13: 15 | UC13: 150 | UD13: 0 | UE13: 8 | UF13: 1200 | UG13: 0 | UH13: 0 | UI13: 0 | UJ13: 0 | UK13: 0 | UL13: 0 | UM13: 0 | UN13: 0 | UO13: 0 | UP13: 0 | UQ13: 0 | UR13: 0 | US13: 0 | UT13: 0 | UU13: 45 | UV13: 0 | UW13: 0 | UX13: 0 | UY13: 0 | UZ13: 0 | VA13: 0 | VB13: 0 | VC13: 0 | VD13: 0
A14: Turp(Kırmızı) | B14: ton | C14: =HLOOKUP($A$1,$AA$3:$BX$243,ROW()-2,FALSE) -> 11 | D14: 9 | E14: =HLOOKUP($A$1,$BY$3:$DV$243,ROW()-2,FALSE) -> 12 | F14: 7 | G14: =HLOOKUP($A$1,$DW$3:$FT$243,ROW()-2,FALSE) -> 12 | H14: 9 | I14: =HLOOKUP($A$1,$FU$3:$HR$243,ROW()-2,FALSE) -> 12 | J14: 11 | K14: =HLOOKUP($A$1,$HS$3:$JP$243,ROW()-2,FALSE) -> 12 | L14: 11 | M14: =HLOOKUP($A$1,$JQ$3:$LN$243,ROW()-2,FALSE) -> 12 | N14: 12 | O14: =HLOOKUP($A$1,$LO$3:$NL$243,ROW()-2,FALSE) -> 10 | P14: 11 | Q14: =HLOOKUP($A$1,$NM$3:$PJ$243,ROW()-2,FALSE) -> 10 | R14: 12 | S14: =HLOOKUP($A$1,$PK$3:$RH$243,ROW()-2,FALSE) -> 10 | T14: 12 | U14: =HLOOKUP($A$1,$RI$3:$TF$243,ROW()-2,FALSE) -> 10 | V14: 12 | W14: =HLOOKUP($A$1,$TG$3:$VD$243,ROW()-2,FALSE) -> 0 | X14: - | Y14: Acıpayam | Z14: 1440 | AA14: 1200 | AB14: 0 | AC14: 0 | AD14: 0 | AE14: 0 | AF14: 0 | AG14: 0 | AH14: 0 | AI14: 0 | AJ14: 0 | AK14: 0 | AL14: 0 | AM14: 0 | AN14: 174 | AO14: 0 | AP14: 0 | AQ14: 0 | AR14: 10 | AS14: 10 | AT14: 5 | AU14: 0 | AV14: 3 | AW14: 1 | AX14: 27 | AY14: 0 | AZ14: 11 | BA14: 0 | BB14: 5 | BC14: 0 | BD14: 0 | BE14: 0 | BF14: 0 | BG14: 0 | BH14: 7 | BI14: 6 | BJ14: 0 | BK14: 0 | BL14: 10 | BM14: 0 | BN14: 0 | BO14: 40 | BP14: 0 | BQ14: 0 | BR14: 0 | BS14: 14 | BT14: 0 | BU14: 100 | BV14: 13 | BW14: 15 | BX14: 0 | BY14: 1440 | BZ14: 0 | CA14: 0 | CB14: 0 | CC14: 0 | CD14: 0 | CE14: 0 | CF14: 0 | CG14: 0 | CH14: 0 | CI14: 0 | CJ14: 0 | CK14: 0 | CL14: 170 | CM14: 0 | CN14: 0 | CO14: 0 | CP14: 10 | CQ14: 20 | CR14: 3 | CS14: 0 | CT14: 0 | CU14: 3 | CV14: 33 | CW14: 0 | CX14: 12 | CY14: 0 | CZ14: 6 | DA14: 0 | DB14: 0 | DC14: 0 | DD14: 0 | DE14: 0 | DF14: 10 | DG14: 7 | DH14: 0 | DI14: 0 | DJ14: 5 | DK14: 0 | DL14: 0 | DM14: 40 | DN14: 0 | DO14: 0 | DP14: 0 | DQ14: 14 | DR14: 0 | DS14: 0 | DT14: 11 | DU14: 12 | DV14: 0 | DW14: 1434 | DX14: 0 | DY14: 0 | DZ14: 0 | EA14: 0 | EB14: 0 | EC14: 0 | ED14: 0 | EE14: 0 | EF14: 0 | EG14: 0 | EH14: 0 | EI14: 0 | EJ14: 170 | EK14: 0 | EL14: 0 | EM14: 0 | EN14: 10 | EO14: 20 | EP14: 3 | EQ14: 0 | ER14: 0 | ES14: 3 | ET14: 36 | EU14: 0 | EV14: 12 | EW14: 0 | EX14: 4 | EY14: 0 | EZ14: 0 | FA14: 0 | FB14: 0 | FC14: 0 | FD14: 24 | FE14: 6 | FF14: 0 | FG14: 0 | FH14: 20 | FI14: 0 | FJ14: 0 | FK14: 40 | FL14: 0 | FM14: 0 | FN14: 0 | FO14: 14 | FP14: 0 | FQ14: 0 | FR14: 10 | FS14: 6 | FT14: 0 | FU14: 1245 | FV14: 0 | FW14: 0 | FX14: 0 | FY14: 0 | FZ14: 0 | GA14: 0 | GB14: 0 | GC14: 0 | GD14: 0 | GE14: 0 | GF14: 0 | GG14: 0 | GH14: 168 | GI14: 0 | GJ14: 0 | GK14: 0 | GL14: 10 | GM14: 20 | GN14: 3 | GO14: 0 | GP14: 20 | GQ14: 3 | GR14: 39 | GS14: 0 | GT14: 12 | GU14: 0 | GV14: 4 | GW14: 0 | GX14: 0 | GY14: 0 | GZ14: 0 | HA14: 0 | HB14: 18 | HC14: 6 | HD14: 0 | HE14: 0 | HF14: 18 | HG14: 0 | HH14: 0 | HI14: 40 | HJ14: 315 | HK14: 0 | HL14: 0 | HM14: 14 | HN14: 0 | HO14: 0 | HP14: 10 | HQ14: 5 | HR14: 0 | HS14: 1200 | HT14: 0 | HU14: 0 | HV14: 0 | HW14: 0 | HX14: 0 | HY14: 0 | HZ14: 0 | IA14: 0 | IB14: 0 | IC14: 0 | ID14: 0 | IE14: 0 | IF14: 174 | IG14: 0 | IH14: 0 | II14: 0 | IJ14: 10 | IK14: 20 | IL14: 5 | IM14: 0 | IN14: 20 | IO14: 3 | IP14: 39 | IQ14: 0 | IR14: 12 | IS14: 0 | IT14: 6 | IU14: 0 | IV14: 0 | IW14: 0 | IX14: 0 | IY14: 0 | IZ14: 28 | JA14: 6 | JB14: 0 | JC14: 0 | JD14: 19 | JE14: 0 | JF14: 0 | JG14: 40 | JH14: 330 | JI14: 0 | JJ14: 0 | JK14: 14 | JL14: 0 | JM14: 0 | JN14: 8 | JO14: 7 | JP14: 0 | JQ14: 1200 | JR14: 0 | JS14: 0 | JT14: 0 | JU14: 0 | JV14: 0 | JW14: 0 | JX14: 0 | JY14: 0 | JZ14: 0 | KA14: 0 | KB14: 0 | KC14: 0 | KD14: 170 | KE14: 0 | KF14: 0 | KG14: 0 | KH14: 20 | KI14: 20 | KJ14: 5 | KK14: 0 | KL14: 20 | KM14: 4 | KN14: 39 | KO14: 0 | KP14: 12 | KQ14: 0 | KR14: 5 | KS14: 0 | KT14: 0 | KU14: 0 | KV14: 0 | KW14: 0 | KX14: 35 | KY14: 6 | KZ14: 0 | LA14: 0 | LB14: 16 | LC14: 0 | LD14: 0 | LE14: 40 | LF14: 288 | LG14: 0 | LH14: 0 | LI14: 14 | LJ14: 0 | LK14: 0 | LL14: 6 | LM14: 3 | LN14: 0 | LO14: 1200 | LP14: 0 | LQ14: 0 | LR14: 0 | LS14: 0 | LT14: 0 | LU14: 0 | LV14: 0 | LW14: 0 | LX14: 0 | LY14: 0 | LZ14: 0 | MA14: 0 | MB14: 186 | MC14: 0 | MD14: 0 | ME14: 0 | MF14: 20 | MG14: 20 | MH14: 3 | MI14: 0 | MJ14: 10 | MK14: 9 | ML14: 39 | MM14: 0 | MN14: 10 | MO14: 0 | MP14: 5 | MQ14: 0 | MR14: 0 | MS14: 0 | MT14: 0 | MU14: 0 | MV14: 35 | MW14: 6 | MX14: 0 | MY14: 0 | MZ14: 16 | NA14: 0 | NB14: 0 | NC14: 40 | ND14: 525 | NE14: 0 | NF14: 0 | NG14: 16 | NH14: 0 | NI14: 0 | NJ14: 6 | NK14: 3 | NL14: 0 | NM14: 262 | NN14: 0 | NO14: 0 | NP14: 0 | NQ14: 0 | NR14: 0 | NS14: 0 | NT14: 0 | NU14: 0 | NV14: 0 | NW14: 0 | NX14: 0 | NY14: 0 | NZ14: 188 | OA14: 0 | OB14: 0 | OC14: 0 | OD14: 20 | OE14: 20 | OF14: 0 | OG14: 0 | OH14: 10 | OI14: 9 | OJ14: 39 | OK14: 0 | OL14: 10 | OM14: 0 | ON14: 5 | OO14: 52 | OP14: 0 | OQ14: 0 | OR14: 0 | OS14: 0 | OT14: 35 | OU14: 2 | OV14: 0 | OW14: 0 | OX14: 16 | OY14: 0 | OZ14: 0 | PA14: 46 | PB14: 510 | PC14: 0 | PD14: 0 | PE14: 16 | PF14: 0 | PG14: 0 | PH14: 0 | PI14: 3 | PJ14: 0 | PK14: 238 | PL14: 0 | PM14: 0 | PN14: 0 | PO14: 0 | PP14: 0 | PQ14: 0 | PR14: 0 | PS14: 0 | PT14: 0 | PU14: 0 | PV14: 0 | PW14: 0 | PX14: 190 | PY14: 0 | PZ14: 0 | QA14: 0 | QB14: 20 | QC14: 20 | QD14: 0 | QE14: 0 | QF14: 10 | QG14: 10 | QH14: 15 | QI14: 0 | QJ14: 10 | QK14: 0 | QL14: 5 | QM14: 52 | QN14: 0 | QO14: 0 | QP14: 0 | QQ14: 0 | QR14: 35 | QS14: 0 | QT14: 45 | QU14: 0 | QV14: 16 | QW14: 0 | QX14: 0 | QY14: 0 | QZ14: 480 | RA14: 0 | RB14: 0 | RC14: 18 | RD14: 0 | RE14: 0 | RF14: 0 | RG14: 3 | RH14: 0 | RI14: 250 | RJ14: 0 | RK14: 0 | RL14: 0 | RM14: 0 | RN14: 0 | RO14: 0 | RP14: 0 | RQ14: 0 | RR14: 0 | RS14: 0 | RT14: 0 | RU14: 0 | RV14: 200 | RW14: 0 | RX14: 0 | RY14: 0 | RZ14: 20 | SA14: 20 | SB14: 0 | SC14: 0 | SD14: 0 | SE14: 8 | SF14: 30 | SG14: 0 | SH14: 10 | SI14: 0 | SJ14: 5 | SK14: 50 | SL14: 0 | SM14: 0 | SN14: 0 | SO14: 0 | SP14: 35 | SQ14: 0 | SR14: 50 | SS14: 0 | ST14: 16 | SU14: 0 | SV14: 0 | SW14: 0 | SX14: 435 | SY14: 0 | SZ14: 0 | TA14: 18 | TB14: 0 | TC14: 0 | TD14: 0 | TE14: 3 | TF14: 0 | TG14: 250 | TH14: 0 | TI14: 0 | TJ14: 0 | TK14: 0 | TL14: 0 | TM14: 0 | TN14: 0 | TO14: 0 | TP14: 0 | TQ14: 0 | TR14: 0 | TS14: 0 | TT14: 200 | TU14: 0 | TV14: 0 | TW14: 0 | TX14: 20 | TY14: 20 | TZ14: 0 | UA14: 0 | UB14: 0 | UC14: 8 | UD14: 36 | UE14: 0 | UF14: 0 | UG14: 0 | UH14: 5 | UI14: 50 | UJ14: 0 | UK14: 0 | UL14: 0 | UM14: 0 | UN14: 35 | UO14: 0 | UP14: 50 | UQ14: 0 | UR14: 16 | US14: 0 | UT14: 0 | UU14: 0 | UV14: 330 | UW14: 0 | UX14: 0 | UY14: 18 | UZ14: 0 | VA14: 0 | VB14: 0 | VC14: 3 | VD14: 0
A15: Çavdar | B15: ton | C15: =HLOOKUP($A$1,$AA$3:$BX$243,ROW()-2,FALSE) -> 50 | D15: 10 | E15: =HLOOKUP($A$1,$BY$3:$DV$243,ROW()-2,FALSE) -> 81 | F15: 8 | G15: =HLOOKUP($A$1,$DW$3:$FT$243,ROW()-2,FALSE) -> 80 | H15: 9 | I15: =HLOOKUP($A$1,$FU$3:$HR$243,ROW()-2,FALSE) -> 103 | J15: 10 | K15: =HLOOKUP($A$1,$HS$3:$JP$243,ROW()-2,FALSE) -> 89 | L15: 8 | M15: =HLOOKUP($A$1,$JQ$3:$LN$243,ROW()-2,FALSE) -> 91 | N15: 9 | O15: =HLOOKUP($A$1,$LO$3:$NL$243,ROW()-2,FALSE) -> 53 | P15: 12 | Q15: =HLOOKUP($A$1,$NM$3:$PJ$243,ROW()-2,FALSE) -> 87 | R15: 6 | S15: =HLOOKUP($A$1,$PK$3:$RH$243,ROW()-2,FALSE) -> 63 | T15: 11 | U15: =HLOOKUP($A$1,$RI$3:$TF$243,ROW()-2,FALSE) -> 150 | V15: 8 | W15: =HLOOKUP($A$1,$TG$3:$VD$243,ROW()-2,FALSE) -> 26 | X15: 14 | Y15: Acıpayam | Z15: 1928 | AA15: 845 | AB15: 0 | AC15: 459 | AD15: 0 | AE15: 0 | AF15: 0 | AG15: 549 | AH15: 42 | AI15: 16 | AJ15: 20 | AK15: 0 | AL15: 124 | AM15: 12 | AN15: 60 | AO15: 0 | AP15: 0 | AQ15: 0 | AR15: 0 | AS15: 18 | AT15: 4 | AU15: 0 | AV15: 0 | AW15: 0 | AX15: 0 | AY15: 18 | AZ15: 50 | BA15: 0 | BB15: 48 | BC15: 22 | BD15: 0 | BE15: 0 | BF15: 0 | BG15: 22 | BH15: 0 | BI15: 29 | BJ15: 0 | BK15: 0 | BL15: 350 | BM15: 51 | BN15: 0 | BO15: 0 | BP15: 0 | BQ15: 200 | BR15: 4 | BS15: 0 | BT15: 0 | BU15: 245 | BV15: 3 | BW15: 38 | BX15: 0 | BY15: 1928 | BZ15: 0 | CA15: 35 | CB15: 0 | CC15: 0 | CD15: 0 | CE15: 565 | CF15: 345 | CG15: 20 | CH15: 0 | CI15: 0 | CJ15: 93 | CK15: 3 | CL15: 102 | CM15: 0 | CN15: 0 | CO15: 0 | CP15: 0 | CQ15: 21 | CR15: 0 | CS15: 0 | CT15: 0 | CU15: 0 | CV15: 0 | CW15: 0 | CX15: 81 | CY15: 0 | CZ15: 32 | DA15: 0 | DB15: 0 | DC15: 0 | DD15: 0 | DE15: 21 | DF15: 3 | DG15: 27 | DH15: 0 | DI15: 0 | DJ15: 174 | DK15: 45 | DL15: 0 | DM15: 0 | DN15: 0 | DO15: 0 | DP15: 0 | DQ15: 0 | DR15: 35 | DS15: 244 | DT15: 5 | DU15: 44 | DV15: 0 | DW15: 1460 | DX15: 0 | DY15: 31 | DZ15: 0 | EA15: 0 | EB15: 0 | EC15: 699 | ED15: 212 | EE15: 21 | EF15: 0 | EG15: 0 | EH15: 94 | EI15: 3 | EJ15: 121 | EK15: 0 | EL15: 0 | EM15: 0 | EN15: 0 | EO15: 39 | EP15: 0 | EQ15: 0 | ER15: 0 | ES15: 0 | ET15: 0 | EU15: 0 | EV15: 80 | EW15: 0 | EX15: 27 | EY15: 0 | EZ15: 0 | FA15: 0 | FB15: 0 | FC15: 21 | FD15: 0 | FE15: 18 | FF15: 0 | FG15: 0 | FH15: 285 | FI15: 87 | FJ15: 0 | FK15: 0 | FL15: 0 | FM15: 0 | FN15: 0 | FO15: 0 | FP15: 34 | FQ15: 240 | FR15: 2 | FS15: 35 | FT15: 0 | FU15: 1675 | FV15: 0 | FW15: 145 | FX15: 0 | FY15: 0 | FZ15: 0 | GA15: 974 | GB15: 176 | GC15: 21 | GD15: 0 | GE15: 0 | GF15: 59 | GG15: 4 | GH15: 164 | GI15: 0 | GJ15: 0 | GK15: 0 | GL15: 0 | GM15: 34 | GN15: 0 | GO15: 0 | GP15: 0 | GQ15: 0 | GR15: 0 | GS15: 0 | GT15: 103 | GU15: 33 | GV15: 107 | GW15: 49 | GX15: 0 | GY15: 0 | GZ15: 0 | HA15: 333 | HB15: 0 | HC15: 16 | HD15: 0 | HE15: 0 | HF15: 260 | HG15: 90 | HH15: 0 | HI15: 0 | HJ15: 0 | HK15: 0 | HL15: 0 | HM15: 0 | HN15: 36 | HO15: 104 | HP15: 2 | HQ15: 36 | HR15: 2 | HS15: 1346 | HT15: 0 | HU15: 156 | HV15: 0 | HW15: 0 | HX15: 0 | HY15: 759 | HZ15: 177 | IA15: 23 | IB15: 0 | IC15: 0 | ID15: 49 | IE15: 3 | IF15: 221 | IG15: 0 | IH15: 0 | II15: 0 | IJ15: 0 | IK15: 31 | IL15: 0 | IM15: 0 | IN15: 0 | IO15: 0 | IP15: 0 | IQ15: 0 | IR15: 89 | IS15: 28 | IT15: 89 | IU15: 42 | IV15: 0 | IW15: 0 | IX15: 0 | IY15: 348 | IZ15: 0 | JA15: 16 | JB15: 0 | JC15: 0 | JD15: 195 | JE15: 74 | JF15: 0 | JG15: 0 | JH15: 0 | JI15: 0 | JJ15: 0 | JK15: 0 | JL15: 29 | JM15: 85 | JN15: 2 | JO15: 70 | JP15: 2 | JQ15: 1212 | JR15: 0 | JS15: 145 | JT15: 0 | JU15: 0 | JV15: 0 | JW15: 755 | JX15: 154 | JY15: 30 | JZ15: 0 | KA15: 0 | KB15: 45 | KC15: 5 | KD15: 240 | KE15: 0 | KF15: 0 | KG15: 0 | KH15: 0 | KI15: 32 | KJ15: 0 | KK15: 0 | KL15: 0 | KM15: 0 | KN15: 0 | KO15: 0 | KP15: 91 | KQ15: 29 | KR15: 92 | KS15: 53 | KT15: 0 | KU15: 0 | KV15: 0 | KW15: 422 | KX15: 0 | KY15: 7 | KZ15: 0 | LA15: 0 | LB15: 178 | LC15: 77 | LD15: 0 | LE15: 0 | LF15: 0 | LG15: 0 | LH15: 0 | LI15: 0 | LJ15: 28 | LK15: 88 | LL15: 2 | LM15: 85 | LN15: 5 | LO15: 1492 | LP15: 0 | LQ15: 147 | LR15: 0 | LS15: 0 | LT15: 0 | LU15: 720 | LV15: 186 | LW15: 0 | LX15: 0 | LY15: 22 | LZ15: 46 | MA15: 11 | MB15: 342 | MC15: 0 | MD15: 0 | ME15: 0 | MF15: 0 | MG15: 31 | MH15: 0 | MI15: 0 | MJ15: 0 | MK15: 0 | ML15: 0 | MM15: 0 | MN15: 53 | MO15: 29 | MP15: 92 | MQ15: 52 | MR15: 0 | MS15: 0 | MT15: 0 | MU15: 501 | MV15: 0 | MW15: 7 | MX15: 0 | MY15: 0 | MZ15: 196 | NA15: 93 | NB15: 0 | NC15: 0 | ND15: 0 | NE15: 0 | NF15: 0 | NG15: 0 | NH15: 21 | NI15: 87 | NJ15: 2 | NK15: 85 | NL15: 6 | NM15: 1165 | NN15: 0 | NO15: 102 | NP15: 0 | NQ15: 0 | NR15: 0 | NS15: 60 | NT15: 194 | NU15: 0 | NV15: 0 | NW15: 24 | NX15: 37 | NY15: 71 | NZ15: 335 | OA15: 0 | OB15: 0 | OC15: 0 | OD15: 0 | OE15: 29 | OF15: 0 | OG15: 0 | OH15: 0 | OI15: 0 | OJ15: 0 | OK15: 0 | OL15: 87 | OM15: 23 | ON15: 64 | OO15: 0 | OP15: 0 | OQ15: 0 | OR15: 0 | OS15: 347 | OT15: 0 | OU15: 7 | OV15: 0 | OW15: 0 | OX15: 41 | OY15: 87 | OZ15: 0 | PA15: 0 | PB15: 0 | PC15: 0 | PD15: 0 | PE15: 0 | PF15: 20 | PG15: 82 | PH15: 0 | PI15: 79 | PJ15: 6 | PK15: 1600 | PL15: 0 | PM15: 88 | PN15: 0 | PO15: 0 | PP15: 0 | PQ15: 780 | PR15: 167 | PS15: 0 | PT15: 0 | PU15: 25 | PV15: 31 | PW15: 1369 | PX15: 420 | PY15: 0 | PZ15: 0 | QA15: 0 | QB15: 0 | QC15: 15 | QD15: 0 | QE15: 0 | QF15: 0 | QG15: 0 | QH15: 0 | QI15: 20 | QJ15: 63 | QK15: 20 | QL15: 55 | QM15: 0 | QN15: 0 | QO15: 0 | QP15: 0 | QQ15: 525 | QR15: 0 | QS15: 5 | QT15: 0 | QU15: 0 | QV15: 35 | QW15: 125 | QX15: 0 | QY15: 0 | QZ15: 0 | RA15: 0 | RB15: 0 | RC15: 3 | RD15: 17 | RE15: 72 | RF15: 0 | RG15: 95 | RH15: 5 | RI15: 1035 | RJ15: 0 | RK15: 113 | RL15: 0 | RM15: 0 | RN15: 0 | RO15: 975 | RP15: 675 | RQ15: 0 | RR15: 0 | RS15: 7 | RT15: 70 | RU15: 1299 | RV15: 326 | RW15: 0 | RX15: 0 | RY15: 0 | RZ15: 0 | SA15: 12 | SB15: 0 | SC15: 0 | SD15: 0 | SE15: 0 | SF15: 0 | SG15: 36 | SH15: 150 | SI15: 20 | SJ15: 86 | SK15: 368 | SL15: 0 | SM15: 0 | SN15: 0 | SO15: 420 | SP15: 0 | SQ15: 4 | SR15: 0 | SS15: 0 | ST15: 18 | SU15: 75 | SV15: 0 | SW15: 0 | SX15: 0 | SY15: 0 | SZ15: 0 | TA15: 3 | TB15: 18 | TC15: 72 | TD15: 0 | TE15: 95 | TF15: 10 | TG15: 1035 | TH15: 0 | TI15: 60 | TJ15: 0 | TK15: 0 | TL15: 0 | TM15: 1028 | TN15: 1000 | TO15: 0 | TP15: 0 | TQ15: 0 | TR15: 69 | TS15: 1048 | TT15: 325 | TU15: 0 | TV15: 0 | TW15: 0 | TX15: 0 | TY15: 15 | TZ15: 0 | UA15: 0 | UB15: 0 | UC15: 21 | UD15: 0 | UE15: 24 | UF15: 26 | UG15: 20 | UH15: 82 | UI15: 540 | UJ15: 0 | UK15: 0 | UL15: 0 | UM15: 563 | UN15: 0 | UO15: 5 | UP15: 0 | UQ15: 0 | UR15: 18 | US15: 38 | UT15: 0 | UU15: 0 | UV15: 0 | UW15: 0 | UX15: 0 | UY15: 3 | UZ15: 18 | VA15: 79 | VB15: 0 | VC15: 80 | VD15: 5
A16: Fasulye(Kuru) | B16: ton | C16: =HLOOKUP($A$1,$AA$3:$BX$243,ROW()-2,FALSE) -> 57 | D16: 8 | E16: =HLOOKUP($A$1,$BY$3:$DV$243,ROW()-2,FALSE) -> 65 | F16: 8 | G16: =HLOOKUP($A$1,$DW$3:$FT$243,ROW()-2,FALSE) -> 66 | H16: 8 | I16: =HLOOKUP($A$1,$FU$3:$HR$243,ROW()-2,FALSE) -> 80 | J16: 7 | K16: =HLOOKUP($A$1,$HS$3:$JP$243,ROW()-2,FALSE) -> 73 | L16: 7 | M16: =HLOOKUP($A$1,$JQ$3:$LN$243,ROW()-2,FALSE) -> 81 | N16: 6 | O16: =HLOOKUP($A$1,$LO$3:$NL$243,ROW()-2,FALSE) -> 111 | P16: 3 | Q16: =HLOOKUP($A$1,$NM$3:$PJ$243,ROW()-2,FALSE) -> 109 | R16: 3 | S16: =HLOOKUP($A$1,$PK$3:$RH$243,ROW()-2,FALSE) -> 31 | T16: 8 | U16: =HLOOKUP($A$1,$RI$3:$TF$243,ROW()-2,FALSE) -> 24 | V16: 10 | W16: =HLOOKUP($A$1,$TG$3:$VD$243,ROW()-2,FALSE) -> 18 | X16: 12 | Y16: Çameli | Z16: 354 | AA16: 103 | AB16: 5 | AC16: 4 | AD16: 0 | AE16: 14 | AF16: 0 | AG16: 0 | AH16: 17 | AI16: 75 | AJ16: 13 | AK16: 10 | AL16: 454 | AM16: 11 | AN16: 0 | AO16: 17 | AP16: 10 | AQ16: 6 | AR16: 0 | AS16: 0 | AT16: 5 | AU16: 0 | AV16: 0 | AW16: 6 | AX16: 0 | AY16: 13 | AZ16: 57 | BA16: 0 | BB16: 23 | BC16: 0 | BD16: 0 | BE16: 181 | BF16: 0 | BG16: 15 | BH16: 0 | BI16: 101 | BJ16: 0 | BK16: 1 | BL16: 0 | BM16: 0 | BN16: 0 | BO16: 5 | BP16: 3 | BQ16: 33 | BR16: 92 | BS16: 0 | BT16: 0 | BU16: 200 | BV16: 0 | BW16: 4 | BX16: 0 | BY16: 79 | BZ16: 0 | CA16: 0 | CB16: 0 | CC16: 13 | CD16: 0 | CE16: 0 | CF16: 16 | CG16: 91 | CH16: 9 | CI16: 5 | CJ16: 354 | CK16: 10 | CL16: 0 | CM16: 0 | CN16: 23 | CO16: 6 | CP16: 0 | CQ16: 0 | CR16: 1 | CS16: 0 | CT16: 0 | CU16: 32 | CV16: 0 | CW16: 11 | CX16: 65 | CY16: 0 | CZ16: 28 | DA16: 0 | DB16: 0 | DC16: 176 | DD16: 0 | DE16: 17 | DF16: 0 | DG16: 90 | DH16: 0 | DI16: 0 | DJ16: 0 | DK16: 0 | DL16: 0 | DM16: 0 | DN16: 0 | DO16: 16 | DP16: 94 | DQ16: 0 | DR16: 0 | DS16: 201 | DT16: 0 | DU16: 4 | DV16: 0 | DW16: 89 | DX16: 0 | DY16: 0 | DZ16: 0 | EA16: 14 | EB16: 0 | EC16: 0 | ED16: 23 | EE16: 83 | EF16: 10 | EG16: 1 | EH16: 288 | EI16: 11 | EJ16: 0 | EK16: 0 | EL16: 18 | EM16: 6 | EN16: 0 | EO16: 0 | EP16: 1 | EQ16: 0 | ER16: 0 | ES16: 34 | ET16: 0 | EU16: 10 | EV16: 66 | EW16: 0 | EX16: 27 | EY16: 0 | EZ16: 0 | FA16: 182 | FB16: 0 | FC16: 20 | FD16: 0 | FE16: 78 | FF16: 0 | FG16: 0 | FH16: 0 | FI16: 0 | FJ16: 0 | FK16: 0 | FL16: 0 | FM16: 16 | FN16: 115 | FO16: 0 | FP16: 0 | FQ16: 209 | FR16: 0 | FS16: 4 | FT16: 0 | FU16: 90 | FV16: 0 | FW16: 0 | FX16: 0 | FY16: 14 | FZ16: 0 | GA16: 0 | GB16: 21 | GC16: 83 | GD16: 10 | GE16: 3 | GF16: 261 | GG16: 11 | GH16: 0 | GI16: 0 | GJ16: 22 | GK16: 6 | GL16: 0 | GM16: 0 | GN16: 1 | GO16: 0 | GP16: 0 | GQ16: 34 | GR16: 0 | GS16: 9 | GT16: 80 | GU16: 0 | GV16: 30 | GW16: 0 | GX16: 0 | GY16: 186 | GZ16: 0 | HA16: 26 | HB16: 0 | HC16: 77 | HD16: 0 | HE16: 0 | HF16: 0 | HG16: 0 | HH16: 0 | HI16: 0 | HJ16: 0 | HK16: 16 | HL16: 94 | HM16: 0 | HN16: 0 | HO16: 248 | HP16: 0 | HQ16: 3 | HR16: 0 | HS16: 98 | HT16: 0 | HU16: 0 | HV16: 0 | HW16: 14 | HX16: 0 | HY16: 0 | HZ16: 21 | IA16: 74 | IB16: 10 | IC16: 3 | ID16: 234 | IE16: 11 | IF16: 0 | IG16: 0 | IH16: 23 | II16: 6 | IJ16: 0 | IK16: 0 | IL16: 2 | IM16: 0 | IN16: 0 | IO16: 27 | IP16: 0 | IQ16: 8 | IR16: 73 | IS16: 0 | IT16: 32 | IU16: 0 | IV16: 0 | IW16: 176 | IX16: 0 | IY16: 25 | IZ16: 0 | JA16: 92 | JB16: 0 | JC16: 0 | JD16: 0 | JE16: 0 | JF16: 0 | JG16: 0 | JH16: 0 | JI16: 17 | JJ16: 60 | JK16: 0 | JL16: 10 | JM16: 253 | JN16: 0 | JO16: 0 | JP16: 0 | JQ16: 97 | JR16: 0 | JS16: 0 | JT16: 0 | JU16: 14 | JV16: 0 | JW16: 0 | JX16: 2 | JY16: 57 | JZ16: 10 | KA16: 3 | KB16: 223 | KC16: 11 | KD16: 0 | KE16: 0 | KF16: 14 | KG16: 6 | KH16: 0 | KI16: 0 | KJ16: 2 | KK16: 0 | KL16: 0 | KM16: 31 | KN16: 0 | KO16: 10 | KP16: 81 | KQ16: 0 | KR16: 25 | KS16: 0 | KT16: 0 | KU16: 176 | KV16: 0 | KW16: 24 | KX16: 0 | KY16: 91 | KZ16: 0 | LA16: 0 | LB16: 0 | LC16: 0 | LD16: 0 | LE16: 0 | LF16: 0 | LG16: 17 | LH16: 57 | LI16: 0 | LJ16: 10 | LK16: 127 | LL16: 0 | LM16: 0 | LN16: 0 | LO16: 100 | LP16: 0 | LQ16: 0 | LR16: 0 | LS16: 14 | LT16: 0 | LU16: 0 | LV16: 17 | LW16: 0 | LX16: 10 | LY16: 5 | LZ16: 153 | MA16: 5 | MB16: 0 | MC16: 0 | MD16: 14 | ME16: 3 | MF16: 0 | MG16: 0 | MH16: 1 | MI16: 0 | MJ16: 0 | MK16: 34 | ML16: 0 | MM16: 10 | MN16: 111 | MO16: 0 | MP16: 25 | MQ16: 0 | MR16: 0 | MS16: 198 | MT16: 0 | MU16: 25 | MV16: 0 | MW16: 90 | MX16: 0 | MY16: 0 | MZ16: 0 | NA16: 0 | NB16: 0 | NC16: 0 | ND16: 0 | NE16: 15 | NF16: 57 | NG16: 0 | NH16: 12 | NI16: 0 | NJ16: 0 | NK16: 0 | NL16: 0 | NM16: 98 | NN16: 0 | NO16: 0 | NP16: 0 | NQ16: 14 | NR16: 0 | NS16: 0 | NT16: 16 | NU16: 0 | NV16: 25 | NW16: 5 | NX16: 137 | NY16: 8 | NZ16: 0 | OA16: 0 | OB16: 15 | OC16: 0 | OD16: 0 | OE16: 0 | OF16: 1 | OG16: 0 | OH16: 0 | OI16: 34 | OJ16: 0 | OK16: 9 | OL16: 109 | OM16: 0 | ON16: 0 | OO16: 0 | OP16: 0 | OQ16: 195 | OR16: 0 | OS16: 26 | OT16: 0 | OU16: 90 | OV16: 0 | OW16: 14 | OX16: 0 | OY16: 0 | OZ16: 0 | PA16: 0 | PB16: 0 | PC16: 13 | PD16: 109 | PE16: 0 | PF16: 12 | PG16: 0 | PH16: 0 | PI16: 0 | PJ16: 0 | PK16: 300 | PL16: 0 | PM16: 0 | PN16: 0 | PO16: 14 | PP16: 0 | PQ16: 0 | PR16: 16 | PS16: 0 | PT16: 24 | PU16: 5 | PV16: 136 | PW16: 7 | PX16: 0 | PY16: 290 | PZ16: 15 | QA16: 0 | QB16: 0 | QC16: 0 | QD16: 109 | QE16: 0 | QF16: 0 | QG16: 39 | QH16: 0 | QI16: 10 | QJ16: 31 | QK16: 0 | QL16: 0 | QM16: 0 | QN16: 0 | QO16: 194 | QP16: 0 | QQ16: 27 | QR16: 0 | QS16: 400 | QT16: 15 | QU16: 0 | QV16: 0 | QW16: 0 | QX16: 0 | QY16: 0 | QZ16: 0 | RA16: 14 | RB16: 0 | RC16: 0 | RD16: 12 | RE16: 0 | RF16: 0 | RG16: 0 | RH16: 0 | RI16: 288 | RJ16: 0 | RK16: 0 | RL16: 0 | RM16: 17 | RN16: 0 | RO16: 0 | RP16: 13 | RQ16: 0 | RR16: 25 | RS16: 4 | RT16: 131 | RU16: 14 | RV16: 0 | RW16: 300 | RX16: 17 | RY16: 0 | RZ16: 0 | SA16: 0 | SB16: 140 | SC16: 0 | SD16: 0 | SE16: 45 | SF16: 0 | SG16: 12 | SH16: 24 | SI16: 0 | SJ16: 10 | SK16: 0 | SL16: 0 | SM16: 128 | SN16: 0 | SO16: 28 | SP16: 0 | SQ16: 413 | SR16: 17 | SS16: 0 | ST16: 0 | SU16: 0 | SV16: 0 | SW16: 0 | SX16: 0 | SY16: 14 | SZ16: 0 | TA16: 0 | TB16: 20 | TC16: 0 | TD16: 0 | TE16: 12 | TF16: 0 | TG16: 288 | TH16: 0 | TI16: 0 | TJ16: 0 | TK16: 6 | TL16: 0 | TM16: 0 | TN16: 15 | TO16: 0 | TP16: 23 | TQ16: 0 | TR16: 70 | TS16: 19 | TT16: 0 | TU16: 270 | TV16: 15 | TW16: 0 | TX16: 0 | TY16: 0 | TZ16: 300 | UA16: 0 | UB16: 0 | UC16: 60 | UD16: 0 | UE16: 12 | UF16: 18 | UG16: 0 | UH16: 10 | UI16: 0 | UJ16: 0 | UK16: 128 | UL16: 0 | UM16: 30 | UN16: 0 | UO16: 375 | UP16: 17 | UQ16: 0 | UR16: 0 | US16: 0 | UT16: 0 | UU16: 0 | UV16: 0 | UW16: 14 | UX16: 0 | UY16: 0 | UZ16: 20 | VA16: 0 | VB16: 0 | VC16: 12 | VD16: 0
A17: Yonca(YeşilOt) | B17: ton | C17: =HLOOKUP($A$1,$AA$3:$BX$243,ROW()-2,FALSE) -> 64000 | D17: 10 | E17: =HLOOKUP($A$1,$BY$3:$DV$243,ROW()-2,FALSE) -> 68000 | F17: 9 | G17: =HLOOKUP($A$1,$DW$3:$FT$243,ROW()-2,FALSE) -> 22500 | H17: 14 | I17: =HLOOKUP($A$1,$FU$3:$HR$243,ROW()-2,FALSE) -> 22800 | J17: 14 | K17: =HLOOKUP($A$1,$HS$3:$JP$243,ROW()-2,FALSE) -> 24000 | L17: 11 | M17: =HLOOKUP($A$1,$JQ$3:$LN$243,ROW()-2,FALSE) -> 30000 | N17: 9 | O17: =HLOOKUP($A$1,$LO$3:$NL$243,ROW()-2,FALSE) -> 25500 | P17: 11 | Q17: =HLOOKUP($A$1,$NM$3:$PJ$243,ROW()-2,FALSE) -> 24000 | R17: 10 | S17: =HLOOKUP($A$1,$PK$3:$RH$243,ROW()-2,FALSE) -> 16878 | T17: 16 | U17: =HLOOKUP($A$1,$RI$3:$TF$243,ROW()-2,FALSE) -> 15750 | V17: 15 | W17: =HLOOKUP($A$1,$TG$3:$VD$243,ROW()-2,FALSE) -> 12000 | X17: 17 | Y17: Kuyucak | Z17: 338100 | AA17: 108059 | AB17: 130 | AC17: 22500 | AD17: 120 | AE17: 7400 | AF17: 4500 | AG17: 142085 | AH17: 40220 | AI17: 13125 | AJ17: 7100 | AK17: 23750 | AL17: 13000 | AM17: 14875 | AN17: 45500 | AO17: 188815 | AP17: 10200 | AQ17: 141 | AR17: 2608 | AS17: 70400 | AT17: 1080 | AU17: 37600 | AV17: 1005 | AW17: 29400 | AX17: 17680 | AY17: 2100 | AZ17: 64000 | BA17: 3750 | BB17: 478 | BC17: 14250 | BD17: 18060 | BE17: 574 | BF17: 561 | BG17: 345348 | BH17: 360 | BI17: 6731 | BJ17: 0 | BK17: 15000 | BL17: 72000 | BM17: 170355 | BN17: 2250 | BO17: 45000 | BP17: 88000 | BQ17: 1875 | BR17: 77000 | BS17: 2485 | BT17: 24500 | BU17: 14700 | BV17: 3480 | BW17: 26250 | BX17: 60800 | BY17: 90000 | BZ17: 0 | CA17: 22500 | CB17: 140 | CC17: 4410 | CD17: 3000 | CE17: 144525 | CF17: 40220 | CG17: 15375 | CH17: 2300 | CI17: 22500 | CJ17: 8800 | CK17: 15530 | CL17: 44450 | CM17: 237000 | CN17: 9000 | CO17: 133 | CP17: 2400 | CQ17: 70080 | CR17: 800 | CS17: 40000 | CT17: 654 | CU17: 22000 | CV17: 17600 | CW17: 2160 | CX17: 68000 | CY17: 5840 | CZ17: 449 | DA17: 3900 | DB17: 17850 | DC17: 0 | DD17: 500 | DE17: 338100 | DF17: 275 | DG17: 6563 | DH17: 0 | DI17: 15000 | DJ17: 80000 | DK17: 165000 | DL17: 2550 | DM17: 31500 | DN17: 71610 | DO17: 2049 | DP17: 64600 | DQ17: 2450 | DR17: 23940 | DS17: 8750 | DT17: 3900 | DU17: 22750 | DV17: 52000 | DW17: 72640 | DX17: 0 | DY17: 22500 | DZ17: 140 | EA17: 4276 | EB17: 1980 | EC17: 98160 | ED17: 21000 | EE17: 9500 | EF17: 2200 | EG17: 21530 | EH17: 7600 | EI17: 19780 | EJ17: 27500 | EK17: 234000 | EL17: 6750 | EM17: 42 | EN17: 450 | EO17: 24400 | EP17: 696 | EQ17: 11440 | ER17: 645 | ES17: 22000 | ET17: 10400 | EU17: 1800 | EV17: 22500 | EW17: 2920 | EX17: 350 | EY17: 1314 | EZ17: 15000 | FA17: 0 | FB17: 117 | FC17: 336000 | FD17: 250 | FE17: 5750 | FF17: 0 | FG17: 15000 | FH17: 97500 | FI17: 159500 | FJ17: 2550 | FK17: 33950 | FL17: 71400 | FM17: 2049 | FN17: 60000 | FO17: 2400 | FP17: 20955 | FQ17: 8750 | FR17: 1890 | FS17: 22750 | FT17: 22750 | FU17: 41823 | FV17: 0 | FW17: 22500 | FX17: 100 | FY17: 4276 | FZ17: 1946 | GA17: 102900 | GB17: 24110 | GC17: 10450 | GD17: 2200 | GE17: 16000 | GF17: 7600 | GG17: 19780 | GH17: 23250 | GI17: 195000 | GJ17: 6975 | GK17: 42 | GL17: 30 | GM17: 29280 | GN17: 480 | GO17: 12100 | GP17: 450 | GQ17: 22000 | GR17: 10400 | GS17: 1540 | GT17: 22800 | GU17: 2920 | GV17: 300 | GW17: 1188 | GX17: 16800 | GY17: 0 | GZ17: 117 | HA17: 307125 | HB17: 250 | HC17: 5750 | HD17: 0 | HE17: 18000 | HF17: 112000 | HG17: 159500 | HH17: 1875 | HI17: 32900 | HJ17: 84000 | HK17: 1385 | HL17: 54000 | HM17: 1200 | HN17: 19938 | HO17: 14350 | HP17: 1890 | HQ17: 22750 | HR17: 26000 | HS17: 47040 | HT17: 0 | HU17: 21000 | HV17: 50 | HW17: 4276 | HX17: 1946 | HY17: 102619 | HZ17: 18910 | IA17: 9000 | IB17: 2200 | IC17: 17500 | ID17: 7200 | IE17: 12632 | IF17: 23750 | IG17: 195000 | IH17: 6975 | II17: 42 | IJ17: 30 | IK17: 29250 | IL17: 496 | IM17: 12320 | IN17: 465 | IO17: 22000 | IP17: 10400 | IQ17: 1584 | IR17: 24000 | IS17: 2940 | IT17: 252 | IU17: 1022 | IV17: 18000 | IW17: 0 | IX17: 117 | IY17: 296700 | IZ17: 150 | JA17: 5600 | JB17: 0 | JC17: 17500 | JD17: 77850 | JE17: 156600 | JF17: 1190 | JG17: 32900 | JH17: 86100 | JI17: 1377 | JJ17: 48300 | JK17: 600 | JL17: 16500 | JM17: 14350 | JN17: 1890 | JO17: 6090 | JP17: 20475 | JQ17: 45600 | JR17: 0 | JS17: 17500 | JT17: 60 | JU17: 4276 | JV17: 1946 | JW17: 104935 | JX17: 3749 | JY17: 8170 | JZ17: 2200 | KA17: 16000 | KB17: 7000 | KC17: 18947 | KD17: 22250 | KE17: 200000 | KF17: 5625 | KG17: 42 | KH17: 0 | KI17: 27600 | KJ17: 528 | KK17: 12760 | KL17: 465 | KM17: 21200 | KN17: 10400 | KO17: 1800 | KP17: 30000 | KQ17: 2940 | KR17: 201 | KS17: 500 | KT17: 15000 | KU17: 0 | KV17: 40 | KW17: 292400 | KX17: 0 | KY17: 5565 | KZ17: 0 | LA17: 17500 | LB17: 35033 | LC17: 150519 | LD17: 330 | LE17: 29204 | LF17: 65100 | LG17: 1080 | LH17: 46725 | LI17: 480 | LJ17: 17600 | LK17: 14350 | LL17: 1200 | LM17: 7250 | LN17: 12600 | LO17: 45000 | LP17: 0 | LQ17: 19250 | LR17: 50 | LS17: 4276 | LT17: 1750 | LU17: 103089 | LV17: 3750 | LW17: 6000 | LX17: 2200 | LY17: 16250 | LZ17: 5950 | MA17: 21679 | MB17: 19750 | MC17: 200000 | MD17: 5175 | ME17: 35 | MF17: 0 | MG17: 31500 | MH17: 800 | MI17: 13200 | MJ17: 450 | MK17: 20000 | ML17: 10400 | MM17: 2000 | MN17: 25500 | MO17: 2940 | MP17: 180 | MQ17: 500 | MR17: 12500 | MS17: 0 | MT17: 40 | MU17: 291600 | MV17: 0 | MW17: 4000 | MX17: 0 | MY17: 17500 | MZ17: 35000 | NA17: 130350 | NB17: 310 | NC17: 30000 | ND17: 57000 | NE17: 1005 | NF17: 48000 | NG17: 2940 | NH17: 17600 | NI17: 14350 | NJ17: 540 | NK17: 5100 | NL17: 24500 | NM17: 36000 | NN17: 0 | NO17: 16100 | NP17: 50 | NQ17: 4200 | NR17: 0 | NS17: 96674 | NT17: 3357 | NU17: 5400 | NV17: 500 | NW17: 16050 | NX17: 5950 | NY17: 19949 | NZ17: 15250 | OA17: 210000 | OB17: 4725 | OC17: 0 | OD17: 12 | OE17: 31500 | OF17: 790 | OG17: 13090 | OH17: 450 | OI17: 9870 | OJ17: 10000 | OK17: 2100 | OL17: 24000 | OM17: 2940 | ON17: 70 | OO17: 500 | OP17: 12500 | OQ17: 0 | OR17: 40 | OS17: 281025 | OT17: 0 | OU17: 3500 | OV17: 0 | OW17: 19600 | OX17: 32500 | OY17: 130350 | OZ17: 210 | PA17: 23650 | PB17: 45000 | PC17: 945 | PD17: 49272 | PE17: 2820 | PF17: 16775 | PG17: 14350 | PH17: 522 | PI17: 5000 | PJ17: 19950 | PK17: 22501 | PL17: 0 | PM17: 19199 | PN17: 60 | PO17: 4002 | PP17: 0 | PQ17: 79192 | PR17: 3325 | PS17: 7698 | PT17: 602 | PU17: 20003 | PV17: 6800 | PW17: 15816 | PX17: 15001 | PY17: 210024 | PZ17: 4726 | QA17: 0 | QB17: 0 | QC17: 31872 | QD17: 23997 | QE17: 12102 | QF17: 449 | QG17: 8801 | QH17: 8251 | QI17: 1999 | QJ17: 16878 | QK17: 2626 | QL17: 70 | QM17: 26 | QN17: 12500 | QO17: 0 | QP17: 120 | QQ17: 298812 | QR17: 0 | QS17: 3399 | QT17: 17502 | QU17: 0 | QV17: 31254 | QW17: 123246 | QX17: 154 | QY17: 21000 | QZ17: 42699 | RA17: 1226 | RB17: 0 | RC17: 1199 | RD17: 18903 | RE17: 14351 | RF17: 388 | RG17: 1000 | RH17: 22000 | RI17: 11700 | RJ17: 0 | RK17: 16500 | RL17: 60 | RM17: 3200 | RN17: 0 | RO17: 80400 | RP17: 2295 | RQ17: 7700 | RR17: 2700 | RS17: 17500 | RT17: 5070 | RU17: 16625 | RV17: 15000 | RW17: 202000 | RX17: 4680 | RY17: 0 | RZ17: 360 | SA17: 28800 | SB17: 21040 | SC17: 12500 | SD17: 300 | SE17: 3600 | SF17: 8000 | SG17: 1400 | SH17: 15750 | SI17: 2625 | SJ17: 56 | SK17: 52 | SL17: 12650 | SM17: 0 | SN17: 96 | SO17: 297600 | SP17: 0 | SQ17: 2625 | SR17: 15000 | SS17: 0 | ST17: 30000 | SU17: 130350 | SV17: 154 | SW17: 16500 | SX17: 40600 | SY17: 800 | SZ17: 0 | TA17: 1200 | TB17: 18090 | TC17: 12150 | TD17: 389 | TE17: 1000 | TF17: 20000 | TG17: 11700 | TH17: 0 | TI17: 15000 | TJ17: 38 | TK17: 2400 | TL17: 0 | TM17: 80400 | TN17: 1872 | TO17: 7700 | TP17: 2490 | TQ17: 16320 | TR17: 4950 | TS17: 15435 | TT17: 15000 | TU17: 200000 | TV17: 4275 | TW17: 0 | TX17: 360 | TY17: 22500 | TZ17: 12000 | UA17: 12865 | UB17: 300 | UC17: 2600 | UD17: 7000 | UE17: 760 | UF17: 12000 | UG17: 1190 | UH17: 56 | UI17: 232 | UJ17: 13000 | UK17: 0 | UL17: 200 | UM17: 37500 | UN17: 0 | UO17: 2275 | UP17: 15000 | UQ17: 0 | UR17: 30000 | US17: 28140 | UT17: 108 | UU17: 11000 | UV17: 31500 | UW17: 480 | UX17: 0 | UY17: 2280 | UZ17: 18090 | VA17: 11400 | VB17: 324 | VC17: 600 | VD17: 20000
A18: Koyun(Yerli) | B18: baş | C18: =HLOOKUP($A$1,$AA$3:$BX$243,ROW()-2,FALSE) -> 25940 | D18: 10 | E18: =HLOOKUP($A$1,$BY$3:$DV$243,ROW()-2,FALSE) -> 30234 | F18: 9 | G18: =HLOOKUP($A$1,$DW$3:$FT$243,ROW()-2,FALSE) -> 27233 | H18: 10 | I18: =HLOOKUP($A$1,$FU$3:$HR$243,ROW()-2,FALSE) -> 27594 | J18: 7 | K18: =HLOOKUP($A$1,$HS$3:$JP$243,ROW()-2,FALSE) -> 37737 | L18: 4 | M18: =HLOOKUP($A$1,$JQ$3:$LN$243,ROW()-2,FALSE) -> 37980 | N18: 4 | O18: =HLOOKUP($A$1,$LO$3:$NL$243,ROW()-2,FALSE) -> 34540 | P18: 5 | Q18: =HLOOKUP($A$1,$NM$3:$PJ$243,ROW()-2,FALSE) -> 32705 | R18: 6 | S18: =HLOOKUP($A$1,$PK$3:$RH$243,ROW()-2,FALSE) -> 32730 | T18: 6 | U18: =HLOOKUP($A$1,$RI$3:$TF$243,ROW()-2,FALSE) -> 14080 | V18: 11 | W18: =HLOOKUP($A$1,$TG$3:$VD$243,ROW()-2,FALSE) -> 13409 | X18: 9 | Y18: Çivril | Z18: 116513 | AA18: 58806 | AB18: 6741 | AC18: 14450 | AD18: 13379 | AE18: 556 | AF18: 7500 | AG18: 17550 | AH18: 9981 | AI18: 6240 | AJ18: 29610 | AK18: 41155 | AL18: 3699 | AM18: 14916 | AN18: 16706 | AO18: 136425 | AP18: 4195 | AQ18: 1381 | AR18: 20070 | AS18: 20885 | AT18: 19945 | AU18: 15070 | AV18: 12000 | AW18: 22388 | AX18: 5470 | AY18: 5400 | AZ18: 25940 | BA18: 7530 | BB18: 850 | BC18: 19090 | BD18: 5456 | BE18: 10198 | BF18: 4495 | BG18: 32415 | BH18: 4910 | BI18: 14397 | BJ18: 0 | BK18: 13500 | BL18: 89632 | BM18: 16130 | BN18: 5065 | BO18: 24185 | BP18: 18800 | BQ18: 33565 | BR18: 59350 | BS18: 18040 | BT18: 4835 | BU18: 61000 | BV18: 3785 | BW18: 2342 | BX18: 6815 | BY18: 64811 | BZ18: 7150 | CA18: 14311 | CB18: 13026 | CC18: 1371 | CD18: 7586 | CE18: 20300 | CF18: 9381 | CG18: 6316 | CH18: 26556 | CI18: 37950 | CJ18: 5305 | CK18: 12400 | CL18: 16820 | CM18: 116513 | CN18: 4386 | CO18: 1369 | CP18: 20894 | CQ18: 20055 | CR18: 19345 | CS18: 14852 | CT18: 13140 | CU18: 18246 | CV18: 6725 | CW18: 6863 | CX18: 30234 | CY18: 7076 | CZ18: 705 | DA18: 21140 | DB18: 5446 | DC18: 7941 | DD18: 4346 | DE18: 31581 | DF18: 4918 | DG18: 15605 | DH18: 0 | DI18: 13400 | DJ18: 42581 | DK18: 16150 | DL18: 5105 | DM18: 24488 | DN18: 17523 | DO18: 33730 | DP18: 59050 | DQ18: 19576 | DR18: 5429 | DS18: 55290 | DT18: 4226 | DU18: 2140 | DV18: 6810 | DW18: 63148 | DX18: 9526 | DY18: 15042 | DZ18: 15214 | EA18: 1685 | EB18: 5158 | EC18: 18547 | ED18: 9073 | EE18: 6369 | EF18: 32451 | EG18: 37856 | EH18: 6200 | EI18: 11232 | EJ18: 16861 | EK18: 113700 | EL18: 4399 | EM18: 1071 | EN18: 21437 | EO18: 18746 | EP18: 19390 | EQ18: 8501 | ER18: 12850 | ES18: 18275 | ET18: 6850 | EU18: 4532 | EV18: 27233 | EW18: 6832 | EX18: 730 | EY18: 22000 | EZ18: 4614 | FA18: 9020 | FB18: 4782 | FC18: 30192 | FD18: 3269 | FE18: 13226 | FF18: 0 | FG18: 11325 | FH18: 28523 | FI18: 16305 | FJ18: 4879 | FK18: 21230 | FL18: 15587 | FM18: 35643 | FN18: 55550 | FO18: 20550 | FP18: 5438 | FQ18: 55400 | FR18: 3731 | FS18: 2236 | FT18: 6757 | FU18: 48527 | FV18: 6575 | FW18: 14091 | FX18: 10874 | FY18: 1323 | FZ18: 2420 | GA18: 16830 | GB18: 7468 | GC18: 5021 | GD18: 23875 | GE18: 35819 | GF18: 5622 | GG18: 11420 | GH18: 16761 | GI18: 96311 | GJ18: 3717 | GK18: 628 | GL18: 15706 | GM18: 19043 | GN18: 21200 | GO18: 7734 | GP18: 11617 | GQ18: 15603 | GR18: 6165 | GS18: 4217 | GT18: 27594 | GU18: 7319 | GV18: 1000 | GW18: 17850 | GX18: 3898 | GY18: 6030 | GZ18: 3954 | HA18: 26589 | HB18: 2602 | HC18: 13534 | HD18: 0 | HE18: 9850 | HF18: 17997 | HG18: 14340 | HH18: 3731 | HI18: 19881 | HJ18: 12745 | HK18: 35000 | HL18: 57027 | HM18: 16700 | HN18: 5269 | HO18: 47400 | HP18: 3423 | HQ18: 2400 | HR18: 2815 | HS18: 30620 | HT18: 6800 | HU18: 14011 | HV18: 13710 | HW18: 2232 | HX18: 3145 | HY18: 10950 | HZ18: 9608 | IA18: 9500 | IB18: 22500 | IC18: 34800 | ID18: 7300 | IE18: 14464 | IF18: 16400 | IG18: 77206 | IH18: 2740 | II18: 894 | IJ18: 9030 | IK18: 17290 | IL18: 23250 | IM18: 4280 | IN18: 9000 | IO18: 12414 | IP18: 8940 | IQ18: 3958 | IR18: 37737 | IS18: 6973 | IT18: 600 | IU18: 17600 | IV18: 4900 | IW18: 5130 | IX18: 2266 | IY18: 22653 | IZ18: 1150 | JA18: 8500 | JB18: 0 | JC18: 19885 | JD18: 14650 | JE18: 15861 | JF18: 2107 | JG18: 21400 | JH18: 17355 | JI18: 31600 | JJ18: 76005 | JK18: 8905 | JL18: 4561 | JM18: 54900 | JN18: 3894 | JO18: 2375 | JP18: 3110 | JQ18: 33851 | JR18: 8701 | JS18: 14125 | JT18: 16594 | JU18: 1536 | JV18: 3143 | JW18: 9000 | JX18: 9764 | JY18: 10974 | JZ18: 20987 | KA18: 34718 | KB18: 7500 | KC18: 14464 | KD18: 14922 | KE18: 67996 | KF18: 2465 | KG18: 889 | KH18: 9180 | KI18: 14400 | KJ18: 25650 | KK18: 4280 | KL18: 12114 | KM18: 12868 | KN18: 8730 | KO18: 5493 | KP18: 37980 | KQ18: 9881 | KR18: 800 | KS18: 18406 | KT18: 4950 | KU18: 5719 | KV18: 2250 | KW18: 24858 | KX18: 1260 | KY18: 8710 | KZ18: 0 | LA18: 17011 | LB18: 15410 | LC18: 15820 | LD18: 1062 | LE18: 20000 | LF18: 17930 | LG18: 32120 | LH18: 66900 | LI18: 8800 | LJ18: 4567 | LK18: 69920 | LL18: 3816 | LM18: 2215 | LN18: 3272 | LO18: 35115 | LP18: 10950 | LQ18: 12500 | LR18: 15565 | LS18: 2381 | LT18: 3103 | LU18: 8900 | LV18: 9584 | LW18: 14413 | LX18: 21500 | LY18: 34268 | LZ18: 7500 | MA18: 12663 | MB18: 14072 | MC18: 76550 | MD18: 2295 | ME18: 1044 | MF18: 9385 | MG18: 14362 | MH18: 26000 | MI18: 4200 | MJ18: 11000 | MK18: 13120 | ML18: 8350 | MM18: 4744 | MN18: 34540 | MO18: 7873 | MP18: 1190 | MQ18: 18406 | MR18: 5115 | MS18: 6100 | MT18: 1695 | MU18: 25789 | MV18: 785 | MW18: 8442 | MX18: 0 | MY18: 17992 | MZ18: 12575 | NA18: 16599 | NB18: 988 | NC18: 21400 | ND18: 17655 | NE18: 32120 | NF18: 84689 | NG18: 6800 | NH18: 4500 | NI18: 69900 | NJ18: 4832 | NK18: 2350 | NL18: 3366 | NM18: 36925 | NN18: 12168 | NO18: 12000 | NP18: 18011 | NQ18: 2195 | NR18: 3000 | NS18: 9800 | NT18: 7404 | NU18: 13987 | NV18: 26663 | NW18: 33572 | NX18: 8470 | NY18: 12680 | NZ18: 13800 | OA18: 78687 | OB18: 1785 | OC18: 1082 | OD18: 9120 | OE18: 13485 | OF18: 18730 | OG18: 4230 | OH18: 13475 | OI18: 12026 | OJ18: 8089 | OK18: 4819 | OL18: 32705 | OM18: 8712 | ON18: 1550 | OO18: 16659 | OP18: 4050 | OQ18: 5655 | OR18: 2578 | OS18: 26897 | OT18: 590 | OU18: 6501 | OV18: 0 | OW18: 11126 | OX18: 12442 | OY18: 17410 | OZ18: 837 | PA18: 20833 | PB18: 14950 | PC18: 31200 | PD18: 54720 | PE18: 6600 | PF18: 3269 | PG18: 64900 | PH18: 4362 | PI18: 2405 | PJ18: 2970 | PK18: 35814 | PL18: 12145 | PM18: 12656 | PN18: 18396 | PO18: 2171 | PP18: 5980 | PQ18: 8425 | PR18: 8061 | PS18: 13742 | PT18: 22469 | PU18: 32412 | PV18: 8020 | PW18: 7915 | PX18: 11230 | PY18: 75090 | PZ18: 1750 | QA18: 923 | QB18: 8955 | QC18: 13057 | QD18: 67900 | QE18: 4200 | QF18: 13980 | QG18: 11036 | QH18: 6250 | QI18: 4681 | QJ18: 32730 | QK18: 8720 | QL18: 2239 | QM18: 16315 | QN18: 3790 | QO18: 3320 | QP18: 2478 | QQ18: 29049 | QR18: 485 | QS18: 7053 | QT18: 24958 | QU18: 0 | QV18: 12405 | QW18: 15918 | QX18: 812 | QY18: 4744 | QZ18: 14574 | RA18: 35877 | RB18: 0 | RC18: 6600 | RD18: 2989 | RE18: 57520 | RF18: 2903 | RG18: 2835 | RH18: 3000 | RI18: 27375 | RJ18: 9200 | RK18: 11400 | RL18: 14156 | RM18: 1337 | RN18: 2174 | RO18: 8000 | RP18: 6100 | RQ18: 11540 | RR18: 19500 | RS18: 23797 | RT18: 6150 | RU18: 6000 | RV18: 11050 | RW18: 53755 | RX18: 1640 | RY18: 550 | RZ18: 9005 | SA18: 13330 | SB18: 48125 | SC18: 5032 | SD18: 12500 | SE18: 8350 | SF18: 3090 | SG18: 3500 | SH18: 14080 | SI18: 7571 | SJ18: 978 | SK18: 11000 | SL18: 3287 | SM18: 2670 | SN18: 2115 | SO18: 28100 | SP18: 1015 | SQ18: 6090 | SR18: 20234 | SS18: 0 | ST18: 12050 | SU18: 13914 | SV18: 783 | SW18: 3640 | SX18: 11000 | SY18: 27000 | SZ18: 0 | TA18: 6500 | TB18: 2758 | TC18: 39195 | TD18: 2439 | TE18: 2691 | TF18: 4500 | TG18: 19170 | TH18: 5800 | TI18: 8120 | TJ18: 10700 | TK18: 950 | TL18: 2134 | TM18: 7000 | TN18: 5433 | TO18: 7150 | TP18: 11750 | TQ18: 15600 | TR18: 4500 | TS18: 5500 | TT18: 8900 | TU18: 47500 | TV18: 1425 | TW18: 175 | TX18: 9004 | TY18: 11000 | TZ18: 49925 | UA18: 4970 | UB18: 7500 | UC18: 6900 | UD18: 3006 | UE18: 1600 | UF18: 13409 | UG18: 5500 | UH18: 953 | UI18: 8080 | UJ18: 1487 | UK18: 2395 | UL18: 2096 | UM18: 12750 | UN18: 1470 | UO18: 5410 | UP18: 14800 | UQ18: 0 | UR18: 15970 | US18: 11985 | UT18: 740 | UU18: 3300 | UV18: 9428 | UW18: 27000 | UX18: 0 | UY18: 7190 | UZ18: 2715 | VA18: 31750 | VB18: 1545 | VC18: 2078 | VD18: 2000
A19: Yulaf(Dane) | B19: ton | C19: =HLOOKUP($A$1,$AA$3:$BX$243,ROW()-2,FALSE) -> 0 | D19: - | E19: =HLOOKUP($A$1,$BY$3:$DV$243,ROW()-2,FALSE) -> 211 | F19: 9 | G19: =HLOOKUP($A$1,$DW$3:$FT$243,ROW()-2,FALSE) -> 261 | H19: 9 | I19: =HLOOKUP($A$1,$FU$3:$HR$243,ROW()-2,FALSE) -> 278 | J19: 7 | K19: =HLOOKUP($A$1,$HS$3:$JP$243,ROW()-2,FALSE) -> 279 | L19: 6 | M19: =HLOOKUP($A$1,$JQ$3:$LN$243,ROW()-2,FALSE) -> 273 | N19: 9 | O19: =HLOOKUP($A$1,$LO$3:$NL$243,ROW()-2,FALSE) -> 356 | P19: 6 | Q19: =HLOOKUP($A$1,$NM$3:$PJ$243,ROW()-2,FALSE) -> 163 | R19: 9 | S19: =HLOOKUP($A$1,$PK$3:$RH$243,ROW()-2,FALSE) -> 20 | T19: 17 | U19: =HLOOKUP($A$1,$RI$3:$TF$243,ROW()-2,FALSE) -> 63 | V19: 18 | W19: =HLOOKUP($A$1,$TG$3:$VD$243,ROW()-2,FALSE) -> 25 | X19: 24 | Y19: Yatağan | Z19: 1956 | AA19: 737 | AB19: 0 | AC19: 167 | AD19: 63 | AE19: 0 | AF19: 4 | AG19: 200 | AH19: 50 | AI19: 19 | AJ19: 0 | AK19: 1250 | AL19: 59 | AM19: 25 | AN19: 0 | AO19: 63 | AP19: 51 | AQ19: 15 | AR19: 33 | AS19: 4 | AT19: 42 | AU19: 0 | AV19: 92 | AW19: 171 | AX19: 0 | AY19: 78 | AZ19: 0 | BA19: 0 | BB19: 34 | BC19: 0 | BD19: 0 | BE19: 36 | BF19: 0 | BG19: 0 | BH19: 189 | BI19: 701 | BJ19: 0 | BK19: 0 | BL19: 720 | BM19: 38 | BN19: 0 | BO19: 0 | BP19: 36 | BQ19: 0 | BR19: 319 | BS19: 0 | BT19: 0 | BU19: 500 | BV19: 93 | BW19: 1575 | BX19: 0 | BY19: 378 | BZ19: 0 | CA19: 144 | CB19: 0 | CC19: 0 | CD19: 3 | CE19: 181 | CF19: 163 | CG19: 16 | CH19: 0 | CI19: 1075 | CJ19: 46 | CK19: 14 | CL19: 0 | CM19: 0 | CN19: 34 | CO19: 13 | CP19: 211 | CQ19: 4 | CR19: 43 | CS19: 0 | CT19: 0 | CU19: 178 | CV19: 0 | CW19: 0 | CX19: 211 | CY19: 750 | CZ19: 35 | DA19: 0 | DB19: 0 | DC19: 35 | DD19: 4 | DE19: 0 | DF19: 181 | DG19: 548 | DH19: 0 | DI19: 0 | DJ19: 255 | DK19: 32 | DL19: 0 | DM19: 0 | DN19: 0 | DO19: 0 | DP19: 351 | DQ19: 0 | DR19: 7 | DS19: 516 | DT19: 96 | DU19: 1956 | DV19: 0 | DW19: 394 | DX19: 0 | DY19: 234 | DZ19: 0 | EA19: 0 | EB19: 6 | EC19: 176 | ED19: 123 | EE19: 20 | EF19: 0 | EG19: 904 | EH19: 68 | EI19: 45 | EJ19: 0 | EK19: 0 | EL19: 26 | EM19: 9 | EN19: 239 | EO19: 12 | EP19: 48 | EQ19: 0 | ER19: 0 | ES19: 207 | ET19: 0 | EU19: 0 | EV19: 261 | EW19: 469 | EX19: 34 | EY19: 2 | EZ19: 0 | FA19: 37 | FB19: 1 | FC19: 0 | FD19: 179 | FE19: 559 | FF19: 0 | FG19: 0 | FH19: 2123 | FI19: 43 | FJ19: 0 | FK19: 0 | FL19: 0 | FM19: 0 | FN19: 370 | FO19: 23 | FP19: 10 | FQ19: 511 | FR19: 0 | FS19: 1837 | FT19: 0 | FU19: 417 | FV19: 0 | FW19: 29 | FX19: 0 | FY19: 0 | FZ19: 5 | GA19: 202 | GB19: 489 | GC19: 20 | GD19: 0 | GE19: 107 | GF19: 96 | GG19: 47 | GH19: 0 | GI19: 0 | GJ19: 33 | GK19: 11 | GL19: 249 | GM19: 14 | GN19: 49 | GO19: 0 | GP19: 0 | GQ19: 216 | GR19: 0 | GS19: 0 | GT19: 278 | GU19: 245 | GV19: 48 | GW19: 2 | GX19: 0 | GY19: 59 | GZ19: 1 | HA19: 0 | HB19: 249 | HC19: 612 | HD19: 0 | HE19: 0 | HF19: 2592 | HG19: 45 | HH19: 0 | HI19: 0 | HJ19: 0 | HK19: 0 | HL19: 406 | HM19: 12 | HN19: 11 | HO19: 267 | HP19: 0 | HQ19: 1995 | HR19: 0 | HS19: 136 | HT19: 0 | HU19: 54 | HV19: 0 | HW19: 0 | HX19: 5 | HY19: 210 | HZ19: 66 | IA19: 26 | IB19: 0 | IC19: 164 | ID19: 92 | IE19: 48 | IF19: 0 | IG19: 0 | IH19: 34 | II19: 8 | IJ19: 256 | IK19: 16 | IL19: 49 | IM19: 0 | IN19: 0 | IO19: 293 | IP19: 0 | IQ19: 0 | IR19: 279 | IS19: 5 | IT19: 59 | IU19: 8 | IV19: 0 | IW19: 52 | IX19: 1 | IY19: 0 | IZ19: 187 | JA19: 430 | JB19: 0 | JC19: 0 | JD19: 2220 | JE19: 46 | JF19: 0 | JG19: 0 | JH19: 0 | JI19: 0 | JJ19: 430 | JK19: 12 | JL19: 11 | JM19: 275 | JN19: 0 | JO19: 2152 | JP19: 0 | JQ19: 139 | JR19: 0 | JS19: 96 | JT19: 0 | JU19: 0 | JV19: 4 | JW19: 615 | JX19: 55 | JY19: 25 | JZ19: 0 | KA19: 129 | KB19: 0 | KC19: 16 | KD19: 0 | KE19: 0 | KF19: 23 | KG19: 8 | KH19: 2183 | KI19: 18 | KJ19: 68 | KK19: 0 | KL19: 0 | KM19: 312 | KN19: 0 | KO19: 0 | KP19: 273 | KQ19: 0 | KR19: 53 | KS19: 9 | KT19: 0 | KU19: 53 | KV19: 2 | KW19: 0 | KX19: 28 | KY19: 469 | KZ19: 0 | LA19: 0 | LB19: 2277 | LC19: 47 | LD19: 0 | LE19: 0 | LF19: 0 | LG19: 0 | LH19: 376 | LI19: 13 | LJ19: 0 | LK19: 352 | LL19: 0 | LM19: 2368 | LN19: 9 | LO19: 46 | LP19: 0 | LQ19: 104 | LR19: 0 | LS19: 0 | LT19: 135 | LU19: 153 | LV19: 41 | LW19: 0 | LX19: 0 | LY19: 120 | LZ19: 0 | MA19: 57 | MB19: 0 | MC19: 0 | MD19: 25 | ME19: 7 | MF19: 2320 | MG19: 37 | MH19: 303 | MI19: 0 | MJ19: 0 | MK19: 255 | ML19: 0 | MM19: 0 | MN19: 356 | MO19: 0 | MP19: 55 | MQ19: 0 | MR19: 0 | MS19: 57 | MT19: 2 | MU19: 0 | MV19: 20 | MW19: 423 | MX19: 0 | MY19: 0 | MZ19: 2358 | NA19: 0 | NB19: 0 | NC19: 0 | ND19: 0 | NE19: 0 | NF19: 387 | NG19: 13 | NH19: 0 | NI19: 314 | NJ19: 0 | NK19: 1836 | NL19: 0 | NM19: 47 | NN19: 0 | NO19: 103 | NP19: 0 | NQ19: 0 | NR19: 559 | NS19: 143 | NT19: 44 | NU19: 0 | NV19: 0 | NW19: 128 | NX19: 0 | NY19: 34 | NZ19: 0 | OA19: 0 | OB19: 25 | OC19: 0 | OD19: 2241 | OE19: 52 | OF19: 302 | OG19: 0 | OH19: 0 | OI19: 210 | OJ19: 0 | OK19: 0 | OL19: 163 | OM19: 0 | ON19: 18 | OO19: 0 | OP19: 0 | OQ19: 59 | OR19: 0 | OS19: 0 | OT19: 21 | OU19: 120 | OV19: 0 | OW19: 0 | OX19: 1050 | OY19: 0 | OZ19: 0 | PA19: 0 | PB19: 0 | PC19: 0 | PD19: 279 | PE19: 0 | PF19: 0 | PG19: 327 | PH19: 0 | PI19: 1415 | PJ19: 0 | PK19: 68 | PL19: 0 | PM19: 0 | PN19: 0 | PO19: 0 | PP19: 600 | PQ19: 143 | PR19: 47 | PS19: 0 | PT19: 0 | PU19: 375 | PV19: 0 | PW19: 12 | PX19: 0 | PY19: 0 | PZ19: 30 | QA19: 0 | QB19: 2250 | QC19: 40 | QD19: 450 | QE19: 0 | QF19: 0 | QG19: 210 | QH19: 0 | QI19: 0 | QJ19: 20 | QK19: 0 | QL19: 19 | QM19: 0 | QN19: 0 | QO19: 54 | QP19: 0 | QQ19: 0 | QR19: 23 | QS19: 184 | QT19: 0 | QU19: 0 | QV19: 1013 | QW19: 0 | QX19: 0 | QY19: 0 | QZ19: 0 | RA19: 0 | RB19: 0 | RC19: 0 | RD19: 0 | RE19: 375 | RF19: 0 | RG19: 1520 | RH19: 0 | RI19: 75 | RJ19: 35 | RK19: 70 | RL19: 0 | RM19: 55 | RN19: 600 | RO19: 300 | RP19: 21 | RQ19: 0 | RR19: 0 | RS19: 108 | RT19: 1320 | RU19: 0 | RV19: 0 | RW19: 0 | RX19: 30 | RY19: 0 | RZ19: 2250 | SA19: 50 | SB19: 486 | SC19: 158 | SD19: 0 | SE19: 270 | SF19: 0 | SG19: 450 | SH19: 63 | SI19: 10 | SJ19: 18 | SK19: 17 | SL19: 0 | SM19: 54 | SN19: 6 | SO19: 390 | SP19: 22 | SQ19: 190 | SR19: 103 | SS19: 0 | ST19: 1250 | SU19: 25 | SV19: 0 | SW19: 0 | SX19: 0 | SY19: 0 | SZ19: 0 | TA19: 0 | TB19: 24 | TC19: 500 | TD19: 0 | TE19: 1710 | TF19: 0 | TG19: 75 | TH19: 35 | TI19: 66 | TJ19: 0 | TK19: 55 | TL19: 620 | TM19: 315 | TN19: 40 | TO19: 0 | TP19: 0 | TQ19: 150 | TR19: 1400 | TS19: 0 | TT19: 0 | TU19: 0 | TV19: 30 | TW19: 0 | TX19: 2185 | TY19: 25 | TZ19: 450 | UA19: 175 | UB19: 0 | UC19: 270 | UD19: 0 | UE19: 625 | UF19: 25 | UG19: 10 | UH19: 18 | UI19: 27 | UJ19: 0 | UK19: 54 | UL19: 6 | UM19: 413 | UN19: 21 | UO19: 160 | UP19: 100 | UQ19: 0 | UR19: 1250 | US19: 10 | UT19: 0 | UU19: 0 | UV19: 0 | UW19: 0 | UX19: 0 | UY19: 0 | UZ19: 24 | VA19: 500 | VB19: 0 | VC19: 1190 | VD19: 0
A20: Sarımsak(Kuru) | B20: ton | C20: =HLOOKUP($A$1,$AA$3:$BX$243,ROW()-2,FALSE) -> 18 | D20: 10 | E20: =HLOOKUP($A$1,$BY$3:$DV$243,ROW()-2,FALSE) -> 20 | F20: 9 | G20: =HLOOKUP($A$1,$DW$3:$FT$243,ROW()-2,FALSE) -> 20 | H20: 9 | I20: =HLOOKUP($A$1,$FU$3:$HR$243,ROW()-2,FALSE) -> 25 | J20: 8 | K20: =HLOOKUP($A$1,$HS$3:$JP$243,ROW()-2,FALSE) -> 25 | L20: 10 | M20: =HLOOKUP($A$1,$JQ$3:$LN$243,ROW()-2,FALSE) -> 25 | N20: 10 | O20: =HLOOKUP($A$1,$LO$3:$NL$243,ROW()-2,FALSE) -> 25 | P20: 10 | Q20: =HLOOKUP($A$1,$NM$3:$PJ$243,ROW()-2,FALSE) -> 25 | R20: 10 | S20: =HLOOKUP($A$1,$PK$3:$RH$243,ROW()-2,FALSE) -> 25 | T20: 10 | U20: =HLOOKUP($A$1,$RI$3:$TF$243,ROW()-2,FALSE) -> 25 | V20: 10 | W20: =HLOOKUP($A$1,$TG$3:$VD$243,ROW()-2,FALSE) -> 10 | X20: 13 | Y20: Bekilli | Z20: 225 | AA20: 88 | AB20: 0 | AC20: 0 | AD20: 225 | AE20: 0 | AF20: 0 | AG20: 0 | AH20: 6 | AI20: 0 | AJ20: 0 | AK20: 0 | AL20: 32 | AM20: 0 | AN20: 0 | AO20: 0 | AP20: 60 | AQ20: 6 | AR20: 0 | AS20: 0 | AT20: 2 | AU20: 0 | AV20: 23 | AW20: 2 | AX20: 0 | AY20: 49 | AZ20: 18 | BA20: 0 | BB20: 15 | BC20: 0 | BD20: 0 | BE20: 4 | BF20: 0 | BG20: 0 | BH20: 0 | BI20: 56 | BJ20: 0 | BK20: 0 | BL20: 0 | BM20: 5 | BN20: 0 | BO20: 0 | BP20: 0 | BQ20: 0 | BR20: 86 | BS20: 0 | BT20: 0 | BU20: 113 | BV20: 0 | BW20: 8 | BX20: 0 | BY20: 0 | BZ20: 0 | CA20: 0 | CB20: 225 | CC20: 0 | CD20: 0 | CE20: 0 | CF20: 1 | CG20: 0 | CH20: 0 | CI20: 0 | CJ20: 16 | CK20: 0 | CL20: 0 | CM20: 0 | CN20: 96 | CO20: 14 | CP20: 0 | CQ20: 0 | CR20: 2 | CS20: 0 | CT20: 86 | CU20: 55 | CV20: 0 | CW20: 66 | CX20: 20 | CY20: 0 | CZ20: 17 | DA20: 0 | DB20: 0 | DC20: 5 | DD20: 0 | DE20: 0 | DF20: 0 | DG20: 53 | DH20: 0 | DI20: 0 | DJ20: 0 | DK20: 4 | DL20: 0 | DM20: 0 | DN20: 0 | DO20: 0 | DP20: 98 | DQ20: 0 | DR20: 0 | DS20: 135 | DT20: 0 | DU20: 7 | DV20: 0 | DW20: 0 | DX20: 0 | DY20: 0 | DZ20: 315 | EA20: 0 | EB20: 0 | EC20: 0 | ED20: 18 | EE20: 0 | EF20: 0 | EG20: 0 | EH20: 0 | EI20: 0 | EJ20: 0 | EK20: 0 | EL20: 96 | EM20: 14 | EN20: 0 | EO20: 0 | EP20: 2 | EQ20: 0 | ER20: 109 | ES20: 55 | ET20: 0 | EU20: 45 | EV20: 20 | EW20: 0 | EX20: 16 | EY20: 0 | EZ20: 0 | FA20: 5 | FB20: 0 | FC20: 0 | FD20: 0 | FE20: 38 | FF20: 0 | FG20: 0 | FH20: 0 | FI20: 4 | FJ20: 0 | FK20: 0 | FL20: 0 | FM20: 0 | FN20: 105 | FO20: 0 | FP20: 0 | FQ20: 135 | FR20: 0 | FS20: 7 | FT20: 0 | FU20: 0 | FV20: 0 | FW20: 0 | FX20: 420 | FY20: 0 | FZ20: 0 | GA20: 0 | GB20: 5 | GC20: 0 | GD20: 0 | GE20: 0 | GF20: 0 | GG20: 0 | GH20: 0 | GI20: 0 | GJ20: 120 | GK20: 14 | GL20: 0 | GM20: 0 | GN20: 2 | GO20: 0 | GP20: 23 | GQ20: 55 | GR20: 0 | GS20: 48 | GT20: 25 | GU20: 0 | GV20: 10 | GW20: 0 | GX20: 0 | GY20: 5 | GZ20: 0 | HA20: 0 | HB20: 0 | HC20: 38 | HD20: 0 | HE20: 0 | HF20: 0 | HG20: 4 | HH20: 0 | HI20: 0 | HJ20: 0 | HK20: 0 | HL20: 122 | HM20: 0 | HN20: 0 | HO20: 135 | HP20: 0 | HQ20: 7 | HR20: 0 | HS20: 0 | HT20: 0 | HU20: 0 | HV20: 300 | HW20: 47 | HX20: 0 | HY20: 0 | HZ20: 12 | IA20: 0 | IB20: 0 | IC20: 0 | ID20: 0 | IE20: 0 | IF20: 0 | IG20: 0 | IH20: 144 | II20: 14 | IJ20: 0 | IK20: 0 | IL20: 2 | IM20: 0 | IN20: 20 | IO20: 30 | IP20: 0 | IQ20: 48 | IR20: 25 | IS20: 0 | IT20: 29 | IU20: 0 | IV20: 0 | IW20: 10 | IX20: 0 | IY20: 0 | IZ20: 0 | JA20: 41 | JB20: 0 | JC20: 0 | JD20: 0 | JE20: 4 | JF20: 0 | JG20: 0 | JH20: 0 | JI20: 0 | JJ20: 105 | JK20: 0 | JL20: 0 | JM20: 135 | JN20: 0 | JO20: 14 | JP20: 0 | JQ20: 0 | JR20: 0 | JS20: 0 | JT20: 220 | JU20: 47 | JV20: 0 | JW20: 0 | JX20: 12 | JY20: 0 | JZ20: 0 | KA20: 0 | KB20: 0 | KC20: 0 | KD20: 0 | KE20: 0 | KF20: 60 | KG20: 12 | KH20: 0 | KI20: 0 | KJ20: 2 | KK20: 0 | KL20: 18 | KM20: 65 | KN20: 0 | KO20: 54 | KP20: 25 | KQ20: 0 | KR20: 19 | KS20: 0 | KT20: 0 | KU20: 10 | KV20: 0 | KW20: 0 | KX20: 0 | KY20: 41 | KZ20: 0 | LA20: 0 | LB20: 0 | LC20: 4 | LD20: 0 | LE20: 0 | LF20: 0 | LG20: 0 | LH20: 105 | LI20: 0 | LJ20: 0 | LK20: 45 | LL20: 0 | LM20: 98 | LN20: 0 | LO20: 0 | LP20: 0 | LQ20: 0 | LR20: 270 | LS20: 47 | LT20: 0 | LU20: 0 | LV20: 12 | LW20: 0 | LX20: 0 | LY20: 0 | LZ20: 0 | MA20: 0 | MB20: 0 | MC20: 0 | MD20: 60 | ME20: 12 | MF20: 0 | MG20: 0 | MH20: 1 | MI20: 0 | MJ20: 13 | MK20: 70 | ML20: 0 | MM20: 48 | MN20: 25 | MO20: 0 | MP20: 19 | MQ20: 0 | MR20: 0 | MS20: 12 | MT20: 0 | MU20: 0 | MV20: 0 | MW20: 117 | MX20: 0 | MY20: 0 | MZ20: 0 | NA20: 4 | NB20: 0 | NC20: 0 | ND20: 0 | NE20: 0 | NF20: 105 | NG20: 0 | NH20: 0 | NI20: 34 | NJ20: 0 | NK20: 105 | NL20: 0 | NM20: 0 | NN20: 0 | NO20: 0 | NP20: 270 | NQ20: 47 | NR20: 0 | NS20: 0 | NT20: 8 | NU20: 0 | NV20: 0 | NW20: 0 | NX20: 0 | NY20: 0 | NZ20: 0 | OA20: 0 | OB20: 54 | OC20: 0 | OD20: 0 | OE20: 0 | OF20: 1 | OG20: 0 | OH20: 13 | OI20: 40 | OJ20: 0 | OK20: 43 | OL20: 25 | OM20: 0 | ON20: 23 | OO20: 0 | OP20: 0 | OQ20: 12 | OR20: 0 | OS20: 0 | OT20: 0 | OU20: 100 | OV20: 0 | OW20: 25 | OX20: 0 | OY20: 4 | OZ20: 0 | PA20: 0 | PB20: 0 | PC20: 0 | PD20: 120 | PE20: 0 | PF20: 0 | PG20: 43 | PH20: 0 | PI20: 105 | PJ20: 0 | PK20: 0 | PL20: 0 | PM20: 0 | PN20: 480 | PO20: 45 | PP20: 0 | PQ20: 0 | PR20: 8 | PS20: 0 | PT20: 0 | PU20: 0 | PV20: 0 | PW20: 0 | PX20: 0 | PY20: 0 | PZ20: 54 | QA20: 0 | QB20: 0 | QC20: 0 | QD20: 83 | QE20: 0 | QF20: 13 | QG20: 40 | QH20: 0 | QI20: 50 | QJ20: 25 | QK20: 0 | QL20: 23 | QM20: 0 | QN20: 0 | QO20: 12 | QP20: 0 | QQ20: 0 | QR20: 0 | QS20: 126 | QT20: 23 | QU20: 0 | QV20: 0 | QW20: 4 | QX20: 0 | QY20: 0 | QZ20: 0 | RA20: 0 | RB20: 0 | RC20: 0 | RD20: 0 | RE20: 41 | RF20: 0 | RG20: 105 | RH20: 0 | RI20: 0 | RJ20: 0 | RK20: 0 | RL20: 300 | RM20: 39 | RN20: 0 | RO20: 0 | RP20: 4 | RQ20: 0 | RR20: 0 | RS20: 0 | RT20: 0 | RU20: 0 | RV20: 0 | RW20: 0 | RX20: 60 | RY20: 0 | RZ20: 0 | SA20: 0 | SB20: 75 | SC20: 0 | SD20: 10 | SE20: 30 | SF20: 0 | SG20: 60 | SH20: 25 | SI20: 0 | SJ20: 15 | SK20: 0 | SL20: 0 | SM20: 12 | SN20: 0 | SO20: 0 | SP20: 0 | SQ20: 135 | SR20: 25 | SS20: 0 | ST20: 0 | SU20: 4 | SV20: 0 | SW20: 0 | SX20: 0 | SY20: 0 | SZ20: 0 | TA20: 0 | TB20: 0 | TC20: 40 | TD20: 0 | TE20: 105 | TF20: 0 | TG20: 0 | TH20: 0 | TI20: 0 | TJ20: 120 | TK20: 21 | TL20: 0 | TM20: 0 | TN20: 4 | TO20: 0 | TP20: 0 | TQ20: 0 | TR20: 0 | TS20: 0 | TT20: 0 | TU20: 0 | TV20: 48 | TW20: 0 | TX20: 0 | TY20: 0 | TZ20: 66 | UA20: 0 | UB20: 10 | UC20: 30 | UD20: 0 | UE20: 65 | UF20: 10 | UG20: 0 | UH20: 15 | UI20: 0 | UJ20: 0 | UK20: 12 | UL20: 0 | UM20: 0 | UN20: 0 | UO20: 135 | UP20: 30 | UQ20: 0 | UR20: 0 | US20: 4 | UT20: 0 | UU20: 2 | UV20: 0 | UW20: 0 | UX20: 0 | UY20: 0 | UZ20: 0 | VA20: 40 | VB20: 0 | VC20: 105 | VD20: 0
A21: Fiğ(Adi)(YeşilOt) | B21: ton | C21: =HLOOKUP($A$1,$AA$3:$BX$243,ROW()-2,FALSE) -> 8610 | D21: 12 | E21: =HLOOKUP($A$1,$BY$3:$DV$243,ROW()-2,FALSE) -> 9000 | F21: 10 | G21: =HLOOKUP($A$1,$DW$3:$FT$243,ROW()-2,FALSE) -> 9800 | H21: 8 | I21: =HLOOKUP($A$1,$FU$3:$HR$243,ROW()-2,FALSE) -> 8400 | J21: 12 | K21: =HLOOKUP($A$1,$HS$3:$JP$243,ROW()-2,FALSE) -> 7840 | L21: 12 | M21: =HLOOKUP($A$1,$JQ$3:$LN$243,ROW()-2,FALSE) -> 9800 | N21: 9 | O21: =HLOOKUP($A$1,$LO$3:$NL$243,ROW()-2,FALSE) -> 9600 | P21: 9 | Q21: =HLOOKUP($A$1,$NM$3:$PJ$243,ROW()-2,FALSE) -> 0 | R21: - | S21: =HLOOKUP($A$1,$PK$3:$RH$243,ROW()-2,FALSE) -> 0 | T21: - | U21: =HLOOKUP($A$1,$RI$3:$TF$243,ROW()-2,FALSE) -> 0 | V21: - | W21: =HLOOKUP($A$1,$TG$3:$VD$243,ROW()-2,FALSE) -> 0 | X21: - | Y21: Yatağan | Z21: 22500 | AA21: 11670 | AB21: 0 | AC21: 500 | AD21: 880 | AE21: 0 | AF21: 1449 | AG21: 5134 | AH21: 1600 | AI21: 1386 | AJ21: 16000 | AK21: 0 | AL21: 4400 | AM21: 195 | AN21: 3375 | AO21: 1350 | AP21: 5000 | AQ21: 92 | AR21: 45645 | AS21: 0 | AT21: 1700 | AU21: 5600 | AV21: 0 | AW21: 692 | AX21: 3400 | AY21: 1600 | AZ21: 8610 | BA21: 0 | BB21: 1193 | BC21: 9600 | BD21: 2873 | BE21: 4221 | BF21: 320 | BG21: 8246 | BH21: 700 | BI21: 21174 | BJ21: 0 | BK21: 14400 | BL21: 2600 | BM21: 7605 | BN21: 560 | BO21: 18000 | BP21: 24000 | BQ21: 225 | BR21: 10650 | BS21: 15000 | BT21: 2240 | BU21: 7000 | BV21: 780 | BW21: 25200 | BX21: 2700 | BY21: 18560 | BZ21: 0 | CA21: 500 | CB21: 960 | CC21: 0 | CD21: 1000 | CE21: 5220 | CF21: 2273 | CG21: 1080 | CH21: 16768 | CI21: 0 | CJ21: 5950 | CK21: 772 | CL21: 2744 | CM21: 1800 | CN21: 4800 | CO21: 90 | CP21: 3400 | CQ21: 0 | CR21: 1680 | CS21: 2400 | CT21: 0 | CU21: 2000 | CV21: 2625 | CW21: 720 | CX21: 9000 | CY21: 83 | CZ21: 1463 | DA21: 5440 | DB21: 1050 | DC21: 5225 | DD21: 450 | DE21: 10400 | DF21: 750 | DG21: 21135 | DH21: 0 | DI21: 990 | DJ21: 17500 | DK21: 6930 | DL21: 560 | DM21: 5060 | DN21: 4480 | DO21: 237 | DP21: 10500 | DQ21: 12000 | DR21: 640 | DS21: 10500 | DT21: 660 | DU21: 22500 | DV21: 1200 | DW21: 25840 | DX21: 0 | DY21: 500 | DZ21: 960 | EA21: 0 | EB21: 848 | EC21: 4942 | ED21: 3612 | EE21: 845 | EF21: 19200 | EG21: 0 | EH21: 8000 | EI21: 2975 | EJ21: 6250 | EK21: 3600 | EL21: 3250 | EM21: 72 | EN21: 2500 | EO21: 0 | EP21: 2100 | EQ21: 750 | ER21: 0 | ES21: 2000 | ET21: 900 | EU21: 1260 | EV21: 9800 | EW21: 5 | EX21: 947 | EY21: 2800 | EZ21: 1200 | FA21: 3000 | FB21: 390 | FC21: 13250 | FD21: 480 | FE21: 21000 | FF21: 0 | FG21: 900 | FH21: 9000 | FI21: 6930 | FJ21: 560 | FK21: 4950 | FL21: 3375 | FM21: 237 | FN21: 24750 | FO21: 2880 | FP21: 910 | FQ21: 10500 | FR21: 1782 | FS21: 18000 | FT21: 1500 | FU21: 21847 | FV21: 0 | FW21: 1000 | FX21: 800 | FY21: 0 | FZ21: 791 | GA21: 5250 | GB21: 3360 | GC21: 780 | GD21: 18000 | GE21: 0 | GF21: 9600 | GG21: 2975 | GH21: 10000 | GI21: 8500 | GJ21: 3315 | GK21: 79 | GL21: 2500 | GM21: 0 | GN21: 2200 | GO21: 780 | GP21: 0 | GQ21: 2000 | GR21: 1344 | GS21: 1350 | GT21: 8400 | GU21: 464 | GV21: 4500 | GW21: 2800 | GX21: 2400 | GY21: 3000 | GZ21: 390 | HA21: 12500 | HB21: 512 | HC21: 21000 | HD21: 0 | HE21: 1440 | HF21: 9120 | HG21: 6930 | HH21: 640 | HI21: 4400 | HJ21: 4760 | HK21: 661 | HL21: 24360 | HM21: 2400 | HN21: 1400 | HO21: 12600 | HP21: 1782 | HQ21: 20000 | HR21: 1500 | HS21: 15800 | HT21: 0 | HU21: 1000 | HV21: 225 | HW21: 0 | HX21: 791 | HY21: 5117 | HZ21: 4560 | IA21: 720 | IB21: 18000 | IC21: 0 | ID21: 8700 | IE21: 1491 | IF21: 20375 | IG21: 3200 | IH21: 3354 | II21: 60 | IJ21: 2500 | IK21: 0 | IL21: 2000 | IM21: 825 | IN21: 0 | IO21: 1400 | IP21: 1500 | IQ21: 1494 | IR21: 7840 | IS21: 6052 | IT21: 3720 | IU21: 3280 | IV21: 3600 | IW21: 2688 | IX21: 390 | IY21: 12600 | IZ21: 63 | JA21: 16250 | JB21: 0 | JC21: 1440 | JD21: 9120 | JE21: 6545 | JF21: 640 | JG21: 8250 | JH21: 5523 | JI21: 661 | JJ21: 22950 | JK21: 4576 | JL21: 2625 | JM21: 12600 | JN21: 1703 | JO21: 15200 | JP21: 1650 | JQ21: 16000 | JR21: 0 | JS21: 400 | JT21: 225 | JU21: 0 | JV21: 750 | JW21: 5062 | JX21: 1140 | JY21: 825 | JZ21: 18000 | KA21: 0 | KB21: 8400 | KC21: 2982 | KD21: 20950 | KE21: 2000 | KF21: 2704 | KG21: 45 | KH21: 3600 | KI21: 0 | KJ21: 2900 | KK21: 975 | KL21: 0 | KM21: 3420 | KN21: 1500 | KO21: 1600 | KP21: 9800 | KQ21: 6660 | KR21: 3600 | KS21: 1700 | KT21: 3000 | KU21: 2688 | KV21: 455 | KW21: 12500 | KX21: 0 | KY21: 16250 | KZ21: 0 | LA21: 1800 | LB21: 9120 | LC21: 6545 | LD21: 325 | LE21: 8250 | LF21: 5320 | LG21: 691 | LH21: 18750 | LI21: 3000 | LJ21: 1750 | LK21: 12600 | LL21: 1586 | LM21: 23625 | LN21: 1350 | LO21: 16995 | LP21: 0 | LQ21: 400 | LR21: 180 | LS21: 0 | LT21: 750 | LU21: 5028 | LV21: 1140 | LW21: 550 | LX21: 18000 | LY21: 0 | LZ21: 5500 | MA21: 2625 | MB21: 26125 | MC21: 2400 | MD21: 2600 | ME21: 60 | MF21: 3600 | MG21: 0 | MH21: 2000 | MI21: 900 | MJ21: 0 | MK21: 2100 | ML21: 4200 | MM21: 1600 | MN21: 9600 | MO21: 6660 | MP21: 3000 | MQ21: 1700 | MR21: 3000 | MS21: 3750 | MT21: 455 | MU21: 10560 | MV21: 0 | MW21: 13000 | MX21: 0 | MY21: 1800 | MZ21: 8750 | NA21: 6545 | NB21: 309 | NC21: 8250 | ND21: 5145 | NE21: 598 | NF21: 17500 | NG21: 6450 | NH21: 1960 | NI21: 14000 | NJ21: 1337 | NK21: 15600 | NL21: 2250 | NM21: 0 | NN21: 0 | NO21: 0 | NP21: 0 | NQ21: 0 | NR21: 0 | NS21: 0 | NT21: 0 | NU21: 0 | NV21: 0 | NW21: 0 | NX21: 0 | NY21: 0 | NZ21: 0 | OA21: 0 | OB21: 0 | OC21: 0 | OD21: 0 | OE21: 0 | OF21: 0 | OG21: 0 | OH21: 0 | OI21: 0 | OJ21: 0 | OK21: 0 | OL21: 0 | OM21: 0 | ON21: 0 | OO21: 0 | OP21: 0 | OQ21: 0 | OR21: 0 | OS21: 0 | OT21: 0 | OU21: 0 | OV21: 0 | OW21: 0 | OX21: 0 | OY21: 0 | OZ21: 0 | PA21: 0 | PB21: 0 | PC21: 0 | PD21: 0 | PE21: 0 | PF21: 0 | PG21: 0 | PH21: 0 | PI21: 0 | PJ21: 0 | PK21: 0 | PL21: 0 | PM21: 0 | PN21: 0 | PO21: 0 | PP21: 0 | PQ21: 0 | PR21: 0 | PS21: 0 | PT21: 0 | PU21: 0 | PV21: 0 | PW21: 0 | PX21: 0 | PY21: 0 | PZ21: 0 | QA21: 0 | QB21: 0 | QC21: 0 | QD21: 0 | QE21: 0 | QF21: 0 | QG21: 0 | QH21: 0 | QI21: 0 | QJ21: 0 | QK21: 0 | QL21: 0 | QM21: 0 | QN21: 0 | QO21: 0 | QP21: 0 | QQ21: 0 | QR21: 0 | QS21: 0 | QT21: 0 | QU21: 0 | QV21: 0 | QW21: 0 | QX21: 0 | QY21: 0 | QZ21: 0 | RA21: 0 | RB21: 0 | RC21: 0 | RD21: 0 | RE21: 0 | RF21: 0 | RG21: 0 | RH21: 0 | RI21: 0 | RJ21: 0 | RK21: 0 | RL21: 0 | RM21: 0 | RN21: 0 | RO21: 0 | RP21: 0 | RQ21: 0 | RR21: 0 | RS21: 0 | RT21: 0 | RU21: 0 | RV21: 0 | RW21: 0 | RX21: 0 | RY21: 0 | RZ21: 0 | SA21: 0 | SB21: 0 | SC21: 0 | SD21: 0 | SE21: 0 | SF21: 0 | SG21: 0 | SH21: 0 | SI21: 0 | SJ21: 0 | SK21: 0 | SL21: 0 | SM21: 0 | SN21: 0 | SO21: 0 | SP21: 0 | SQ21: 0 | SR21: 0 | SS21: 0 | ST21: 0 | SU21: 0 | SV21: 0 | SW21: 0 | SX21: 0 | SY21: 0 | SZ21: 0 | TA21: 0 | TB21: 0 | TC21: 0 | TD21: 0 | TE21: 0 | TF21: 0 | TG21: 0 | TH21: 0 | TI21: 0 | TJ21: 0 | TK21: 0 | TL21: 0 | TM21: 0 | TN21: 0 | TO21: 0 | TP21: 0 | TQ21: 0 | TR21: 0 | TS21: 0 | TT21: 0 | TU21: 0 | TV21: 0 | TW21: 0 | TX21: 0 | TY21: 0 | TZ21: 0 | UA21: 0 | UB21: 0 | UC21: 0 | UD21: 0 | UE21: 0 | UF21: 0 | UG21: 0 | UH21: 0 | UI21: 0 | UJ21: 0 | UK21: 0 | UL21: 0 | UM21: 0 | UN21: 0 | UO21: 0 | UP21: 0 | UQ21: 0 | UR21: 0 | US21: 0 | UT21: 0 | UU21: 0 | UV21: 0 | UW21: 0 | UX21: 0 | UY21: 0 | UZ21: 0 | VA21: 0 | VB21: 0 | VC21: 0 | VD21: 0
A22: İncir | B22: ton | C22: =HLOOKUP($A$1,$AA$3:$BX$243,ROW()-2,FALSE) -> 2482 | D22: 12 | E22: =HLOOKUP($A$1,$BY$3:$DV$243,ROW()-2,FALSE) -> 3943 | F22: 10 | G22: =HLOOKUP($A$1,$DW$3:$FT$243,ROW()-2,FALSE) -> 4053 | H22: 10 | I22: =HLOOKUP($A$1,$FU$3:$HR$243,ROW()-2,FALSE) -> 4048 | J22: 10 | K22: =HLOOKUP($A$1,$HS$3:$JP$243,ROW()-2,FALSE) -> 4038 | L22: 10 | M22: =HLOOKUP($A$1,$JQ$3:$LN$243,ROW()-2,FALSE) -> 4416 | N22: 9 | O22: =HLOOKUP($A$1,$LO$3:$NL$243,ROW()-2,FALSE) -> 4451 | P22: 9 | Q22: =HLOOKUP($A$1,$NM$3:$PJ$243,ROW()-2,FALSE) -> 4451 | R22: 10 | S22: =HLOOKUP($A$1,$PK$3:$RH$243,ROW()-2,FALSE) -> 4350 | T22: 10 | U22: =HLOOKUP($A$1,$RI$3:$TF$243,ROW()-2,FALSE) -> 4138 | V22: 10 | W22: =HLOOKUP($A$1,$TG$3:$VD$243,ROW()-2,FALSE) -> 3310 | X22: 10 | Y22: Nazilli | Z22: 48187 | AA22: 0 | AB22: 5 | AC22: 0 | AD22: 0 | AE22: 0 | AF22: 272 | AG22: 9216 | AH22: 0 | AI22: 6195 | AJ22: 395 | AK22: 0 | AL22: 0 | AM22: 0 | AN22: 176 | AO22: 0 | AP22: 1801 | AQ22: 48 | AR22: 80 | AS22: 9966 | AT22: 155 | AU22: 38866 | AV22: 138 | AW22: 19 | AX22: 18321 | AY22: 81 | AZ22: 2482 | BA22: 143 | BB22: 4 | BC22: 2879 | BD22: 12957 | BE22: 193 | BF22: 500 | BG22: 11093 | BH22: 41 | BI22: 172 | BJ22: 0 | BK22: 2 | BL22: 156 | BM22: 54565 | BN22: 33 | BO22: 231 | BP22: 241 | BQ22: 0 | BR22: 293 | BS22: 653 | BT22: 9990 | BU22: 0 | BV22: 51 | BW22: 219 | BX22: 5219 | BY22: 0 | BZ22: 6 | CA22: 0 | CB22: 0 | CC22: 0 | CD22: 220 | CE22: 9624 | CF22: 0 | CG22: 5888 | CH22: 435 | CI22: 0 | CJ22: 0 | CK22: 0 | CL22: 196 | CM22: 0 | CN22: 498 | CO22: 49 | CP22: 134 | CQ22: 13182 | CR22: 151 | CS22: 34978 | CT22: 102 | CU22: 22 | CV22: 19441 | CW22: 90 | CX22: 3943 | CY22: 68 | CZ22: 3 | DA22: 2833 | DB22: 13425 | DC22: 221 | DD22: 383 | DE22: 12492 | DF22: 46 | DG22: 168 | DH22: 0 | DI22: 2 | DJ22: 190 | DK22: 48187 | DL22: 37 | DM22: 253 | DN22: 241 | DO22: 0 | DP22: 323 | DQ22: 833 | DR22: 21014 | DS22: 0 | DT22: 57 | DU22: 206 | DV22: 3824 | DW22: 0 | DX22: 6 | DY22: 0 | DZ22: 0 | EA22: 0 | EB22: 207 | EC22: 9169 | ED22: 0 | EE22: 6059 | EF22: 437 | EG22: 0 | EH22: 0 | EI22: 0 | EJ22: 180 | EK22: 0 | EL22: 509 | EM22: 50 | EN22: 138 | EO22: 13565 | EP22: 143 | EQ22: 35966 | ER22: 82 | ES22: 23 | ET22: 21500 | EU22: 62 | EV22: 4053 | EW22: 70 | EX22: 3 | EY22: 2915 | EZ22: 4605 | FA22: 226 | FB22: 394 | FC22: 12815 | FD22: 42 | FE22: 155 | FF22: 0 | FG22: 2 | FH22: 189 | FI22: 49462 | FJ22: 32 | FK22: 261 | FL22: 239 | FM22: 0 | FN22: 286 | FO22: 857 | FP22: 21625 | FQ22: 0 | FR22: 51 | FS22: 187 | FT22: 2973 | FU22: 0 | FV22: 6 | FW22: 0 | FX22: 0 | FY22: 0 | FZ22: 199 | GA22: 10624 | GB22: 0 | GC22: 6871 | GD22: 434 | GE22: 0 | GF22: 0 | GG22: 0 | GH22: 179 | GI22: 0 | GJ22: 503 | GK22: 50 | GL22: 138 | GM22: 13896 | GN22: 125 | GO22: 35930 | GP22: 89 | GQ22: 23 | GR22: 21475 | GS22: 74 | GT22: 4048 | GU22: 43 | GV22: 3 | GW22: 2912 | GX22: 4600 | GY22: 226 | GZ22: 958 | HA22: 12732 | HB22: 50 | HC22: 169 | HD22: 0 | HE22: 4 | HF22: 187 | HG22: 46180 | HH22: 21 | HI22: 240 | HJ22: 314 | HK22: 0 | HL22: 264 | HM22: 856 | HN22: 21000 | HO22: 0 | HP22: 47 | HQ22: 186 | HR22: 2970 | HS22: 0 | HT22: 6 | HU22: 0 | HV22: 0 | HW22: 0 | HX22: 207 | HY22: 9860 | HZ22: 0 | IA22: 7056 | IB22: 451 | IC22: 0 | ID22: 0 | IE22: 0 | IF22: 184 | IG22: 0 | IH22: 452 | II22: 10 | IJ22: 138 | IK22: 14521 | IL22: 113 | IM22: 40182 | IN22: 78 | IO22: 22 | IP22: 21039 | IQ22: 77 | IR22: 4038 | IS22: 41 | IT22: 0 | IU22: 2853 | IV22: 4703 | IW22: 161 | IX22: 960 | IY22: 4971 | IZ22: 17 | JA22: 150 | JB22: 0 | JC22: 3 | JD22: 144 | JE22: 46357 | JF22: 21 | JG22: 251 | JH22: 356 | JI22: 0 | JJ22: 210 | JK22: 823 | JL22: 21945 | JM22: 0 | JN22: 40 | JO22: 194 | JP22: 3104 | JQ22: 0 | JR22: 6 | JS22: 0 | JT22: 0 | JU22: 0 | JV22: 191 | JW22: 10591 | JX22: 0 | JY22: 6492 | JZ22: 430 | KA22: 0 | KB22: 0 | KC22: 0 | KD22: 181 | KE22: 0 | KF22: 345 | KG22: 10 | KH22: 102 | KI22: 14896 | KJ22: 79 | KK22: 52346 | KL22: 75 | KM22: 3 | KN22: 17863 | KO22: 144 | KP22: 4416 | KQ22: 34 | KR22: 0 | KS22: 2730 | KT22: 4500 | KU22: 154 | KV22: 783 | KW22: 4226 | KX22: 16 | KY22: 132 | KZ22: 0 | LA22: 3 | LB22: 118 | LC22: 47186 | LD22: 14 | LE22: 240 | LF22: 335 | LG22: 0 | LH22: 181 | LI22: 788 | LJ22: 18000 | LK22: 0 | LL22: 16 | LM22: 186 | LN22: 990 | LO22: 0 | LP22: 6 | LQ22: 0 | LR22: 0 | LS22: 0 | LT22: 136 | LU22: 11585 | LV22: 0 | LW22: 10056 | LX22: 426 | LY22: 0 | LZ22: 0 | MA22: 0 | MB22: 181 | MC22: 0 | MD22: 345 | ME22: 26 | MF22: 102 | MG22: 14028 | MH22: 70 | MI22: 51570 | MJ22: 75 | MK22: 50 | ML22: 20469 | MM22: 144 | MN22: 4451 | MO22: 94 | MP22: 0 | MQ22: 2730 | MR22: 4500 | MS22: 148 | MT22: 653 | MU22: 2601 | MV22: 16 | MW22: 132 | MX22: 0 | MY22: 3 | MZ22: 124 | NA22: 38231 | NB22: 14 | NC22: 239 | ND22: 332 | NE22: 0 | NF22: 174 | NG22: 788 | NH22: 21519 | NI22: 0 | NJ22: 16 | NK22: 186 | NL22: 990 | NM22: 0 | NN22: 6 | NO22: 0 | NP22: 0 | NQ22: 0 | NR22: 86 | NS22: 7700 | NT22: 0 | NU22: 6241 | NV22: 409 | NW22: 0 | NX22: 0 | NY22: 0 | NZ22: 170 | OA22: 0 | OB22: 330 | OC22: 31 | OD22: 99 | OE22: 14119 | OF22: 236 | OG22: 49678 | OH22: 73 | OI22: 50 | OJ22: 19580 | OK22: 166 | OL22: 4451 | OM22: 103 | ON22: 0 | OO22: 2730 | OP22: 5675 | OQ22: 148 | OR22: 1010 | OS22: 4718 | OT22: 11 | OU22: 45 | OV22: 0 | OW22: 3 | OX22: 120 | OY22: 51473 | OZ22: 14 | PA22: 110 | PB22: 318 | PC22: 0 | PD22: 62 | PE22: 762 | PF22: 17403 | PG22: 0 | PH22: 16 | PI22: 180 | PJ22: 958 | PK22: 0 | PL22: 6 | PM22: 0 | PN22: 0 | PO22: 0 | PP22: 89 | PQ22: 7623 | PR22: 0 | PS22: 6450 | PT22: 402 | PU22: 0 | PV22: 0 | PW22: 0 | PX22: 175 | PY22: 0 | PZ22: 341 | QA22: 28 | QB22: 102 | QC22: 14616 | QD22: 321 | QE22: 51340 | QF22: 75 | QG22: 51 | QH22: 20235 | QI22: 190 | QJ22: 4350 | QK22: 107 | QL22: 0 | QM22: 2821 | QN22: 5865 | QO22: 124 | QP22: 909 | QQ22: 4860 | QR22: 11 | QS22: 92 | QT22: 99 | QU22: 0 | QV22: 120 | QW22: 30846 | QX22: 14 | QY22: 12 | QZ22: 324 | RA22: 0 | RB22: 0 | RC22: 788 | RD22: 19560 | RE22: 0 | RF22: 16 | RG22: 188 | RH22: 990 | RI22: 0 | RJ22: 6 | RK22: 0 | RL22: 0 | RM22: 0 | RN22: 89 | RO22: 7920 | RP22: 0 | RQ22: 6450 | RR22: 383 | RS22: 7 | RT22: 0 | RU22: 0 | RV22: 167 | RW22: 0 | RX22: 337 | RY22: 28 | RZ22: 102 | SA22: 13934 | SB22: 315 | SC22: 47735 | SD22: 75 | SE22: 50 | SF22: 20235 | SG22: 105 | SH22: 4138 | SI22: 73 | SJ22: 0 | SK22: 2782 | SL22: 5775 | SM22: 94 | SN22: 758 | SO22: 4851 | SP22: 11 | SQ22: 94 | SR22: 94 | SS22: 0 | ST22: 120 | SU22: 29222 | SV22: 14 | SW22: 7 | SX22: 320 | SY22: 0 | SZ22: 0 | TA22: 719 | TB22: 22500 | TC22: 0 | TD22: 13 | TE22: 188 | TF22: 990 | TG22: 0 | TH22: 5 | TI22: 0 | TJ22: 0 | TK22: 0 | TL22: 80 | TM22: 9000 | TN22: 0 | TO22: 6450 | TP22: 281 | TQ22: 7 | TR22: 0 | TS22: 0 | TT22: 167 | TU22: 0 | TV22: 337 | TW22: 28 | TX22: 142 | TY22: 13818 | TZ22: 285 | UA22: 40912 | UB22: 75 | UC22: 50 | UD22: 17030 | UE22: 124 | UF22: 3310 | UG22: 28 | UH22: 0 | UI22: 2693 | UJ22: 5040 | UK22: 49 | UL22: 735 | UM22: 4836 | UN22: 14 | UO22: 94 | UP22: 89 | UQ22: 0 | UR22: 102 | US22: 35828 | UT22: 14 | UU22: 7 | UV22: 335 | UW22: 0 | UX22: 0 | UY22: 651 | UZ22: 20500 | VA22: 0 | VB22: 4 | VC22: 188 | VD22: 975
A23: Elma(Golden) | B23: ton | C23: =HLOOKUP($A$1,$AA$3:$BX$243,ROW()-2,FALSE) -> 914 | D23: 10 | E23: =HLOOKUP($A$1,$BY$3:$DV$243,ROW()-2,FALSE) -> 1034 | F23: 10 | G23: =HLOOKUP($A$1,$DW$3:$FT$243,ROW()-2,FALSE) -> 1034 | H23: 10 | I23: =HLOOKUP($A$1,$FU$3:$HR$243,ROW()-2,FALSE) -> 1081 | J23: 9 | K23: =HLOOKUP($A$1,$HS$3:$JP$243,ROW()-2,FALSE) -> 1078 | L23: 8 | M23: =HLOOKUP($A$1,$JQ$3:$LN$243,ROW()-2,FALSE) -> 940 | N23: 11 | O23: =HLOOKUP($A$1,$LO$3:$NL$243,ROW()-2,FALSE) -> 940 | P23: 12 | Q23: =HLOOKUP($A$1,$NM$3:$PJ$243,ROW()-2,FALSE) -> 940 | R23: 12 | S23: =HLOOKUP($A$1,$PK$3:$RH$243,ROW()-2,FALSE) -> 823 | T23: 13 | U23: =HLOOKUP($A$1,$RI$3:$TF$243,ROW()-2,FALSE) -> 823 | V23: 11 | W23: =HLOOKUP($A$1,$TG$3:$VD$243,ROW()-2,FALSE) -> 705 | X23: 10 | Y23: Çivril | Z23: 6195 | AA23: 169 | AB23: 111 | AC23: 184 | AD23: 15 | AE23: 14 | AF23: 0 | AG23: 453 | AH23: 33 | AI23: 1180 | AJ23: 1069 | AK23: 688 | AL23: 5424 | AM23: 60 | AN23: 638 | AO23: 9951 | AP23: 117 | AQ23: 0 | AR23: 0 | AS23: 134 | AT23: 0 | AU23: 4 | AV23: 242 | AW23: 160 | AX23: 5 | AY23: 159 | AZ23: 914 | BA23: 19 | BB23: 444 | BC23: 29 | BD23: 125 | BE23: 367 | BF23: 0 | BG23: 2498 | BH23: 0 | BI23: 1730 | BJ23: 0 | BK23: 6 | BL23: 0 | BM23: 235 | BN23: 0 | BO23: 1836 | BP23: 36 | BQ23: 500 | BR23: 1600 | BS23: 0 | BT23: 1050 | BU23: 0 | BV23: 8 | BW23: 101 | BX23: 3 | BY23: 140 | BZ23: 111 | CA23: 184 | CB23: 15 | CC23: 14 | CD23: 0 | CE23: 492 | CF23: 35 | CG23: 1180 | CH23: 1096 | CI23: 668 | CJ23: 5259 | CK23: 100 | CL23: 634 | CM23: 6195 | CN23: 22 | CO23: 0 | CP23: 0 | CQ23: 138 | CR23: 0 | CS23: 4 | CT23: 240 | CU23: 706 | CV23: 5 | CW23: 182 | CX23: 1034 | CY23: 20 | CZ23: 435 | DA23: 38 | DB23: 125 | DC23: 380 | DD23: 0 | DE23: 2556 | DF23: 0 | DG23: 1552 | DH23: 0 | DI23: 6 | DJ23: 0 | DK23: 284 | DL23: 0 | DM23: 1573 | DN23: 35 | DO23: 708 | DP23: 1514 | DQ23: 0 | DR23: 1050 | DS23: 0 | DT23: 7 | DU23: 90 | DV23: 3 | DW23: 137 | DX23: 111 | DY23: 184 | DZ23: 15 | EA23: 13 | EB23: 0 | EC23: 477 | ED23: 35 | EE23: 1180 | EF23: 1565 | EG23: 648 | EH23: 4681 | EI23: 100 | EJ23: 640 | EK23: 12412 | EL23: 25 | EM23: 0 | EN23: 0 | EO23: 138 | EP23: 0 | EQ23: 4 | ER23: 14 | ES23: 706 | ET23: 5 | EU23: 186 | EV23: 1034 | EW23: 20 | EX23: 428 | EY23: 38 | EZ23: 125 | FA23: 380 | FB23: 0 | FC23: 2790 | FD23: 0 | FE23: 1474 | FF23: 0 | FG23: 3 | FH23: 0 | FI23: 189 | FJ23: 0 | FK23: 1573 | FL23: 38 | FM23: 750 | FN23: 1507 | FO23: 0 | FP23: 1050 | FQ23: 0 | FR23: 18 | FS23: 78 | FT23: 15 | FU23: 133 | FV23: 111 | FW23: 184 | FX23: 15 | FY23: 13 | FZ23: 0 | GA23: 447 | GB23: 26 | GC23: 1155 | GD23: 1300 | GE23: 648 | GF23: 4556 | GG23: 100 | GH23: 616 | GI23: 7701 | GJ23: 36 | GK23: 0 | GL23: 0 | GM23: 137 | GN23: 0 | GO23: 4 | GP23: 104 | GQ23: 878 | GR23: 5 | GS23: 191 | GT23: 1081 | GU23: 67 | GV23: 459 | GW23: 38 | GX23: 125 | GY23: 380 | GZ23: 0 | HA23: 2884 | HB23: 0 | HC23: 1474 | HD23: 0 | HE23: 2 | HF23: 0 | HG23: 189 | HH23: 0 | HI23: 1630 | HJ23: 35 | HK23: 840 | HL23: 1442 | HM23: 0 | HN23: 1050 | HO23: 0 | HP23: 18 | HQ23: 82 | HR23: 15 | HS23: 127 | HT23: 221 | HU23: 176 | HV23: 14 | HW23: 13 | HX23: 0 | HY23: 401 | HZ23: 29 | IA23: 1058 | IB23: 1240 | IC23: 695 | ID23: 3456 | IE23: 94 | IF23: 593 | IG23: 12063 | IH23: 34 | II23: 0 | IJ23: 0 | IK23: 134 | IL23: 0 | IM23: 4 | IN23: 100 | IO23: 860 | IP23: 5 | IQ23: 178 | IR23: 1078 | IS23: 68 | IT23: 452 | IU23: 38 | IV23: 120 | IW23: 411 | IX23: 0 | IY23: 3241 | IZ23: 0 | JA23: 1228 | JB23: 0 | JC23: 0 | JD23: 0 | JE23: 187 | JF23: 0 | JG23: 1633 | JH23: 33 | JI23: 849 | JJ23: 1215 | JK23: 0 | JL23: 1004 | JM23: 0 | JN23: 17 | JO23: 78 | JP23: 14 | JQ23: 67 | JR23: 231 | JS23: 22 | JT23: 14 | JU23: 14 | JV23: 0 | JW23: 375 | JX23: 24 | JY23: 1224 | JZ23: 1294 | KA23: 808 | KB23: 2489 | KC23: 98 | KD23: 624 | KE23: 6170 | KF23: 37 | KG23: 0 | KH23: 0 | KI23: 140 | KJ23: 0 | KK23: 4 | KL23: 70 | KM23: 958 | KN23: 5 | KO23: 212 | KP23: 940 | KQ23: 71 | KR23: 461 | KS23: 40 | KT23: 125 | KU23: 468 | KV23: 0 | KW23: 3630 | KX23: 0 | KY23: 1460 | KZ23: 0 | LA23: 0 | LB23: 0 | LC23: 189 | LD23: 0 | LE23: 1704 | LF23: 34 | LG23: 118 | LH23: 1262 | LI23: 0 | LJ23: 1485 | LK23: 0 | LL23: 18 | LM23: 78 | LN23: 15 | LO23: 335 | LP23: 228 | LQ23: 220 | LR23: 10 | LS23: 14 | LT23: 0 | LU23: 359 | LV23: 24 | LW23: 1108 | LX23: 1290 | LY23: 923 | LZ23: 2489 | MA23: 98 | MB23: 634 | MC23: 12186 | MD23: 38 | ME23: 0 | MF23: 0 | MG23: 140 | MH23: 41 | MI23: 4 | MJ23: 98 | MK23: 964 | ML23: 5 | MM23: 239 | MN23: 940 | MO23: 71 | MP23: 461 | MQ23: 40 | MR23: 125 | MS23: 440 | MT23: 0 | MU23: 3626 | MV23: 0 | MW23: 1480 | MX23: 0 | MY23: 0 | MZ23: 0 | NA23: 196 | NB23: 0 | NC23: 1684 | ND23: 33 | NE23: 1080 | NF23: 1255 | NG23: 0 | NH23: 1485 | NI23: 0 | NJ23: 109 | NK23: 65 | NL23: 15 | NM23: 504 | NN23: 228 | NO23: 297 | NP23: 10 | NQ23: 14 | NR23: 0 | NS23: 359 | NT23: 24 | NU23: 1108 | NV23: 1384 | NW23: 1586 | NX23: 2478 | NY23: 92 | NZ23: 633 | OA23: 11627 | OB23: 34 | OC23: 0 | OD23: 0 | OE23: 140 | OF23: 1304 | OG23: 4 | OH23: 98 | OI23: 968 | OJ23: 5 | OK23: 263 | OL23: 940 | OM23: 80 | ON23: 249 | OO23: 40 | OP23: 125 | OQ23: 400 | OR23: 0 | OS23: 3627 | OT23: 0 | OU23: 900 | OV23: 0 | OW23: 0 | OX23: 0 | OY23: 196 | OZ23: 0 | PA23: 1735 | PB23: 33 | PC23: 1075 | PD23: 500 | PE23: 0 | PF23: 1485 | PG23: 0 | PH23: 109 | PI23: 65 | PJ23: 15 | PK23: 504 | PL23: 225 | PM23: 762 | PN23: 14 | PO23: 14 | PP23: 0 | PQ23: 361 | PR23: 24 | PS23: 1100 | PT23: 1097 | PU23: 1043 | PV23: 3170 | PW23: 88 | PX23: 636 | PY23: 15899 | PZ23: 35 | QA23: 0 | QB23: 0 | QC23: 132 | QD23: 1260 | QE23: 4 | QF23: 93 | QG23: 980 | QH23: 5 | QI23: 287 | QJ23: 823 | QK23: 80 | QL23: 250 | QM23: 40 | QN23: 115 | QO23: 348 | QP23: 0 | QQ23: 3626 | QR23: 0 | QS23: 1400 | QT23: 1802 | QU23: 0 | QV23: 0 | QW23: 196 | QX23: 0 | QY23: 36 | QZ23: 33 | RA23: 960 | RB23: 0 | RC23: 0 | RD23: 1485 | RE23: 0 | RF23: 109 | RG23: 65 | RH23: 0 | RI23: 402 | RJ23: 225 | RK23: 721 | RL23: 12 | RM23: 24 | RN23: 0 | RO23: 227 | RP23: 21 | RQ23: 1100 | RR23: 4034 | RS23: 735 | RT23: 5511 | RU23: 78 | RV23: 632 | RW23: 16219 | RX23: 36 | RY23: 0 | RZ23: 0 | SA23: 132 | SB23: 1222 | SC23: 4 | SD23: 93 | SE23: 1000 | SF23: 5 | SG23: 264 | SH23: 823 | SI23: 80 | SJ23: 250 | SK23: 39 | SL23: 69 | SM23: 328 | SN23: 0 | SO23: 3233 | SP23: 0 | SQ23: 1313 | SR23: 1504 | SS23: 0 | ST23: 0 | SU23: 196 | SV23: 0 | SW23: 35 | SX23: 35 | SY23: 780 | SZ23: 0 | TA23: 0 | TB23: 1485 | TC23: 0 | TD23: 114 | TE23: 54 | TF23: 0 | TG23: 402 | TH23: 225 | TI23: 698 | TJ23: 14 | TK23: 24 | TL23: 0 | TM23: 453 | TN23: 16 | TO23: 1100 | TP23: 3765 | TQ23: 514 | TR23: 4646 | TS23: 70 | TT23: 632 | TU23: 22505 | TV23: 38 | TW23: 0 | TX23: 0 | TY23: 165 | TZ23: 1538 | UA23: 4 | UB23: 93 | UC23: 693 | UD23: 5 | UE23: 315 | UF23: 705 | UG23: 79 | UH23: 250 | UI23: 46 | UJ23: 63 | UK23: 296 | UL23: 0 | UM23: 3231 | UN23: 0 | UO23: 1295 | UP23: 794 | UQ23: 0 | UR23: 0 | US23: 411 | UT23: 0 | UU23: 35 | UV23: 35 | UW23: 630 | UX23: 0 | UY23: 0 | UZ23: 1485 | VA23: 0 | VB23: 104 | VC23: 54 | VD23: 0
A24: Kestane | B24: ton | C24: =HLOOKUP($A$1,$AA$3:$BX$243,ROW()-2,FALSE) -> 168 | D24: 10 | E24: =HLOOKUP($A$1,$BY$3:$DV$243,ROW()-2,FALSE) -> 165 | F24: 10 | G24: =HLOOKUP($A$1,$DW$3:$FT$243,ROW()-2,FALSE) -> 144 | H24: 10 | I24: =HLOOKUP($A$1,$FU$3:$HR$243,ROW()-2,FALSE) -> 143 | J24: 10 | K24: =HLOOKUP($A$1,$HS$3:$JP$243,ROW()-2,FALSE) -> 147 | L24: 10 | M24: =HLOOKUP($A$1,$JQ$3:$LN$243,ROW()-2,FALSE) -> 135 | N24: 10 | O24: =HLOOKUP($A$1,$LO$3:$NL$243,ROW()-2,FALSE) -> 144 | P24: 10 | Q24: =HLOOKUP($A$1,$NM$3:$PJ$243,ROW()-2,FALSE) -> 144 | R24: 10 | S24: =HLOOKUP($A$1,$PK$3:$RH$243,ROW()-2,FALSE) -> 126 | T24: 10 | U24: =HLOOKUP($A$1,$RI$3:$TF$243,ROW()-2,FALSE) -> 126 | V24: 10 | W24: =HLOOKUP($A$1,$TG$3:$VD$243,ROW()-2,FALSE) -> 144 | X24: 10 | Y24: Nazilli | Z24: 18016 | AA24: 0 | AB24: 1080 | AC24: 0 | AD24: 0 | AE24: 0 | AF24: 0 | AG24: 1029 | AH24: 0 | AI24: 162 | AJ24: 706 | AK24: 0 | AL24: 0 | AM24: 0 | AN24: 983 | AO24: 0 | AP24: 0 | AQ24: 0 | AR24: 0 | AS24: 778 | AT24: 0 | AU24: 0 | AV24: 0 | AW24: 0 | AX24: 0 | AY24: 0 | AZ24: 168 | BA24: 17 | BB24: 79 | BC24: 28 | BD24: 4539 | BE24: 0 | BF24: 0 | BG24: 622 | BH24: 0 | BI24: 17 | BJ24: 0 | BK24: 0 | BL24: 23 | BM24: 11455 | BN24: 0 | BO24: 0 | BP24: 0 | BQ24: 0 | BR24: 0 | BS24: 0 | BT24: 5715 | BU24: 0 | BV24: 0 | BW24: 3 | BX24: 10 | BY24: 0 | BZ24: 1068 | CA24: 0 | CB24: 0 | CC24: 0 | CD24: 0 | CE24: 580 | CF24: 0 | CG24: 161 | CH24: 709 | CI24: 0 | CJ24: 0 | CK24: 0 | CL24: 983 | CM24: 0 | CN24: 0 | CO24: 0 | CP24: 0 | CQ24: 635 | CR24: 0 | CS24: 0 | CT24: 0 | CU24: 0 | CV24: 0 | CW24: 0 | CX24: 165 | CY24: 16 | CZ24: 71 | DA24: 27 | DB24: 5424 | DC24: 0 | DD24: 0 | DE24: 516 | DF24: 0 | DG24: 14 | DH24: 0 | DI24: 0 | DJ24: 0 | DK24: 18016 | DL24: 0 | DM24: 0 | DN24: 0 | DO24: 0 | DP24: 0 | DQ24: 0 | DR24: 5699 | DS24: 0 | DT24: 0 | DU24: 0 | DV24: 10 | DW24: 0 | DX24: 1064 | DY24: 0 | DZ24: 0 | EA24: 0 | EB24: 0 | EC24: 593 | ED24: 0 | EE24: 64 | EF24: 697 | EG24: 0 | EH24: 0 | EI24: 0 | EJ24: 988 | EK24: 0 | EL24: 0 | EM24: 0 | EN24: 0 | EO24: 635 | EP24: 0 | EQ24: 0 | ER24: 0 | ES24: 0 | ET24: 0 | EU24: 0 | EV24: 144 | EW24: 16 | EX24: 70 | EY24: 27 | EZ24: 5425 | FA24: 0 | FB24: 0 | FC24: 513 | FD24: 0 | FE24: 12 | FF24: 0 | FG24: 0 | FH24: 0 | FI24: 12133 | FJ24: 0 | FK24: 0 | FL24: 0 | FM24: 0 | FN24: 0 | FO24: 0 | FP24: 5700 | FQ24: 0 | FR24: 0 | FS24: 0 | FT24: 10 | FU24: 0 | FV24: 1064 | FW24: 0 | FX24: 0 | FY24: 0 | FZ24: 0 | GA24: 529 | GB24: 0 | GC24: 64 | GD24: 834 | GE24: 0 | GF24: 0 | GG24: 0 | GH24: 985 | GI24: 0 | GJ24: 0 | GK24: 0 | GL24: 0 | GM24: 635 | GN24: 0 | GO24: 0 | GP24: 0 | GQ24: 0 | GR24: 0 | GS24: 0 | GT24: 143 | GU24: 10 | GV24: 81 | GW24: 27 | GX24: 5425 | GY24: 0 | GZ24: 0 | HA24: 510 | HB24: 0 | HC24: 12 | HD24: 0 | HE24: 0 | HF24: 0 | HG24: 10266 | HH24: 0 | HI24: 0 | HJ24: 0 | HK24: 0 | HL24: 0 | HM24: 0 | HN24: 5700 | HO24: 0 | HP24: 0 | HQ24: 0 | HR24: 10 | HS24: 0 | HT24: 1189 | HU24: 0 | HV24: 0 | HW24: 0 | HX24: 0 | HY24: 521 | HZ24: 0 | IA24: 63 | IB24: 931 | IC24: 0 | ID24: 0 | IE24: 0 | IF24: 1220 | IG24: 0 | IH24: 0 | II24: 0 | IJ24: 0 | IK24: 632 | IL24: 0 | IM24: 0 | IN24: 0 | IO24: 0 | IP24: 0 | IQ24: 0 | IR24: 147 | IS24: 11 | IT24: 94 | IU24: 26 | IV24: 5796 | IW24: 0 | IX24: 0 | IY24: 497 | IZ24: 0 | JA24: 11 | JB24: 0 | JC24: 0 | JD24: 0 | JE24: 10115 | JF24: 0 | JG24: 0 | JH24: 0 | JI24: 0 | JJ24: 0 | JK24: 0 | JL24: 6384 | JM24: 0 | JN24: 0 | JO24: 0 | JP24: 11 | JQ24: 0 | JR24: 1062 | JS24: 0 | JT24: 0 | JU24: 0 | JV24: 0 | JW24: 922 | JX24: 0 | JY24: 60 | JZ24: 829 | KA24: 0 | KB24: 0 | KC24: 0 | KD24: 1095 | KE24: 0 | KF24: 0 | KG24: 0 | KH24: 0 | KI24: 635 | KJ24: 0 | KK24: 0 | KL24: 0 | KM24: 0 | KN24: 0 | KO24: 0 | KP24: 135 | KQ24: 10 | KR24: 81 | KS24: 23 | KT24: 4752 | KU24: 0 | KV24: 0 | KW24: 422 | KX24: 0 | KY24: 9 | KZ24: 0 | LA24: 0 | LB24: 0 | LC24: 8900 | LD24: 0 | LE24: 0 | LF24: 0 | LG24: 0 | LH24: 0 | LI24: 0 | LJ24: 4251 | LK24: 0 | LL24: 0 | LM24: 0 | LN24: 10 | LO24: 0 | LP24: 1062 | LQ24: 0 | LR24: 0 | LS24: 0 | LT24: 0 | LU24: 890 | LV24: 0 | LW24: 55 | LX24: 826 | LY24: 0 | LZ24: 0 | MA24: 0 | MB24: 1085 | MC24: 0 | MD24: 0 | ME24: 0 | MF24: 0 | MG24: 635 | MH24: 0 | MI24: 0 | MJ24: 0 | MK24: 0 | ML24: 0 | MM24: 0 | MN24: 144 | MO24: 10 | MP24: 81 | MQ24: 23 | MR24: 5175 | MS24: 0 | MT24: 0 | MU24: 422 | MV24: 0 | MW24: 6 | MX24: 0 | MY24: 0 | MZ24: 0 | NA24: 7866 | NB24: 0 | NC24: 0 | ND24: 0 | NE24: 0 | NF24: 0 | NG24: 0 | NH24: 4674 | NI24: 0 | NJ24: 0 | NK24: 0 | NL24: 10 | NM24: 0 | NN24: 1062 | NO24: 0 | NP24: 0 | NQ24: 0 | NR24: 0 | NS24: 831 | NT24: 0 | NU24: 55 | NV24: 848 | NW24: 0 | NX24: 0 | NY24: 0 | NZ24: 1075 | OA24: 0 | OB24: 0 | OC24: 0 | OD24: 0 | OE24: 635 | OF24: 0 | OG24: 0 | OH24: 0 | OI24: 0 | OJ24: 0 | OK24: 0 | OL24: 144 | OM24: 98 | ON24: 42 | OO24: 23 | OP24: 4678 | OQ24: 0 | OR24: 0 | OS24: 443 | OT24: 0 | OU24: 4 | OV24: 0 | OW24: 0 | OX24: 0 | OY24: 8740 | OZ24: 0 | PA24: 0 | PB24: 0 | PC24: 0 | PD24: 0 | PE24: 0 | PF24: 4674 | PG24: 0 | PH24: 0 | PI24: 0 | PJ24: 10 | PK24: 0 | PL24: 1000 | PM24: 0 | PN24: 0 | PO24: 0 | PP24: 0 | PQ24: 744 | PR24: 0 | PS24: 55 | PT24: 541 | PU24: 0 | PV24: 0 | PW24: 0 | PX24: 1068 | PY24: 0 | PZ24: 0 | QA24: 0 | QB24: 0 | QC24: 524 | QD24: 0 | QE24: 0 | QF24: 0 | QG24: 0 | QH24: 0 | QI24: 0 | QJ24: 126 | QK24: 98 | QL24: 42 | QM24: 23 | QN24: 4928 | QO24: 0 | QP24: 0 | QQ24: 443 | QR24: 0 | QS24: 4 | QT24: 4 | QU24: 0 | QV24: 0 | QW24: 7151 | QX24: 0 | QY24: 0 | QZ24: 0 | RA24: 0 | RB24: 0 | RC24: 0 | RD24: 4612 | RE24: 0 | RF24: 0 | RG24: 0 | RH24: 10 | RI24: 0 | RJ24: 1000 | RK24: 0 | RL24: 0 | RM24: 0 | RN24: 0 | RO24: 660 | RP24: 0 | RQ24: 55 | RR24: 538 | RS24: 0 | RT24: 0 | RU24: 0 | RV24: 1056 | RW24: 0 | RX24: 0 | RY24: 0 | RZ24: 0 | SA24: 489 | SB24: 0 | SC24: 0 | SD24: 0 | SE24: 0 | SF24: 0 | SG24: 0 | SH24: 126 | SI24: 98 | SJ24: 42 | SK24: 20 | SL24: 4675 | SM24: 0 | SN24: 0 | SO24: 279 | SP24: 0 | SQ24: 5 | SR24: 3 | SS24: 0 | ST24: 0 | SU24: 8295 | SV24: 0 | SW24: 0 | SX24: 0 | SY24: 0 | SZ24: 0 | TA24: 0 | TB24: 4612 | TC24: 0 | TD24: 0 | TE24: 0 | TF24: 10 | TG24: 0 | TH24: 1000 | TI24: 0 | TJ24: 0 | TK24: 0 | TL24: 0 | TM24: 630 | TN24: 0 | TO24: 55 | TP24: 484 | TQ24: 0 | TR24: 0 | TS24: 0 | TT24: 1056 | TU24: 0 | TV24: 0 | TW24: 0 | TX24: 0 | TY24: 441 | TZ24: 0 | UA24: 0 | UB24: 0 | UC24: 0 | UD24: 0 | UE24: 0 | UF24: 144 | UG24: 98 | UH24: 39 | UI24: 36 | UJ24: 2685 | UK24: 0 | UL24: 0 | UM24: 279 | UN24: 0 | UO24: 5 | UP24: 3 | UQ24: 0 | UR24: 0 | US24: 8559 | UT24: 0 | UU24: 0 | UV24: 0 | UW24: 0 | UX24: 0 | UY24: 0 | UZ24: 4612 | VA24: 0 | VB24: 0 | VC24: 0 | VD24: 10
A25: Zeytin(Yağlık) | B25: ton | C25: =HLOOKUP($A$1,$AA$3:$BX$243,ROW()-2,FALSE) -> 5085 | D25: 8 | E25: =HLOOKUP($A$1,$BY$3:$DV$243,ROW()-2,FALSE) -> 14231 | F25: 11 | G25: =HLOOKUP($A$1,$DW$3:$FT$243,ROW()-2,FALSE) -> 18000 | H25: 3 | I25: =HLOOKUP($A$1,$FU$3:$HR$243,ROW()-2,FALSE) -> 6830 | J25: 22 | K25: =HLOOKUP($A$1,$HS$3:$JP$243,ROW()-2,FALSE) -> 2282 | L25: 24 | M25: =HLOOKUP($A$1,$JQ$3:$LN$243,ROW()-2,FALSE) -> 2917 | N25: 24 | O25: =HLOOKUP($A$1,$LO$3:$NL$243,ROW()-2,FALSE) -> 4567 | P25: 25 | Q25: =HLOOKUP($A$1,$NM$3:$PJ$243,ROW()-2,FALSE) -> 4567 | R25: 23 | S25: =HLOOKUP($A$1,$PK$3:$RH$243,ROW()-2,FALSE) -> 4157 | T25: 22 | U25: =HLOOKUP($A$1,$RI$3:$TF$243,ROW()-2,FALSE) -> 3840 | V25: 23 | W25: =HLOOKUP($A$1,$TG$3:$VD$243,ROW()-2,FALSE) -> 1350 | X25: 28 | Y25: Milas | Z25: 77545 | AA25: 0 | AB25: 257 | AC25: 0 | AD25: 0 | AE25: 63 | AF25: 4087 | AG25: 11577 | AH25: 0 | AI25: 121 | AJ25: 1057 | AK25: 33 | AL25: 0 | AM25: 0 | AN25: 6307 | AO25: 0 | AP25: 2778 | AQ25: 817 | AR25: 4084 | AS25: 2866 | AT25: 2390 | AU25: 7376 | AV25: 1620 | AW25: 14 | AX25: 2533 | AY25: 528 | AZ25: 5085 | BA25: 5571 | BB25: 332 | BC25: 3355 | BD25: 1707 | BE25: 309 | BF25: 1861 | BG25: 3658 | BH25: 294 | BI25: 9442 | BJ25: 0 | BK25: 53 | BL25: 13421 | BM25: 2899 | BN25: 597 | BO25: 1492 | BP25: 1465 | BQ25: 0 | BR25: 4649 | BS25: 10110 | BT25: 2851 | BU25: 638 | BV25: 932 | BW25: 3760 | BX25: 3565 | BY25: 0 | BZ25: 52 | CA25: 0 | CB25: 0 | CC25: 59 | CD25: 5000 | CE25: 15000 | CF25: 0 | CG25: 50 | CH25: 199 | CI25: 26 | CJ25: 0 | CK25: 0 | CL25: 37500 | CM25: 0 | CN25: 11000 | CO25: 5263 | CP25: 8000 | CQ25: 40000 | CR25: 5000 | CS25: 20000 | CT25: 225 | CU25: 14 | CV25: 10000 | CW25: 578 | CX25: 14231 | CY25: 15000 | CZ25: 412 | DA25: 38851 | DB25: 35000 | DC25: 2000 | DD25: 7200 | DE25: 5000 | DF25: 550 | DG25: 1500 | DH25: 0 | DI25: 22 | DJ25: 77545 | DK25: 12500 | DL25: 1000 | DM25: 304 | DN25: 351 | DO25: 0 | DP25: 23000 | DQ25: 35000 | DR25: 12500 | DS25: 199 | DT25: 550 | DU25: 8750 | DV25: 5000 | DW25: 0 | DX25: 176 | DY25: 0 | DZ25: 0 | EA25: 111 | EB25: 2000 | EC25: 21250 | ED25: 0 | EE25: 250 | EF25: 1259 | EG25: 31 | EH25: 0 | EI25: 0 | EJ25: 13750 | EK25: 0 | EL25: 2250 | EM25: 1000 | EN25: 9000 | EO25: 10000 | EP25: 5000 | EQ25: 20000 | ER25: 1640 | ES25: 19 | ET25: 8500 | EU25: 3186 | EV25: 18000 | EW25: 6500 | EX25: 100 | EY25: 8750 | EZ25: 4000 | FA25: 2750 | FB25: 3150 | FC25: 9254 | FD25: 250 | FE25: 500 | FF25: 0 | FG25: 52 | FH25: 12500 | FI25: 7500 | FJ25: 600 | FK25: 1288 | FL25: 2798 | FM25: 0 | FN25: 5500 | FO25: 15500 | FP25: 10000 | FQ25: 585 | FR25: 250 | FS25: 6000 | FT25: 3500 | FU25: 0 | FV25: 161 | FW25: 0 | FX25: 0 | FY25: 101 | FZ25: 15812 | GA25: 34680 | GB25: 0 | GC25: 222 | GD25: 896 | GE25: 29 | GF25: 0 | GG25: 0 | GH25: 51479 | GI25: 0 | GJ25: 11190 | GK25: 2446 | GL25: 14715 | GM25: 25668 | GN25: 14744 | GO25: 27374 | GP25: 1466 | GQ25: 20 | GR25: 20250 | GS25: 2418 | GT25: 6830 | GU25: 19107 | GV25: 1807 | GW25: 63585 | GX25: 25224 | GY25: 3102 | GZ25: 3761 | HA25: 13643 | HB25: 1356 | HC25: 19099 | HD25: 0 | HE25: 48 | HF25: 86543 | HG25: 20364 | HH25: 2482 | HI25: 1137 | HJ25: 2419 | HK25: 0 | HL25: 8733 | HM25: 33060 | HN25: 18127 | HO25: 0 | HP25: 4524 | HQ25: 24342 | HR25: 14107 | HS25: 0 | HT25: 119 | HU25: 0 | HV25: 0 | HW25: 53 | HX25: 12743 | HY25: 20391 | HZ25: 0 | IA25: 190 | IB25: 659 | IC25: 30 | ID25: 0 | IE25: 0 | IF25: 27004 | IG25: 0 | IH25: 11858 | II25: 2726 | IJ25: 9450 | IK25: 16479 | IL25: 8161 | IM25: 17566 | IN25: 971 | IO25: 10 | IP25: 7725 | IQ25: 1590 | IR25: 2282 | IS25: 17533 | IT25: 1656 | IU25: 11609 | IV25: 16200 | IW25: 2084 | IX25: 1208 | IY25: 9268 | IZ25: 811 | JA25: 15269 | JB25: 0 | JC25: 41 | JD25: 87000 | JE25: 13078 | JF25: 1798 | JG25: 1191 | JH25: 1471 | JI25: 0 | JJ25: 9331 | JK25: 21235 | JL25: 11644 | JM25: 0 | JN25: 3773 | JO25: 24709 | JP25: 6794 | JQ25: 0 | JR25: 176 | JS25: 0 | JT25: 0 | JU25: 62 | JV25: 17388 | JW25: 25288 | JX25: 0 | JY25: 261 | JZ25: 1055 | KA25: 36 | KB25: 0 | KC25: 0 | KD25: 29687 | KE25: 0 | KF25: 5417 | KG25: 3827 | KH25: 13272 | KI25: 19286 | KJ25: 4968 | KK25: 25699 | KL25: 656 | KM25: 2 | KN25: 9041 | KO25: 735 | KP25: 2917 | KQ25: 25255 | KR25: 2234 | KS25: 17199 | KT25: 7331 | KU25: 2277 | KV25: 2906 | KW25: 7018 | KX25: 1202 | KY25: 15926 | KZ25: 0 | LA25: 53 | LB25: 47337 | LC25: 12245 | LD25: 465 | LE25: 1394 | LF25: 1326 | LG25: 0 | LH25: 13565 | LI25: 24853 | LJ25: 13569 | LK25: 0 | LL25: 4381 | LM25: 28640 | LN25: 7951 | LO25: 0 | LP25: 86 | LQ25: 0 | LR25: 0 | LS25: 78 | LT25: 15703 | LU25: 16242 | LV25: 0 | LW25: 329 | LX25: 1274 | LY25: 34 | LZ25: 0 | MA25: 0 | MB25: 19620 | MC25: 0 | MD25: 6532 | ME25: 4817 | MF25: 16800 | MG25: 10579 | MH25: 10875 | MI25: 16270 | MJ25: 815 | MK25: 23 | ML25: 11444 | MM25: 1776 | MN25: 4567 | MO25: 18696 | MP25: 2828 | MQ25: 21771 | MR25: 11600 | MS25: 2834 | MT25: 7356 | MU25: 14778 | MV25: 3946 | MW25: 16800 | MX25: 0 | MY25: 67 | MZ25: 67906 | NA25: 15100 | NB25: 1175 | NC25: 1765 | ND25: 2486 | NE25: 0 | NF25: 16896 | NG25: 15729 | NH25: 11450 | NI25: 0 | NJ25: 5546 | NK25: 15422 | NL25: 10065 | NM25: 0 | NN25: 75 | NO25: 0 | NP25: 0 | NQ25: 78 | NR25: 13179 | NS25: 24688 | NT25: 0 | NU25: 328 | NV25: 1211 | NW25: 29 | NX25: 0 | NY25: 0 | NZ25: 32863 | OA25: 0 | OB25: 2086 | OC25: 35 | OD25: 9767 | OE25: 22871 | OF25: 5357 | OG25: 28580 | OH25: 715 | OI25: 25 | OJ25: 10051 | OK25: 2090 | OL25: 4567 | OM25: 16786 | ON25: 2549 | OO25: 20285 | OP25: 12226 | OQ25: 2800 | OR25: 7856 | OS25: 11941 | OT25: 3124 | OU25: 7500 | OV25: 0 | OW25: 67 | OX25: 15950 | OY25: 16525 | OZ25: 1032 | PA25: 1020 | PB25: 2117 | PC25: 0 | PD25: 7653 | PE25: 27631 | PF25: 18103 | PG25: 0 | PH25: 4871 | PI25: 21044 | PJ25: 8840 | PK25: 0 | PL25: 86 | PM25: 0 | PN25: 0 | PO25: 89 | PP25: 1488 | PQ25: 16243 | PR25: 0 | PS25: 371 | PT25: 966 | PU25: 22 | PV25: 0 | PW25: 0 | PX25: 21750 | PY25: 0 | PZ25: 5656 | QA25: 4219 | QB25: 3558 | QC25: 19642 | QD25: 14014 | QE25: 7729 | QF25: 596 | QG25: 29 | QH25: 9154 | QI25: 2052 | QJ25: 4157 | QK25: 10734 | QL25: 2902 | QM25: 10265 | QN25: 16533 | QO25: 2995 | QP25: 5312 | QQ25: 15155 | QR25: 3556 | QS25: 12263 | QT25: 1278 | QU25: 0 | QV25: 32420 | QW25: 10493 | QX25: 1162 | QY25: 254 | QZ25: 2233 | RA25: 0 | RB25: 0 | RC25: 7686 | RD25: 20593 | RE25: 0 | RF25: 5520 | RG25: 23703 | RH25: 10853 | RI25: 0 | RJ25: 87 | RK25: 0 | RL25: 0 | RM25: 67 | RN25: 1503 | RO25: 16335 | RP25: 0 | RQ25: 375 | RR25: 696 | RS25: 22 | RT25: 0 | RU25: 0 | RV25: 21975 | RW25: 0 | RX25: 4252 | RY25: 4245 | RZ25: 4494 | SA25: 19847 | SB25: 13975 | SC25: 6508 | SD25: 495 | SE25: 29 | SF25: 9248 | SG25: 1992 | SH25: 3840 | SI25: 10845 | SJ25: 2932 | SK25: 10371 | SL25: 16704 | SM25: 3026 | SN25: 5367 | SO25: 15312 | SP25: 3721 | SQ25: 9735 | SR25: 1128 | SS25: 0 | ST25: 47262 | SU25: 9939 | SV25: 1175 | SW25: 191 | SX25: 2223 | SY25: 0 | SZ25: 0 | TA25: 7665 | TB25: 20805 | TC25: 0 | TD25: 5480 | TE25: 29943 | TF25: 12330 | TG25: 0 | TH25: 81 | TI25: 0 | TJ25: 0 | TK25: 62 | TL25: 1503 | TM25: 7425 | TN25: 0 | TO25: 195 | TP25: 477 | TQ25: 11 | TR25: 0 | TS25: 0 | TT25: 20675 | TU25: 0 | TV25: 4760 | TW25: 5070 | TX25: 3394 | TY25: 4909 | TZ25: 9455 | UA25: 9111 | UB25: 370 | UC25: 16 | UD25: 10808 | UE25: 1500 | UF25: 1350 | UG25: 7592 | UH25: 2932 | UI25: 10247 | UJ25: 10830 | UK25: 2670 | UL25: 10640 | UM25: 12312 | UN25: 1283 | UO25: 17125 | UP25: 712 | UQ25: 0 | UR25: 75709 | US25: 5300 | UT25: 1175 | UU25: 191 | UV25: 2160 | UW25: 0 | UX25: 0 | UY25: 10943 | UZ25: 14805 | VA25: 0 | VB25: 1470 | VC25: 23100 | VD25: 4378
A26: Börülce(Taze) | B26: ton | C26: =HLOOKUP($A$1,$AA$3:$BX$243,ROW()-2,FALSE) -> 166 | D26: 11 | E26: =HLOOKUP($A$1,$BY$3:$DV$243,ROW()-2,FALSE) -> 179 | F26: 11 | G26: =HLOOKUP($A$1,$DW$3:$FT$243,ROW()-2,FALSE) -> 179 | H26: 10 | I26: =HLOOKUP($A$1,$FU$3:$HR$243,ROW()-2,FALSE) -> 210 | J26: 10 | K26: =HLOOKUP($A$1,$HS$3:$JP$243,ROW()-2,FALSE) -> 200 | L26: 11 | M26: =HLOOKUP($A$1,$JQ$3:$LN$243,ROW()-2,FALSE) -> 250 | N26: 9 | O26: =HLOOKUP($A$1,$LO$3:$NL$243,ROW()-2,FALSE) -> 300 | P26: 8 | Q26: =HLOOKUP($A$1,$NM$3:$PJ$243,ROW()-2,FALSE) -> 300 | R26: 7 | S26: =HLOOKUP($A$1,$PK$3:$RH$243,ROW()-2,FALSE) -> 300 | T26: 6 | U26: =HLOOKUP($A$1,$RI$3:$TF$243,ROW()-2,FALSE) -> 150 | V26: 11 | W26: =HLOOKUP($A$1,$TG$3:$VD$243,ROW()-2,FALSE) -> 15 | X26: 25 | Y26: Seydikemer | Z26: 4095 | AA26: 0 | AB26: 0 | AC26: 0 | AD26: 0 | AE26: 0 | AF26: 14 | AG26: 133 | AH26: 0 | AI26: 260 | AJ26: 310 | AK26: 0 | AL26: 0 | AM26: 0 | AN26: 287 | AO26: 0 | AP26: 0 | AQ26: 16 | AR26: 21 | AS26: 99 | AT26: 13 | AU26: 15 | AV26: 22 | AW26: 16 | AX26: 60 | AY26: 0 | AZ26: 166 | BA26: 27 | BB26: 44 | BC26: 28 | BD26: 19 | BE26: 443 | BF26: 0 | BG26: 105 | BH26: 18 | BI26: 1614 | BJ26: 0 | BK26: 11 | BL26: 280 | BM26: 375 | BN26: 15 | BO26: 113 | BP26: 108 | BQ26: 0 | BR26: 3894 | BS26: 291 | BT26: 0 | BU26: 0 | BV26: 134 | BW26: 240 | BX26: 0 | BY26: 0 | BZ26: 0 | CA26: 0 | CB26: 0 | CC26: 0 | CD26: 16 | CE26: 151 | CF26: 0 | CG26: 250 | CH26: 450 | CI26: 0 | CJ26: 0 | CK26: 0 | CL26: 284 | CM26: 0 | CN26: 0 | CO26: 15 | CP26: 20 | CQ26: 99 | CR26: 15 | CS26: 12 | CT26: 12 | CU26: 15 | CV26: 70 | CW26: 0 | CX26: 179 | CY26: 24 | CZ26: 61 | DA26: 28 | DB26: 20 | DC26: 440 | DD26: 0 | DE26: 100 | DF26: 30 | DG26: 1522 | DH26: 0 | DI26: 11 | DJ26: 938 | DK26: 403 | DL26: 15 | DM26: 113 | DN26: 120 | DO26: 0 | DP26: 4095 | DQ26: 282 | DR26: 0 | DS26: 0 | DT26: 132 | DU26: 203 | DV26: 0 | DW26: 0 | DX26: 0 | DY26: 0 | DZ26: 0 | EA26: 0 | EB26: 0 | EC26: 152 | ED26: 0 | EE26: 240 | EF26: 540 | EG26: 0 | EH26: 0 | EI26: 0 | EJ26: 288 | EK26: 0 | EL26: 0 | EM26: 14 | EN26: 20 | EO26: 99 | EP26: 20 | EQ26: 12 | ER26: 4 | ES26: 15 | ET26: 82 | EU26: 0 | EV26: 179 | EW26: 24 | EX26: 49 | EY26: 28 | EZ26: 20 | FA26: 440 | FB26: 0 | FC26: 96 | FD26: 27 | FE26: 1430 | FF26: 0 | FG26: 11 | FH26: 913 | FI26: 403 | FJ26: 15 | FK26: 112 | FL26: 100 | FM26: 0 | FN26: 3477 | FO26: 281 | FP26: 0 | FQ26: 0 | FR26: 124 | FS26: 135 | FT26: 0 | FU26: 0 | FV26: 0 | FW26: 0 | FX26: 0 | FY26: 0 | FZ26: 0 | GA26: 148 | GB26: 0 | GC26: 240 | GD26: 540 | GE26: 3 | GF26: 0 | GG26: 0 | GH26: 292 | GI26: 0 | GJ26: 0 | GK26: 14 | GL26: 20 | GM26: 99 | GN26: 25 | GO26: 13 | GP26: 73 | GQ26: 15 | GR26: 88 | GS26: 0 | GT26: 210 | GU26: 18 | GV26: 21 | GW26: 28 | GX26: 15 | GY26: 450 | GZ26: 0 | HA26: 80 | HB26: 29 | HC26: 1300 | HD26: 0 | HE26: 11 | HF26: 923 | HG26: 372 | HH26: 15 | HI26: 105 | HJ26: 100 | HK26: 0 | HL26: 3410 | HM26: 281 | HN26: 0 | HO26: 0 | HP26: 120 | HQ26: 150 | HR26: 0 | HS26: 0 | HT26: 0 | HU26: 0 | HV26: 0 | HW26: 0 | HX26: 0 | HY26: 138 | HZ26: 0 | IA26: 270 | IB26: 540 | IC26: 3 | ID26: 0 | IE26: 0 | IF26: 296 | IG26: 0 | IH26: 0 | II26: 14 | IJ26: 20 | IK26: 102 | IL26: 20 | IM26: 9 | IN26: 75 | IO26: 15 | IP26: 88 | IQ26: 0 | IR26: 200 | IS26: 18 | IT26: 25 | IU26: 4 | IV26: 15 | IW26: 360 | IX26: 0 | IY26: 78 | IZ26: 30 | JA26: 1300 | JB26: 0 | JC26: 11 | JD26: 938 | JE26: 341 | JF26: 12 | JG26: 100 | JH26: 103 | JI26: 0 | JJ26: 3200 | JK26: 281 | JL26: 0 | JM26: 0 | JN26: 114 | JO26: 215 | JP26: 0 | JQ26: 0 | JR26: 0 | JS26: 0 | JT26: 0 | JU26: 0 | JV26: 0 | JW26: 132 | JX26: 0 | JY26: 245 | JZ26: 540 | KA26: 3 | KB26: 0 | KC26: 0 | KD26: 294 | KE26: 0 | KF26: 0 | KG26: 18 | KH26: 20 | KI26: 94 | KJ26: 15 | KK26: 5 | KL26: 85 | KM26: 17 | KN26: 88 | KO26: 0 | KP26: 250 | KQ26: 18 | KR26: 21 | KS26: 4 | KT26: 15 | KU26: 360 | KV26: 0 | KW26: 36 | KX26: 30 | KY26: 1300 | KZ26: 0 | LA26: 11 | LB26: 686 | LC26: 341 | LD26: 6 | LE26: 100 | LF26: 110 | LG26: 0 | LH26: 3450 | LI26: 281 | LJ26: 0 | LK26: 0 | LL26: 109 | LM26: 208 | LN26: 0 | LO26: 0 | LP26: 0 | LQ26: 0 | LR26: 0 | LS26: 0 | LT26: 55 | LU26: 39 | LV26: 0 | LW26: 210 | LX26: 540 | LY26: 4 | LZ26: 0 | MA26: 0 | MB26: 308 | MC26: 0 | MD26: 0 | ME26: 18 | MF26: 20 | MG26: 75 | MH26: 100 | MI26: 5 | MJ26: 83 | MK26: 66 | ML26: 80 | MM26: 0 | MN26: 300 | MO26: 18 | MP26: 18 | MQ26: 4 | MR26: 15 | MS26: 360 | MT26: 0 | MU26: 36 | MV26: 30 | MW26: 1300 | MX26: 0 | MY26: 0 | MZ26: 687 | NA26: 310 | NB26: 6 | NC26: 100 | ND26: 105 | NE26: 0 | NF26: 3700 | NG26: 282 | NH26: 0 | NI26: 0 | NJ26: 109 | NK26: 200 | NL26: 0 | NM26: 0 | NN26: 0 | NO26: 0 | NP26: 0 | NQ26: 0 | NR26: 33 | NS26: 42 | NT26: 0 | NU26: 213 | NV26: 390 | NW26: 6 | NX26: 0 | NY26: 0 | NZ26: 304 | OA26: 0 | OB26: 0 | OC26: 7 | OD26: 15 | OE26: 75 | OF26: 150 | OG26: 1 | OH26: 82 | OI26: 61 | OJ26: 86 | OK26: 0 | OL26: 300 | OM26: 18 | ON26: 21 | OO26: 32 | OP26: 10 | OQ26: 360 | OR26: 0 | OS26: 36 | OT26: 30 | OU26: 1425 | OV26: 0 | OW26: 0 | OX26: 687 | OY26: 279 | OZ26: 9 | PA26: 111 | PB26: 95 | PC26: 0 | PD26: 3450 | PE26: 288 | PF26: 0 | PG26: 0 | PH26: 109 | PI26: 200 | PJ26: 0 | PK26: 0 | PL26: 0 | PM26: 0 | PN26: 0 | PO26: 0 | PP26: 33 | PQ26: 37 | PR26: 0 | PS26: 214 | PT26: 351 | PU26: 6 | PV26: 0 | PW26: 0 | PX26: 314 | PY26: 0 | PZ26: 1 | QA26: 14 | QB26: 15 | QC26: 75 | QD26: 3500 | QE26: 0 | QF26: 79 | QG26: 66 | QH26: 70 | QI26: 0 | QJ26: 300 | QK26: 18 | QL26: 21 | QM26: 32 | QN26: 10 | QO26: 270 | QP26: 0 | QQ26: 34 | QR26: 30 | QS26: 1350 | QT26: 105 | QU26: 0 | QV26: 688 | QW26: 270 | QX26: 21 | QY26: 1 | QZ26: 75 | RA26: 0 | RB26: 0 | RC26: 288 | RD26: 0 | RE26: 0 | RF26: 109 | RG26: 180 | RH26: 0 | RI26: 0 | RJ26: 0 | RK26: 0 | RL26: 0 | RM26: 0 | RN26: 33 | RO26: 30 | RP26: 0 | RQ26: 214 | RR26: 320 | RS26: 6 | RT26: 0 | RU26: 0 | RV26: 320 | RW26: 0 | RX26: 1 | RY26: 14 | RZ26: 15 | SA26: 95 | SB26: 3000 | SC26: 0 | SD26: 78 | SE26: 50 | SF26: 50 | SG26: 0 | SH26: 150 | SI26: 18 | SJ26: 21 | SK26: 28 | SL26: 10 | SM26: 225 | SN26: 0 | SO26: 32 | SP26: 30 | SQ26: 1200 | SR26: 125 | SS26: 0 | ST26: 688 | SU26: 255 | SV26: 21 | SW26: 1 | SX26: 70 | SY26: 0 | SZ26: 0 | TA26: 276 | TB26: 0 | TC26: 0 | TD26: 105 | TE26: 180 | TF26: 0 | TG26: 0 | TH26: 0 | TI26: 0 | TJ26: 0 | TK26: 0 | TL26: 33 | TM26: 0 | TN26: 0 | TO26: 210 | TP26: 320 | TQ26: 6 | TR26: 0 | TS26: 0 | TT26: 320 | TU26: 0 | TV26: 3 | TW26: 14 | TX26: 10 | TY26: 75 | TZ26: 800 | UA26: 0 | UB26: 78 | UC26: 54 | UD26: 70 | UE26: 0 | UF26: 15 | UG26: 18 | UH26: 21 | UI26: 18 | UJ26: 10 | UK26: 225 | UL26: 0 | UM26: 32 | UN26: 30 | UO26: 1050 | UP26: 150 | UQ26: 0 | UR26: 688 | US26: 150 | UT26: 18 | UU26: 1 | UV26: 50 | UW26: 0 | UX26: 0 | UY26: 300 | UZ26: 0 | VA26: 0 | VB26: 70 | VC26: 113 | VD26: 0
A27: Bezelye(Taze) | B27: ton | C27: =HLOOKUP($A$1,$AA$3:$BX$243,ROW()-2,FALSE) -> 33 | D27: 18 | E27: =HLOOKUP($A$1,$BY$3:$DV$243,ROW()-2,FALSE) -> 103 | F27: 11 | G27: =HLOOKUP($A$1,$DW$3:$FT$243,ROW()-2,FALSE) -> 103 | H27: 12 | I27: =HLOOKUP($A$1,$FU$3:$HR$243,ROW()-2,FALSE) -> 143 | J27: 12 | K27: =HLOOKUP($A$1,$HS$3:$JP$243,ROW()-2,FALSE) -> 183 | L27: 11 | M27: =HLOOKUP($A$1,$JQ$3:$LN$243,ROW()-2,FALSE) -> 183 | N27: 9 | O27: =HLOOKUP($A$1,$LO$3:$NL$243,ROW()-2,FALSE) -> 250 | P27: 7 | Q27: =HLOOKUP($A$1,$NM$3:$PJ$243,ROW()-2,FALSE) -> 250 | R27: 5 | S27: =HLOOKUP($A$1,$PK$3:$RH$243,ROW()-2,FALSE) -> 250 | T27: 5 | U27: =HLOOKUP($A$1,$RI$3:$TF$243,ROW()-2,FALSE) -> 500 | V27: 4 | W27: =HLOOKUP($A$1,$TG$3:$VD$243,ROW()-2,FALSE) -> 15 | X27: 18 | Y27: Kuyucak | Z27: 1020 | AA27: 0 | AB27: 14 | AC27: 0 | AD27: 0 | AE27: 0 | AF27: 0 | AG27: 664 | AH27: 0 | AI27: 528 | AJ27: 21 | AK27: 0 | AL27: 0 | AM27: 0 | AN27: 402 | AO27: 0 | AP27: 0 | AQ27: 250 | AR27: 16 | AS27: 74 | AT27: 38 | AU27: 650 | AV27: 0 | AW27: 88 | AX27: 1042 | AY27: 11 | AZ27: 33 | BA27: 0 | BB27: 0 | BC27: 1080 | BD27: 0 | BE27: 101 | BF27: 0 | BG27: 798 | BH27: 5 | BI27: 6 | BJ27: 0 | BK27: 7 | BL27: 0 | BM27: 900 | BN27: 10 | BO27: 273 | BP27: 184 | BQ27: 10 | BR27: 200 | BS27: 68 | BT27: 0 | BU27: 0 | BV27: 0 | BW27: 18 | BX27: 0 | BY27: 0 | BZ27: 23 | CA27: 0 | CB27: 0 | CC27: 0 | CD27: 0 | CE27: 656 | CF27: 0 | CG27: 540 | CH27: 16 | CI27: 0 | CJ27: 0 | CK27: 0 | CL27: 396 | CM27: 0 | CN27: 0 | CO27: 0 | CP27: 23 | CQ27: 60 | CR27: 35 | CS27: 100 | CT27: 0 | CU27: 27 | CV27: 330 | CW27: 11 | CX27: 103 | CY27: 0 | CZ27: 0 | DA27: 600 | DB27: 0 | DC27: 92 | DD27: 0 | DE27: 1020 | DF27: 20 | DG27: 6 | DH27: 0 | DI27: 6 | DJ27: 0 | DK27: 1020 | DL27: 0 | DM27: 273 | DN27: 184 | DO27: 6 | DP27: 270 | DQ27: 68 | DR27: 0 | DS27: 0 | DT27: 0 | DU27: 20 | DV27: 0 | DW27: 0 | DX27: 23 | DY27: 0 | DZ27: 0 | EA27: 0 | EB27: 0 | EC27: 716 | ED27: 0 | EE27: 540 | EF27: 24 | EG27: 0 | EH27: 0 | EI27: 0 | EJ27: 395 | EK27: 0 | EL27: 0 | EM27: 0 | EN27: 23 | EO27: 60 | EP27: 25 | EQ27: 125 | ER27: 0 | ES27: 27 | ET27: 280 | EU27: 12 | EV27: 103 | EW27: 0 | EX27: 0 | EY27: 120 | EZ27: 0 | FA27: 94 | FB27: 3 | FC27: 1080 | FD27: 21 | FE27: 4 | FF27: 0 | FG27: 7 | FH27: 0 | FI27: 1020 | FJ27: 0 | FK27: 287 | FL27: 200 | FM27: 6 | FN27: 241 | FO27: 68 | FP27: 0 | FQ27: 0 | FR27: 0 | FS27: 8 | FT27: 0 | FU27: 0 | FV27: 23 | FW27: 0 | FX27: 0 | FY27: 0 | FZ27: 0 | GA27: 202 | GB27: 0 | GC27: 600 | GD27: 24 | GE27: 0 | GF27: 0 | GG27: 0 | GH27: 392 | GI27: 0 | GJ27: 0 | GK27: 0 | GL27: 23 | GM27: 64 | GN27: 24 | GO27: 155 | GP27: 0 | GQ27: 27 | GR27: 300 | GS27: 12 | GT27: 143 | GU27: 0 | GV27: 0 | GW27: 688 | GX27: 0 | GY27: 80 | GZ27: 3 | HA27: 1236 | HB27: 22 | HC27: 4 | HD27: 0 | HE27: 14 | HF27: 0 | HG27: 1020 | HH27: 0 | HI27: 280 | HJ27: 208 | HK27: 0 | HL27: 245 | HM27: 69 | HN27: 0 | HO27: 0 | HP27: 0 | HQ27: 8 | HR27: 0 | HS27: 0 | HT27: 23 | HU27: 0 | HV27: 0 | HW27: 0 | HX27: 0 | HY27: 184 | HZ27: 0 | IA27: 330 | IB27: 24 | IC27: 0 | ID27: 0 | IE27: 0 | IF27: 395 | IG27: 0 | IH27: 0 | II27: 0 | IJ27: 23 | IK27: 64 | IL27: 3 | IM27: 142 | IN27: 0 | IO27: 27 | IP27: 333 | IQ27: 12 | IR27: 183 | IS27: 0 | IT27: 0 | IU27: 600 | IV27: 0 | IW27: 70 | IX27: 3 | IY27: 1128 | IZ27: 24 | JA27: 4 | JB27: 0 | JC27: 14 | JD27: 0 | JE27: 935 | JF27: 0 | JG27: 287 | JH27: 212 | JI27: 0 | JJ27: 195 | JK27: 68 | JL27: 0 | JM27: 0 | JN27: 0 | JO27: 6 | JP27: 0 | JQ27: 0 | JR27: 23 | JS27: 0 | JT27: 0 | JU27: 0 | JV27: 0 | JW27: 177 | JX27: 0 | JY27: 469 | JZ27: 24 | KA27: 0 | KB27: 0 | KC27: 0 | KD27: 390 | KE27: 0 | KF27: 0 | KG27: 0 | KH27: 30 | KI27: 64 | KJ27: 3 | KK27: 72 | KL27: 0 | KM27: 30 | KN27: 60 | KO27: 12 | KP27: 183 | KQ27: 0 | KR27: 0 | KS27: 536 | KT27: 0 | KU27: 70 | KV27: 3 | KW27: 949 | KX27: 30 | KY27: 4 | KZ27: 0 | LA27: 11 | LB27: 0 | LC27: 935 | LD27: 0 | LE27: 287 | LF27: 208 | LG27: 0 | LH27: 195 | LI27: 68 | LJ27: 0 | LK27: 0 | LL27: 0 | LM27: 5 | LN27: 0 | LO27: 0 | LP27: 23 | LQ27: 0 | LR27: 0 | LS27: 0 | LT27: 0 | LU27: 45 | LV27: 0 | LW27: 438 | LX27: 24 | LY27: 0 | LZ27: 0 | MA27: 0 | MB27: 398 | MC27: 0 | MD27: 0 | ME27: 0 | MF27: 30 | MG27: 64 | MH27: 0 | MI27: 125 | MJ27: 0 | MK27: 83 | ML27: 130 | MM27: 12 | MN27: 250 | MO27: 0 | MP27: 0 | MQ27: 536 | MR27: 0 | MS27: 70 | MT27: 3 | MU27: 943 | MV27: 30 | MW27: 4 | MX27: 0 | MY27: 11 | MZ27: 0 | NA27: 850 | NB27: 0 | NC27: 287 | ND27: 232 | NE27: 0 | NF27: 195 | NG27: 69 | NH27: 0 | NI27: 0 | NJ27: 0 | NK27: 5 | NL27: 0 | NM27: 0 | NN27: 23 | NO27: 0 | NP27: 0 | NQ27: 0 | NR27: 0 | NS27: 41 | NT27: 0 | NU27: 250 | NV27: 64 | NW27: 0 | NX27: 0 | NY27: 0 | NZ27: 396 | OA27: 0 | OB27: 0 | OC27: 0 | OD27: 30 | OE27: 66 | OF27: 0 | OG27: 100 | OH27: 0 | OI27: 77 | OJ27: 140 | OK27: 12 | OL27: 250 | OM27: 0 | ON27: 0 | OO27: 64 | OP27: 0 | OQ27: 70 | OR27: 3 | OS27: 720 | OT27: 30 | OU27: 0 | OV27: 0 | OW27: 10 | OX27: 0 | OY27: 807 | OZ27: 0 | PA27: 336 | PB27: 224 | PC27: 0 | PD27: 225 | PE27: 68 | PF27: 0 | PG27: 0 | PH27: 0 | PI27: 5 | PJ27: 0 | PK27: 0 | PL27: 23 | PM27: 0 | PN27: 0 | PO27: 0 | PP27: 0 | PQ27: 39 | PR27: 0 | PS27: 250 | PT27: 64 | PU27: 0 | PV27: 0 | PW27: 0 | PX27: 402 | PY27: 0 | PZ27: 0 | QA27: 0 | QB27: 38 | QC27: 66 | QD27: 210 | QE27: 0 | QF27: 0 | QG27: 84 | QH27: 70 | QI27: 12 | QJ27: 250 | QK27: 0 | QL27: 0 | QM27: 32 | QN27: 0 | QO27: 70 | QP27: 3 | QQ27: 750 | QR27: 30 | QS27: 0 | QT27: 280 | QU27: 0 | QV27: 0 | QW27: 713 | QX27: 0 | QY27: 52 | QZ27: 240 | RA27: 0 | RB27: 0 | RC27: 70 | RD27: 0 | RE27: 0 | RF27: 0 | RG27: 4 | RH27: 0 | RI27: 0 | RJ27: 23 | RK27: 0 | RL27: 0 | RM27: 0 | RN27: 0 | RO27: 15 | RP27: 0 | RQ27: 250 | RR27: 62 | RS27: 0 | RT27: 0 | RU27: 0 | RV27: 420 | RW27: 0 | RX27: 0 | RY27: 0 | RZ27: 42 | SA27: 72 | SB27: 195 | SC27: 0 | SD27: 0 | SE27: 65 | SF27: 60 | SG27: 12 | SH27: 500 | SI27: 0 | SJ27: 0 | SK27: 22 | SL27: 0 | SM27: 70 | SN27: 3 | SO27: 800 | SP27: 30 | SQ27: 0 | SR27: 195 | SS27: 0 | ST27: 0 | SU27: 638 | SV27: 0 | SW27: 52 | SX27: 224 | SY27: 8 | SZ27: 0 | TA27: 600 | TB27: 0 | TC27: 0 | TD27: 0 | TE27: 4 | TF27: 0 | TG27: 0 | TH27: 23 | TI27: 0 | TJ27: 0 | TK27: 0 | TL27: 0 | TM27: 0 | TN27: 0 | TO27: 250 | TP27: 61 | TQ27: 0 | TR27: 0 | TS27: 0 | TT27: 420 | TU27: 0 | TV27: 0 | TW27: 0 | TX27: 147 | TY27: 72 | TZ27: 180 | UA27: 0 | UB27: 0 | UC27: 55 | UD27: 40 | UE27: 12 | UF27: 15 | UG27: 0 | UH27: 0 | UI27: 56 | UJ27: 0 | UK27: 35 | UL27: 0 | UM27: 200 | UN27: 30 | UO27: 0 | UP27: 195 | UQ27: 0 | UR27: 0 | US27: 640 | UT27: 0 | UU27: 0 | UV27: 200 | UW27: 9 | UX27: 0 | UY27: 65 | UZ27: 0 | VA27: 0 | VB27: 0 | VC27: 4 | VD27: 0
A28: Korunga(YeşilOt) | B28: ton | C28: =HLOOKUP($A$1,$AA$3:$BX$243,ROW()-2,FALSE) -> 0 | D28: - | E28: =HLOOKUP($A$1,$BY$3:$DV$243,ROW()-2,FALSE) -> 64 | F28: 11 | G28: =HLOOKUP($A$1,$DW$3:$FT$243,ROW()-2,FALSE) -> 78 | H28: 10 | I28: =HLOOKUP($A$1,$FU$3:$HR$243,ROW()-2,FALSE) -> 78 | J28: 10 | K28: =HLOOKUP($A$1,$HS$3:$JP$243,ROW()-2,FALSE) -> 70 | L28: 10 | M28: =HLOOKUP($A$1,$JQ$3:$LN$243,ROW()-2,FALSE) -> 32 | N28: 14 | O28: =HLOOKUP($A$1,$LO$3:$NL$243,ROW()-2,FALSE) -> 0 | P28: - | Q28: =HLOOKUP($A$1,$NM$3:$PJ$243,ROW()-2,FALSE) -> 0 | R28: - | S28: =HLOOKUP($A$1,$PK$3:$RH$243,ROW()-2,FALSE) -> 0 | T28: - | U28: =HLOOKUP($A$1,$RI$3:$TF$243,ROW()-2,FALSE) -> 0 | V28: - | W28: =HLOOKUP($A$1,$TG$3:$VD$243,ROW()-2,FALSE) -> 0 | X28: - | Y28: Bozkurt | Z28: 912 | AA28: 528 | AB28: 0 | AC28: 8 | AD28: 88 | AE28: 58 | AF28: 0 | AG28: 140 | AH28: 778 | AI28: 0 | AJ28: 53 | AK28: 613 | AL28: 1440 | AM28: 38 | AN28: 0 | AO28: 0 | AP28: 0 | AQ28: 0 | AR28: 0 | AS28: 0 | AT28: 0 | AU28: 0 | AV28: 0 | AW28: 113 | AX28: 0 | AY28: 75 | AZ28: 0 | BA28: 0 | BB28: 0 | BC28: 0 | BD28: 0 | BE28: 0 | BF28: 0 | BG28: 0 | BH28: 0 | BI28: 87 | BJ28: 0 | BK28: 0 | BL28: 40 | BM28: 0 | BN28: 0 | BO28: 0 | BP28: 0 | BQ28: 128 | BR28: 20 | BS28: 0 | BT28: 0 | BU28: 840 | BV28: 8 | BW28: 20 | BX28: 0 | BY28: 572 | BZ28: 0 | CA28: 5 | CB28: 96 | CC28: 64 | CD28: 0 | CE28: 0 | CF28: 912 | CG28: 0 | CH28: 56 | CI28: 630 | CJ28: 840 | CK28: 60 | CL28: 0 | CM28: 0 | CN28: 0 | CO28: 0 | CP28: 0 | CQ28: 0 | CR28: 0 | CS28: 0 | CT28: 0 | CU28: 140 | CV28: 0 | CW28: 84 | CX28: 64 | CY28: 0 | CZ28: 0 | DA28: 0 | DB28: 0 | DC28: 0 | DD28: 0 | DE28: 0 | DF28: 0 | DG28: 67 | DH28: 0 | DI28: 0 | DJ28: 0 | DK28: 0 | DL28: 0 | DM28: 0 | DN28: 0 | DO28: 81 | DP28: 0 | DQ28: 0 | DR28: 0 | DS28: 900 | DT28: 8 | DU28: 0 | DV28: 0 | DW28: 550 | DX28: 0 | DY28: 5 | DZ28: 96 | EA28: 61 | EB28: 0 | EC28: 0 | ED28: 864 | EE28: 0 | EF28: 42 | EG28: 630 | EH28: 765 | EI28: 60 | EJ28: 0 | EK28: 0 | EL28: 0 | EM28: 0 | EN28: 0 | EO28: 0 | EP28: 0 | EQ28: 0 | ER28: 0 | ES28: 140 | ET28: 0 | EU28: 84 | EV28: 78 | EW28: 0 | EX28: 0 | EY28: 0 | EZ28: 0 | FA28: 0 | FB28: 0 | FC28: 0 | FD28: 0 | FE28: 60 | FF28: 0 | FG28: 0 | FH28: 0 | FI28: 0 | FJ28: 0 | FK28: 0 | FL28: 0 | FM28: 81 | FN28: 0 | FO28: 0 | FP28: 0 | FQ28: 900 | FR28: 0 | FS28: 0 | FT28: 0 | FU28: 436 | FV28: 0 | FW28: 10 | FX28: 120 | FY28: 61 | FZ28: 0 | GA28: 0 | GB28: 768 | GC28: 0 | GD28: 42 | GE28: 2625 | GF28: 825 | GG28: 60 | GH28: 0 | GI28: 0 | GJ28: 0 | GK28: 0 | GL28: 0 | GM28: 0 | GN28: 6 | GO28: 0 | GP28: 0 | GQ28: 294 | GR28: 0 | GS28: 84 | GT28: 78 | GU28: 0 | GV28: 0 | GW28: 0 | GX28: 0 | GY28: 0 | GZ28: 0 | HA28: 0 | HB28: 0 | HC28: 60 | HD28: 0 | HE28: 0 | HF28: 0 | HG28: 0 | HH28: 0 | HI28: 0 | HJ28: 0 | HK28: 154 | HL28: 0 | HM28: 0 | HN28: 0 | HO28: 1000 | HP28: 0 | HQ28: 0 | HR28: 0 | HS28: 0 | HT28: 0 | HU28: 10 | HV28: 120 | HW28: 61 | HX28: 0 | HY28: 0 | HZ28: 1728 | IA28: 0 | IB28: 4 | IC28: 1530 | ID28: 880 | IE28: 60 | IF28: 0 | IG28: 0 | IH28: 0 | II28: 0 | IJ28: 0 | IK28: 0 | IL28: 6 | IM28: 0 | IN28: 0 | IO28: 294 | IP28: 0 | IQ28: 96 | IR28: 70 | IS28: 0 | IT28: 0 | IU28: 12 | IV28: 0 | IW28: 0 | IX28: 0 | IY28: 0 | IZ28: 0 | JA28: 75 | JB28: 0 | JC28: 0 | JD28: 0 | JE28: 0 | JF28: 0 | JG28: 0 | JH28: 0 | JI28: 154 | JJ28: 0 | JK28: 0 | JL28: 0 | JM28: 1000 | JN28: 0 | JO28: 0 | JP28: 0 | JQ28: 0 | JR28: 0 | JS28: 50 | JT28: 120 | JU28: 61 | JV28: 0 | JW28: 0 | JX28: 432 | JY28: 0 | JZ28: 42 | KA28: 1620 | KB28: 700 | KC28: 60 | KD28: 0 | KE28: 0 | KF28: 0 | KG28: 0 | KH28: 0 | KI28: 0 | KJ28: 0 | KK28: 0 | KL28: 0 | KM28: 344 | KN28: 0 | KO28: 120 | KP28: 32 | KQ28: 0 | KR28: 0 | KS28: 12 | KT28: 0 | KU28: 0 | KV28: 0 | KW28: 0 | KX28: 0 | KY28: 33 | KZ28: 0 | LA28: 0 | LB28: 0 | LC28: 0 | LD28: 0 | LE28: 0 | LF28: 0 | LG28: 73 | LH28: 0 | LI28: 0 | LJ28: 0 | LK28: 1000 | LL28: 0 | LM28: 0 | LN28: 0 | LO28: 0 | LP28: 0 | LQ28: 50 | LR28: 120 | LS28: 61 | LT28: 0 | LU28: 0 | LV28: 432 | LW28: 0 | LX28: 42 | LY28: 1980 | LZ28: 500 | MA28: 60 | MB28: 0 | MC28: 0 | MD28: 0 | ME28: 0 | MF28: 0 | MG28: 0 | MH28: 20 | MI28: 0 | MJ28: 0 | MK28: 328 | ML28: 0 | MM28: 120 | MN28: 0 | MO28: 0 | MP28: 0 | MQ28: 12 | MR28: 0 | MS28: 0 | MT28: 0 | MU28: 0 | MV28: 0 | MW28: 33 | MX28: 0 | MY28: 0 | MZ28: 0 | NA28: 0 | NB28: 0 | NC28: 0 | ND28: 0 | NE28: 68 | NF28: 0 | NG28: 0 | NH28: 0 | NI28: 1400 | NJ28: 2 | NK28: 0 | NL28: 0 | NM28: 386 | NN28: 0 | NO28: 50 | NP28: 120 | NQ28: 61 | NR28: 0 | NS28: 0 | NT28: 429 | NU28: 88 | NV28: 308 | NW28: 2178 | NX28: 425 | NY28: 115 | NZ28: 0 | OA28: 0 | OB28: 0 | OC28: 0 | OD28: 0 | OE28: 0 | OF28: 18 | OG28: 0 | OH28: 0 | OI28: 344 | OJ28: 0 | OK28: 120 | OL28: 0 | OM28: 0 | ON28: 0 | OO28: 12 | OP28: 0 | OQ28: 0 | OR28: 0 | OS28: 0 | OT28: 0 | OU28: 0 | OV28: 0 | OW28: 140 | OX28: 0 | OY28: 0 | OZ28: 0 | PA28: 0 | PB28: 0 | PC28: 95 | PD28: 57 | PE28: 0 | PF28: 0 | PG28: 1500 | PH28: 0 | PI28: 0 | PJ28: 0 | PK28: 360 | PL28: 0 | PM28: 60 | PN28: 90 | PO28: 60 | PP28: 0 | PQ28: 0 | PR28: 425 | PS28: 120 | PT28: 308 | PU28: 4319 | PV28: 350 | PW28: 232 | PX28: 0 | PY28: 0 | PZ28: 0 | QA28: 0 | QB28: 0 | QC28: 0 | QD28: 63 | QE28: 0 | QF28: 0 | QG28: 320 | QH28: 0 | QI28: 180 | QJ28: 0 | QK28: 0 | QL28: 0 | QM28: 12 | QN28: 0 | QO28: 0 | QP28: 0 | QQ28: 0 | QR28: 0 | QS28: 0 | QT28: 126 | QU28: 0 | QV28: 0 | QW28: 0 | QX28: 0 | QY28: 0 | QZ28: 0 | RA28: 75 | RB28: 0 | RC28: 0 | RD28: 0 | RE28: 1500 | RF28: 0 | RG28: 0 | RH28: 0 | RI28: 468 | RJ28: 0 | RK28: 60 | RL28: 90 | RM28: 40 | RN28: 0 | RO28: 0 | RP28: 225 | RQ28: 120 | RR28: 308 | RS28: 3200 | RT28: 280 | RU28: 165 | RV28: 0 | RW28: 38 | RX28: 0 | RY28: 0 | RZ28: 24 | SA28: 0 | SB28: 50 | SC28: 0 | SD28: 180 | SE28: 240 | SF28: 0 | SG28: 180 | SH28: 0 | SI28: 0 | SJ28: 0 | SK28: 12 | SL28: 0 | SM28: 0 | SN28: 0 | SO28: 0 | SP28: 0 | SQ28: 0 | SR28: 140 | SS28: 0 | ST28: 0 | SU28: 0 | SV28: 0 | SW28: 0 | SX28: 0 | SY28: 70 | SZ28: 0 | TA28: 0 | TB28: 0 | TC28: 1350 | TD28: 0 | TE28: 0 | TF28: 0 | TG28: 468 | TH28: 0 | TI28: 60 | TJ28: 48 | TK28: 80 | TL28: 0 | TM28: 0 | TN28: 350 | TO28: 120 | TP28: 67 | TQ28: 2700 | TR28: 1120 | TS28: 170 | TT28: 0 | TU28: 75 | TV28: 0 | TW28: 0 | TX28: 24 | TY28: 0 | TZ28: 75 | UA28: 0 | UB28: 720 | UC28: 240 | UD28: 0 | UE28: 112 | UF28: 0 | UG28: 0 | UH28: 0 | UI28: 12 | UJ28: 0 | UK28: 0 | UL28: 0 | UM28: 0 | UN28: 0 | UO28: 0 | UP28: 224 | UQ28: 0 | UR28: 0 | US28: 0 | UT28: 0 | UU28: 0 | UV28: 0 | UW28: 70 | UX28: 0 | UY28: 0 | UZ28: 0 | VA28: 1350 | VB28: 0 | VC28: 0 | VD28: 0
A29: Susam | B29: ton | C29: =HLOOKUP($A$1,$AA$3:$BX$243,ROW()-2,FALSE) -> 21 | D29: 15 | E29: =HLOOKUP($A$1,$BY$3:$DV$243,ROW()-2,FALSE) -> 28 | F29: 11 | G29: =HLOOKUP($A$1,$DW$3:$FT$243,ROW()-2,FALSE) -> 28 | H29: 12 | I29: =HLOOKUP($A$1,$FU$3:$HR$243,ROW()-2,FALSE) -> 30 | J29: 12 | K29: =HLOOKUP($A$1,$HS$3:$JP$243,ROW()-2,FALSE) -> 41 | L29: 10 | M29: =HLOOKUP($A$1,$JQ$3:$LN$243,ROW()-2,FALSE) -> 36 | N29: 11 | O29: =HLOOKUP($A$1,$LO$3:$NL$243,ROW()-2,FALSE) -> 34 | P29: 11 | Q29: =HLOOKUP($A$1,$NM$3:$PJ$243,ROW()-2,FALSE) -> 34 | R29: 11 | S29: =HLOOKUP($A$1,$PK$3:$RH$243,ROW()-2,FALSE) -> 36 | T29: 13 | U29: =HLOOKUP($A$1,$RI$3:$TF$243,ROW()-2,FALSE) -> 35 | V29: 12 | W29: =HLOOKUP($A$1,$TG$3:$VD$243,ROW()-2,FALSE) -> 31 | X29: 14 | Y29: Ula | Z29: 1434 | AA29: 0 | AB29: 0 | AC29: 84 | AD29: 60 | AE29: 0 | AF29: 1 | AG29: 9 | AH29: 0 | AI29: 0 | AJ29: 140 | AK29: 40 | AL29: 0 | AM29: 0 | AN29: 4 | AO29: 80 | AP29: 14 | AQ29: 1 | AR29: 0 | AS29: 0 | AT29: 2 | AU29: 12 | AV29: 58 | AW29: 0 | AX29: 18 | AY29: 0 | AZ29: 21 | BA29: 0 | BB29: 0 | BC29: 176 | BD29: 0 | BE29: 468 | BF29: 14 | BG29: 3 | BH29: 0 | BI29: 85 | BJ29: 0 | BK29: 0 | BL29: 91 | BM29: 0 | BN29: 78 | BO29: 0 | BP29: 1 | BQ29: 0 | BR29: 985 | BS29: 12 | BT29: 0 | BU29: 15 | BV29: 1332 | BW29: 22 | BX29: 0 | BY29: 0 | BZ29: 0 | CA29: 125 | CB29: 66 | CC29: 0 | CD29: 1 | CE29: 9 | CF29: 0 | CG29: 0 | CH29: 180 | CI29: 34 | CJ29: 0 | CK29: 0 | CL29: 4 | CM29: 80 | CN29: 14 | CO29: 1 | CP29: 0 | CQ29: 0 | CR29: 1 | CS29: 5 | CT29: 48 | CU29: 0 | CV29: 1 | CW29: 0 | CX29: 28 | CY29: 0 | CZ29: 0 | DA29: 25 | DB29: 0 | DC29: 434 | DD29: 9 | DE29: 0 | DF29: 1 | DG29: 79 | DH29: 0 | DI29: 0 | DJ29: 23 | DK29: 0 | DL29: 18 | DM29: 0 | DN29: 2 | DO29: 0 | DP29: 1034 | DQ29: 12 | DR29: 0 | DS29: 4 | DT29: 1434 | DU29: 20 | DV29: 0 | DW29: 0 | DX29: 0 | DY29: 75 | DZ29: 66 | EA29: 0 | EB29: 1 | EC29: 10 | ED29: 0 | EE29: 0 | EF29: 201 | EG29: 34 | EH29: 0 | EI29: 0 | EJ29: 8 | EK29: 55 | EL29: 14 | EM29: 1 | EN29: 0 | EO29: 0 | EP29: 1 | EQ29: 8 | ER29: 64 | ES29: 0 | ET29: 1 | EU29: 0 | EV29: 28 | EW29: 0 | EX29: 0 | EY29: 8 | EZ29: 0 | FA29: 373 | FB29: 8 | FC29: 0 | FD29: 0 | FE29: 60 | FF29: 0 | FG29: 0 | FH29: 468 | FI29: 0 | FJ29: 18 | FK29: 0 | FL29: 2 | FM29: 0 | FN29: 1070 | FO29: 12 | FP29: 0 | FQ29: 4 | FR29: 1089 | FS29: 20 | FT29: 0 | FU29: 0 | FV29: 0 | FW29: 175 | FX29: 60 | FY29: 0 | FZ29: 1 | GA29: 9 | GB29: 0 | GC29: 0 | GD29: 201 | GE29: 38 | GF29: 0 | GG29: 0 | GH29: 11 | GI29: 100 | GJ29: 18 | GK29: 1 | GL29: 0 | GM29: 0 | GN29: 3 | GO29: 9 | GP29: 25 | GQ29: 0 | GR29: 1 | GS29: 0 | GT29: 30 | GU29: 0 | GV29: 0 | GW29: 10 | GX29: 0 | GY29: 413 | GZ29: 41 | HA29: 0 | HB29: 0 | HC29: 60 | HD29: 0 | HE29: 0 | HF29: 440 | HG29: 0 | HH29: 17 | HI29: 0 | HJ29: 2 | HK29: 0 | HL29: 1008 | HM29: 12 | HN29: 0 | HO29: 4 | HP29: 1096 | HQ29: 20 | HR29: 0 | HS29: 0 | HT29: 0 | HU29: 216 | HV29: 60 | HW29: 0 | HX29: 1 | HY29: 7 | HZ29: 0 | IA29: 0 | IB29: 201 | IC29: 40 | ID29: 0 | IE29: 0 | IF29: 10 | IG29: 50 | IH29: 18 | II29: 1 | IJ29: 0 | IK29: 0 | IL29: 3 | IM29: 8 | IN29: 21 | IO29: 0 | IP29: 1 | IQ29: 0 | IR29: 41 | IS29: 0 | IT29: 3 | IU29: 14 | IV29: 0 | IW29: 458 | IX29: 41 | IY29: 0 | IZ29: 0 | JA29: 75 | JB29: 0 | JC29: 0 | JD29: 450 | JE29: 0 | JF29: 16 | JG29: 0 | JH29: 2 | JI29: 0 | JJ29: 859 | JK29: 12 | JL29: 0 | JM29: 4 | JN29: 1000 | JO29: 19 | JP29: 0 | JQ29: 0 | JR29: 0 | JS29: 33 | JT29: 66 | JU29: 0 | JV29: 1 | JW29: 6 | JX29: 0 | JY29: 0 | JZ29: 201 | KA29: 40 | KB29: 0 | KC29: 0 | KD29: 12 | KE29: 50 | KF29: 14 | KG29: 1 | KH29: 4 | KI29: 12 | KJ29: 4 | KK29: 7 | KL29: 20 | KM29: 0 | KN29: 1 | KO29: 0 | KP29: 36 | KQ29: 0 | KR29: 2 | KS29: 15 | KT29: 0 | KU29: 454 | KV29: 41 | KW29: 0 | KX29: 0 | KY29: 75 | KZ29: 0 | LA29: 0 | LB29: 400 | LC29: 0 | LD29: 9 | LE29: 0 | LF29: 2 | LG29: 0 | LH29: 830 | LI29: 11 | LJ29: 0 | LK29: 5 | LL29: 815 | LM29: 23 | LN29: 0 | LO29: 0 | LP29: 0 | LQ29: 33 | LR29: 60 | LS29: 0 | LT29: 3 | LU29: 5 | LV29: 0 | LW29: 0 | LX29: 201 | LY29: 42 | LZ29: 0 | MA29: 0 | MB29: 12 | MC29: 100 | MD29: 14 | ME29: 1 | MF29: 0 | MG29: 4 | MH29: 4 | MI29: 6 | MJ29: 22 | MK29: 0 | ML29: 0 | MM29: 0 | MN29: 34 | MO29: 0 | MP29: 2 | MQ29: 9 | MR29: 0 | MS29: 457 | MT29: 40 | MU29: 0 | MV29: 0 | MW29: 75 | MX29: 0 | MY29: 0 | MZ29: 400 | NA29: 0 | NB29: 7 | NC29: 0 | ND29: 2 | NE29: 0 | NF29: 830 | NG29: 7 | NH29: 0 | NI29: 5 | NJ29: 618 | NK29: 21 | NL29: 0 | NM29: 0 | NN29: 0 | NO29: 41 | NP29: 60 | NQ29: 0 | NR29: 0 | NS29: 5 | NT29: 0 | NU29: 0 | NV29: 189 | NW29: 40 | NX29: 0 | NY29: 0 | NZ29: 11 | OA29: 100 | OB29: 18 | OC29: 0 | OD29: 0 | OE29: 5 | OF29: 3 | OG29: 5 | OH29: 22 | OI29: 0 | OJ29: 0 | OK29: 0 | OL29: 34 | OM29: 0 | ON29: 2 | OO29: 3 | OP29: 0 | OQ29: 413 | OR29: 42 | OS29: 0 | OT29: 0 | OU29: 8 | OV29: 0 | OW29: 3 | OX29: 400 | OY29: 0 | OZ29: 14 | PA29: 0 | PB29: 2 | PC29: 0 | PD29: 652 | PE29: 3 | PF29: 0 | PG29: 5 | PH29: 616 | PI29: 21 | PJ29: 0 | PK29: 0 | PL29: 0 | PM29: 44 | PN29: 49 | PO29: 0 | PP29: 0 | PQ29: 4 | PR29: 0 | PS29: 0 | PT29: 188 | PU29: 121 | PV29: 0 | PW29: 0 | PX29: 14 | PY29: 126 | PZ29: 20 | QA29: 0 | QB29: 0 | QC29: 8 | QD29: 1125 | QE29: 6 | QF29: 55 | QG29: 0 | QH29: 0 | QI29: 0 | QJ29: 36 | QK29: 0 | QL29: 2 | QM29: 12 | QN29: 0 | QO29: 387 | QP29: 46 | QQ29: 0 | QR29: 0 | QS29: 52 | QT29: 3 | QU29: 0 | QV29: 395 | QW29: 2 | QX29: 20 | QY29: 0 | QZ29: 2 | RA29: 0 | RB29: 0 | RC29: 2 | RD29: 0 | RE29: 5 | RF29: 518 | RG29: 21 | RH29: 0 | RI29: 0 | RJ29: 0 | RK29: 42 | RL29: 30 | RM29: 0 | RN29: 0 | RO29: 4 | RP29: 0 | RQ29: 0 | RR29: 165 | RS29: 80 | RT29: 0 | RU29: 0 | RV29: 16 | RW29: 125 | RX29: 23 | RY29: 0 | RZ29: 0 | SA29: 8 | SB29: 1820 | SC29: 5 | SD29: 111 | SE29: 0 | SF29: 2 | SG29: 0 | SH29: 35 | SI29: 0 | SJ29: 2 | SK29: 12 | SL29: 0 | SM29: 388 | SN29: 42 | SO29: 0 | SP29: 0 | SQ29: 45 | SR29: 4 | SS29: 0 | ST29: 320 | SU29: 2 | SV29: 19 | SW29: 3 | SX29: 2 | SY29: 0 | SZ29: 0 | TA29: 2 | TB29: 0 | TC29: 5 | TD29: 529 | TE29: 17 | TF29: 0 | TG29: 0 | TH29: 0 | TI29: 105 | TJ29: 23 | TK29: 0 | TL29: 0 | TM29: 4 | TN29: 0 | TO29: 0 | TP29: 141 | TQ29: 32 | TR29: 0 | TS29: 0 | TT29: 16 | TU29: 55 | TV29: 14 | TW29: 0 | TX29: 0 | TY29: 10 | TZ29: 1560 | UA29: 5 | UB29: 111 | UC29: 2 | UD29: 2 | UE29: 0 | UF29: 31 | UG29: 0 | UH29: 2 | UI29: 26 | UJ29: 0 | UK29: 388 | UL29: 72 | UM29: 0 | UN29: 0 | UO29: 45 | UP29: 3 | UQ29: 0 | UR29: 320 | US29: 1 | UT29: 45 | UU29: 3 | UV29: 8 | UW29: 0 | UX29: 0 | UY29: 8 | UZ29: 0 | VA29: 5 | VB29: 529 | VC29: 39 | VD29: 0
A30: AntepFıstığı | B30: ton | C30: =HLOOKUP($A$1,$AA$3:$BX$243,ROW()-2,FALSE) -> 8 | D30: 12 | E30: =HLOOKUP($A$1,$BY$3:$DV$243,ROW()-2,FALSE) -> 7 | F30: 11 | G30: =HLOOKUP($A$1,$DW$3:$FT$243,ROW()-2,FALSE) -> 7 | H30: 10 | I30: =HLOOKUP($A$1,$FU$3:$HR$243,ROW()-2,FALSE) -> 9 | J30: 11 | K30: =HLOOKUP($A$1,$HS$3:$JP$243,ROW()-2,FALSE) -> 12 | L30: 11 | M30: =HLOOKUP($A$1,$JQ$3:$LN$243,ROW()-2,FALSE) -> 14 | N30: 11 | O30: =HLOOKUP($A$1,$LO$3:$NL$243,ROW()-2,FALSE) -> 16 | P30: 10 | Q30: =HLOOKUP($A$1,$NM$3:$PJ$243,ROW()-2,FALSE) -> 16 | R30: 11 | S30: =HLOOKUP($A$1,$PK$3:$RH$243,ROW()-2,FALSE) -> 14 | T30: 11 | U30: =HLOOKUP($A$1,$RI$3:$TF$243,ROW()-2,FALSE) -> 14 | V30: 11 | W30: =HLOOKUP($A$1,$TG$3:$VD$243,ROW()-2,FALSE) -> 9 | X30: 12 | Y30: Menteşe | Z30: 613 | AA30: 1 | AB30: 0 | AC30: 0 | AD30: 0 | AE30: 0 | AF30: 0 | AG30: 16 | AH30: 0 | AI30: 1 | AJ30: 6 | AK30: 7 | AL30: 0 | AM30: 0 | AN30: 64 | AO30: 4 | AP30: 0 | AQ30: 0 | AR30: 0 | AS30: 114 | AT30: 0 | AU30: 23 | AV30: 59 | AW30: 0 | AX30: 1 | AY30: 0 | AZ30: 8 | BA30: 0 | BB30: 0 | BC30: 1 | BD30: 6 | BE30: 0 | BF30: 0 | BG30: 1 | BH30: 0 | BI30: 28 | BJ30: 0 | BK30: 0 | BL30: 0 | BM30: 19 | BN30: 0 | BO30: 9 | BP30: 1 | BQ30: 0 | BR30: 0 | BS30: 0 | BT30: 15 | BU30: 0 | BV30: 0 | BW30: 10 | BX30: 75 | BY30: 1 | BZ30: 0 | CA30: 0 | CB30: 0 | CC30: 0 | CD30: 0 | CE30: 15 | CF30: 0 | CG30: 1 | CH30: 6 | CI30: 7 | CJ30: 0 | CK30: 0 | CL30: 67 | CM30: 4 | CN30: 0 | CO30: 0 | CP30: 0 | CQ30: 117 | CR30: 0 | CS30: 24 | CT30: 48 | CU30: 0 | CV30: 1 | CW30: 1 | CX30: 7 | CY30: 1 | CZ30: 0 | DA30: 1 | DB30: 6 | DC30: 0 | DD30: 0 | DE30: 1 | DF30: 0 | DG30: 613 | DH30: 0 | DI30: 0 | DJ30: 0 | DK30: 10 | DL30: 0 | DM30: 5 | DN30: 1 | DO30: 0 | DP30: 1 | DQ30: 0 | DR30: 15 | DS30: 0 | DT30: 0 | DU30: 10 | DV30: 52 | DW30: 1 | DX30: 0 | DY30: 0 | DZ30: 0 | EA30: 0 | EB30: 0 | EC30: 7 | ED30: 0 | EE30: 1 | EF30: 6 | EG30: 7 | EH30: 0 | EI30: 0 | EJ30: 32 | EK30: 2 | EL30: 0 | EM30: 0 | EN30: 0 | EO30: 56 | EP30: 0 | EQ30: 12 | ER30: 42 | ES30: 0 | ET30: 1 | EU30: 1 | EV30: 7 | EW30: 1 | EX30: 0 | EY30: 1 | EZ30: 3 | FA30: 0 | FB30: 0 | FC30: 1 | FD30: 0 | FE30: 29 | FF30: 0 | FG30: 0 | FH30: 0 | FI30: 9 | FJ30: 0 | FK30: 5 | FL30: 1 | FM30: 0 | FN30: 1 | FO30: 0 | FP30: 14 | FQ30: 0 | FR30: 0 | FS30: 10 | FT30: 25 | FU30: 1 | FV30: 0 | FW30: 0 | FX30: 0 | FY30: 0 | FZ30: 0 | GA30: 13 | GB30: 0 | GC30: 2 | GD30: 9 | GE30: 9 | GF30: 0 | GG30: 0 | GH30: 48 | GI30: 2 | GJ30: 0 | GK30: 0 | GL30: 0 | GM30: 124 | GN30: 0 | GO30: 18 | GP30: 64 | GQ30: 0 | GR30: 2 | GS30: 2 | GT30: 9 | GU30: 2 | GV30: 0 | GW30: 1 | GX30: 4 | GY30: 0 | GZ30: 0 | HA30: 1 | HB30: 0 | HC30: 72 | HD30: 0 | HE30: 0 | HF30: 0 | HG30: 14 | HH30: 0 | HI30: 8 | HJ30: 3 | HK30: 0 | HL30: 1 | HM30: 0 | HN30: 26 | HO30: 0 | HP30: 0 | HQ30: 24 | HR30: 38 | HS30: 1 | HT30: 0 | HU30: 0 | HV30: 0 | HW30: 0 | HX30: 0 | HY30: 23 | HZ30: 0 | IA30: 3 | IB30: 12 | IC30: 11 | ID30: 0 | IE30: 0 | IF30: 64 | IG30: 5 | IH30: 0 | II30: 0 | IJ30: 0 | IK30: 167 | IL30: 0 | IM30: 26 | IN30: 84 | IO30: 0 | IP30: 3 | IQ30: 3 | IR30: 12 | IS30: 1 | IT30: 0 | IU30: 0 | IV30: 6 | IW30: 0 | IX30: 0 | IY30: 1 | IZ30: 0 | JA30: 100 | JB30: 0 | JC30: 0 | JD30: 0 | JE30: 28 | JF30: 0 | JG30: 10 | JH30: 5 | JI30: 0 | JJ30: 1 | JK30: 0 | JL30: 34 | JM30: 0 | JN30: 0 | JO30: 31 | JP30: 50 | JQ30: 1 | JR30: 0 | JS30: 0 | JT30: 0 | JU30: 0 | JV30: 0 | JW30: 21 | JX30: 0 | JY30: 4 | JZ30: 7 | KA30: 12 | KB30: 0 | KC30: 0 | KD30: 41 | KE30: 2 | KF30: 0 | KG30: 0 | KH30: 0 | KI30: 158 | KJ30: 0 | KK30: 24 | KL30: 365 | KM30: 0 | KN30: 3 | KO30: 3 | KP30: 14 | KQ30: 1 | KR30: 0 | KS30: 0 | KT30: 5 | KU30: 0 | KV30: 0 | KW30: 1 | KX30: 0 | KY30: 139 | KZ30: 0 | LA30: 0 | LB30: 0 | LC30: 26 | LD30: 0 | LE30: 9 | LF30: 4 | LG30: 0 | LH30: 1 | LI30: 0 | LJ30: 39 | LK30: 0 | LL30: 0 | LM30: 32 | LN30: 47 | LO30: 1 | LP30: 0 | LQ30: 0 | LR30: 0 | LS30: 0 | LT30: 0 | LU30: 21 | LV30: 0 | LW30: 3 | LX30: 8 | LY30: 14 | LZ30: 0 | MA30: 0 | MB30: 46 | MC30: 5 | MD30: 0 | ME30: 0 | MF30: 0 | MG30: 175 | MH30: 0 | MI30: 27 | MJ30: 673 | MK30: 0 | ML30: 3 | MM30: 3 | MN30: 16 | MO30: 0 | MP30: 0 | MQ30: 0 | MR30: 6 | MS30: 0 | MT30: 0 | MU30: 1 | MV30: 0 | MW30: 198 | MX30: 0 | MY30: 0 | MZ30: 0 | NA30: 28 | NB30: 0 | NC30: 10 | ND30: 4 | NE30: 0 | NF30: 1 | NG30: 0 | NH30: 57 | NI30: 0 | NJ30: 0 | NK30: 8 | NL30: 52 | NM30: 20 | NN30: 0 | NO30: 0 | NP30: 0 | NQ30: 0 | NR30: 0 | NS30: 31 | NT30: 0 | NU30: 3 | NV30: 8 | NW30: 13 | NX30: 0 | NY30: 0 | NZ30: 41 | OA30: 5 | OB30: 0 | OC30: 0 | OD30: 0 | OE30: 175 | OF30: 1 | OG30: 27 | OH30: 681 | OI30: 0 | OJ30: 3 | OK30: 4 | OL30: 16 | OM30: 0 | ON30: 0 | OO30: 0 | OP30: 6 | OQ30: 1 | OR30: 0 | OS30: 1 | OT30: 0 | OU30: 136 | OV30: 0 | OW30: 0 | OX30: 0 | OY30: 56 | OZ30: 0 | PA30: 0 | PB30: 4 | PC30: 0 | PD30: 1 | PE30: 1 | PF30: 57 | PG30: 0 | PH30: 0 | PI30: 8 | PJ30: 52 | PK30: 18 | PL30: 0 | PM30: 0 | PN30: 0 | PO30: 0 | PP30: 0 | PQ30: 42 | PR30: 0 | PS30: 3 | PT30: 7 | PU30: 12 | PV30: 0 | PW30: 0 | PX30: 41 | PY30: 6 | PZ30: 0 | QA30: 0 | QB30: 0 | QC30: 163 | QD30: 2 | QE30: 27 | QF30: 673 | QG30: 0 | QH30: 3 | QI30: 4 | QJ30: 14 | QK30: 0 | QL30: 0 | QM30: 0 | QN30: 10 | QO30: 1 | QP30: 0 | QQ30: 1 | QR30: 0 | QS30: 155 | QT30: 10 | QU30: 0 | QV30: 0 | QW30: 56 | QX30: 0 | QY30: 0 | QZ30: 4 | RA30: 0 | RB30: 0 | RC30: 1 | RD30: 53 | RE30: 0 | RF30: 0 | RG30: 7 | RH30: 52 | RI30: 14 | RJ30: 0 | RK30: 0 | RL30: 0 | RM30: 0 | RN30: 0 | RO30: 48 | RP30: 0 | RQ30: 3 | RR30: 7 | RS30: 10 | RT30: 0 | RU30: 0 | RV30: 38 | RW30: 7 | RX30: 0 | RY30: 0 | RZ30: 0 | SA30: 54 | SB30: 2 | SC30: 27 | SD30: 538 | SE30: 0 | SF30: 6 | SG30: 4 | SH30: 14 | SI30: 0 | SJ30: 0 | SK30: 0 | SL30: 20 | SM30: 1 | SN30: 0 | SO30: 3 | SP30: 0 | SQ30: 176 | SR30: 9 | SS30: 0 | ST30: 0 | SU30: 56 | SV30: 0 | SW30: 0 | SX30: 3 | SY30: 0 | SZ30: 0 | TA30: 3 | TB30: 53 | TC30: 0 | TD30: 0 | TE30: 1 | TF30: 52 | TG30: 14 | TH30: 0 | TI30: 0 | TJ30: 0 | TK30: 0 | TL30: 0 | TM30: 26 | TN30: 0 | TO30: 3 | TP30: 7 | TQ30: 5 | TR30: 0 | TS30: 0 | TT30: 38 | TU30: 7 | TV30: 0 | TW30: 0 | TX30: 0 | TY30: 57 | TZ30: 1 | UA30: 53 | UB30: 538 | UC30: 0 | UD30: 6 | UE30: 3 | UF30: 9 | UG30: 0 | UH30: 0 | UI30: 1 | UJ30: 31 | UK30: 2 | UL30: 0 | UM30: 3 | UN30: 0 | UO30: 176 | UP30: 9 | UQ30: 0 | UR30: 0 | US30: 56 | UT30: 0 | UU30: 0 | UV30: 3 | UW30: 0 | UX30: 0 | UY30: 3 | UZ30: 53 | VA30: 0 | VB30: 0 | VC30: 1 | VD30: 73
A31: Nar | B31: ton | C31: =HLOOKUP($A$1,$AA$3:$BX$243,ROW()-2,FALSE) -> 894 | D31: 14 | E31: =HLOOKUP($A$1,$BY$3:$DV$243,ROW()-2,FALSE) -> 1040 | F31: 12 | G31: =HLOOKUP($A$1,$DW$3:$FT$243,ROW()-2,FALSE) -> 1310 | H31: 10 | I31: =HLOOKUP($A$1,$FU$3:$HR$243,ROW()-2,FALSE) -> 1540 | J31: 11 | K31: =HLOOKUP($A$1,$HS$3:$JP$243,ROW()-2,FALSE) -> 1184 | L31: 11 | M31: =HLOOKUP($A$1,$JQ$3:$LN$243,ROW()-2,FALSE) -> 3384 | N31: 7 | O31: =HLOOKUP($A$1,$LO$3:$NL$243,ROW()-2,FALSE) -> 4485 | P31: 4 | Q31: =HLOOKUP($A$1,$NM$3:$PJ$243,ROW()-2,FALSE) -> 4485 | R31: 4 | S31: =HLOOKUP($A$1,$PK$3:$RH$243,ROW()-2,FALSE) -> 2170 | T31: 7 | U31: =HLOOKUP($A$1,$RI$3:$TF$243,ROW()-2,FALSE) -> 2777 | V31: 4 | W31: =HLOOKUP($A$1,$TG$3:$VD$243,ROW()-2,FALSE) -> 2600 | X31: 4 | Y31: Ortaca | Z31: 47027 | AA31: 0 | AB31: 12 | AC31: 0 | AD31: 51 | AE31: 7 | AF31: 43 | AG31: 360 | AH31: 1 | AI31: 89 | AJ31: 1804 | AK31: 0 | AL31: 0 | AM31: 10 | AN31: 284 | AO31: 0 | AP31: 2955 | AQ31: 188 | AR31: 32 | AS31: 559 | AT31: 848 | AU31: 62 | AV31: 1325 | AW31: 24 | AX31: 468 | AY31: 57 | AZ31: 894 | BA31: 43 | BB31: 55 | BC31: 213 | BD31: 119 | BE31: 1319 | BF31: 1062 | BG31: 2680 | BH31: 245 | BI31: 313 | BJ31: 0 | BK31: 3021 | BL31: 248 | BM31: 6413 | BN31: 45260 | BO31: 33085 | BP31: 4008 | BQ31: 3 | BR31: 23647 | BS31: 1022 | BT31: 676 | BU31: 825 | BV31: 640 | BW31: 234 | BX31: 50 | BY31: 0 | BZ31: 11 | CA31: 0 | CB31: 51 | CC31: 7 | CD31: 43 | CE31: 371 | CF31: 1 | CG31: 94 | CH31: 1811 | CI31: 0 | CJ31: 0 | CK31: 10 | CL31: 295 | CM31: 0 | CN31: 2955 | CO31: 205 | CP31: 32 | CQ31: 599 | CR31: 820 | CS31: 67 | CT31: 1550 | CU31: 84 | CV31: 468 | CW31: 66 | CX31: 1040 | CY31: 44 | CZ31: 55 | DA31: 158 | DB31: 127 | DC31: 1404 | DD31: 944 | DE31: 2298 | DF31: 245 | DG31: 300 | DH31: 0 | DI31: 3020 | DJ31: 688 | DK31: 6353 | DL31: 47027 | DM31: 32434 | DN31: 3857 | DO31: 3 | DP31: 32010 | DQ31: 975 | DR31: 676 | DS31: 870 | DT31: 640 | DU31: 216 | DV31: 50 | DW31: 0 | DX31: 11 | DY31: 0 | DZ31: 51 | EA31: 6 | EB31: 20 | EC31: 360 | ED31: 1 | EE31: 95 | EF31: 3508 | EG31: 0 | EH31: 0 | EI31: 10 | EJ31: 298 | EK31: 0 | EL31: 2955 | EM31: 53 | EN31: 32 | EO31: 599 | EP31: 740 | EQ31: 71 | ER31: 960 | ES31: 84 | ET31: 628 | EU31: 66 | EV31: 1310 | EW31: 44 | EX31: 55 | EY31: 158 | EZ31: 278 | FA31: 1248 | FB31: 991 | FC31: 2207 | FD31: 245 | FE31: 192 | FF31: 0 | FG31: 2846 | FH31: 646 | FI31: 6350 | FJ31: 49073 | FK31: 32429 | FL31: 3283 | FM31: 3 | FN31: 31235 | FO31: 975 | FP31: 676 | FQ31: 871 | FR31: 640 | FS31: 204 | FT31: 50 | FU31: 0 | FV31: 11 | FW31: 0 | FX31: 51 | FY31: 8 | FZ31: 19 | GA31: 446 | GB31: 1 | GC31: 134 | GD31: 3466 | GE31: 0 | GF31: 0 | GG31: 10 | GH31: 366 | GI31: 0 | GJ31: 2671 | GK31: 82 | GL31: 209 | GM31: 599 | GN31: 725 | GO31: 73 | GP31: 2213 | GQ31: 84 | GR31: 648 | GS31: 61 | GT31: 1540 | GU31: 106 | GV31: 61 | GW31: 158 | GX31: 278 | GY31: 1249 | GZ31: 992 | HA31: 2190 | HB31: 298 | HC31: 210 | HD31: 0 | HE31: 2887 | HF31: 781 | HG31: 6357 | HH31: 44642 | HI31: 32454 | HJ31: 3425 | HK31: 3 | HL31: 29749 | HM31: 976 | HN31: 676 | HO31: 942 | HP31: 741 | HQ31: 175 | HR31: 50 | HS31: 0 | HT31: 11 | HU31: 0 | HV31: 47 | HW31: 8 | HX31: 23 | HY31: 582 | HZ31: 1 | IA31: 196 | IB31: 3175 | IC31: 0 | ID31: 0 | IE31: 9 | IF31: 430 | IG31: 0 | IH31: 2038 | II31: 39 | IJ31: 192 | IK31: 592 | IL31: 656 | IM31: 78 | IN31: 2077 | IO31: 77 | IP31: 624 | IQ31: 56 | IR31: 1184 | IS31: 85 | IT31: 71 | IU31: 163 | IV31: 228 | IW31: 1041 | IX31: 975 | IY31: 2240 | IZ31: 230 | JA31: 186 | JB31: 0 | JC31: 3184 | JD31: 716 | JE31: 5831 | JF31: 41737 | JG31: 32564 | JH31: 2675 | JI31: 3 | JJ31: 25660 | JK31: 856 | JL31: 621 | JM31: 864 | JN31: 679 | JO31: 107 | JP31: 92 | JQ31: 0 | JR31: 12 | JS31: 0 | JT31: 41 | JU31: 9 | JV31: 18 | JW31: 519 | JX31: 1 | JY31: 230 | JZ31: 3995 | KA31: 0 | KB31: 0 | KC31: 9 | KD31: 401 | KE31: 0 | KF31: 1802 | KG31: 39 | KH31: 193 | KI31: 650 | KJ31: 639 | KK31: 79 | KL31: 1388 | KM31: 6 | KN31: 685 | KO31: 69 | KP31: 3384 | KQ31: 87 | KR31: 71 | KS31: 178 | KT31: 233 | KU31: 1066 | KV31: 829 | KW31: 2143 | KX31: 257 | KY31: 188 | KZ31: 0 | LA31: 3411 | LB31: 244 | LC31: 5971 | LD31: 32767 | LE31: 33345 | LF31: 2530 | LG31: 0 | LH31: 27942 | LI31: 818 | LJ31: 465 | LK31: 778 | LL31: 600 | LM31: 115 | LN31: 310 | LO31: 0 | LP31: 6 | LQ31: 0 | LR31: 26 | LS31: 10 | LT31: 29 | LU31: 555 | LV31: 7 | LW31: 124 | LX31: 4181 | LY31: 0 | LZ31: 0 | MA31: 10 | MB31: 439 | MC31: 0 | MD31: 1638 | ME31: 42 | MF31: 205 | MG31: 697 | MH31: 718 | MI31: 82 | MJ31: 2165 | MK31: 205 | ML31: 999 | MM31: 82 | MN31: 4485 | MO31: 93 | MP31: 65 | MQ31: 189 | MR31: 248 | MS31: 1167 | MT31: 882 | MU31: 2301 | MV31: 273 | MW31: 184 | MX31: 0 | MY31: 3966 | MZ31: 350 | NA31: 3477 | NB31: 33889 | NC31: 8411 | ND31: 3463 | NE31: 3 | NF31: 29437 | NG31: 828 | NH31: 495 | NI31: 828 | NJ31: 438 | NK31: 117 | NL31: 330 | NM31: 0 | NN31: 6 | NO31: 0 | NP31: 26 | NQ31: 6 | NR31: 30 | NS31: 504 | NT31: 7 | NU31: 124 | NV31: 4285 | NW31: 0 | NX31: 0 | NY31: 9 | NZ31: 315 | OA31: 0 | OB31: 1638 | OC31: 35 | OD31: 175 | OE31: 697 | OF31: 30888 | OG31: 82 | OH31: 2143 | OI31: 190 | OJ31: 999 | OK31: 98 | OL31: 4485 | OM31: 83 | ON31: 38 | OO31: 189 | OP31: 142 | OQ31: 1167 | OR31: 704 | OS31: 2014 | OT31: 140 | OU31: 22 | OV31: 0 | OW31: 3966 | OX31: 187 | OY31: 3375 | OZ31: 32002 | PA31: 18774 | PB31: 4277 | PC31: 3 | PD31: 81 | PE31: 770 | PF31: 495 | PG31: 828 | PH31: 358 | PI31: 117 | PJ31: 330 | PK31: 0 | PL31: 5 | PM31: 0 | PN31: 25 | PO31: 6 | PP31: 30 | PQ31: 500 | PR31: 7 | PS31: 124 | PT31: 3032 | PU31: 0 | PV31: 0 | PW31: 9 | PX31: 330 | PY31: 0 | PZ31: 1548 | QA31: 8 | QB31: 18 | QC31: 610 | QD31: 17560 | QE31: 82 | QF31: 2288 | QG31: 186 | QH31: 999 | QI31: 99 | QJ31: 2170 | QK31: 83 | QL31: 40 | QM31: 189 | QN31: 143 | QO31: 1097 | QP31: 616 | QQ31: 1798 | QR31: 140 | QS31: 86 | QT31: 17073 | QU31: 0 | QV31: 187 | QW31: 1320 | QX31: 25830 | QY31: 663 | QZ31: 3958 | RA31: 3 | RB31: 0 | RC31: 585 | RD31: 454 | RE31: 828 | RF31: 358 | RG31: 183 | RH31: 330 | RI31: 0 | RJ31: 5 | RK31: 0 | RL31: 32 | RM31: 23 | RN31: 30 | RO31: 645 | RP31: 6 | RQ31: 124 | RR31: 2477 | RS31: 17 | RT31: 0 | RU31: 10 | RV31: 301 | RW31: 36 | RX31: 1098 | RY31: 8 | RZ31: 18 | SA31: 628 | SB31: 8280 | SC31: 82 | SD31: 1000 | SE31: 148 | SF31: 851 | SG31: 72 | SH31: 2777 | SI31: 52 | SJ31: 40 | SK31: 137 | SL31: 126 | SM31: 1097 | SN31: 360 | SO31: 1165 | SP31: 140 | SQ31: 77 | SR31: 5194 | SS31: 0 | ST31: 187 | SU31: 1100 | SV31: 12824 | SW31: 390 | SX31: 2309 | SY31: 3 | SZ31: 0 | TA31: 186 | TB31: 454 | TC31: 846 | TD31: 341 | TE31: 183 | TF31: 330 | TG31: 0 | TH31: 5 | TI31: 0 | TJ31: 20 | TK31: 3 | TL31: 19 | TM31: 521 | TN31: 6 | TO31: 124 | TP31: 2449 | TQ31: 17 | TR31: 0 | TS31: 12 | TT31: 301 | TU31: 36 | TV31: 469 | TW31: 8 | TX31: 18 | TY31: 635 | TZ31: 7455 | UA31: 82 | UB31: 1000 | UC31: 138 | UD31: 427 | UE31: 58 | UF31: 2600 | UG31: 24 | UH31: 38 | UI31: 68 | UJ31: 116 | UK31: 296 | UL31: 120 | UM31: 740 | UN31: 105 | UO31: 70 | UP31: 6890 | UQ31: 0 | UR31: 135 | US31: 1092 | UT31: 17022 | UU31: 383 | UV31: 2093 | UW31: 2 | UX31: 0 | UY31: 97 | UZ31: 454 | VA31: 555 | VB31: 251 | VC31: 183 | VD31: 13
A32: Üzüm(Sofralık-Çekirdeksiz) | B32: ton | C32: =HLOOKUP($A$1,$AA$3:$BX$243,ROW()-2,FALSE) -> 465 | D32: 13 | E32: =HLOOKUP($A$1,$BY$3:$DV$243,ROW()-2,FALSE) -> 529 | F32: 12 | G32: =HLOOKUP($A$1,$DW$3:$FT$243,ROW()-2,FALSE) -> 468 | H32: 11 | I32: =HLOOKUP($A$1,$FU$3:$HR$243,ROW()-2,FALSE) -> 1298 | J32: 8 | K32: =HLOOKUP($A$1,$HS$3:$JP$243,ROW()-2,FALSE) -> 1791 | L32: 8 | M32: =HLOOKUP($A$1,$JQ$3:$LN$243,ROW()-2,FALSE) -> 2000 | N32: 6 | O32: =HLOOKUP($A$1,$LO$3:$NL$243,ROW()-2,FALSE) -> 2500 | P32: 7 | Q32: =HLOOKUP($A$1,$NM$3:$PJ$243,ROW()-2,FALSE) -> 2513 | R32: 8 | S32: =HLOOKUP($A$1,$PK$3:$RH$243,ROW()-2,FALSE) -> 1125 | T32: 11 | U32: =HLOOKUP($A$1,$RI$3:$TF$243,ROW()-2,FALSE) -> 1125 | V32: 11 | W32: =HLOOKUP($A$1,$TG$3:$VD$243,ROW()-2,FALSE) -> 2188 | X32: 9 | Y32: Çal | Z32: 64302 | AA32: 280 | AB32: 0 | AC32: 110 | AD32: 3060 | AE32: 0 | AF32: 90 | AG32: 37 | AH32: 260 | AI32: 550 | AJ32: 67615 | AK32: 38269 | AL32: 0 | AM32: 0 | AN32: 108 | AO32: 1444 | AP32: 6 | AQ32: 20 | AR32: 70 | AS32: 124 | AT32: 91 | AU32: 0 | AV32: 503 | AW32: 39008 | AX32: 0 | AY32: 30 | AZ32: 465 | BA32: 0 | BB32: 46 | BC32: 0 | BD32: 0 | BE32: 3 | BF32: 788 | BG32: 24 | BH32: 6 | BI32: 1684 | BJ32: 0 | BK32: 613 | BL32: 100 | BM32: 144 | BN32: 0 | BO32: 6123 | BP32: 7000 | BQ32: 0 | BR32: 124 | BS32: 10 | BT32: 420 | BU32: 0 | BV32: 45 | BW32: 23 | BX32: 0 | BY32: 224 | BZ32: 0 | CA32: 113 | CB32: 3111 | CC32: 0 | CD32: 85 | CE32: 40 | CF32: 262 | CG32: 528 | CH32: 50419 | CI32: 64302 | CJ32: 0 | CK32: 0 | CL32: 122 | CM32: 1913 | CN32: 6 | CO32: 23 | CP32: 79 | CQ32: 138 | CR32: 171 | CS32: 0 | CT32: 569 | CU32: 49859 | CV32: 0 | CW32: 32 | CX32: 529 | CY32: 0 | CZ32: 41 | DA32: 0 | DB32: 0 | DC32: 0 | DD32: 830 | DE32: 23 | DF32: 9 | DG32: 1599 | DH32: 0 | DI32: 614 | DJ32: 106 | DK32: 209 | DL32: 0 | DM32: 6917 | DN32: 7189 | DO32: 0 | DP32: 124 | DQ32: 10 | DR32: 407 | DS32: 0 | DT32: 40 | DU32: 0 | DV32: 0 | DW32: 191 | DX32: 0 | DY32: 97 | DZ32: 1880 | EA32: 0 | EB32: 62 | EC32: 35 | ED32: 232 | EE32: 467 | EF32: 36350 | EG32: 30991 | EH32: 0 | EI32: 0 | EJ32: 108 | EK32: 1612 | EL32: 5 | EM32: 19 | EN32: 82 | EO32: 112 | EP32: 80 | EQ32: 0 | ER32: 291 | ES32: 47935 | ET32: 0 | EU32: 28 | EV32: 468 | EW32: 0 | EX32: 26 | EY32: 0 | EZ32: 0 | FA32: 0 | FB32: 734 | FC32: 19 | FD32: 5 | FE32: 1253 | FF32: 0 | FG32: 541 | FH32: 217 | FI32: 143 | FJ32: 0 | FK32: 8383 | FL32: 6639 | FM32: 0 | FN32: 3 | FO32: 9 | FP32: 348 | FQ32: 0 | FR32: 35 | FS32: 0 | FT32: 0 | FU32: 498 | FV32: 0 | FW32: 106 | FX32: 2918 | FY32: 0 | FZ32: 62 | GA32: 36 | GB32: 324 | GC32: 467 | GD32: 66539 | GE32: 54588 | GF32: 0 | GG32: 0 | GH32: 119 | GI32: 1729 | GJ32: 10 | GK32: 21 | GL32: 90 | GM32: 122 | GN32: 29 | GO32: 0 | GP32: 533 | GQ32: 57421 | GR32: 0 | GS32: 30 | GT32: 1298 | GU32: 0 | GV32: 29 | GW32: 0 | GX32: 0 | GY32: 0 | GZ32: 807 | HA32: 19 | HB32: 10 | HC32: 1273 | HD32: 0 | HE32: 679 | HF32: 244 | HG32: 157 | HH32: 0 | HI32: 9208 | HJ32: 11215 | HK32: 0 | HL32: 1 | HM32: 10 | HN32: 382 | HO32: 0 | HP32: 38 | HQ32: 0 | HR32: 0 | HS32: 597 | HT32: 0 | HU32: 100 | HV32: 2738 | HW32: 0 | HX32: 58 | HY32: 177 | HZ32: 304 | IA32: 383 | IB32: 62436 | IC32: 51223 | ID32: 0 | IE32: 0 | IF32: 116 | IG32: 2317 | IH32: 10 | II32: 20 | IJ32: 80 | IK32: 115 | IL32: 36 | IM32: 0 | IN32: 486 | IO32: 44899 | IP32: 0 | IQ32: 28 | IR32: 1791 | IS32: 0 | IT32: 18 | IU32: 0 | IV32: 0 | IW32: 6 | IX32: 761 | IY32: 18 | IZ32: 5 | JA32: 1194 | JB32: 0 | JC32: 637 | JD32: 223 | JE32: 164 | JF32: 0 | JG32: 8679 | JH32: 8438 | JI32: 0 | JJ32: 1 | JK32: 9 | JL32: 358 | JM32: 0 | JN32: 36 | JO32: 0 | JP32: 0 | JQ32: 300 | JR32: 0 | JS32: 500 | JT32: 1376 | JU32: 0 | JV32: 57 | JW32: 165 | JX32: 306 | JY32: 402 | JZ32: 58750 | KA32: 41767 | KB32: 0 | KC32: 0 | KD32: 117 | KE32: 774 | KF32: 5 | KG32: 20 | KH32: 70 | KI32: 148 | KJ32: 36 | KK32: 0 | KL32: 330 | KM32: 20050 | KN32: 0 | KO32: 28 | KP32: 2000 | KQ32: 0 | KR32: 18 | KS32: 0 | KT32: 0 | KU32: 6 | KV32: 630 | KW32: 24 | KX32: 25 | KY32: 1500 | KZ32: 0 | LA32: 640 | LB32: 189 | LC32: 165 | LD32: 0 | LE32: 8700 | LF32: 5814 | LG32: 0 | LH32: 1 | LI32: 10 | LJ32: 390 | LK32: 0 | LL32: 36 | LM32: 0 | LN32: 0 | LO32: 600 | LP32: 0 | LQ32: 1750 | LR32: 2533 | LS32: 0 | LT32: 20 | LU32: 161 | LV32: 306 | LW32: 402 | LX32: 64742 | LY32: 62016 | LZ32: 0 | MA32: 0 | MB32: 118 | MC32: 2322 | MD32: 7 | ME32: 20 | MF32: 70 | MG32: 148 | MH32: 36 | MI32: 0 | MJ32: 413 | MK32: 35986 | ML32: 0 | MM32: 30 | MN32: 2500 | MO32: 0 | MP32: 16 | MQ32: 0 | MR32: 0 | MS32: 6 | MT32: 630 | MU32: 24 | MV32: 27 | MW32: 1625 | MX32: 0 | MY32: 640 | MZ32: 189 | NA32: 151 | NB32: 0 | NC32: 8700 | ND32: 8380 | NE32: 0 | NF32: 1 | NG32: 10 | NH32: 520 | NI32: 0 | NJ32: 36 | NK32: 22 | NL32: 0 | NM32: 634 | NN32: 0 | NO32: 1759 | NP32: 2533 | NQ32: 0 | NR32: 10 | NS32: 166 | NT32: 308 | NU32: 402 | NV32: 63076 | NW32: 40784 | NX32: 0 | NY32: 0 | NZ32: 118 | OA32: 3237 | OB32: 7 | OC32: 12 | OD32: 70 | OE32: 150 | OF32: 66 | OG32: 0 | OH32: 332 | OI32: 34498 | OJ32: 0 | OK32: 32 | OL32: 2513 | OM32: 0 | ON32: 10 | OO32: 0 | OP32: 0 | OQ32: 6 | OR32: 597 | OS32: 24 | OT32: 6 | OU32: 1418 | OV32: 0 | OW32: 640 | OX32: 189 | OY32: 151 | OZ32: 0 | PA32: 10784 | PB32: 6232 | PC32: 0 | PD32: 10 | PE32: 14 | PF32: 523 | PG32: 0 | PH32: 36 | PI32: 22 | PJ32: 0 | PK32: 1632 | PL32: 0 | PM32: 2100 | PN32: 2352 | PO32: 0 | PP32: 10 | PQ32: 168 | PR32: 306 | PS32: 400 | PT32: 62750 | PU32: 44794 | PV32: 0 | PW32: 0 | PX32: 117 | PY32: 2860 | PZ32: 8 | QA32: 114 | QB32: 70 | QC32: 149 | QD32: 66 | QE32: 0 | QF32: 413 | QG32: 35750 | QH32: 0 | QI32: 28 | QJ32: 1125 | QK32: 0 | QL32: 10 | QM32: 0 | QN32: 0 | QO32: 6 | QP32: 594 | QQ32: 24 | QR32: 6 | QS32: 1453 | QT32: 11083 | QU32: 0 | QV32: 188 | QW32: 190 | QX32: 0 | QY32: 165 | QZ32: 5980 | RA32: 0 | RB32: 0 | RC32: 17 | RD32: 520 | RE32: 0 | RF32: 36 | RG32: 22 | RH32: 0 | RI32: 1924 | RJ32: 0 | RK32: 2400 | RL32: 2408 | RM32: 0 | RN32: 10 | RO32: 105 | RP32: 204 | RQ32: 400 | RR32: 52750 | RS32: 41750 | RT32: 0 | RU32: 0 | RV32: 117 | RW32: 3679 | RX32: 8 | RY32: 114 | RZ32: 70 | SA32: 149 | SB32: 39 | SC32: 0 | SD32: 413 | SE32: 44100 | SF32: 0 | SG32: 22 | SH32: 1125 | SI32: 0 | SJ32: 10 | SK32: 0 | SL32: 0 | SM32: 6 | SN32: 621 | SO32: 24 | SP32: 6 | SQ32: 1590 | SR32: 10725 | SS32: 0 | ST32: 188 | SU32: 190 | SV32: 0 | SW32: 165 | SX32: 7420 | SY32: 0 | SZ32: 0 | TA32: 17 | TB32: 520 | TC32: 0 | TD32: 36 | TE32: 22 | TF32: 0 | TG32: 1924 | TH32: 0 | TI32: 2400 | TJ32: 2236 | TK32: 0 | TL32: 10 | TM32: 140 | TN32: 204 | TO32: 333 | TP32: 62250 | TQ32: 39650 | TR32: 0 | TS32: 0 | TT32: 117 | TU32: 4579 | TV32: 8 | TW32: 114 | TX32: 70 | TY32: 149 | TZ32: 44 | UA32: 0 | UB32: 413 | UC32: 29000 | UD32: 0 | UE32: 24 | UF32: 2188 | UG32: 0 | UH32: 10 | UI32: 0 | UJ32: 42 | UK32: 6 | UL32: 621 | UM32: 264 | UN32: 6 | UO32: 1683 | UP32: 11700 | UQ32: 0 | UR32: 213 | US32: 200 | UT32: 0 | UU32: 165 | UV32: 7380 | UW32: 0 | UX32: 0 | UY32: 18 | UZ32: 440 | VA32: 0 | VB32: 36 | VC32: 22 | VD32: 0
A33: Lahana(Kırmızı) | B33: ton | C33: =HLOOKUP($A$1,$AA$3:$BX$243,ROW()-2,FALSE) -> 24 | D33: 14 | E33: =HLOOKUP($A$1,$BY$3:$DV$243,ROW()-2,FALSE) -> 25 | F33: 12 | G33: =HLOOKUP($A$1,$DW$3:$FT$243,ROW()-2,FALSE) -> 25 | H33: 12 | I33: =HLOOKUP($A$1,$FU$3:$HR$243,ROW()-2,FALSE) -> 25 | J33: 11 | K33: =HLOOKUP($A$1,$HS$3:$JP$243,ROW()-2,FALSE) -> 25 | L33: 11 | M33: =HLOOKUP($A$1,$JQ$3:$LN$243,ROW()-2,FALSE) -> 28 | N33: 10 | O33: =HLOOKUP($A$1,$LO$3:$NL$243,ROW()-2,FALSE) -> 25 | P33: 11 | Q33: =HLOOKUP($A$1,$NM$3:$PJ$243,ROW()-2,FALSE) -> 25 | R33: 11 | S33: =HLOOKUP($A$1,$PK$3:$RH$243,ROW()-2,FALSE) -> 25 | T33: 11 | U33: =HLOOKUP($A$1,$RI$3:$TF$243,ROW()-2,FALSE) -> 25 | V33: 12 | W33: =HLOOKUP($A$1,$TG$3:$VD$243,ROW()-2,FALSE) -> 10 | X33: 14 | Y33: Acıpayam | Z33: 1672 | AA33: 1430 | AB33: 0 | AC33: 0 | AD33: 0 | AE33: 0 | AF33: 0 | AG33: 0 | AH33: 0 | AI33: 0 | AJ33: 0 | AK33: 0 | AL33: 0 | AM33: 0 | AN33: 294 | AO33: 0 | AP33: 0 | AQ33: 0 | AR33: 0 | AS33: 50 | AT33: 1238 | AU33: 0 | AV33: 2 | AW33: 27 | AX33: 40 | AY33: 0 | AZ33: 24 | BA33: 0 | BB33: 0 | BC33: 60 | BD33: 10 | BE33: 6 | BF33: 0 | BG33: 29 | BH33: 0 | BI33: 0 | BJ33: 0 | BK33: 5 | BL33: 0 | BM33: 0 | BN33: 0 | BO33: 135 | BP33: 180 | BQ33: 0 | BR33: 1026 | BS33: 6 | BT33: 0 | BU33: 200 | BV33: 0 | BW33: 100 | BX33: 0 | BY33: 1672 | BZ33: 0 | CA33: 0 | CB33: 0 | CC33: 0 | CD33: 0 | CE33: 0 | CF33: 0 | CG33: 0 | CH33: 0 | CI33: 0 | CJ33: 0 | CK33: 0 | CL33: 300 | CM33: 0 | CN33: 0 | CO33: 0 | CP33: 0 | CQ33: 112 | CR33: 1155 | CS33: 0 | CT33: 0 | CU33: 6 | CV33: 45 | CW33: 0 | CX33: 25 | CY33: 0 | CZ33: 0 | DA33: 30 | DB33: 10 | DC33: 6 | DD33: 0 | DE33: 32 | DF33: 0 | DG33: 0 | DH33: 0 | DI33: 5 | DJ33: 0 | DK33: 0 | DL33: 0 | DM33: 135 | DN33: 180 | DO33: 0 | DP33: 1110 | DQ33: 6 | DR33: 0 | DS33: 0 | DT33: 0 | DU33: 101 | DV33: 0 | DW33: 1958 | DX33: 0 | DY33: 0 | DZ33: 0 | EA33: 0 | EB33: 0 | EC33: 0 | ED33: 0 | EE33: 0 | EF33: 0 | EG33: 0 | EH33: 0 | EI33: 0 | EJ33: 290 | EK33: 0 | EL33: 0 | EM33: 0 | EN33: 0 | EO33: 112 | EP33: 825 | EQ33: 0 | ER33: 0 | ES33: 6 | ET33: 50 | EU33: 0 | EV33: 25 | EW33: 0 | EX33: 0 | EY33: 70 | EZ33: 10 | FA33: 9 | FB33: 0 | FC33: 30 | FD33: 0 | FE33: 0 | FF33: 0 | FG33: 8 | FH33: 0 | FI33: 0 | FJ33: 0 | FK33: 135 | FL33: 144 | FM33: 0 | FN33: 1152 | FO33: 6 | FP33: 0 | FQ33: 0 | FR33: 0 | FS33: 59 | FT33: 0 | FU33: 1304 | FV33: 0 | FW33: 0 | FX33: 0 | FY33: 0 | FZ33: 0 | GA33: 0 | GB33: 0 | GC33: 0 | GD33: 0 | GE33: 0 | GF33: 0 | GG33: 0 | GH33: 280 | GI33: 0 | GJ33: 0 | GK33: 0 | GL33: 0 | GM33: 210 | GN33: 792 | GO33: 0 | GP33: 4 | GQ33: 6 | GR33: 50 | GS33: 0 | GT33: 25 | GU33: 0 | GV33: 0 | GW33: 20 | GX33: 10 | GY33: 9 | GZ33: 0 | HA33: 28 | HB33: 0 | HC33: 0 | HD33: 0 | HE33: 8 | HF33: 0 | HG33: 0 | HH33: 0 | HI33: 135 | HJ33: 144 | HK33: 0 | HL33: 1190 | HM33: 6 | HN33: 0 | HO33: 0 | HP33: 0 | HQ33: 67 | HR33: 0 | HS33: 1235 | HT33: 0 | HU33: 0 | HV33: 0 | HW33: 0 | HX33: 0 | HY33: 0 | HZ33: 0 | IA33: 0 | IB33: 0 | IC33: 0 | ID33: 0 | IE33: 0 | IF33: 266 | IG33: 0 | IH33: 0 | II33: 0 | IJ33: 0 | IK33: 200 | IL33: 875 | IM33: 0 | IN33: 4 | IO33: 6 | IP33: 50 | IQ33: 0 | IR33: 25 | IS33: 0 | IT33: 0 | IU33: 20 | IV33: 10 | IW33: 15 | IX33: 0 | IY33: 30 | IZ33: 0 | JA33: 0 | JB33: 0 | JC33: 8 | JD33: 0 | JE33: 0 | JF33: 0 | JG33: 113 | JH33: 175 | JI33: 0 | JJ33: 1225 | JK33: 6 | JL33: 0 | JM33: 0 | JN33: 0 | JO33: 95 | JP33: 0 | JQ33: 1000 | JR33: 0 | JS33: 0 | JT33: 0 | JU33: 0 | JV33: 0 | JW33: 0 | JX33: 0 | JY33: 0 | JZ33: 0 | KA33: 0 | KB33: 0 | KC33: 0 | KD33: 270 | KE33: 0 | KF33: 0 | KG33: 0 | KH33: 0 | KI33: 210 | KJ33: 1050 | KK33: 0 | KL33: 5 | KM33: 8 | KN33: 15 | KO33: 0 | KP33: 28 | KQ33: 0 | KR33: 0 | KS33: 200 | KT33: 10 | KU33: 15 | KV33: 0 | KW33: 28 | KX33: 0 | KY33: 0 | KZ33: 0 | LA33: 8 | LB33: 0 | LC33: 0 | LD33: 0 | LE33: 113 | LF33: 175 | LG33: 0 | LH33: 1400 | LI33: 6 | LJ33: 0 | LK33: 0 | LL33: 0 | LM33: 171 | LN33: 0 | LO33: 1000 | LP33: 0 | LQ33: 0 | LR33: 0 | LS33: 0 | LT33: 0 | LU33: 0 | LV33: 0 | LW33: 0 | LX33: 0 | LY33: 0 | LZ33: 0 | MA33: 0 | MB33: 220 | MC33: 0 | MD33: 0 | ME33: 0 | MF33: 0 | MG33: 220 | MH33: 875 | MI33: 0 | MJ33: 4 | MK33: 14 | ML33: 15 | MM33: 0 | MN33: 25 | MO33: 0 | MP33: 0 | MQ33: 200 | MR33: 10 | MS33: 15 | MT33: 0 | MU33: 26 | MV33: 0 | MW33: 0 | MX33: 0 | MY33: 8 | MZ33: 0 | NA33: 0 | NB33: 0 | NC33: 113 | ND33: 200 | NE33: 0 | NF33: 1400 | NG33: 6 | NH33: 0 | NI33: 0 | NJ33: 0 | NK33: 162 | NL33: 0 | NM33: 950 | NN33: 0 | NO33: 0 | NP33: 0 | NQ33: 0 | NR33: 0 | NS33: 0 | NT33: 0 | NU33: 0 | NV33: 0 | NW33: 0 | NX33: 0 | NY33: 0 | NZ33: 216 | OA33: 0 | OB33: 0 | OC33: 0 | OD33: 0 | OE33: 210 | OF33: 1050 | OG33: 0 | OH33: 4 | OI33: 15 | OJ33: 15 | OK33: 0 | OL33: 25 | OM33: 0 | ON33: 0 | OO33: 540 | OP33: 10 | OQ33: 15 | OR33: 0 | OS33: 30 | OT33: 0 | OU33: 0 | OV33: 0 | OW33: 7 | OX33: 0 | OY33: 0 | OZ33: 0 | PA33: 120 | PB33: 160 | PC33: 0 | PD33: 1400 | PE33: 6 | PF33: 0 | PG33: 0 | PH33: 0 | PI33: 162 | PJ33: 0 | PK33: 950 | PL33: 0 | PM33: 0 | PN33: 0 | PO33: 0 | PP33: 0 | PQ33: 0 | PR33: 0 | PS33: 0 | PT33: 0 | PU33: 0 | PV33: 0 | PW33: 0 | PX33: 202 | PY33: 0 | PZ33: 0 | QA33: 0 | QB33: 30 | QC33: 210 | QD33: 1750 | QE33: 0 | QF33: 4 | QG33: 23 | QH33: 25 | QI33: 0 | QJ33: 25 | QK33: 0 | QL33: 0 | QM33: 540 | QN33: 10 | QO33: 15 | QP33: 0 | QQ33: 30 | QR33: 0 | QS33: 0 | QT33: 140 | QU33: 0 | QV33: 0 | QW33: 0 | QX33: 0 | QY33: 0 | QZ33: 160 | RA33: 0 | RB33: 0 | RC33: 6 | RD33: 0 | RE33: 0 | RF33: 0 | RG33: 162 | RH33: 0 | RI33: 950 | RJ33: 0 | RK33: 0 | RL33: 0 | RM33: 0 | RN33: 0 | RO33: 0 | RP33: 0 | RQ33: 0 | RR33: 0 | RS33: 10 | RT33: 0 | RU33: 0 | RV33: 180 | RW33: 0 | RX33: 0 | RY33: 0 | RZ33: 30 | SA33: 140 | SB33: 1575 | SC33: 0 | SD33: 0 | SE33: 15 | SF33: 50 | SG33: 0 | SH33: 25 | SI33: 0 | SJ33: 0 | SK33: 560 | SL33: 5 | SM33: 15 | SN33: 0 | SO33: 36 | SP33: 0 | SQ33: 0 | SR33: 158 | SS33: 0 | ST33: 0 | SU33: 0 | SV33: 0 | SW33: 0 | SX33: 200 | SY33: 0 | SZ33: 0 | TA33: 6 | TB33: 0 | TC33: 0 | TD33: 0 | TE33: 162 | TF33: 0 | TG33: 950 | TH33: 0 | TI33: 0 | TJ33: 0 | TK33: 0 | TL33: 0 | TM33: 0 | TN33: 0 | TO33: 0 | TP33: 0 | TQ33: 10 | TR33: 0 | TS33: 0 | TT33: 180 | TU33: 0 | TV33: 0 | TW33: 0 | TX33: 30 | TY33: 20 | TZ33: 1750 | UA33: 0 | UB33: 0 | UC33: 15 | UD33: 50 | UE33: 0 | UF33: 10 | UG33: 0 | UH33: 0 | UI33: 260 | UJ33: 5 | UK33: 15 | UL33: 0 | UM33: 40 | UN33: 0 | UO33: 0 | UP33: 150 | UQ33: 0 | UR33: 0 | US33: 0 | UT33: 0 | UU33: 0 | UV33: 200 | UW33: 0 | UX33: 0 | UY33: 6 | UZ33: 0 | VA33: 0 | VB33: 0 | VC33: 162 | VD33: 0
A34: Turp(Bayır) | B34: ton | C34: =HLOOKUP($A$1,$AA$3:$BX$243,ROW()-2,FALSE) -> 11 | D34: 11 | E34: =HLOOKUP($A$1,$BY$3:$DV$243,ROW()-2,FALSE) -> 12 | F34: 12 | G34: =HLOOKUP($A$1,$DW$3:$FT$243,ROW()-2,FALSE) -> 12 | H34: 12 | I34: =HLOOKUP($A$1,$FU$3:$HR$243,ROW()-2,FALSE) -> 12 | J34: 12 | K34: =HLOOKUP($A$1,$HS$3:$JP$243,ROW()-2,FALSE) -> 12 | L34: 11 | M34: =HLOOKUP($A$1,$JQ$3:$LN$243,ROW()-2,FALSE) -> 12 | N34: 11 | O34: =HLOOKUP($A$1,$LO$3:$NL$243,ROW()-2,FALSE) -> 10 | P34: 12 | Q34: =HLOOKUP($A$1,$NM$3:$PJ$243,ROW()-2,FALSE) -> 10 | R34: 14 | S34: =HLOOKUP($A$1,$PK$3:$RH$243,ROW()-2,FALSE) -> 10 | T34: 15 | U34: =HLOOKUP($A$1,$RI$3:$TF$243,ROW()-2,FALSE) -> 10 | V34: 15 | W34: =HLOOKUP($A$1,$TG$3:$VD$243,ROW()-2,FALSE) -> 5 | X34: 18 | Y34: Nazilli | Z34: 455 | AA34: 0 | AB34: 0 | AC34: 0 | AD34: 0 | AE34: 0 | AF34: 0 | AG34: 0 | AH34: 0 | AI34: 0 | AJ34: 0 | AK34: 0 | AL34: 0 | AM34: 0 | AN34: 90 | AO34: 0 | AP34: 0 | AQ34: 0 | AR34: 0 | AS34: 4 | AT34: 3 | AU34: 0 | AV34: 0 | AW34: 6 | AX34: 12 | AY34: 0 | AZ34: 11 | BA34: 18 | BB34: 5 | BC34: 0 | BD34: 0 | BE34: 3 | BF34: 0 | BG34: 0 | BH34: 0 | BI34: 8 | BJ34: 0 | BK34: 5 | BL34: 6 | BM34: 760 | BN34: 14 | BO34: 66 | BP34: 330 | BQ34: 0 | BR34: 27 | BS34: 0 | BT34: 0 | BU34: 0 | BV34: 30 | BW34: 16 | BX34: 0 | BY34: 0 | BZ34: 0 | CA34: 0 | CB34: 0 | CC34: 0 | CD34: 0 | CE34: 0 | CF34: 0 | CG34: 0 | CH34: 0 | CI34: 0 | CJ34: 0 | CK34: 0 | CL34: 88 | CM34: 0 | CN34: 0 | CO34: 0 | CP34: 0 | CQ34: 14 | CR34: 5 | CS34: 0 | CT34: 0 | CU34: 3 | CV34: 14 | CW34: 0 | CX34: 12 | CY34: 18 | CZ34: 6 | DA34: 0 | DB34: 0 | DC34: 3 | DD34: 0 | DE34: 0 | DF34: 0 | DG34: 7 | DH34: 0 | DI34: 5 | DJ34: 6 | DK34: 455 | DL34: 14 | DM34: 66 | DN34: 360 | DO34: 0 | DP34: 36 | DQ34: 0 | DR34: 0 | DS34: 0 | DT34: 29 | DU34: 16 | DV34: 0 | DW34: 0 | DX34: 0 | DY34: 0 | DZ34: 0 | EA34: 0 | EB34: 0 | EC34: 0 | ED34: 0 | EE34: 0 | EF34: 0 | EG34: 0 | EH34: 0 | EI34: 0 | EJ34: 90 | EK34: 0 | EL34: 0 | EM34: 0 | EN34: 0 | EO34: 14 | EP34: 5 | EQ34: 0 | ER34: 0 | ES34: 3 | ET34: 16 | EU34: 0 | EV34: 12 | EW34: 18 | EX34: 4 | EY34: 0 | EZ34: 0 | FA34: 7 | FB34: 0 | FC34: 0 | FD34: 0 | FE34: 6 | FF34: 0 | FG34: 6 | FH34: 20 | FI34: 442 | FJ34: 14 | FK34: 66 | FL34: 360 | FM34: 0 | FN34: 39 | FO34: 0 | FP34: 0 | FQ34: 0 | FR34: 27 | FS34: 8 | FT34: 0 | FU34: 0 | FV34: 0 | FW34: 0 | FX34: 0 | FY34: 0 | FZ34: 0 | GA34: 0 | GB34: 0 | GC34: 0 | GD34: 0 | GE34: 0 | GF34: 0 | GG34: 0 | GH34: 100 | GI34: 0 | GJ34: 0 | GK34: 0 | GL34: 0 | GM34: 14 | GN34: 5 | GO34: 0 | GP34: 0 | GQ34: 3 | GR34: 16 | GS34: 0 | GT34: 12 | GU34: 18 | GV34: 4 | GW34: 0 | GX34: 0 | GY34: 3 | GZ34: 0 | HA34: 0 | HB34: 0 | HC34: 6 | HD34: 0 | HE34: 6 | HF34: 19 | HG34: 429 | HH34: 14 | HI34: 69 | HJ34: 60 | HK34: 0 | HL34: 40 | HM34: 0 | HN34: 0 | HO34: 0 | HP34: 37 | HQ34: 8 | HR34: 0 | HS34: 0 | HT34: 0 | HU34: 0 | HV34: 0 | HW34: 0 | HX34: 0 | HY34: 0 | HZ34: 0 | IA34: 0 | IB34: 0 | IC34: 0 | ID34: 0 | IE34: 0 | IF34: 102 | IG34: 0 | IH34: 0 | II34: 0 | IJ34: 0 | IK34: 16 | IL34: 6 | IM34: 0 | IN34: 0 | IO34: 3 | IP34: 10 | IQ34: 0 | IR34: 12 | IS34: 18 | IT34: 6 | IU34: 0 | IV34: 0 | IW34: 6 | IX34: 0 | IY34: 0 | IZ34: 0 | JA34: 6 | JB34: 0 | JC34: 6 | JD34: 19 | JE34: 382 | JF34: 10 | JG34: 69 | JH34: 74 | JI34: 0 | JJ34: 29 | JK34: 0 | JL34: 0 | JM34: 0 | JN34: 28 | JO34: 16 | JP34: 0 | JQ34: 0 | JR34: 0 | JS34: 0 | JT34: 0 | JU34: 0 | JV34: 0 | JW34: 0 | JX34: 0 | JY34: 0 | JZ34: 0 | KA34: 0 | KB34: 0 | KC34: 0 | KD34: 102 | KE34: 0 | KF34: 0 | KG34: 0 | KH34: 0 | KI34: 16 | KJ34: 6 | KK34: 0 | KL34: 0 | KM34: 4 | KN34: 10 | KO34: 0 | KP34: 12 | KQ34: 18 | KR34: 5 | KS34: 0 | KT34: 0 | KU34: 6 | KV34: 0 | KW34: 0 | KX34: 35 | KY34: 6 | KZ34: 0 | LA34: 0 | LB34: 16 | LC34: 338 | LD34: 2 | LE34: 40 | LF34: 50 | LG34: 0 | LH34: 15 | LI34: 0 | LJ34: 0 | LK34: 0 | LL34: 24 | LM34: 6 | LN34: 0 | LO34: 0 | LP34: 0 | LQ34: 0 | LR34: 0 | LS34: 0 | LT34: 0 | LU34: 0 | LV34: 0 | LW34: 0 | LX34: 0 | LY34: 0 | LZ34: 3 | MA34: 0 | MB34: 104 | MC34: 0 | MD34: 0 | ME34: 0 | MF34: 0 | MG34: 16 | MH34: 15 | MI34: 0 | MJ34: 0 | MK34: 9 | ML34: 10 | MM34: 0 | MN34: 10 | MO34: 18 | MP34: 5 | MQ34: 0 | MR34: 0 | MS34: 6 | MT34: 0 | MU34: 0 | MV34: 35 | MW34: 6 | MX34: 0 | MY34: 0 | MZ34: 16 | NA34: 325 | NB34: 0 | NC34: 40 | ND34: 60 | NE34: 0 | NF34: 83 | NG34: 0 | NH34: 0 | NI34: 0 | NJ34: 24 | NK34: 8 | NL34: 0 | NM34: 0 | NN34: 0 | NO34: 0 | NP34: 0 | NQ34: 0 | NR34: 0 | NS34: 0 | NT34: 0 | NU34: 0 | NV34: 0 | NW34: 0 | NX34: 6 | NY34: 0 | NZ34: 102 | OA34: 0 | OB34: 0 | OC34: 0 | OD34: 0 | OE34: 20 | OF34: 44 | OG34: 0 | OH34: 0 | OI34: 9 | OJ34: 10 | OK34: 0 | OL34: 10 | OM34: 18 | ON34: 5 | OO34: 104 | OP34: 0 | OQ34: 6 | OR34: 0 | OS34: 0 | OT34: 35 | OU34: 30 | OV34: 0 | OW34: 0 | OX34: 16 | OY34: 325 | OZ34: 0 | PA34: 43 | PB34: 66 | PC34: 0 | PD34: 83 | PE34: 0 | PF34: 0 | PG34: 0 | PH34: 24 | PI34: 8 | PJ34: 0 | PK34: 0 | PL34: 0 | PM34: 0 | PN34: 0 | PO34: 0 | PP34: 0 | PQ34: 0 | PR34: 0 | PS34: 0 | PT34: 0 | PU34: 0 | PV34: 11 | PW34: 0 | PX34: 104 | PY34: 0 | PZ34: 0 | QA34: 0 | QB34: 0 | QC34: 20 | QD34: 120 | QE34: 0 | QF34: 0 | QG34: 19 | QH34: 10 | QI34: 0 | QJ34: 10 | QK34: 18 | QL34: 5 | QM34: 104 | QN34: 0 | QO34: 6 | QP34: 0 | QQ34: 0 | QR34: 35 | QS34: 30 | QT34: 45 | QU34: 0 | QV34: 16 | QW34: 325 | QX34: 0 | QY34: 0 | QZ34: 75 | RA34: 0 | RB34: 0 | RC34: 0 | RD34: 0 | RE34: 0 | RF34: 25 | RG34: 8 | RH34: 0 | RI34: 0 | RJ34: 0 | RK34: 0 | RL34: 0 | RM34: 0 | RN34: 0 | RO34: 0 | RP34: 0 | RQ34: 0 | RR34: 0 | RS34: 0 | RT34: 10 | RU34: 0 | RV34: 100 | RW34: 0 | RX34: 0 | RY34: 0 | RZ34: 0 | SA34: 20 | SB34: 113 | SC34: 0 | SD34: 0 | SE34: 16 | SF34: 20 | SG34: 0 | SH34: 10 | SI34: 18 | SJ34: 5 | SK34: 100 | SL34: 0 | SM34: 9 | SN34: 0 | SO34: 0 | SP34: 35 | SQ34: 30 | SR34: 50 | SS34: 0 | ST34: 14 | SU34: 325 | SV34: 0 | SW34: 0 | SX34: 60 | SY34: 0 | SZ34: 0 | TA34: 0 | TB34: 0 | TC34: 0 | TD34: 20 | TE34: 8 | TF34: 0 | TG34: 0 | TH34: 0 | TI34: 0 | TJ34: 0 | TK34: 0 | TL34: 0 | TM34: 0 | TN34: 0 | TO34: 0 | TP34: 0 | TQ34: 0 | TR34: 28 | TS34: 0 | TT34: 100 | TU34: 0 | TV34: 0 | TW34: 0 | TX34: 0 | TY34: 22 | TZ34: 105 | UA34: 0 | UB34: 0 | UC34: 16 | UD34: 20 | UE34: 0 | UF34: 5 | UG34: 18 | UH34: 5 | UI34: 100 | UJ34: 0 | UK34: 9 | UL34: 0 | UM34: 0 | UN34: 35 | UO34: 30 | UP34: 50 | UQ34: 0 | UR34: 14 | US34: 250 | UT34: 0 | UU34: 0 | UV34: 60 | UW34: 0 | UX34: 0 | UY34: 0 | UZ34: 0 | VA34: 0 | VB34: 30 | VC34: 8 | VD34: 0
A35: Yaşkoza | B35: ton | C35: =HLOOKUP($A$1,$AA$3:$BX$243,ROW()-2,FALSE) -> 0 | D35: - | E35: =HLOOKUP($A$1,$BY$3:$DV$243,ROW()-2,FALSE) -> 0.01 | F35: 12 | G35: =HLOOKUP($A$1,$DW$3:$FT$243,ROW()-2,FALSE) -> 0 | H35: - | I35: =HLOOKUP($A$1,$FU$3:$HR$243,ROW()-2,FALSE) -> 0 | J35: - | K35: =HLOOKUP($A$1,$HS$3:$JP$243,ROW()-2,FALSE) -> 0 | L35: - | M35: =HLOOKUP($A$1,$JQ$3:$LN$243,ROW()-2,FALSE) -> 0 | N35: - | O35: =HLOOKUP($A$1,$LO$3:$NL$243,ROW()-2,FALSE) -> 0.072 | P35: 11 | Q35: =HLOOKUP($A$1,$NM$3:$PJ$243,ROW()-2,FALSE) -> 0.007 | R35: 18 | S35: =HLOOKUP($A$1,$PK$3:$RH$243,ROW()-2,FALSE) -> 0 | T35: - | U35: =HLOOKUP($A$1,$RI$3:$TF$243,ROW()-2,FALSE) -> 0 | V35: - | W35: =HLOOKUP($A$1,$TG$3:$VD$243,ROW()-2,FALSE) -> 0 | X35: - | Y35: Köyceğiz | Z35: 4.06 | AA35: 0 | AB35: 0 | AC35: 0 | AD35: 0 | AE35: 0 | AF35: 0 | AG35: 0.035 | AH35: 0 | AI35: 0 | AJ35: 0 | AK35: 0 | AL35: 0 | AM35: 0 | AN35: 0.083 | AO35: 0.013 | AP35: 0.056 | AQ35: 0 | AR35: 0 | AS35: 0.006 | AT35: 0 | AU35: 0 | AV35: 0 | AW35: 0 | AX35: 0.005 | AY35: 0 | AZ35: 0 | BA35: 0 | BB35: 0.01 | BC35: 0.015 | BD35: 0 | BE35: 3.76 | BF35: 0 | BG35: 0.017 | BH35: 0.026 | BI35: 0.237 | BJ35: 0 | BK35: 0 | BL35: 0.017 | BM35: 0.025 | BN35: 0 | BO35: 0 | BP35: 0 | BQ35: 0.073 | BR35: 0.102 | BS35: 0 | BT35: 0.401 | BU35: 0 | BV35: 0 | BW35: 0.006 | BX35: 0 | BY35: 0 | BZ35: 0 | CA35: 0 | CB35: 0 | CC35: 0 | CD35: 0 | CE35: 0 | CF35: 0 | CG35: 0 | CH35: 0 | CI35: 0 | CJ35: 0 | CK35: 0 | CL35: 0 | CM35: 0.026 | CN35: 0.095 | CO35: 0.012 | CP35: 0 | CQ35: 0.016 | CR35: 0 | CS35: 0 | CT35: 0 | CU35: 0 | CV35: 0.006 | CW35: 0 | CX35: 0.01 | CY35: 0 | CZ35: 0 | DA35: 0 | DB35: 0.037 | DC35: 4.06 | DD35: 0 | DE35: 0.007 | DF35: 0 | DG35: 0 | DH35: 0 | DI35: 0 | DJ35: 0.291 | DK35: 0.056 | DL35: 0 | DM35: 0.009 | DN35: 0 | DO35: 0 | DP35: 0.179 | DQ35: 0 | DR35: 0.469 | DS35: 0 | DT35: 0 | DU35: 0.072 | DV35: 0 | DW35: 0 | DX35: 0 | DY35: 0 | DZ35: 0 | EA35: 0 | EB35: 0 | EC35: 0 | ED35: 0 | EE35: 0 | EF35: 0 | EG35: 0 | EH35: 0 | EI35: 0 | EJ35: 0 | EK35: 0 | EL35: 0.066 | EM35: 0.019 | EN35: 0 | EO35: 0.05 | EP35: 0.011 | EQ35: 0 | ER35: 0 | ES35: 0 | ET35: 0 | EU35: 0 | EV35: 0 | EW35: 0 | EX35: 0 | EY35: 0 | EZ35: 0.015 | FA35: 3.64 | FB35: 0.041 | FC35: 0.033 | FD35: 0 | FE35: 0.003 | FF35: 0 | FG35: 0 | FH35: 0.141 | FI35: 0.217 | FJ35: 0.015 | FK35: 0 | FL35: 0 | FM35: 0.031 | FN35: 0 | FO35: 0 | FP35: 0.503 | FQ35: 0 | FR35: 0 | FS35: 0.07 | FT35: 0 | FU35: 0 | FV35: 0 | FW35: 0 | FX35: 0 | FY35: 0 | FZ35: 0 | GA35: 0.011 | GB35: 0.017 | GC35: 0 | GD35: 0 | GE35: 0 | GF35: 0 | GG35: 0 | GH35: 0.091 | GI35: 0 | GJ35: 0.217 | GK35: 0.012 | GL35: 0 | GM35: 0.089 | GN35: 0.12 | GO35: 0 | GP35: 0 | GQ35: 0 | GR35: 0.002 | GS35: 0 | GT35: 0 | GU35: 0 | GV35: 0 | GW35: 0.036 | GX35: 0 | GY35: 4.663 | GZ35: 0 | HA35: 0.099 | HB35: 0 | HC35: 0.066 | HD35: 0 | HE35: 0.005 | HF35: 0.503 | HG35: 0.52 | HH35: 0 | HI35: 0 | HJ35: 0 | HK35: 0 | HL35: 0.007 | HM35: 0.003 | HN35: 0.876 | HO35: 0 | HP35: 0 | HQ35: 0.081 | HR35: 0.07 | HS35: 0 | HT35: 0.001 | HU35: 0 | HV35: 0 | HW35: 0 | HX35: 0 | HY35: 0.004 | HZ35: 0 | IA35: 0 | IB35: 0 | IC35: 0 | ID35: 0 | IE35: 0 | IF35: 0.083 | IG35: 0 | IH35: 0.109 | II35: 0.019 | IJ35: 0.019 | IK35: 0.008 | IL35: 0 | IM35: 0 | IN35: 0 | IO35: 0 | IP35: 0.015 | IQ35: 0 | IR35: 0 | IS35: 0 | IT35: 0 | IU35: 0.345 | IV35: 0 | IW35: 3.381 | IX35: 0.023 | IY35: 0 | IZ35: 0 | JA35: 0.056 | JB35: 0 | JC35: 0.002 | JD35: 0.546 | JE35: 0.298 | JF35: 0.039 | JG35: 0.01 | JH35: 0.003 | JI35: 0 | JJ35: 0.024 | JK35: 0 | JL35: 1.203 | JM35: 0 | JN35: 0.023 | JO35: 0.078 | JP35: 0.03 | JQ35: 0 | JR35: 0 | JS35: 0 | JT35: 0 | JU35: 0 | JV35: 0 | JW35: 0.03 | JX35: 0 | JY35: 0.009 | JZ35: 0.009 | KA35: 0 | KB35: 0 | KC35: 0 | KD35: 0.102 | KE35: 0 | KF35: 0.044 | KG35: 0.032 | KH35: 0 | KI35: 0.021 | KJ35: 0 | KK35: 0 | KL35: 0 | KM35: 0 | KN35: 0 | KO35: 0 | KP35: 0 | KQ35: 0.047 | KR35: 0 | KS35: 0.092 | KT35: 0 | KU35: 3.103 | KV35: 0.015 | KW35: 0 | KX35: 0 | KY35: 0 | KZ35: 0 | LA35: 0.002 | LB35: 0.744 | LC35: 0.335 | LD35: 0 | LE35: 0 | LF35: 0 | LG35: 0 | LH35: 0.016 | LI35: 0.015 | LJ35: 0.665 | LK35: 0 | LL35: 0.016 | LM35: 0.115 | LN35: 0.006 | LO35: 0 | LP35: 0 | LQ35: 0 | LR35: 0 | LS35: 0 | LT35: 0 | LU35: 0.012 | LV35: 0.013 | LW35: 0 | LX35: 0 | LY35: 0 | LZ35: 0 | MA35: 0 | MB35: 0.137 | MC35: 0 | MD35: 0.049 | ME35: 0.086 | MF35: 0 | MG35: 0.013 | MH35: 0.265 | MI35: 0 | MJ35: 0 | MK35: 0 | ML35: 0 | MM35: 0 | MN35: 0.072 | MO35: 0 | MP35: 0 | MQ35: 0.057 | MR35: 0 | MS35: 2.729 | MT35: 0 | MU35: 0.109 | MV35: 0 | MW35: 0 | MX35: 0 | MY35: 0.002 | MZ35: 0.395 | NA35: 0.142 | NB35: 0 | NC35: 0 | ND35: 0 | NE35: 0 | NF35: 0.121 | NG35: 0 | NH35: 0.523 | NI35: 0 | NJ35: 0.083 | NK35: 0 | NL35: 0.058 | NM35: 0 | NN35: 0 | NO35: 0 | NP35: 0 | NQ35: 0 | NR35: 0 | NS35: 0 | NT35: 0.007 | NU35: 0.102 | NV35: 0 | NW35: 0 | NX35: 0 | NY35: 0 | NZ35: 0.042 | OA35: 0 | OB35: 0.105 | OC35: 0.142 | OD35: 0 | OE35: 0 | OF35: 0.059 | OG35: 0 | OH35: 0 | OI35: 0 | OJ35: 0 | OK35: 0 | OL35: 0.007 | OM35: 0 | ON35: 0 | OO35: 0.03 | OP35: 0 | OQ35: 3.243 | OR35: 0 | OS35: 0.069 | OT35: 0.097 | OU35: 0.411 | OV35: 0 | OW35: 0 | OX35: 0.069 | OY35: 0.063 | OZ35: 0.004 | PA35: 0 | PB35: 0 | PC35: 0 | PD35: 0 | PE35: 0.03 | PF35: 0.432 | PG35: 0 | PH35: 0.043 | PI35: 0.023 | PJ35: 0.085 | PK35: 0 | PL35: 0 | PM35: 0 | PN35: 0 | PO35: 0 | PP35: 0 | PQ35: 0 | PR35: 0 | PS35: 0.047 | PT35: 0 | PU35: 0 | PV35: 0 | PW35: 0 | PX35: 0 | PY35: 0 | PZ35: 0.161 | QA35: 0.131 | QB35: 0 | QC35: 0 | QD35: 0.335 | QE35: 0 | QF35: 0 | QG35: 0 | QH35: 0 | QI35: 0 | QJ35: 0 | QK35: 0.01 | QL35: 0 | QM35: 0 | QN35: 0 | QO35: 2.435 | QP35: 0 | QQ35: 0 | QR35: 0 | QS35: 0.592 | QT35: 0.039 | QU35: 0 | QV35: 0.142 | QW35: 0 | QX35: 0.024 | QY35: 0 | QZ35: 0 | RA35: 0 | RB35: 0 | RC35: 0 | RD35: 0.524 | RE35: 0 | RF35: 0.079 | RG35: 0.002 | RH35: 0 | RI35: 0 | RJ35: 0 | RK35: 0 | RL35: 0 | RM35: 0 | RN35: 0 | RO35: 0 | RP35: 0 | RQ35: 0 | RR35: 0 | RS35: 0 | RT35: 0 | RU35: 0 | RV35: 0 | RW35: 0 | RX35: 0 | RY35: 0.279 | RZ35: 0 | SA35: 0 | SB35: 0.433 | SC35: 0 | SD35: 0 | SE35: 0 | SF35: 0 | SG35: 0 | SH35: 0 | SI35: 0 | SJ35: 0 | SK35: 0 | SL35: 0 | SM35: 2.518 | SN35: 0 | SO35: 0 | SP35: 0 | SQ35: 0.518 | SR35: 0 | SS35: 0 | ST35: 0.712 | SU35: 0 | SV35: 0 | SW35: 0 | SX35: 0 | SY35: 0 | SZ35: 0 | TA35: 0 | TB35: 0.438 | TC35: 0 | TD35: 0 | TE35: 0.057 | TF35: 0 | TG35: 0 | TH35: 0 | TI35: 0 | TJ35: 0 | TK35: 0 | TL35: 0 | TM35: 0 | TN35: 0 | TO35: 0 | TP35: 0 | TQ35: 0 | TR35: 0 | TS35: 0 | TT35: 0 | TU35: 0 | TV35: 0.009 | TW35: 0.221 | TX35: 0 | TY35: 0 | TZ35: 0.216 | UA35: 0 | UB35: 0 | UC35: 0 | UD35: 0 | UE35: 0 | UF35: 0 | UG35: 0 | UH35: 0 | UI35: 0 | UJ35: 0 | UK35: 1.445 | UL35: 0 | UM35: 0 | UN35: 0 | UO35: 0 | UP35: 0 | UQ35: 0 | UR35: 0 | US35: 0 | UT35: 0 | UU35: 0 | UV35: 0 | UW35: 0 | UX35: 0 | UY35: 0 | UZ35: 0.248 | VA35: 0 | VB35: 0 | VC35: 0 | VD35: 0
A36: Arpa(Diğer) | B36: ton | C36: =HLOOKUP($A$1,$AA$3:$BX$243,ROW()-2,FALSE) -> 2431 | D36: 14 | E36: =HLOOKUP($A$1,$BY$3:$DV$243,ROW()-2,FALSE) -> 2775 | F36: 13 | G36: =HLOOKUP($A$1,$DW$3:$FT$243,ROW()-2,FALSE) -> 4484 | H36: 12 | I36: =HLOOKUP($A$1,$FU$3:$HR$243,ROW()-2,FALSE) -> 4644 | J36: 12 | K36: =HLOOKUP($A$1,$HS$3:$JP$243,ROW()-2,FALSE) -> 4867 | L36: 12 | M36: =HLOOKUP($A$1,$JQ$3:$LN$243,ROW()-2,FALSE) -> 6153 | N36: 11 | O36: =HLOOKUP($A$1,$LO$3:$NL$243,ROW()-2,FALSE) -> 5778 | P36: 10 | Q36: =HLOOKUP($A$1,$NM$3:$PJ$243,ROW()-2,FALSE) -> 5209 | R36: 12 | S36: =HLOOKUP($A$1,$PK$3:$RH$243,ROW()-2,FALSE) -> 5611 | T36: 12 | U36: =HLOOKUP($A$1,$RI$3:$TF$243,ROW()-2,FALSE) -> 4769 | V36: 13 | W36: =HLOOKUP($A$1,$TG$3:$VD$243,ROW()-2,FALSE) -> 3954 | X36: 14 | Y36: Tavas | Z36: 43622 | AA36: 28385 | AB36: 679 | AC36: 6256 | AD36: 3849 | AE36: 29 | AF36: 859 | AG36: 7661 | AH36: 9426 | AI36: 209 | AJ36: 1453 | AK36: 6265 | AL36: 1633 | AM36: 10748 | AN36: 191 | AO36: 13869 | AP36: 1149 | AQ36: 91 | AR36: 877 | AS36: 344 | AT36: 732 | AU36: 215 | AV36: 4732 | AW36: 2932 | AX36: 39 | AY36: 689 | AZ36: 2431 | BA36: 0 | BB36: 498 | BC36: 19 | BD36: 4 | BE36: 156 | BF36: 107 | BG36: 1876 | BH36: 186 | BI36: 2226 | BJ36: 0 | BK36: 1625 | BL36: 1718 | BM36: 1161 | BN36: 1132 | BO36: 2428 | BP36: 1933 | BQ36: 4302 | BR36: 2872 | BS36: 231 | BT36: 87 | BU36: 32847 | BV36: 75 | BW36: 1146 | BX36: 160 | BY36: 30779 | BZ36: 929 | CA36: 6828 | CB36: 5160 | CC36: 181 | CD36: 1117 | CE36: 8915 | CF36: 11295 | CG36: 243 | CH36: 1783 | CI36: 7590 | CJ36: 1808 | CK36: 6075 | CL36: 231 | CM36: 14820 | CN36: 217 | CO36: 112 | CP36: 1142 | CQ36: 189 | CR36: 869 | CS36: 290 | CT36: 4893 | CU36: 895 | CV36: 8 | CW36: 761 | CX36: 2775 | CY36: 0 | CZ36: 373 | DA36: 37 | DB36: 23 | DC36: 187 | DD36: 87 | DE36: 2774 | DF36: 217 | DG36: 2766 | DH36: 0 | DI36: 1523 | DJ36: 7801 | DK36: 2794 | DL36: 263 | DM36: 2648 | DN36: 1726 | DO36: 2566 | DP36: 2561 | DQ36: 331 | DR36: 140 | DS36: 43622 | DT36: 29 | DU36: 1014 | DV36: 135 | DW36: 29475 | DX36: 927 | DY36: 7805 | DZ36: 4682 | EA36: 217 | EB36: 1084 | EC36: 9979 | ED36: 12226 | EE36: 294 | EF36: 2394 | EG36: 9587 | EH36: 2230 | EI36: 10116 | EJ36: 978 | EK36: 10097 | EL36: 218 | EM36: 100 | EN36: 1140 | EO36: 463 | EP36: 867 | EQ36: 310 | ER36: 4885 | ES36: 1081 | ET36: 144 | EU36: 1130 | EV36: 4484 | EW36: 0 | EX36: 351 | EY36: 46 | EZ36: 33 | FA36: 196 | FB36: 76 | FC36: 3037 | FD36: 217 | FE36: 2126 | FF36: 0 | FG36: 1962 | FH36: 7680 | FI36: 2418 | FJ36: 375 | FK36: 3080 | FL36: 1920 | FM36: 3255 | FN36: 3035 | FO36: 330 | FP36: 175 | FQ36: 43374 | FR36: 229 | FS36: 768 | FT36: 203 | FU36: 28065 | FV36: 960 | FW36: 5459 | FX36: 5834 | FY36: 257 | FZ36: 1080 | GA36: 11160 | GB36: 14353 | GC36: 307 | GD36: 2823 | GE36: 9700 | GF36: 1869 | GG36: 10503 | GH36: 1216 | GI36: 13268 | GJ36: 265 | GK36: 128 | GL36: 1180 | GM36: 864 | GN36: 1163 | GO36: 310 | GP36: 7484 | GQ36: 1120 | GR36: 169 | GS36: 1591 | GT36: 4644 | GU36: 61 | GV36: 678 | GW36: 56 | GX36: 34 | GY36: 231 | GZ36: 60 | HA36: 3647 | HB36: 274 | HC36: 3368 | HD36: 0 | HE36: 2289 | HF36: 9880 | HG36: 2507 | HH36: 427 | HI36: 3926 | HJ36: 2609 | HK36: 4078 | HL36: 2923 | HM36: 450 | HN36: 181 | HO36: 48114 | HP36: 275 | HQ36: 898 | HR36: 227 | HS36: 21679 | HT36: 981 | HU36: 5359 | HV36: 5402 | HW36: 263 | HX36: 1078 | HY36: 11337 | HZ36: 12580 | IA36: 268 | IB36: 2818 | IC36: 7110 | ID36: 2050 | IE36: 5370 | IF36: 1310 | IG36: 14665 | IH36: 269 | II36: 115 | IJ36: 1369 | IK36: 1003 | IL36: 1196 | IM36: 320 | IN36: 5978 | IO36: 1118 | IP36: 165 | IQ36: 2057 | IR36: 4867 | IS36: 65 | IT36: 492 | IU36: 111 | IV36: 68 | IW36: 203 | IX36: 70 | IY36: 3556 | IZ36: 512 | JA36: 2391 | JB36: 0 | JC36: 2027 | JD36: 9019 | JE36: 2500 | JF36: 278 | JG36: 4356 | JH36: 2039 | JI36: 4670 | JJ36: 2949 | JK36: 448 | JL36: 142 | JM36: 49322 | JN36: 256 | JO36: 1715 | JP36: 405 | JQ36: 20742 | JR36: 1025 | JS36: 8176 | JT36: 5931 | JU36: 307 | JV36: 981 | JW36: 10521 | JX36: 10276 | JY36: 224 | JZ36: 2943 | KA36: 10957 | KB36: 2205 | KC36: 6740 | KD36: 1388 | KE36: 11842 | KF36: 220 | KG36: 134 | KH36: 2655 | KI36: 663 | KJ36: 1104 | KK36: 521 | KL36: 6243 | KM36: 1155 | KN36: 174 | KO36: 2301 | KP36: 6153 | KQ36: 76 | KR36: 441 | KS36: 121 | KT36: 70 | KU36: 212 | KV36: 83 | KW36: 3347 | KX36: 502 | KY36: 2797 | KZ36: 0 | LA36: 1956 | LB36: 10302 | LC36: 2652 | LD36: 249 | LE36: 4549 | LF36: 3197 | LG36: 3786 | LH36: 2908 | LI36: 230 | LJ36: 147 | LK36: 50431 | LL36: 193 | LM36: 1966 | LN36: 216 | LO36: 24264 | LP36: 1032 | LQ36: 6779 | LR36: 4899 | LS36: 344 | LT36: 926 | LU36: 11698 | LV36: 11531 | LW36: 220 | LX36: 3255 | LY36: 10988 | LZ36: 2343 | MA36: 12554 | MB36: 1452 | MC36: 16292 | MD36: 246 | ME36: 139 | MF36: 2760 | MG36: 1135 | MH36: 1482 | MI36: 518 | MJ36: 7873 | MK36: 845 | ML36: 182 | MM36: 2593 | MN36: 5778 | MO36: 54 | MP36: 422 | MQ36: 136 | MR36: 185 | MS36: 206 | MT36: 86 | MU36: 2656 | MV36: 366 | MW36: 2038 | MX36: 0 | MY36: 1366 | MZ36: 5169 | NA36: 2979 | NB36: 247 | NC36: 5102 | ND36: 2408 | NE36: 4747 | NF36: 3287 | NG36: 65 | NH36: 131 | NI36: 50072 | NJ36: 176 | NK36: 1621 | NL36: 301 | NM36: 25540 | NN36: 1114 | NO36: 11957 | NP36: 6696 | NQ36: 372 | NR36: 780 | NS36: 12719 | NT36: 13678 | NU36: 226 | NV36: 2894 | NW36: 11211 | NX36: 1848 | NY36: 13002 | NZ36: 1464 | OA36: 16060 | OB36: 282 | OC36: 93 | OD36: 2786 | OE36: 1569 | OF36: 1450 | OG36: 554 | OH36: 6264 | OI36: 1116 | OJ36: 197 | OK36: 1282 | OL36: 5209 | OM36: 60 | ON36: 344 | OO36: 911 | OP36: 121 | OQ36: 223 | OR36: 89 | OS36: 3638 | OT36: 396 | OU36: 1200 | OV36: 0 | OW36: 6046 | OX36: 4836 | OY36: 3176 | OZ36: 204 | PA36: 2696 | PB36: 3807 | PC36: 5010 | PD36: 3073 | PE36: 69 | PF36: 142 | PG36: 48741 | PH36: 182 | PI36: 1653 | PJ36: 228 | PK36: 21511 | PL36: 1004 | PM36: 5153 | PN36: 6893 | PO36: 246 | PP36: 840 | PQ36: 12868 | PR36: 14391 | PS36: 223 | PT36: 2451 | PU36: 14700 | PV36: 1995 | PW36: 13226 | PX36: 3136 | PY36: 9065 | PZ36: 388 | QA36: 45 | QB36: 2989 | QC36: 1687 | QD36: 6155 | QE36: 660 | QF36: 5880 | QG36: 2890 | QH36: 341 | QI36: 1200 | QJ36: 5611 | QK36: 0 | QL36: 367 | QM36: 931 | QN36: 86 | QO36: 210 | QP36: 108 | QQ36: 3309 | QR36: 414 | QS36: 2700 | QT36: 5576 | QU36: 0 | QV36: 5880 | QW36: 3119 | QX36: 191 | QY36: 3234 | QZ36: 3871 | RA36: 4655 | RB36: 0 | RC36: 88 | RD36: 85 | RE36: 53177 | RF36: 189 | RG36: 3645 | RH36: 282 | RI36: 27265 | RJ36: 776 | RK36: 5661 | RL36: 5342 | RM36: 318 | RN36: 668 | RO36: 6557 | RP36: 11296 | RQ36: 119 | RR36: 3019 | RS36: 15461 | RT36: 1598 | RU36: 17973 | RV36: 2261 | RW36: 14308 | RX36: 298 | RY36: 36 | RZ36: 2186 | SA36: 1113 | SB36: 5008 | SC36: 625 | SD36: 5008 | SE36: 3541 | SF36: 215 | SG36: 3339 | SH36: 4769 | SI36: 358 | SJ36: 506 | SK36: 557 | SL36: 64 | SM36: 193 | SN36: 64 | SO36: 1979 | SP36: 188 | SQ36: 1590 | SR36: 4372 | SS36: 0 | ST36: 4769 | SU36: 2945 | SV36: 158 | SW36: 3625 | SX36: 2862 | SY36: 6204 | SZ36: 0 | TA36: 83 | TB36: 72 | TC36: 51295 | TD36: 150 | TE36: 3116 | TF36: 954 | TG36: 30586 | TH36: 978 | TI36: 5694 | TJ36: 5046 | TK36: 544 | TL36: 739 | TM36: 6532 | TN36: 10186 | TO36: 136 | TP36: 2491 | TQ36: 12385 | TR36: 1503 | TS36: 10897 | TT36: 3005 | TU36: 13840 | TV36: 316 | TW36: 63 | TX36: 1582 | TY36: 909 | TZ36: 3588 | UA36: 490 | UB36: 4982 | UC36: 3045 | UD36: 261 | UE36: 1898 | UF36: 3954 | UG36: 348 | UH36: 629 | UI36: 702 | UJ36: 40 | UK36: 192 | UL36: 122 | UM36: 2942 | UN36: 235 | UO36: 1566 | UP36: 4329 | UQ36: 0 | UR36: 4745 | US36: 2313 | UT36: 155 | UU36: 2432 | UV36: 3322 | UW36: 5916 | UX36: 0 | UY36: 83 | UZ36: 90 | VA36: 50725 | VB36: 143 | VC36: 2056 | VD36: 2056
A37: Elma(Grannysmith) | B37: ton | C37: =HLOOKUP($A$1,$AA$3:$BX$243,ROW()-2,FALSE) -> 26 | D37: 14 | E37: =HLOOKUP($A$1,$BY$3:$DV$243,ROW()-2,FALSE) -> 24 | F37: 13 | G37: =HLOOKUP($A$1,$DW$3:$FT$243,ROW()-2,FALSE) -> 24 | H37: 13 | I37: =HLOOKUP($A$1,$FU$3:$HR$243,ROW()-2,FALSE) -> 20 | J37: 14 | K37: =HLOOKUP($A$1,$HS$3:$JP$243,ROW()-2,FALSE) -> 20 | L37: 13 | M37: =HLOOKUP($A$1,$JQ$3:$LN$243,ROW()-2,FALSE) -> 19 | N37: 12 | O37: =HLOOKUP($A$1,$LO$3:$NL$243,ROW()-2,FALSE) -> 19 | P37: 13 | Q37: =HLOOKUP($A$1,$NM$3:$PJ$243,ROW()-2,FALSE) -> 19 | R37: 13 | S37: =HLOOKUP($A$1,$PK$3:$RH$243,ROW()-2,FALSE) -> 9 | T37: 12 | U37: =HLOOKUP($A$1,$RI$3:$TF$243,ROW()-2,FALSE) -> 9 | V37: 12 | W37: =HLOOKUP($A$1,$TG$3:$VD$243,ROW()-2,FALSE) -> 5 | X37: 12 | Y37: Çivril | Z37: 3945 | AA37: 374 | AB37: 0 | AC37: 84 | AD37: 0 | AE37: 0 | AF37: 0 | AG37: 0 | AH37: 0 | AI37: 0 | AJ37: 270 | AK37: 30 | AL37: 65 | AM37: 0 | AN37: 25 | AO37: 7538 | AP37: 0 | AQ37: 0 | AR37: 0 | AS37: 1 | AT37: 29 | AU37: 0 | AV37: 0 | AW37: 0 | AX37: 0 | AY37: 0 | AZ37: 26 | BA37: 0 | BB37: 102 | BC37: 0 | BD37: 0 | BE37: 226 | BF37: 0 | BG37: 66 | BH37: 0 | BI37: 0 | BJ37: 0 | BK37: 0 | BL37: 0 | BM37: 0 | BN37: 0 | BO37: 0 | BP37: 0 | BQ37: 77 | BR37: 567 | BS37: 0 | BT37: 20 | BU37: 120 | BV37: 0 | BW37: 0 | BX37: 0 | BY37: 270 | BZ37: 0 | CA37: 104 | CB37: 0 | CC37: 0 | CD37: 0 | CE37: 0 | CF37: 0 | CG37: 0 | CH37: 265 | CI37: 27 | CJ37: 22 | CK37: 0 | CL37: 25 | CM37: 3945 | CN37: 0 | CO37: 0 | CP37: 0 | CQ37: 0 | CR37: 5 | CS37: 0 | CT37: 0 | CU37: 0 | CV37: 0 | CW37: 0 | CX37: 24 | CY37: 0 | CZ37: 96 | DA37: 0 | DB37: 0 | DC37: 273 | DD37: 0 | DE37: 57 | DF37: 0 | DG37: 0 | DH37: 0 | DI37: 0 | DJ37: 0 | DK37: 0 | DL37: 0 | DM37: 0 | DN37: 0 | DO37: 62 | DP37: 494 | DQ37: 0 | DR37: 20 | DS37: 120 | DT37: 0 | DU37: 0 | DV37: 0 | DW37: 393 | DX37: 0 | DY37: 104 | DZ37: 0 | EA37: 0 | EB37: 0 | EC37: 0 | ED37: 0 | EE37: 0 | EF37: 375 | EG37: 21 | EH37: 26 | EI37: 0 | EJ37: 25 | EK37: 6078 | EL37: 0 | EM37: 0 | EN37: 0 | EO37: 0 | EP37: 0 | EQ37: 0 | ER37: 0 | ES37: 0 | ET37: 0 | EU37: 0 | EV37: 24 | EW37: 0 | EX37: 96 | EY37: 0 | EZ37: 0 | FA37: 273 | FB37: 0 | FC37: 57 | FD37: 0 | FE37: 0 | FF37: 0 | FG37: 0 | FH37: 0 | FI37: 0 | FJ37: 0 | FK37: 0 | FL37: 0 | FM37: 62 | FN37: 434 | FO37: 0 | FP37: 20 | FQ37: 120 | FR37: 0 | FS37: 0 | FT37: 0 | FU37: 183 | FV37: 0 | FW37: 104 | FX37: 0 | FY37: 0 | FZ37: 0 | GA37: 0 | GB37: 0 | GC37: 0 | GD37: 371 | GE37: 21 | GF37: 22 | GG37: 0 | GH37: 25 | GI37: 5461 | GJ37: 0 | GK37: 0 | GL37: 0 | GM37: 0 | GN37: 0 | GO37: 0 | GP37: 0 | GQ37: 0 | GR37: 0 | GS37: 0 | GT37: 20 | GU37: 0 | GV37: 86 | GW37: 0 | GX37: 0 | GY37: 241 | GZ37: 0 | HA37: 57 | HB37: 0 | HC37: 0 | HD37: 0 | HE37: 0 | HF37: 0 | HG37: 0 | HH37: 0 | HI37: 0 | HJ37: 0 | HK37: 52 | HL37: 404 | HM37: 0 | HN37: 20 | HO37: 120 | HP37: 0 | HQ37: 0 | HR37: 0 | HS37: 367 | HT37: 0 | HU37: 104 | HV37: 0 | HW37: 0 | HX37: 0 | HY37: 0 | HZ37: 0 | IA37: 0 | IB37: 370 | IC37: 21 | ID37: 11 | IE37: 0 | IF37: 25 | IG37: 7025 | IH37: 0 | II37: 0 | IJ37: 0 | IK37: 0 | IL37: 0 | IM37: 0 | IN37: 0 | IO37: 0 | IP37: 0 | IQ37: 0 | IR37: 20 | IS37: 0 | IT37: 98 | IU37: 0 | IV37: 0 | IW37: 314 | IX37: 0 | IY37: 57 | IZ37: 0 | JA37: 0 | JB37: 0 | JC37: 0 | JD37: 0 | JE37: 0 | JF37: 0 | JG37: 0 | JH37: 0 | JI37: 58 | JJ37: 372 | JK37: 0 | JL37: 20 | JM37: 120 | JN37: 0 | JO37: 0 | JP37: 0 | JQ37: 157 | JR37: 0 | JS37: 11 | JT37: 0 | JU37: 0 | JV37: 0 | JW37: 0 | JX37: 0 | JY37: 0 | JZ37: 366 | KA37: 21 | KB37: 8 | KC37: 0 | KD37: 25 | KE37: 5759 | KF37: 0 | KG37: 0 | KH37: 0 | KI37: 0 | KJ37: 0 | KK37: 0 | KL37: 0 | KM37: 0 | KN37: 0 | KO37: 0 | KP37: 19 | KQ37: 0 | KR37: 95 | KS37: 0 | KT37: 0 | KU37: 314 | KV37: 0 | KW37: 57 | KX37: 0 | KY37: 0 | KZ37: 0 | LA37: 0 | LB37: 0 | LC37: 0 | LD37: 0 | LE37: 0 | LF37: 0 | LG37: 8 | LH37: 363 | LI37: 0 | LJ37: 20 | LK37: 120 | LL37: 0 | LM37: 0 | LN37: 0 | LO37: 302 | LP37: 0 | LQ37: 114 | LR37: 0 | LS37: 0 | LT37: 0 | LU37: 0 | LV37: 0 | LW37: 0 | LX37: 362 | LY37: 21 | LZ37: 7 | MA37: 0 | MB37: 26 | MC37: 5597 | MD37: 0 | ME37: 0 | MF37: 0 | MG37: 0 | MH37: 9 | MI37: 0 | MJ37: 0 | MK37: 0 | ML37: 0 | MM37: 0 | MN37: 19 | MO37: 0 | MP37: 95 | MQ37: 0 | MR37: 0 | MS37: 310 | MT37: 0 | MU37: 57 | MV37: 0 | MW37: 0 | MX37: 0 | MY37: 0 | MZ37: 0 | NA37: 0 | NB37: 0 | NC37: 0 | ND37: 0 | NE37: 63 | NF37: 341 | NG37: 0 | NH37: 2 | NI37: 600 | NJ37: 0 | NK37: 0 | NL37: 0 | NM37: 245 | NN37: 0 | NO37: 98 | NP37: 0 | NQ37: 0 | NR37: 0 | NS37: 0 | NT37: 0 | NU37: 0 | NV37: 377 | NW37: 30 | NX37: 3 | NY37: 0 | NZ37: 26 | OA37: 5167 | OB37: 0 | OC37: 0 | OD37: 0 | OE37: 0 | OF37: 407 | OG37: 0 | OH37: 0 | OI37: 0 | OJ37: 0 | OK37: 0 | OL37: 19 | OM37: 0 | ON37: 70 | OO37: 0 | OP37: 0 | OQ37: 293 | OR37: 0 | OS37: 45 | OT37: 0 | OU37: 0 | OV37: 0 | OW37: 0 | OX37: 0 | OY37: 0 | OZ37: 0 | PA37: 0 | PB37: 0 | PC37: 59 | PD37: 0 | PE37: 0 | PF37: 2 | PG37: 426 | PH37: 0 | PI37: 0 | PJ37: 0 | PK37: 225 | PL37: 0 | PM37: 92 | PN37: 0 | PO37: 0 | PP37: 0 | PQ37: 0 | PR37: 0 | PS37: 0 | PT37: 239 | PU37: 16 | PV37: 2 | PW37: 0 | PX37: 25 | PY37: 4107 | PZ37: 0 | QA37: 0 | QB37: 0 | QC37: 0 | QD37: 340 | QE37: 0 | QF37: 0 | QG37: 0 | QH37: 0 | QI37: 0 | QJ37: 9 | QK37: 0 | QL37: 67 | QM37: 0 | QN37: 0 | QO37: 354 | QP37: 0 | QQ37: 42 | QR37: 0 | QS37: 0 | QT37: 4 | QU37: 0 | QV37: 0 | QW37: 0 | QX37: 0 | QY37: 0 | QZ37: 0 | RA37: 31 | RB37: 0 | RC37: 0 | RD37: 1 | RE37: 0 | RF37: 0 | RG37: 0 | RH37: 0 | RI37: 107 | RJ37: 0 | RK37: 54 | RL37: 0 | RM37: 0 | RN37: 0 | RO37: 0 | RP37: 0 | RQ37: 0 | RR37: 279 | RS37: 24 | RT37: 1 | RU37: 0 | RV37: 25 | RW37: 3207 | RX37: 0 | RY37: 0 | RZ37: 0 | SA37: 0 | SB37: 222 | SC37: 0 | SD37: 0 | SE37: 0 | SF37: 0 | SG37: 0 | SH37: 9 | SI37: 0 | SJ37: 67 | SK37: 0 | SL37: 0 | SM37: 339 | SN37: 0 | SO37: 39 | SP37: 0 | SQ37: 0 | SR37: 4 | SS37: 0 | ST37: 0 | SU37: 0 | SV37: 0 | SW37: 0 | SX37: 0 | SY37: 23 | SZ37: 0 | TA37: 0 | TB37: 0 | TC37: 0 | TD37: 0 | TE37: 0 | TF37: 0 | TG37: 107 | TH37: 0 | TI37: 34 | TJ37: 0 | TK37: 0 | TL37: 0 | TM37: 0 | TN37: 0 | TO37: 0 | TP37: 217 | TQ37: 20 | TR37: 1 | TS37: 0 | TT37: 25 | TU37: 2749 | TV37: 0 | TW37: 0 | TX37: 0 | TY37: 0 | TZ37: 277 | UA37: 0 | UB37: 0 | UC37: 0 | UD37: 0 | UE37: 0 | UF37: 5 | UG37: 0 | UH37: 50 | UI37: 0 | UJ37: 0 | UK37: 252 | UL37: 0 | UM37: 38 | UN37: 0 | UO37: 0 | UP37: 3 | UQ37: 0 | UR37: 0 | US37: 0 | UT37: 0 | UU37: 0 | UV37: 0 | UW37: 20 | UX37: 0 | UY37: 0 | UZ37: 0 | VA37: 0 | VB37: 0 | VC37: 0 | VD37: 0
A38: At | B38: baş | C38: =HLOOKUP($A$1,$AA$3:$BX$243,ROW()-2,FALSE) -> 143 | D38: 12 | E38: =HLOOKUP($A$1,$BY$3:$DV$243,ROW()-2,FALSE) -> 168 | F38: 14 | G38: =HLOOKUP($A$1,$DW$3:$FT$243,ROW()-2,FALSE) -> 180 | H38: 13 | I38: =HLOOKUP($A$1,$FU$3:$HR$243,ROW()-2,FALSE) -> 250 | J38: 10 | K38: =HLOOKUP($A$1,$HS$3:$JP$243,ROW()-2,FALSE) -> 247 | L38: 10 | M38: =HLOOKUP($A$1,$JQ$3:$LN$243,ROW()-2,FALSE) -> 245 | N38: 8 | O38: =HLOOKUP($A$1,$LO$3:$NL$243,ROW()-2,FALSE) -> 231 | P38: 12 | Q38: =HLOOKUP($A$1,$NM$3:$PJ$243,ROW()-2,FALSE) -> 262 | R38: 13 | S38: =HLOOKUP($A$1,$PK$3:$RH$243,ROW()-2,FALSE) -> 282 | T38: 13 | U38: =HLOOKUP($A$1,$RI$3:$TF$243,ROW()-2,FALSE) -> 280 | V38: 14 | W38: =HLOOKUP($A$1,$TG$3:$VD$243,ROW()-2,FALSE) -> 327 | X38: 14 | Y38: Germencik | Z38: 814 | AA38: 16 | AB38: 100 | AC38: 7 | AD38: 21 | AE38: 2 | AF38: 76 | AG38: 280 | AH38: 14 | AI38: 21 | AJ38: 5 | AK38: 27 | AL38: 40 | AM38: 12 | AN38: 182 | AO38: 24 | AP38: 6 | AQ38: 14 | AR38: 35 | AS38: 652 | AT38: 82 | AU38: 785 | AV38: 15 | AW38: 21 | AX38: 318 | AY38: 10 | AZ38: 143 | BA38: 153 | BB38: 0 | BC38: 101 | BD38: 113 | BE38: 8 | BF38: 107 | BG38: 145 | BH38: 35 | BI38: 265 | BJ38: 0 | BK38: 38 | BL38: 1070 | BM38: 251 | BN38: 30 | BO38: 38 | BP38: 36 | BQ38: 9 | BR38: 484 | BS38: 96 | BT38: 59 | BU38: 100 | BV38: 79 | BW38: 92 | BX38: 102 | BY38: 181 | BZ38: 70 | CA38: 23 | CB38: 75 | CC38: 7 | CD38: 83 | CE38: 370 | CF38: 11 | CG38: 38 | CH38: 42 | CI38: 30 | CJ38: 45 | CK38: 3 | CL38: 226 | CM38: 28 | CN38: 13 | CO38: 9 | CP38: 19 | CQ38: 668 | CR38: 85 | CS38: 814 | CT38: 15 | CU38: 14 | CV38: 320 | CW38: 10 | CX38: 168 | CY38: 174 | CZ38: 0 | DA38: 104 | DB38: 108 | DC38: 11 | DD38: 123 | DE38: 176 | DF38: 70 | DG38: 282 | DH38: 0 | DI38: 70 | DJ38: 352 | DK38: 342 | DL38: 32 | DM38: 69 | DN38: 35 | DO38: 45 | DP38: 490 | DQ38: 107 | DR38: 60 | DS38: 170 | DT38: 77 | DU38: 115 | DV38: 94 | DW38: 185 | DX38: 135 | DY38: 23 | DZ38: 72 | EA38: 7 | EB38: 100 | EC38: 450 | ED38: 13 | EE38: 40 | EF38: 42 | EG38: 22 | EH38: 50 | EI38: 12 | EJ38: 210 | EK38: 29 | EL38: 13 | EM38: 11 | EN38: 20 | EO38: 721 | EP38: 82 | EQ38: 792 | ER38: 25 | ES38: 14 | ET38: 300 | EU38: 20 | EV38: 180 | EW38: 174 | EX38: 0 | EY38: 110 | EZ38: 113 | FA38: 88 | FB38: 124 | FC38: 221 | FD38: 62 | FE38: 256 | FF38: 0 | FG38: 98 | FH38: 357 | FI38: 373 | FJ38: 32 | FK38: 50 | FL38: 40 | FM38: 47 | FN38: 519 | FO38: 113 | FP38: 58 | FQ38: 200 | FR38: 62 | FS38: 139 | FT38: 92 | FU38: 185 | FV38: 150 | FW38: 23 | FX38: 70 | FY38: 7 | FZ38: 100 | GA38: 495 | GB38: 13 | GC38: 40 | GD38: 42 | GE38: 22 | GF38: 50 | GG38: 5 | GH38: 270 | GI38: 28 | GJ38: 16 | GK38: 13 | GL38: 18 | GM38: 700 | GN38: 83 | GO38: 720 | GP38: 25 | GQ38: 9 | GR38: 265 | GS38: 20 | GT38: 250 | GU38: 173 | GV38: 48 | GW38: 111 | GX38: 110 | GY38: 195 | GZ38: 120 | HA38: 223 | HB38: 60 | HC38: 285 | HD38: 0 | HE38: 98 | HF38: 551 | HG38: 400 | HH38: 34 | HI38: 61 | HJ38: 40 | HK38: 47 | HL38: 604 | HM38: 140 | HN38: 162 | HO38: 190 | HP38: 78 | HQ38: 142 | HR38: 83 | HS38: 185 | HT38: 175 | HU38: 25 | HV38: 60 | HW38: 7 | HX38: 98 | HY38: 500 | HZ38: 15 | IA38: 40 | IB38: 25 | IC38: 16 | ID38: 102 | IE38: 5 | IF38: 250 | IG38: 22 | IH38: 24 | II38: 10 | IJ38: 18 | IK38: 132 | IL38: 81 | IM38: 690 | IN38: 26 | IO38: 10 | IP38: 248 | IQ38: 35 | IR38: 247 | IS38: 172 | IT38: 45 | IU38: 115 | IV38: 122 | IW38: 200 | IX38: 147 | IY38: 269 | IZ38: 70 | JA38: 267 | JB38: 0 | JC38: 97 | JD38: 791 | JE38: 433 | JF38: 37 | JG38: 63 | JH38: 40 | JI38: 45 | JJ38: 604 | JK38: 127 | JL38: 148 | JM38: 200 | JN38: 113 | JO38: 149 | JP38: 96 | JQ38: 181 | JR38: 175 | JS38: 23 | JT38: 55 | JU38: 7 | JV38: 96 | JW38: 500 | JX38: 13 | JY38: 40 | JZ38: 35 | KA38: 15 | KB38: 120 | KC38: 5 | KD38: 200 | KE38: 20 | KF38: 24 | KG38: 10 | KH38: 23 | KI38: 137 | KJ38: 85 | KK38: 775 | KL38: 25 | KM38: 10 | KN38: 240 | KO38: 32 | KP38: 245 | KQ38: 188 | KR38: 56 | KS38: 117 | KT38: 110 | KU38: 189 | KV38: 146 | KW38: 284 | KX38: 70 | KY38: 280 | KZ38: 0 | LA38: 85 | LB38: 816 | LC38: 450 | LD38: 43 | LE38: 68 | LF38: 40 | LG38: 45 | LH38: 579 | LI38: 117 | LJ38: 152 | LK38: 230 | LL38: 121 | LM38: 153 | LN38: 83 | LO38: 326 | LP38: 29 | LQ38: 36 | LR38: 60 | LS38: 4 | LT38: 91 | LU38: 440 | LV38: 7 | LW38: 40 | LX38: 45 | LY38: 26 | LZ38: 200 | MA38: 5 | MB38: 150 | MC38: 236 | MD38: 45 | ME38: 15 | MF38: 22 | MG38: 130 | MH38: 55 | MI38: 735 | MJ38: 53 | MK38: 20 | ML38: 196 | MM38: 52 | MN38: 231 | MO38: 131 | MP38: 101 | MQ38: 40 | MR38: 135 | MS38: 202 | MT38: 155 | MU38: 468 | MV38: 65 | MW38: 302 | MX38: 0 | MY38: 127 | MZ38: 751 | NA38: 490 | NB38: 48 | NC38: 65 | ND38: 55 | NE38: 45 | NF38: 582 | NG38: 160 | NH38: 159 | NI38: 233 | NJ38: 130 | NK38: 235 | NL38: 84 | NM38: 326 | NN38: 26 | NO38: 29 | NP38: 39 | NQ38: 20 | NR38: 87 | NS38: 500 | NT38: 10 | NU38: 100 | NV38: 90 | NW38: 18 | NX38: 550 | NY38: 5 | NZ38: 135 | OA38: 298 | OB38: 42 | OC38: 20 | OD38: 19 | OE38: 855 | OF38: 66 | OG38: 725 | OH38: 48 | OI38: 11 | OJ38: 227 | OK38: 68 | OL38: 262 | OM38: 124 | ON38: 87 | OO38: 0 | OP38: 125 | OQ38: 180 | OR38: 253 | OS38: 470 | OT38: 50 | OU38: 432 | OV38: 0 | OW38: 19 | OX38: 742 | OY38: 505 | OZ38: 45 | PA38: 191 | PB38: 60 | PC38: 43 | PD38: 704 | PE38: 180 | PF38: 193 | PG38: 135 | PH38: 116 | PI38: 326 | PJ38: 96 | PK38: 725 | PL38: 26 | PM38: 39 | PN38: 35 | PO38: 30 | PP38: 169 | PQ38: 440 | PR38: 8 | PS38: 100 | PT38: 90 | PU38: 22 | PV38: 500 | PW38: 5 | PX38: 162 | PY38: 320 | PZ38: 37 | QA38: 17 | QB38: 20 | QC38: 870 | QD38: 780 | QE38: 735 | QF38: 55 | QG38: 10 | QH38: 261 | QI38: 61 | QJ38: 282 | QK38: 130 | QL38: 110 | QM38: 40 | QN38: 170 | QO38: 171 | QP38: 270 | QQ38: 495 | QR38: 56 | QS38: 480 | QT38: 230 | QU38: 0 | QV38: 731 | QW38: 535 | QX38: 54 | QY38: 0 | QZ38: 65 | RA38: 43 | RB38: 0 | RC38: 178 | RD38: 190 | RE38: 135 | RF38: 123 | RG38: 330 | RH38: 55 | RI38: 725 | RJ38: 26 | RK38: 40 | RL38: 35 | RM38: 30 | RN38: 158 | RO38: 500 | RP38: 8 | RQ38: 100 | RR38: 90 | RS38: 22 | RT38: 500 | RU38: 5 | RV38: 150 | RW38: 320 | RX38: 34 | RY38: 20 | RZ38: 18 | SA38: 879 | SB38: 678 | SC38: 747 | SD38: 55 | SE38: 10 | SF38: 340 | SG38: 60 | SH38: 280 | SI38: 131 | SJ38: 110 | SK38: 41 | SL38: 175 | SM38: 157 | SN38: 241 | SO38: 502 | SP38: 55 | SQ38: 512 | SR38: 230 | SS38: 0 | ST38: 738 | SU38: 555 | SV38: 53 | SW38: 0 | SX38: 65 | SY38: 43 | SZ38: 0 | TA38: 186 | TB38: 202 | TC38: 135 | TD38: 123 | TE38: 328 | TF38: 50 | TG38: 745 | TH38: 29 | TI38: 37 | TJ38: 60 | TK38: 10 | TL38: 153 | TM38: 590 | TN38: 10 | TO38: 100 | TP38: 115 | TQ38: 80 | TR38: 332 | TS38: 5 | TT38: 160 | TU38: 324 | TV38: 35 | TW38: 39 | TX38: 0 | TY38: 882 | TZ38: 789 | UA38: 748 | UB38: 59 | UC38: 29 | UD38: 341 | UE38: 55 | UF38: 327 | UG38: 151 | UH38: 109 | UI38: 37 | UJ38: 342 | UK38: 138 | UL38: 237 | UM38: 535 | UN38: 54 | UO38: 513 | UP38: 335 | UQ38: 0 | UR38: 738 | US38: 560 | UT38: 45 | UU38: 0 | UV38: 65 | UW38: 43 | UX38: 0 | UY38: 190 | UZ38: 207 | VA38: 120 | VB38: 119 | VC38: 327 | VD38: 75
A39: Bamya | B39: ton | C39: =HLOOKUP($A$1,$AA$3:$BX$243,ROW()-2,FALSE) -> 36 | D39: 20 | E39: =HLOOKUP($A$1,$BY$3:$DV$243,ROW()-2,FALSE) -> 64 | F39: 14 | G39: =HLOOKUP($A$1,$DW$3:$FT$243,ROW()-2,FALSE) -> 64 | H39: 14 | I39: =HLOOKUP($A$1,$FU$3:$HR$243,ROW()-2,FALSE) -> 75 | J39: 14 | K39: =HLOOKUP($A$1,$HS$3:$JP$243,ROW()-2,FALSE) -> 50 | L39: 15 | M39: =HLOOKUP($A$1,$JQ$3:$LN$243,ROW()-2,FALSE) -> 50 | N39: 15 | O39: =HLOOKUP($A$1,$LO$3:$NL$243,ROW()-2,FALSE) -> 50 | P39: 16 | Q39: =HLOOKUP($A$1,$NM$3:$PJ$243,ROW()-2,FALSE) -> 50 | R39: 16 | S39: =HLOOKUP($A$1,$PK$3:$RH$243,ROW()-2,FALSE) -> 50 | T39: 15 | U39: =HLOOKUP($A$1,$RI$3:$TF$243,ROW()-2,FALSE) -> 50 | V39: 14 | W39: =HLOOKUP($A$1,$TG$3:$VD$243,ROW()-2,FALSE) -> 20 | X39: 23 | Y39: Nazilli | Z39: 1000 | AA39: 0 | AB39: 0 | AC39: 15 | AD39: 0 | AE39: 12 | AF39: 6 | AG39: 126 | AH39: 18 | AI39: 214 | AJ39: 8 | AK39: 289 | AL39: 0 | AM39: 0 | AN39: 168 | AO39: 0 | AP39: 0 | AQ39: 16 | AR39: 29 | AS39: 376 | AT39: 14 | AU39: 39 | AV39: 3 | AW39: 25 | AX39: 287 | AY39: 5 | AZ39: 36 | BA39: 5 | BB39: 0 | BC39: 1805 | BD39: 16 | BE39: 301 | BF39: 0 | BG39: 54 | BH39: 23 | BI39: 200 | BJ39: 0 | BK39: 5 | BL39: 104 | BM39: 890 | BN39: 5 | BO39: 66 | BP39: 243 | BQ39: 0 | BR39: 693 | BS39: 55 | BT39: 0 | BU39: 8 | BV39: 37 | BW39: 58 | BX39: 8 | BY39: 0 | BZ39: 0 | CA39: 13 | CB39: 0 | CC39: 11 | CD39: 5 | CE39: 99 | CF39: 18 | CG39: 224 | CH39: 3 | CI39: 238 | CJ39: 0 | CK39: 0 | CL39: 148 | CM39: 0 | CN39: 0 | CO39: 11 | CP39: 30 | CQ39: 750 | CR39: 12 | CS39: 24 | CT39: 2 | CU39: 14 | CV39: 272 | CW39: 5 | CX39: 64 | CY39: 4 | CZ39: 0 | DA39: 792 | DB39: 12 | DC39: 274 | DD39: 0 | DE39: 42 | DF39: 20 | DG39: 160 | DH39: 0 | DI39: 4 | DJ39: 600 | DK39: 1000 | DL39: 4 | DM39: 57 | DN39: 215 | DO39: 0 | DP39: 675 | DQ39: 46 | DR39: 0 | DS39: 7 | DT39: 32 | DU39: 39 | DV39: 6 | DW39: 0 | DX39: 0 | DY39: 50 | DZ39: 0 | EA39: 13 | EB39: 0 | EC39: 98 | ED39: 18 | EE39: 220 | EF39: 6 | EG39: 237 | EH39: 0 | EI39: 0 | EJ39: 151 | EK39: 0 | EL39: 0 | EM39: 10 | EN39: 40 | EO39: 637 | EP39: 8 | EQ39: 4 | ER39: 3 | ES39: 14 | ET39: 280 | EU39: 6 | EV39: 64 | EW39: 4 | EX39: 0 | EY39: 486 | EZ39: 12 | FA39: 264 | FB39: 0 | FC39: 45 | FD39: 27 | FE39: 150 | FF39: 0 | FG39: 5 | FH39: 534 | FI39: 1000 | FJ39: 4 | FK39: 51 | FL39: 210 | FM39: 0 | FN39: 611 | FO39: 47 | FP39: 0 | FQ39: 7 | FR39: 28 | FS39: 21 | FT39: 6 | FU39: 0 | FV39: 0 | FW39: 75 | FX39: 0 | FY39: 14 | FZ39: 0 | GA39: 102 | GB39: 14 | GC39: 200 | GD39: 6 | GE39: 308 | GF39: 0 | GG39: 0 | GH39: 148 | GI39: 0 | GJ39: 0 | GK39: 10 | GL39: 40 | GM39: 600 | GN39: 8 | GO39: 5 | GP39: 25 | GQ39: 14 | GR39: 286 | GS39: 6 | GT39: 75 | GU39: 2 | GV39: 0 | GW39: 450 | GX39: 6 | GY39: 250 | GZ39: 0 | HA39: 48 | HB39: 25 | HC39: 150 | HD39: 0 | HE39: 8 | HF39: 540 | HG39: 1000 | HH39: 3 | HI39: 48 | HJ39: 208 | HK39: 0 | HL39: 630 | HM39: 47 | HN39: 0 | HO39: 8 | HP39: 20 | HQ39: 24 | HR39: 6 | HS39: 0 | HT39: 0 | HU39: 0 | HV39: 0 | HW39: 13 | HX39: 0 | HY39: 101 | HZ39: 14 | IA39: 160 | IB39: 6 | IC39: 315 | ID39: 0 | IE39: 0 | IF39: 156 | IG39: 0 | IH39: 0 | II39: 10 | IJ39: 40 | IK39: 563 | IL39: 12 | IM39: 6 | IN39: 24 | IO39: 14 | IP39: 286 | IQ39: 6 | IR39: 50 | IS39: 2 | IT39: 0 | IU39: 240 | IV39: 6 | IW39: 247 | IX39: 0 | IY39: 45 | IZ39: 20 | JA39: 150 | JB39: 0 | JC39: 7 | JD39: 500 | JE39: 800 | JF39: 4 | JG39: 48 | JH39: 205 | JI39: 0 | JJ39: 560 | JK39: 47 | JL39: 0 | JM39: 8 | JN39: 14 | JO39: 62 | JP39: 6 | JQ39: 0 | JR39: 0 | JS39: 0 | JT39: 0 | JU39: 13 | JV39: 0 | JW39: 97 | JX39: 14 | JY39: 127 | JZ39: 6 | KA39: 315 | KB39: 0 | KC39: 0 | KD39: 155 | KE39: 0 | KF39: 0 | KG39: 10 | KH39: 40 | KI39: 570 | KJ39: 12 | KK39: 9 | KL39: 23 | KM39: 15 | KN39: 286 | KO39: 7 | KP39: 50 | KQ39: 2 | KR39: 0 | KS39: 240 | KT39: 6 | KU39: 247 | KV39: 0 | KW39: 48 | KX39: 25 | KY39: 150 | KZ39: 0 | LA39: 7 | LB39: 500 | LC39: 640 | LD39: 4 | LE39: 33 | LF39: 210 | LG39: 0 | LH39: 658 | LI39: 47 | LJ39: 0 | LK39: 8 | LL39: 13 | LM39: 76 | LN39: 3 | LO39: 0 | LP39: 0 | LQ39: 0 | LR39: 0 | LS39: 13 | LT39: 16 | LU39: 92 | LV39: 2 | LW39: 75 | LX39: 6 | LY39: 299 | LZ39: 0 | MA39: 0 | MB39: 181 | MC39: 0 | MD39: 0 | ME39: 10 | MF39: 40 | MG39: 660 | MH39: 120 | MI39: 8 | MJ39: 21 | MK39: 43 | ML39: 278 | MM39: 8 | MN39: 50 | MO39: 2 | MP39: 0 | MQ39: 240 | MR39: 6 | MS39: 247 | MT39: 0 | MU39: 45 | MV39: 27 | MW39: 150 | MX39: 0 | MY39: 6 | MZ39: 500 | NA39: 640 | NB39: 4 | NC39: 33 | ND39: 168 | NE39: 0 | NF39: 658 | NG39: 45 | NH39: 0 | NI39: 8 | NJ39: 13 | NK39: 72 | NL39: 5 | NM39: 15 | NN39: 0 | NO39: 3 | NP39: 0 | NQ39: 13 | NR39: 13 | NS39: 82 | NT39: 2 | NU39: 40 | NV39: 46 | NW39: 300 | NX39: 0 | NY39: 0 | NZ39: 184 | OA39: 0 | OB39: 0 | OC39: 9 | OD39: 40 | OE39: 645 | OF39: 272 | OG39: 10 | OH39: 20 | OI39: 40 | OJ39: 198 | OK39: 8 | OL39: 50 | OM39: 2 | ON39: 0 | OO39: 270 | OP39: 6 | OQ39: 247 | OR39: 0 | OS39: 42 | OT39: 27 | OU39: 130 | OV39: 0 | OW39: 7 | OX39: 600 | OY39: 560 | OZ39: 3 | PA39: 33 | PB39: 168 | PC39: 0 | PD39: 658 | PE39: 43 | PF39: 0 | PG39: 8 | PH39: 132 | PI39: 72 | PJ39: 5 | PK39: 15 | PL39: 0 | PM39: 3 | PN39: 0 | PO39: 14 | PP39: 13 | PQ39: 69 | PR39: 2 | PS39: 38 | PT39: 46 | PU39: 163 | PV39: 0 | PW39: 0 | PX39: 181 | PY39: 0 | PZ39: 0 | QA39: 6 | QB39: 40 | QC39: 338 | QD39: 900 | QE39: 12 | QF39: 19 | QG39: 45 | QH39: 200 | QI39: 9 | QJ39: 50 | QK39: 2 | QL39: 0 | QM39: 270 | QN39: 6 | QO39: 180 | QP39: 0 | QQ39: 43 | QR39: 27 | QS39: 140 | QT39: 36 | QU39: 0 | QV39: 600 | QW39: 450 | QX39: 3 | QY39: 3 | QZ39: 111 | RA39: 0 | RB39: 0 | RC39: 44 | RD39: 0 | RE39: 8 | RF39: 132 | RG39: 72 | RH39: 5 | RI39: 18 | RJ39: 0 | RK39: 3 | RL39: 0 | RM39: 16 | RN39: 13 | RO39: 50 | RP39: 1 | RQ39: 38 | RR39: 48 | RS39: 126 | RT39: 0 | RU39: 0 | RV39: 180 | RW39: 0 | RX39: 0 | RY39: 6 | RZ39: 40 | SA39: 375 | SB39: 975 | SC39: 12 | SD39: 19 | SE39: 50 | SF39: 360 | SG39: 9 | SH39: 50 | SI39: 2 | SJ39: 0 | SK39: 150 | SL39: 6 | SM39: 180 | SN39: 0 | SO39: 45 | SP39: 27 | SQ39: 160 | SR39: 42 | SS39: 0 | ST39: 600 | SU39: 450 | SV39: 3 | SW39: 3 | SX39: 108 | SY39: 0 | SZ39: 0 | TA39: 44 | TB39: 0 | TC39: 6 | TD39: 132 | TE39: 72 | TF39: 5 | TG39: 18 | TH39: 0 | TI39: 3 | TJ39: 0 | TK39: 16 | TL39: 13 | TM39: 55 | TN39: 0 | TO39: 40 | TP39: 47 | TQ39: 149 | TR39: 0 | TS39: 0 | TT39: 180 | TU39: 0 | TV39: 0 | TW39: 6 | TX39: 40 | TY39: 825 | TZ39: 1050 | UA39: 14 | UB39: 19 | UC39: 55 | UD39: 560 | UE39: 9 | UF39: 20 | UG39: 2 | UH39: 0 | UI39: 150 | UJ39: 6 | UK39: 180 | UL39: 0 | UM39: 48 | UN39: 30 | UO39: 140 | UP39: 45 | UQ39: 0 | UR39: 600 | US39: 480 | UT39: 3 | UU39: 2 | UV39: 105 | UW39: 0 | UX39: 0 | UY39: 43 | UZ39: 0 | VA39: 6 | VB39: 61 | VC39: 54 | VD39: 10
A40: Nohut | B40: ton | C40: =HLOOKUP($A$1,$AA$3:$BX$243,ROW()-2,FALSE) -> 27 | D40: 16 | E40: =HLOOKUP($A$1,$BY$3:$DV$243,ROW()-2,FALSE) -> 43 | F40: 14 | G40: =HLOOKUP($A$1,$DW$3:$FT$243,ROW()-2,FALSE) -> 61 | H40: 14 | I40: =HLOOKUP($A$1,$FU$3:$HR$243,ROW()-2,FALSE) -> 57 | J40: 15 | K40: =HLOOKUP($A$1,$HS$3:$JP$243,ROW()-2,FALSE) -> 60 | L40: 15 | M40: =HLOOKUP($A$1,$JQ$3:$LN$243,ROW()-2,FALSE) -> 57 | N40: 15 | O40: =HLOOKUP($A$1,$LO$3:$NL$243,ROW()-2,FALSE) -> 46 | P40: 16 | Q40: =HLOOKUP($A$1,$NM$3:$PJ$243,ROW()-2,FALSE) -> 116 | R40: 15 | S40: =HLOOKUP($A$1,$PK$3:$RH$243,ROW()-2,FALSE) -> 90 | T40: 15 | U40: =HLOOKUP($A$1,$RI$3:$TF$243,ROW()-2,FALSE) -> 75 | V40: 15 | W40: =HLOOKUP($A$1,$TG$3:$VD$243,ROW()-2,FALSE) -> 30 | X40: 21 | Y40: Bekilli | Z40: 1035 | AA40: 351 | AB40: 2 | AC40: 80 | AD40: 696 | AE40: 8 | AF40: 4 | AG40: 0 | AH40: 75 | AI40: 0 | AJ40: 3 | AK40: 133 | AL40: 258 | AM40: 10 | AN40: 0 | AO40: 119 | AP40: 10 | AQ40: 2 | AR40: 0 | AS40: 0 | AT40: 19 | AU40: 0 | AV40: 74 | AW40: 6 | AX40: 0 | AY40: 16 | AZ40: 27 | BA40: 0 | BB40: 55 | BC40: 0 | BD40: 0 | BE40: 4 | BF40: 0 | BG40: 0 | BH40: 0 | BI40: 153 | BJ40: 0 | BK40: 0 | BL40: 34 | BM40: 0 | BN40: 0 | BO40: 66 | BP40: 1 | BQ40: 328 | BR40: 307 | BS40: 0 | BT40: 0 | BU40: 573 | BV40: 0 | BW40: 5 | BX40: 0 | BY40: 300 | BZ40: 4 | CA40: 159 | CB40: 1035 | CC40: 10 | CD40: 5 | CE40: 0 | CF40: 54 | CG40: 0 | CH40: 4 | CI40: 143 | CJ40: 472 | CK40: 11 | CL40: 0 | CM40: 198 | CN40: 13 | CO40: 2 | CP40: 0 | CQ40: 0 | CR40: 21 | CS40: 0 | CT40: 153 | CU40: 15 | CV40: 0 | CW40: 22 | CX40: 43 | CY40: 0 | CZ40: 32 | DA40: 0 | DB40: 0 | DC40: 0 | DD40: 0 | DE40: 5 | DF40: 0 | DG40: 162 | DH40: 0 | DI40: 0 | DJ40: 0 | DK40: 0 | DL40: 0 | DM40: 63 | DN40: 1 | DO40: 357 | DP40: 694 | DQ40: 0 | DR40: 0 | DS40: 892 | DT40: 0 | DU40: 6 | DV40: 0 | DW40: 595 | DX40: 5 | DY40: 144 | DZ40: 915 | EA40: 12 | EB40: 0 | EC40: 0 | ED40: 108 | EE40: 0 | EF40: 5 | EG40: 270 | EH40: 562 | EI40: 16 | EJ40: 0 | EK40: 1081 | EL40: 14 | EM40: 4 | EN40: 0 | EO40: 0 | EP40: 27 | EQ40: 0 | ER40: 325 | ES40: 19 | ET40: 0 | EU40: 43 | EV40: 61 | EW40: 0 | EX40: 41 | EY40: 0 | EZ40: 0 | FA40: 0 | FB40: 0 | FC40: 6 | FD40: 0 | FE40: 173 | FF40: 0 | FG40: 0 | FH40: 0 | FI40: 0 | FJ40: 0 | FK40: 81 | FL40: 2 | FM40: 425 | FN40: 901 | FO40: 0 | FP40: 0 | FQ40: 1126 | FR40: 0 | FS40: 7 | FT40: 0 | FU40: 706 | FV40: 5 | FW40: 114 | FX40: 1141 | FY40: 13 | FZ40: 0 | GA40: 0 | GB40: 61 | GC40: 0 | GD40: 5 | GE40: 238 | GF40: 813 | GG40: 17 | GH40: 0 | GI40: 1905 | GJ40: 19 | GK40: 4 | GL40: 0 | GM40: 0 | GN40: 28 | GO40: 0 | GP40: 514 | GQ40: 20 | GR40: 0 | GS40: 63 | GT40: 57 | GU40: 0 | GV40: 75 | GW40: 0 | GX40: 0 | GY40: 0 | GZ40: 0 | HA40: 9 | HB40: 0 | HC40: 190 | HD40: 0 | HE40: 0 | HF40: 0 | HG40: 0 | HH40: 0 | HI40: 45 | HJ40: 1 | HK40: 527 | HL40: 975 | HM40: 0 | HN40: 0 | HO40: 1427 | HP40: 0 | HQ40: 6 | HR40: 0 | HS40: 737 | HT40: 5 | HU40: 119 | HV40: 1254 | HW40: 13 | HX40: 0 | HY40: 0 | HZ40: 175 | IA40: 0 | IB40: 5 | IC40: 325 | ID40: 976 | IE40: 29 | IF40: 0 | IG40: 1735 | IH40: 22 | II40: 5 | IJ40: 0 | IK40: 0 | IL40: 30 | IM40: 0 | IN40: 488 | IO40: 23 | IP40: 0 | IQ40: 73 | IR40: 60 | IS40: 0 | IT40: 99 | IU40: 0 | IV40: 0 | IW40: 0 | IX40: 0 | IY40: 10 | IZ40: 0 | JA40: 188 | JB40: 0 | JC40: 0 | JD40: 0 | JE40: 0 | JF40: 0 | JG40: 54 | JH40: 2 | JI40: 780 | JJ40: 954 | JK40: 0 | JL40: 0 | JM40: 1827 | JN40: 0 | JO40: 0 | JP40: 0 | JQ40: 715 | JR40: 5 | JS40: 105 | JT40: 950 | JU40: 12 | JV40: 0 | JW40: 0 | JX40: 364 | JY40: 0 | JZ40: 5 | KA40: 210 | KB40: 1182 | KC40: 28 | KD40: 0 | KE40: 946 | KF40: 8 | KG40: 4 | KH40: 0 | KI40: 0 | KJ40: 32 | KK40: 0 | KL40: 473 | KM40: 26 | KN40: 0 | KO40: 81 | KP40: 57 | KQ40: 0 | KR40: 87 | KS40: 0 | KT40: 0 | KU40: 0 | KV40: 0 | KW40: 8 | KX40: 0 | KY40: 173 | KZ40: 0 | LA40: 0 | LB40: 0 | LC40: 0 | LD40: 0 | LE40: 53 | LF40: 3 | LG40: 1192 | LH40: 858 | LI40: 0 | LJ40: 0 | LK40: 1892 | LL40: 0 | LM40: 0 | LN40: 0 | LO40: 578 | LP40: 20 | LQ40: 122 | LR40: 913 | LS40: 11 | LT40: 0 | LU40: 0 | LV40: 365 | LW40: 0 | LX40: 5 | LY40: 213 | LZ40: 1370 | MA40: 23 | MB40: 0 | MC40: 1928 | MD40: 8 | ME40: 2 | MF40: 0 | MG40: 0 | MH40: 30 | MI40: 0 | MJ40: 731 | MK40: 24 | ML40: 0 | MM40: 92 | MN40: 46 | MO40: 0 | MP40: 63 | MQ40: 0 | MR40: 0 | MS40: 0 | MT40: 0 | MU40: 0 | MV40: 0 | MW40: 203 | MX40: 0 | MY40: 0 | MZ40: 0 | NA40: 0 | NB40: 0 | NC40: 51 | ND40: 4 | NE40: 1291 | NF40: 812 | NG40: 0 | NH40: 0 | NI40: 3044 | NJ40: 0 | NK40: 0 | NL40: 0 | NM40: 440 | NN40: 22 | NO40: 330 | NP40: 1238 | NQ40: 18 | NR40: 0 | NS40: 0 | NT40: 477 | NU40: 0 | NV40: 11 | NW40: 222 | NX40: 930 | NY40: 35 | NZ40: 0 | OA40: 1430 | OB40: 8 | OC40: 0 | OD40: 0 | OE40: 0 | OF40: 31 | OG40: 0 | OH40: 1139 | OI40: 28 | OJ40: 0 | OK40: 149 | OL40: 116 | OM40: 0 | ON40: 62 | OO40: 0 | OP40: 0 | OQ40: 0 | OR40: 0 | OS40: 0 | OT40: 0 | OU40: 120 | OV40: 0 | OW40: 176 | OX40: 0 | OY40: 0 | OZ40: 0 | PA40: 8 | PB40: 3 | PC40: 1320 | PD40: 938 | PE40: 0 | PF40: 0 | PG40: 4224 | PH40: 0 | PI40: 0 | PJ40: 0 | PK40: 741 | PL40: 22 | PM40: 390 | PN40: 1310 | PO40: 23 | PP40: 0 | PQ40: 0 | PR40: 433 | PS40: 0 | PT40: 15 | PU40: 450 | PV40: 1235 | PW40: 14 | PX40: 9 | PY40: 1750 | PZ40: 8 | QA40: 0 | QB40: 0 | QC40: 0 | QD40: 630 | QE40: 0 | QF40: 1240 | QG40: 32 | QH40: 0 | QI40: 259 | QJ40: 90 | QK40: 0 | QL40: 54 | QM40: 0 | QN40: 0 | QO40: 0 | QP40: 0 | QQ40: 0 | QR40: 0 | QS40: 315 | QT40: 400 | QU40: 0 | QV40: 0 | QW40: 0 | QX40: 0 | QY40: 15 | QZ40: 2 | RA40: 1200 | RB40: 0 | RC40: 0 | RD40: 0 | RE40: 4200 | RF40: 0 | RG40: 0 | RH40: 0 | RI40: 407 | RJ40: 40 | RK40: 473 | RL40: 1148 | RM40: 13 | RN40: 0 | RO40: 0 | RP40: 428 | RQ40: 0 | RR40: 14 | RS40: 350 | RT40: 665 | RU40: 5 | RV40: 11 | RW40: 560 | RX40: 8 | RY40: 0 | RZ40: 0 | SA40: 0 | SB40: 510 | SC40: 0 | SD40: 721 | SE40: 18 | SF40: 0 | SG40: 240 | SH40: 75 | SI40: 0 | SJ40: 2 | SK40: 0 | SL40: 0 | SM40: 0 | SN40: 0 | SO40: 35 | SP40: 0 | SQ40: 240 | SR40: 522 | SS40: 0 | ST40: 0 | SU40: 0 | SV40: 0 | SW40: 3 | SX40: 3 | SY40: 1860 | SZ40: 0 | TA40: 0 | TB40: 0 | TC40: 3900 | TD40: 0 | TE40: 36 | TF40: 0 | TG40: 407 | TH40: 40 | TI40: 350 | TJ40: 1613 | TK40: 25 | TL40: 0 | TM40: 0 | TN40: 600 | TO40: 0 | TP40: 25 | TQ40: 765 | TR40: 700 | TS40: 18 | TT40: 11 | TU40: 660 | TV40: 8 | TW40: 0 | TX40: 0 | TY40: 0 | TZ40: 1190 | UA40: 0 | UB40: 1443 | UC40: 44 | UD40: 0 | UE40: 338 | UF40: 30 | UG40: 0 | UH40: 2 | UI40: 0 | UJ40: 0 | UK40: 0 | UL40: 0 | UM40: 36 | UN40: 0 | UO40: 224 | UP40: 816 | UQ40: 0 | UR40: 0 | US40: 0 | UT40: 0 | UU40: 35 | UV40: 45 | UW40: 1550 | UX40: 0 | UY40: 0 | UZ40: 0 | VA40: 4200 | VB40: 0 | VC40: 48 | VD40: 0
A41: Sarımsak(Taze) | B41: ton | C41: =HLOOKUP($A$1,$AA$3:$BX$243,ROW()-2,FALSE) -> 12 | D41: 16 | E41: =HLOOKUP($A$1,$BY$3:$DV$243,ROW()-2,FALSE) -> 14 | F41: 14 | G41: =HLOOKUP($A$1,$DW$3:$FT$243,ROW()-2,FALSE) -> 14 | H41: 14 | I41: =HLOOKUP($A$1,$FU$3:$HR$243,ROW()-2,FALSE) -> 17 | J41: 13 | K41: =HLOOKUP($A$1,$HS$3:$JP$243,ROW()-2,FALSE) -> 17 | L41: 13 | M41: =HLOOKUP($A$1,$JQ$3:$LN$243,ROW()-2,FALSE) -> 15 | N41: 13 | O41: =HLOOKUP($A$1,$LO$3:$NL$243,ROW()-2,FALSE) -> 15 | P41: 13 | Q41: =HLOOKUP($A$1,$NM$3:$PJ$243,ROW()-2,FALSE) -> 15 | R41: 14 | S41: =HLOOKUP($A$1,$PK$3:$RH$243,ROW()-2,FALSE) -> 15 | T41: 13 | U41: =HLOOKUP($A$1,$RI$3:$TF$243,ROW()-2,FALSE) -> 15 | V41: 14 | W41: =HLOOKUP($A$1,$TG$3:$VD$243,ROW()-2,FALSE) -> 10 | X41: 21 | Y41: Milas | Z41: 263 | AA41: 0 | AB41: 0 | AC41: 0 | AD41: 0 | AE41: 18 | AF41: 0 | AG41: 0 | AH41: 0 | AI41: 0 | AJ41: 0 | AK41: 0 | AL41: 0 | AM41: 0 | AN41: 26 | AO41: 0 | AP41: 0 | AQ41: 0 | AR41: 0 | AS41: 22 | AT41: 0 | AU41: 0 | AV41: 5 | AW41: 21 | AX41: 22 | AY41: 0 | AZ41: 12 | BA41: 13 | BB41: 19 | BC41: 0 | BD41: 0 | BE41: 3 | BF41: 0 | BG41: 0 | BH41: 8 | BI41: 165 | BJ41: 0 | BK41: 0 | BL41: 18 | BM41: 40 | BN41: 2 | BO41: 69 | BP41: 0 | BQ41: 11 | BR41: 120 | BS41: 5 | BT41: 0 | BU41: 49 | BV41: 39 | BW41: 18 | BX41: 0 | BY41: 0 | BZ41: 0 | CA41: 0 | CB41: 0 | CC41: 17 | CD41: 0 | CE41: 0 | CF41: 0 | CG41: 0 | CH41: 0 | CI41: 0 | CJ41: 0 | CK41: 0 | CL41: 29 | CM41: 0 | CN41: 0 | CO41: 0 | CP41: 0 | CQ41: 34 | CR41: 7 | CS41: 0 | CT41: 0 | CU41: 5 | CV41: 25 | CW41: 8 | CX41: 14 | CY41: 13 | CZ41: 23 | DA41: 0 | DB41: 0 | DC41: 5 | DD41: 0 | DE41: 0 | DF41: 20 | DG41: 147 | DH41: 0 | DI41: 0 | DJ41: 263 | DK41: 38 | DL41: 8 | DM41: 69 | DN41: 0 | DO41: 8 | DP41: 180 | DQ41: 5 | DR41: 0 | DS41: 56 | DT41: 57 | DU41: 14 | DV41: 0 | DW41: 0 | DX41: 0 | DY41: 0 | DZ41: 0 | EA41: 19 | EB41: 0 | EC41: 0 | ED41: 0 | EE41: 0 | EF41: 0 | EG41: 0 | EH41: 0 | EI41: 0 | EJ41: 30 | EK41: 0 | EL41: 0 | EM41: 0 | EN41: 0 | EO41: 34 | EP41: 8 | EQ41: 0 | ER41: 0 | ES41: 5 | ET41: 25 | EU41: 8 | EV41: 14 | EW41: 13 | EX41: 22 | EY41: 0 | EZ41: 0 | FA41: 6 | FB41: 0 | FC41: 0 | FD41: 34 | FE41: 125 | FF41: 0 | FG41: 0 | FH41: 320 | FI41: 51 | FJ41: 7 | FK41: 69 | FL41: 0 | FM41: 8 | FN41: 147 | FO41: 5 | FP41: 0 | FQ41: 56 | FR41: 46 | FS41: 7 | FT41: 0 | FU41: 0 | FV41: 0 | FW41: 0 | FX41: 0 | FY41: 20 | FZ41: 0 | GA41: 0 | GB41: 0 | GC41: 0 | GD41: 0 | GE41: 0 | GF41: 0 | GG41: 0 | GH41: 32 | GI41: 0 | GJ41: 0 | GK41: 0 | GL41: 0 | GM41: 26 | GN41: 7 | GO41: 0 | GP41: 0 | GQ41: 5 | GR41: 26 | GS41: 8 | GT41: 17 | GU41: 13 | GV41: 11 | GW41: 0 | GX41: 0 | GY41: 4 | GZ41: 0 | HA41: 0 | HB41: 30 | HC41: 125 | HD41: 0 | HE41: 2 | HF41: 336 | HG41: 51 | HH41: 7 | HI41: 69 | HJ41: 0 | HK41: 0 | HL41: 155 | HM41: 5 | HN41: 0 | HO41: 23 | HP41: 43 | HQ41: 6 | HR41: 0 | HS41: 0 | HT41: 0 | HU41: 0 | HV41: 0 | HW41: 19 | HX41: 0 | HY41: 0 | HZ41: 0 | IA41: 0 | IB41: 0 | IC41: 0 | ID41: 0 | IE41: 0 | IF41: 33 | IG41: 0 | IH41: 0 | II41: 0 | IJ41: 0 | IK41: 30 | IL41: 7 | IM41: 0 | IN41: 0 | IO41: 5 | IP41: 25 | IQ41: 8 | IR41: 17 | IS41: 13 | IT41: 12 | IU41: 0 | IV41: 0 | IW41: 9 | IX41: 0 | IY41: 0 | IZ41: 33 | JA41: 123 | JB41: 0 | JC41: 2 | JD41: 315 | JE41: 51 | JF41: 8 | JG41: 69 | JH41: 0 | JI41: 0 | JJ41: 155 | JK41: 5 | JL41: 0 | JM41: 25 | JN41: 26 | JO41: 11 | JP41: 0 | JQ41: 0 | JR41: 0 | JS41: 0 | JT41: 0 | JU41: 19 | JV41: 0 | JW41: 0 | JX41: 0 | JY41: 0 | JZ41: 0 | KA41: 0 | KB41: 0 | KC41: 0 | KD41: 37 | KE41: 0 | KF41: 0 | KG41: 0 | KH41: 0 | KI41: 30 | KJ41: 4 | KK41: 0 | KL41: 0 | KM41: 10 | KN41: 25 | KO41: 7 | KP41: 15 | KQ41: 13 | KR41: 11 | KS41: 0 | KT41: 0 | KU41: 9 | KV41: 0 | KW41: 0 | KX41: 40 | KY41: 125 | KZ41: 0 | LA41: 2 | LB41: 320 | LC41: 52 | LD41: 5 | LE41: 70 | LF41: 0 | LG41: 0 | LH41: 163 | LI41: 5 | LJ41: 0 | LK41: 25 | LL41: 30 | LM41: 11 | LN41: 0 | LO41: 0 | LP41: 0 | LQ41: 0 | LR41: 0 | LS41: 19 | LT41: 18 | LU41: 0 | LV41: 0 | LW41: 0 | LX41: 0 | LY41: 0 | LZ41: 0 | MA41: 0 | MB41: 40 | MC41: 0 | MD41: 0 | ME41: 11 | MF41: 0 | MG41: 10 | MH41: 14 | MI41: 0 | MJ41: 0 | MK41: 15 | ML41: 25 | MM41: 7 | MN41: 15 | MO41: 13 | MP41: 11 | MQ41: 0 | MR41: 0 | MS41: 9 | MT41: 0 | MU41: 0 | MV41: 40 | MW41: 125 | MX41: 0 | MY41: 0 | MZ41: 320 | NA41: 52 | NB41: 7 | NC41: 70 | ND41: 0 | NE41: 0 | NF41: 150 | NG41: 5 | NH41: 0 | NI41: 25 | NJ41: 30 | NK41: 12 | NL41: 0 | NM41: 10 | NN41: 0 | NO41: 0 | NP41: 0 | NQ41: 19 | NR41: 14 | NS41: 0 | NT41: 0 | NU41: 0 | NV41: 10 | NW41: 0 | NX41: 0 | NY41: 0 | NZ41: 42 | OA41: 0 | OB41: 0 | OC41: 12 | OD41: 0 | OE41: 10 | OF41: 25 | OG41: 0 | OH41: 0 | OI41: 15 | OJ41: 25 | OK41: 7 | OL41: 15 | OM41: 13 | ON41: 15 | OO41: 25 | OP41: 0 | OQ41: 9 | OR41: 0 | OS41: 0 | OT41: 40 | OU41: 94 | OV41: 0 | OW41: 91 | OX41: 320 | OY41: 50 | OZ41: 8 | PA41: 0 | PB41: 0 | PC41: 0 | PD41: 175 | PE41: 5 | PF41: 0 | PG41: 25 | PH41: 30 | PI41: 12 | PJ41: 0 | PK41: 10 | PL41: 0 | PM41: 0 | PN41: 0 | PO41: 19 | PP41: 14 | PQ41: 0 | PR41: 0 | PS41: 0 | PT41: 10 | PU41: 0 | PV41: 0 | PW41: 0 | PX41: 45 | PY41: 0 | PZ41: 0 | QA41: 12 | QB41: 0 | QC41: 10 | QD41: 175 | QE41: 0 | QF41: 0 | QG41: 40 | QH41: 15 | QI41: 12 | QJ41: 15 | QK41: 13 | QL41: 15 | QM41: 25 | QN41: 0 | QO41: 7 | QP41: 0 | QQ41: 0 | QR41: 40 | QS41: 83 | QT41: 95 | QU41: 0 | QV41: 320 | QW41: 50 | QX41: 7 | QY41: 0 | QZ41: 0 | RA41: 0 | RB41: 0 | RC41: 5 | RD41: 0 | RE41: 25 | RF41: 18 | RG41: 12 | RH41: 0 | RI41: 13 | RJ41: 0 | RK41: 0 | RL41: 0 | RM41: 21 | RN41: 14 | RO41: 0 | RP41: 0 | RQ41: 0 | RR41: 1 | RS41: 0 | RT41: 0 | RU41: 0 | RV41: 40 | RW41: 0 | RX41: 0 | RY41: 12 | RZ41: 0 | SA41: 10 | SB41: 150 | SC41: 0 | SD41: 0 | SE41: 28 | SF41: 30 | SG41: 12 | SH41: 15 | SI41: 13 | SJ41: 15 | SK41: 24 | SL41: 0 | SM41: 7 | SN41: 0 | SO41: 0 | SP41: 40 | SQ41: 94 | SR41: 105 | SS41: 0 | ST41: 320 | SU41: 50 | SV41: 7 | SW41: 0 | SX41: 0 | SY41: 4 | SZ41: 0 | TA41: 5 | TB41: 0 | TC41: 22 | TD41: 18 | TE41: 12 | TF41: 0 | TG41: 13 | TH41: 0 | TI41: 0 | TJ41: 0 | TK41: 21 | TL41: 18 | TM41: 0 | TN41: 0 | TO41: 0 | TP41: 4 | TQ41: 0 | TR41: 0 | TS41: 0 | TT41: 40 | TU41: 0 | TV41: 0 | TW41: 12 | TX41: 0 | TY41: 10 | TZ41: 125 | UA41: 0 | UB41: 0 | UC41: 28 | UD41: 30 | UE41: 12 | UF41: 10 | UG41: 13 | UH41: 15 | UI41: 24 | UJ41: 0 | UK41: 7 | UL41: 0 | UM41: 0 | UN41: 40 | UO41: 90 | UP41: 112 | UQ41: 0 | UR41: 320 | US41: 60 | UT41: 5 | UU41: 2 | UV41: 0 | UW41: 5 | UX41: 0 | UY41: 5 | UZ41: 0 | VA41: 20 | VB41: 16 | VC41: 12 | VD41: 0
A42: Pırasa | B42: ton | C42: =HLOOKUP($A$1,$AA$3:$BX$243,ROW()-2,FALSE) -> 168 | D42: 15 | E42: =HLOOKUP($A$1,$BY$3:$DV$243,ROW()-2,FALSE) -> 190 | F42: 15 | G42: =HLOOKUP($A$1,$DW$3:$FT$243,ROW()-2,FALSE) -> 190 | H42: 15 | I42: =HLOOKUP($A$1,$FU$3:$HR$243,ROW()-2,FALSE) -> 223 | J42: 14 | K42: =HLOOKUP($A$1,$HS$3:$JP$243,ROW()-2,FALSE) -> 205 | L42: 14 | M42: =HLOOKUP($A$1,$JQ$3:$LN$243,ROW()-2,FALSE) -> 196 | N42: 14 | O42: =HLOOKUP($A$1,$LO$3:$NL$243,ROW()-2,FALSE) -> 200 | P42: 16 | Q42: =HLOOKUP($A$1,$NM$3:$PJ$243,ROW()-2,FALSE) -> 200 | R42: 17 | S42: =HLOOKUP($A$1,$PK$3:$RH$243,ROW()-2,FALSE) -> 200 | T42: 15 | U42: =HLOOKUP($A$1,$RI$3:$TF$243,ROW()-2,FALSE) -> 200 | V42: 14 | W42: =HLOOKUP($A$1,$TG$3:$VD$243,ROW()-2,FALSE) -> 0 | X42: - | Y42: Sarayköy | Z42: 2115 | AA42: 553 | AB42: 0 | AC42: 0 | AD42: 0 | AE42: 16 | AF42: 5 | AG42: 383 | AH42: 1 | AI42: 148 | AJ42: 18 | AK42: 0 | AL42: 37 | AM42: 0 | AN42: 1040 | AO42: 0 | AP42: 9 | AQ42: 0 | AR42: 10 | AS42: 780 | AT42: 500 | AU42: 11 | AV42: 21 | AW42: 128 | AX42: 189 | AY42: 15 | AZ42: 168 | BA42: 19 | BB42: 0 | BC42: 0 | BD42: 46 | BE42: 69 | BF42: 0 | BG42: 132 | BH42: 32 | BI42: 1430 | BJ42: 0 | BK42: 52 | BL42: 160 | BM42: 1700 | BN42: 10 | BO42: 1045 | BP42: 2160 | BQ42: 19 | BR42: 1080 | BS42: 648 | BT42: 0 | BU42: 150 | BV42: 180 | BW42: 480 | BX42: 35 | BY42: 585 | BZ42: 0 | CA42: 0 | CB42: 0 | CC42: 14 | CD42: 2 | CE42: 479 | CF42: 4 | CG42: 173 | CH42: 15 | CI42: 0 | CJ42: 30 | CK42: 0 | CL42: 1048 | CM42: 0 | CN42: 0 | CO42: 0 | CP42: 13 | CQ42: 1260 | CR42: 480 | CS42: 18 | CT42: 16 | CU42: 21 | CV42: 192 | CW42: 17 | CX42: 190 | CY42: 15 | CZ42: 0 | DA42: 140 | DB42: 40 | DC42: 75 | DD42: 0 | DE42: 120 | DF42: 40 | DG42: 1365 | DH42: 0 | DI42: 50 | DJ42: 1620 | DK42: 2000 | DL42: 0 | DM42: 950 | DN42: 2115 | DO42: 8 | DP42: 1080 | DQ42: 666 | DR42: 0 | DS42: 120 | DT42: 180 | DU42: 408 | DV42: 35 | DW42: 576 | DX42: 0 | DY42: 0 | DZ42: 0 | EA42: 10 | EB42: 1 | EC42: 475 | ED42: 4 | EE42: 169 | EF42: 15 | EG42: 0 | EH42: 21 | EI42: 0 | EJ42: 1060 | EK42: 0 | EL42: 0 | EM42: 0 | EN42: 13 | EO42: 1155 | EP42: 520 | EQ42: 5 | ER42: 13 | ES42: 21 | ET42: 198 | EU42: 20 | EV42: 190 | EW42: 15 | EX42: 0 | EY42: 160 | EZ42: 40 | FA42: 80 | FB42: 0 | FC42: 105 | FD42: 60 | FE42: 1300 | FF42: 0 | FG42: 60 | FH42: 2145 | FI42: 2000 | FJ42: 0 | FK42: 950 | FL42: 1840 | FM42: 8 | FN42: 1092 | FO42: 662 | FP42: 0 | FQ42: 120 | FR42: 162 | FS42: 255 | FT42: 35 | FU42: 352 | FV42: 0 | FW42: 0 | FX42: 0 | FY42: 33 | FZ42: 1 | GA42: 466 | GB42: 4 | GC42: 169 | GD42: 15 | GE42: 186 | GF42: 7 | GG42: 0 | GH42: 1020 | GI42: 0 | GJ42: 0 | GK42: 0 | GL42: 13 | GM42: 975 | GN42: 480 | GO42: 7 | GP42: 12 | GQ42: 21 | GR42: 198 | GS42: 20 | GT42: 223 | GU42: 23 | GV42: 0 | GW42: 0 | GX42: 40 | GY42: 75 | GZ42: 0 | HA42: 96 | HB42: 60 | HC42: 1350 | HD42: 0 | HE42: 60 | HF42: 2400 | HG42: 2000 | HH42: 0 | HI42: 903 | HJ42: 1800 | HK42: 0 | HL42: 1000 | HM42: 662 | HN42: 0 | HO42: 132 | HP42: 162 | HQ42: 255 | HR42: 35 | HS42: 339 | HT42: 0 | HU42: 0 | HV42: 0 | HW42: 33 | HX42: 1 | HY42: 462 | HZ42: 8 | IA42: 149 | IB42: 15 | IC42: 185 | ID42: 6 | IE42: 0 | IF42: 1048 | IG42: 0 | IH42: 0 | II42: 0 | IJ42: 13 | IK42: 986 | IL42: 523 | IM42: 9 | IN42: 13 | IO42: 21 | IP42: 179 | IQ42: 20 | IR42: 205 | IS42: 23 | IT42: 0 | IU42: 0 | IV42: 40 | IW42: 75 | IX42: 0 | IY42: 90 | IZ42: 80 | JA42: 1121 | JB42: 0 | JC42: 53 | JD42: 2180 | JE42: 1993 | JF42: 0 | JG42: 946 | JH42: 1300 | JI42: 0 | JJ42: 747 | JK42: 659 | JL42: 0 | JM42: 120 | JN42: 149 | JO42: 847 | JP42: 35 | JQ42: 320 | JR42: 0 | JS42: 0 | JT42: 0 | JU42: 33 | JV42: 1 | JW42: 439 | JX42: 8 | JY42: 180 | JZ42: 15 | KA42: 186 | KB42: 10 | KC42: 0 | KD42: 1044 | KE42: 0 | KF42: 0 | KG42: 0 | KH42: 13 | KI42: 990 | KJ42: 700 | KK42: 9 | KL42: 14 | KM42: 193 | KN42: 180 | KO42: 20 | KP42: 196 | KQ42: 23 | KR42: 0 | KS42: 0 | KT42: 40 | KU42: 75 | KV42: 0 | KW42: 75 | KX42: 100 | KY42: 1125 | KZ42: 0 | LA42: 63 | LB42: 1875 | LC42: 2000 | LD42: 0 | LE42: 1000 | LF42: 875 | LG42: 0 | LH42: 750 | LI42: 662 | LJ42: 0 | LK42: 108 | LL42: 123 | LM42: 1411 | LN42: 70 | LO42: 300 | LP42: 0 | LQ42: 0 | LR42: 0 | LS42: 33 | LT42: 13 | LU42: 433 | LV42: 8 | LW42: 160 | LX42: 15 | LY42: 233 | LZ42: 12 | MA42: 0 | MB42: 1052 | MC42: 0 | MD42: 0 | ME42: 0 | MF42: 13 | MG42: 1050 | MH42: 700 | MI42: 9 | MJ42: 15 | MK42: 228 | ML42: 180 | MM42: 15 | MN42: 200 | MO42: 23 | MP42: 0 | MQ42: 0 | MR42: 40 | MS42: 125 | MT42: 0 | MU42: 66 | MV42: 100 | MW42: 1000 | MX42: 0 | MY42: 63 | MZ42: 1875 | NA42: 2000 | NB42: 0 | NC42: 1000 | ND42: 930 | NE42: 0 | NF42: 750 | NG42: 666 | NH42: 0 | NI42: 108 | NJ42: 105 | NK42: 1230 | NL42: 70 | NM42: 300 | NN42: 0 | NO42: 0 | NP42: 0 | NQ42: 33 | NR42: 24 | NS42: 427 | NT42: 9 | NU42: 160 | NV42: 50 | NW42: 232 | NX42: 12 | NY42: 0 | NZ42: 1040 | OA42: 0 | OB42: 0 | OC42: 0 | OD42: 13 | OE42: 1015 | OF42: 625 | OG42: 11 | OH42: 16 | OI42: 219 | OJ42: 201 | OK42: 15 | OL42: 200 | OM42: 23 | ON42: 0 | OO42: 196 | OP42: 40 | OQ42: 125 | OR42: 0 | OS42: 60 | OT42: 100 | OU42: 1100 | OV42: 0 | OW42: 63 | OX42: 1875 | OY42: 2000 | OZ42: 0 | PA42: 1207 | PB42: 930 | PC42: 0 | PD42: 750 | PE42: 662 | PF42: 0 | PG42: 108 | PH42: 117 | PI42: 1230 | PJ42: 70 | PK42: 300 | PL42: 0 | PM42: 0 | PN42: 0 | PO42: 33 | PP42: 20 | PQ42: 419 | PR42: 9 | PS42: 156 | PT42: 50 | PU42: 287 | PV42: 13 | PW42: 0 | PX42: 1004 | PY42: 0 | PZ42: 0 | QA42: 0 | QB42: 20 | QC42: 1015 | QD42: 1375 | QE42: 0 | QF42: 15 | QG42: 228 | QH42: 150 | QI42: 20 | QJ42: 200 | QK42: 23 | QL42: 0 | QM42: 196 | QN42: 40 | QO42: 200 | QP42: 0 | QQ42: 54 | QR42: 100 | QS42: 1000 | QT42: 1281 | QU42: 0 | QV42: 1875 | QW42: 2000 | QX42: 0 | QY42: 0 | QZ42: 960 | RA42: 0 | RB42: 0 | RC42: 677 | RD42: 0 | RE42: 108 | RF42: 117 | RG42: 1200 | RH42: 70 | RI42: 23 | RJ42: 0 | RK42: 0 | RL42: 0 | RM42: 40 | RN42: 20 | RO42: 375 | RP42: 7 | RQ42: 156 | RR42: 55 | RS42: 300 | RT42: 8 | RU42: 0 | RV42: 980 | RW42: 0 | RX42: 0 | RY42: 0 | RZ42: 50 | SA42: 875 | SB42: 1250 | SC42: 0 | SD42: 13 | SE42: 216 | SF42: 120 | SG42: 24 | SH42: 200 | SI42: 23 | SJ42: 0 | SK42: 100 | SL42: 20 | SM42: 200 | SN42: 0 | SO42: 45 | SP42: 100 | SQ42: 1100 | SR42: 1400 | SS42: 0 | ST42: 1875 | SU42: 2000 | SV42: 0 | SW42: 0 | SX42: 960 | SY42: 8 | SZ42: 0 | TA42: 691 | TB42: 0 | TC42: 104 | TD42: 114 | TE42: 1200 | TF42: 35 | TG42: 23 | TH42: 0 | TI42: 0 | TJ42: 0 | TK42: 40 | TL42: 20 | TM42: 375 | TN42: 7 | TO42: 160 | TP42: 53 | TQ42: 315 | TR42: 8 | TS42: 0 | TT42: 980 | TU42: 0 | TV42: 0 | TW42: 0 | TX42: 50 | TY42: 858 | TZ42: 1375 | UA42: 0 | UB42: 13 | UC42: 270 | UD42: 150 | UE42: 24 | UF42: 0 | UG42: 23 | UH42: 0 | UI42: 100 | UJ42: 20 | UK42: 200 | UL42: 0 | UM42: 45 | UN42: 100 | UO42: 1000 | UP42: 1300 | UQ42: 0 | UR42: 1938 | US42: 1750 | UT42: 0 | UU42: 0 | UV42: 900 | UW42: 8 | UX42: 0 | UY42: 684 | UZ42: 0 | VA42: 96 | VB42: 127 | VC42: 1200 | VD42: 350
A43: Kabak(Sakız) | B43: ton | C43: =HLOOKUP($A$1,$AA$3:$BX$243,ROW()-2,FALSE) -> 72 | D43: 14 | E43: =HLOOKUP($A$1,$BY$3:$DV$243,ROW()-2,FALSE) -> 78 | F43: 15 | G43: =HLOOKUP($A$1,$DW$3:$FT$243,ROW()-2,FALSE) -> 78 | H43: 14 | I43: =HLOOKUP($A$1,$FU$3:$HR$243,ROW()-2,FALSE) -> 90 | J43: 14 | K43: =HLOOKUP($A$1,$HS$3:$JP$243,ROW()-2,FALSE) -> 90 | L43: 14 | M43: =HLOOKUP($A$1,$JQ$3:$LN$243,ROW()-2,FALSE) -> 100 | N43: 12 | O43: =HLOOKUP($A$1,$LO$3:$NL$243,ROW()-2,FALSE) -> 100 | P43: 14 | Q43: =HLOOKUP($A$1,$NM$3:$PJ$243,ROW()-2,FALSE) -> 100 | R43: 14 | S43: =HLOOKUP($A$1,$PK$3:$RH$243,ROW()-2,FALSE) -> 100 | T43: 13 | U43: =HLOOKUP($A$1,$RI$3:$TF$243,ROW()-2,FALSE) -> 100 | V43: 11 | W43: =HLOOKUP($A$1,$TG$3:$VD$243,ROW()-2,FALSE) -> 0 | X43: - | Y43: Fethiye | Z43: 26815 | AA43: 0 | AB43: 0 | AC43: 0 | AD43: 0 | AE43: 0 | AF43: 16 | AG43: 93 | AH43: 0 | AI43: 0 | AJ43: 0 | AK43: 0 | AL43: 0 | AM43: 0 | AN43: 120 | AO43: 0 | AP43: 7 | AQ43: 0 | AR43: 52 | AS43: 135 | AT43: 28339 | AU43: 0 | AV43: 25 | AW43: 71 | AX43: 61 | AY43: 0 | AZ43: 72 | BA43: 5 | BB43: 0 | BC43: 26 | BD43: 0 | BE43: 53 | BF43: 11 | BG43: 0 | BH43: 78 | BI43: 263 | BJ43: 0 | BK43: 50 | BL43: 156 | BM43: 1731 | BN43: 210 | BO43: 274 | BP43: 280 | BQ43: 0 | BR43: 726 | BS43: 29 | BT43: 0 | BU43: 47 | BV43: 65 | BW43: 259 | BX43: 19 | BY43: 0 | BZ43: 0 | CA43: 0 | CB43: 0 | CC43: 0 | CD43: 6 | CE43: 85 | CF43: 0 | CG43: 0 | CH43: 0 | CI43: 0 | CJ43: 0 | CK43: 0 | CL43: 114 | CM43: 0 | CN43: 0 | CO43: 0 | CP43: 50 | CQ43: 220 | CR43: 26815 | CS43: 0 | CT43: 38 | CU43: 105 | CV43: 62 | CW43: 0 | CX43: 78 | CY43: 5 | CZ43: 0 | DA43: 0 | DB43: 0 | DC43: 46 | DD43: 13 | DE43: 0 | DF43: 90 | DG43: 255 | DH43: 0 | DI43: 48 | DJ43: 1200 | DK43: 1695 | DL43: 178 | DM43: 264 | DN43: 255 | DO43: 0 | DP43: 700 | DQ43: 29 | DR43: 0 | DS43: 45 | DT43: 63 | DU43: 200 | DV43: 15 | DW43: 0 | DX43: 0 | DY43: 0 | DZ43: 0 | EA43: 0 | EB43: 4 | EC43: 75 | ED43: 0 | EE43: 0 | EF43: 0 | EG43: 0 | EH43: 0 | EI43: 0 | EJ43: 122 | EK43: 0 | EL43: 0 | EM43: 0 | EN43: 50 | EO43: 220 | EP43: 25725 | EQ43: 0 | ER43: 26 | ES43: 105 | ET43: 68 | EU43: 0 | EV43: 78 | EW43: 5 | EX43: 0 | EY43: 4 | EZ43: 0 | FA43: 46 | FB43: 5 | FC43: 0 | FD43: 99 | FE43: 220 | FF43: 0 | FG43: 56 | FH43: 1280 | FI43: 1945 | FJ43: 178 | FK43: 264 | FL43: 192 | FM43: 0 | FN43: 620 | FO43: 29 | FP43: 0 | FQ43: 45 | FR43: 55 | FS43: 140 | FT43: 15 | FU43: 0 | FV43: 0 | FW43: 0 | FX43: 0 | FY43: 0 | FZ43: 4 | GA43: 70 | GB43: 0 | GC43: 0 | GD43: 0 | GE43: 0 | GF43: 0 | GG43: 0 | GH43: 122 | GI43: 0 | GJ43: 0 | GK43: 0 | GL43: 50 | GM43: 250 | GN43: 27769 | GO43: 0 | GP43: 68 | GQ43: 105 | GR43: 68 | GS43: 0 | GT43: 90 | GU43: 5 | GV43: 0 | GW43: 4 | GX43: 0 | GY43: 41 | GZ43: 5 | HA43: 0 | HB43: 105 | HC43: 220 | HD43: 0 | HE43: 72 | HF43: 1600 | HG43: 1945 | HH43: 178 | HI43: 264 | HJ43: 192 | HK43: 0 | HL43: 540 | HM43: 29 | HN43: 0 | HO43: 36 | HP43: 55 | HQ43: 126 | HR43: 15 | HS43: 0 | HT43: 0 | HU43: 0 | HV43: 0 | HW43: 0 | HX43: 4 | HY43: 64 | HZ43: 0 | IA43: 0 | IB43: 0 | IC43: 0 | ID43: 0 | IE43: 0 | IF43: 127 | IG43: 0 | IH43: 0 | II43: 0 | IJ43: 50 | IK43: 250 | IL43: 28115 | IM43: 0 | IN43: 60 | IO43: 105 | IP43: 68 | IQ43: 0 | IR43: 90 | IS43: 5 | IT43: 0 | IU43: 4 | IV43: 0 | IW43: 52 | IX43: 5 | IY43: 0 | IZ43: 96 | JA43: 220 | JB43: 0 | JC43: 70 | JD43: 1080 | JE43: 1945 | JF43: 105 | JG43: 240 | JH43: 150 | JI43: 0 | JJ43: 600 | JK43: 29 | JL43: 0 | JM43: 36 | JN43: 32 | JO43: 162 | JP43: 15 | JQ43: 0 | JR43: 0 | JS43: 0 | JT43: 0 | JU43: 0 | JV43: 4 | JW43: 59 | JX43: 0 | JY43: 0 | JZ43: 0 | KA43: 0 | KB43: 0 | KC43: 0 | KD43: 107 | KE43: 0 | KF43: 0 | KG43: 0 | KH43: 50 | KI43: 250 | KJ43: 28515 | KK43: 0 | KL43: 32 | KM43: 95 | KN43: 98 | KO43: 0 | KP43: 100 | KQ43: 5 | KR43: 0 | KS43: 4 | KT43: 0 | KU43: 52 | KV43: 5 | KW43: 0 | KX43: 120 | KY43: 220 | KZ43: 0 | LA43: 70 | LB43: 1050 | LC43: 1720 | LD43: 75 | LE43: 240 | LF43: 140 | LG43: 0 | LH43: 750 | LI43: 29 | LJ43: 0 | LK43: 36 | LL43: 14 | LM43: 149 | LN43: 15 | LO43: 0 | LP43: 0 | LQ43: 0 | LR43: 0 | LS43: 0 | LT43: 202 | LU43: 25 | LV43: 0 | LW43: 0 | LX43: 0 | LY43: 0 | LZ43: 0 | MA43: 0 | MB43: 110 | MC43: 0 | MD43: 0 | ME43: 0 | MF43: 50 | MG43: 40 | MH43: 5780 | MI43: 0 | MJ43: 30 | MK43: 95 | ML43: 113 | MM43: 0 | MN43: 100 | MO43: 5 | MP43: 0 | MQ43: 4 | MR43: 200 | MS43: 52 | MT43: 5 | MU43: 0 | MV43: 120 | MW43: 220 | MX43: 0 | MY43: 70 | MZ43: 1050 | NA43: 1683 | NB43: 80 | NC43: 240 | ND43: 140 | NE43: 0 | NF43: 750 | NG43: 29 | NH43: 0 | NI43: 36 | NJ43: 5 | NK43: 128 | NL43: 30 | NM43: 20 | NN43: 0 | NO43: 0 | NP43: 0 | NQ43: 0 | NR43: 200 | NS43: 23 | NT43: 0 | NU43: 0 | NV43: 15 | NW43: 0 | NX43: 0 | NY43: 0 | NZ43: 105 | OA43: 0 | OB43: 0 | OC43: 0 | OD43: 50 | OE43: 50 | OF43: 5800 | OG43: 0 | OH43: 32 | OI43: 70 | OJ43: 113 | OK43: 0 | OL43: 100 | OM43: 5 | ON43: 0 | OO43: 40 | OP43: 200 | OQ43: 52 | OR43: 5 | OS43: 0 | OT43: 120 | OU43: 187 | OV43: 0 | OW43: 75 | OX43: 1050 | OY43: 1645 | OZ43: 80 | PA43: 314 | PB43: 140 | PC43: 0 | PD43: 600 | PE43: 29 | PF43: 0 | PG43: 36 | PH43: 0 | PI43: 128 | PJ43: 30 | PK43: 20 | PL43: 0 | PM43: 0 | PN43: 0 | PO43: 0 | PP43: 200 | PQ43: 20 | PR43: 0 | PS43: 0 | PT43: 15 | PU43: 0 | PV43: 0 | PW43: 0 | PX43: 104 | PY43: 0 | PZ43: 0 | QA43: 0 | QB43: 50 | QC43: 50 | QD43: 7700 | QE43: 0 | QF43: 33 | QG43: 80 | QH43: 83 | QI43: 0 | QJ43: 100 | QK43: 5 | QL43: 0 | QM43: 40 | QN43: 200 | QO43: 52 | QP43: 5 | QQ43: 0 | QR43: 120 | QS43: 165 | QT43: 395 | QU43: 0 | QV43: 1050 | QW43: 1645 | QX43: 335 | QY43: 2 | QZ43: 120 | RA43: 0 | RB43: 0 | RC43: 27 | RD43: 0 | RE43: 36 | RF43: 0 | RG43: 128 | RH43: 30 | RI43: 23 | RJ43: 0 | RK43: 0 | RL43: 0 | RM43: 0 | RN43: 200 | RO43: 18 | RP43: 0 | RQ43: 0 | RR43: 14 | RS43: 0 | RT43: 0 | RU43: 0 | RV43: 97 | RW43: 0 | RX43: 0 | RY43: 0 | RZ43: 50 | SA43: 50 | SB43: 6550 | SC43: 0 | SD43: 32 | SE43: 80 | SF43: 80 | SG43: 0 | SH43: 100 | SI43: 5 | SJ43: 0 | SK43: 38 | SL43: 240 | SM43: 52 | SN43: 5 | SO43: 0 | SP43: 120 | SQ43: 196 | SR43: 435 | SS43: 0 | ST43: 1050 | SU43: 1645 | SV43: 355 | SW43: 2 | SX43: 100 | SY43: 0 | SZ43: 0 | TA43: 27 | TB43: 0 | TC43: 27 | TD43: 0 | TE43: 128 | TF43: 30 | TG43: 23 | TH43: 0 | TI43: 0 | TJ43: 0 | TK43: 0 | TL43: 220 | TM43: 0 | TN43: 0 | TO43: 0 | TP43: 20 | TQ43: 0 | TR43: 0 | TS43: 0 | TT43: 97 | TU43: 0 | TV43: 0 | TW43: 0 | TX43: 50 | TY43: 67 | TZ43: 5400 | UA43: 0 | UB43: 32 | UC43: 80 | UD43: 80 | UE43: 0 | UF43: 0 | UG43: 5 | UH43: 0 | UI43: 38 | UJ43: 120 | UK43: 52 | UL43: 0 | UM43: 0 | UN43: 120 | UO43: 174 | UP43: 435 | UQ43: 0 | UR43: 1050 | US43: 1470 | UT43: 405 | UU43: 2 | UV43: 60 | UW43: 0 | UX43: 0 | UY43: 27 | UZ43: 0 | VA43: 25 | VB43: 0 | VC43: 120 | VD43: 450
